{"text_format":"1","workbook":"xlsx","n_sheets":26,"sheets":["Cover Page","Group Application (51+)","Group Size","Plan Info 1","Plan Info 2","Plan Info 3","Rates Insured 1","Rates Insured 2","Rates Insured 3","Rates ASO","Rate Minimum Premium (Internal)","Plan Info Lookups (Internal)","Account Structure","Sales Summary (Internal)","Agent Info","BIU (Internal)","COBRA Packaged Product","BHS COBRA Flyer","ESA - FI","ESA - ASO","Reports (Internal)","Nondiscrimination_Taglines","Drop Down Options","Refunding (Internal)","NAICS Codes (Internal)","Checklist"],"not_rendered":{"charts":0,"images":21,"macros":1,"external_links":12,"defined_names":222,"comments":4,"pivot_tables":0},"unopened":[],"bounds":{"document_bytes":16777216,"sheet_cells":100000,"rows_first":2000,"rows_last":500,"rows_between":2000,"halvings":0,"cell_chars":16384,"cell_head_chars":4096},"cells_cut":0,"cells_raw":0,"read":"whole","date_system":"1900"}

{"sheet":"Cover Page","index":0,"n_rows":42,"n_cols":4,"rows_kept":42,"cut":false,"hidden":false,"merged":[[2,2,2,5]]}
[]
[]
[null,null,"Group Application\nIntroduction"]
[]
[null,null,"Thank you for choosing Moda Health and Delta Dental."]
[null,null,"All new group enrollment materials must be received by Moda Health and Delta Dental \n"]
[null,null,"no later than the 10th of the month for a first of the following month's effective date."]
[]
[]
[null,null,"Note  >  If any of the below items are not completed in full, enrollment will be delayed."]
[]
[null,null,null,"Group Application - Completed and Signed by Group and Agent"]
[null,null,null,"Enrollment Forms for All Eligible Employees (include hire dates on all enrollment forms)"]
[null,null,null,"Declinations for all employees waiving or opting out (applicable to groups with all levels of participation)"]
[null,null,null,"First Month's Premium (make check payable to Moda Health)"]
[null,null,null,"ESA Agreement/ EFT (electronic funds transfer) Authorization Form "]
[null,null,null,"Late Acknowledgement Agreement (If enrolling past the 10th of the month)"]
[]
[null,null,"Note  >  Please check all applicable items below"]
[null,null,null,"Group is subject to ERISA"]
[null,null,null,"COBRA Eligible lines of coverage other than Moda Health (medical coverage)"]
[null,null,null,"Domestic Partnership is available by affadavit for either sex"]
[null,null,null,"Domestic Partnership is not available."]
[null,null,null,"Lookback measurement period is used for variable-hour employees"]
[null,null,null,"Group has a bargaining agreement (Union)"]
[null,null,null,"Effective date: "]
[null,null,null,"Expiration date: "]
[null,null,null,"Group has an association or trust"]
[null,null,null,"Effective date:"]
[null,null,null,"Expiration date:"]
[]
[null,null,"Member Handbooks"]
[]
[null,null,"We encourage our members to view their handbooks from their myModa account at modahealth.com/mymoda"]
[]
[]
[null,null,"Please forward the completed copy to:"]
[null,null,"ModaGroupSales@modahealth.com"]
[]
[null,null,"Or print and mail a completed copy to:"]
[null,null,"Moda Health and Delta Dental"]
[null,null,"510 L St. Suite 270 Anchorage, AK 99501"]

{"sheet":"Group Application (51+)","index":1,"n_rows":77,"n_cols":15,"rows_kept":77,"cut":false,"hidden":false,"merged":[[77,3,77,15],[47,3,47,6],[76,3,76,15],[63,3,63,7],[63,8,63,9],[49,3,49,15],[53,8,53,15],[50,8,50,15],[58,6,58,7],[66,3,66,15],[67,8,67,15],[65,3,65,15],[70,12,70,15],[52,3,52,15],[58,13,58,14],[70,5,70,10],[6,12,6,14],[2,2,2,13],[61,3,61,7],[56,6,56,11],[44,13,44,15],[47,7,47,9],[47,13,47,15],[37,11,37,15],[39,11,39,13],[37,2,37,10],[40,11,40,15],[61,8,61,14],[15,2,15,10],[10,2,10,15],[13,2,13,15],[19,2,19,10],[22,2,22,10],[25,2,25,10],[21,11,21,15],[24,11,24,15],[33,11,33,15],[24,2,24,4],[30,2,30,10],[28,11,28,15],[31,11,31,15],[30,11,30,15],[41,2,41,15],[34,2,34,10],[36,11,36,15],[27,2,27,9],[31,2,31,10],[75,8,75,15],[15,11,15,15],[44,11,44,12],[47,11,47,12],[7,2,7,14],[9,2,9,4],[34,11,34,15],[16,2,16,10],[16,11,16,15],[18,2,18,10],[18,11,18,15],[21,2,21,10],[19,11,19,15],[22,11,22,15],[25,11,25,15],[28,2,28,10]]}
[]
[]
[null,null,"Alaska Large Employer \nGroup Application (51+)"]
[]
[null,null,null,null,null,null,null,null,null,null,null,null,null,null,"Type:"]
[]
[null,null,null,null,"",null,null,null,null,{"$f":"PROPER(E7)","v":""},null,null,"Effective Date:"]
[null,null,"Section 1  >  Group Information"]
[]
[null,null,"Legal Name:"]
[]
[]
[null,null,"DBA Name (appears on bills):"]
[]
[]
[null,null,"Tax ID #:",null,null,null,null,null,null,null,null,"NAICS:"]
[]
[]
[null,null,"Physical Address (no PO Box):",null,null,null,null,null,null,null,null,"City/State/Zip:"]
[]
[]
[null,null,"Mailing Address (if different):",null,null,null,null,null,null,null,null,"City/State/Zip:"]
[]
[]
[null,null,"Group Administrator:",null,null,null,null,null,null,null,null,"Billing Contact:"]
[]
[]
[null,null,"Group Administrator Phone #:",null,null,null,null,null,null,null,null,"Billing Contact Phone #:",null,null,":"]
[]
[]
[null,null,"Group Administrator Fax #:",null,null,null,null,null,null,null,null,"Billing Contact Fax #:"]
[]
[]
[null,null,"Group Administrator E-mail Address:",null,null,null,null,null,null,null,null,"Billing Contact  E-mail Address:"]
[]
[]
[null,null,"Renewal Date:",null,null,null,null,null,null,null,null,"Advance Renewal Notice (days):"]
[]
[]
[null,null,null,null,null,null,null,null,null,null,null,"Notification Month/Year:"]
[null,null,null,null,null,null,null,null,null,null,null,{"$f":"IF(C38=\"\",\"\",IF(L38=\"\",\"\",((DATE(YEAR(C38),MONTH(C38),DAY(C38))-L38))))","v":""}]
[null,null,"Section 2  >  Eligibility"]
[]
[null,null,"1.","What percentage of the medical premium is to be contributed by the employer?"]
[null,null,null,"For employees (minimum 50%):",null,null,null,null,null,null,null,"For dependents:"]
[]
[null,null,"2.","What percentage of the dental premium is to be contributed by the employer?"]
[null,null,null,"For employees (minimum 50%):",null,null,null,null,null,null,null,"For dependents:"]
[]
[null,null,"3.","Will the plan be integrated (bundled)?"]
[]
[]
[null,null,null,"*If yes, indicate which lines are integrated:"]
[]
[]
[null,null,"4.","How many hours per week must an employee work to be eligible for benefits? "]
[null,null,null,"(min. 17.5  per week):"]
[]
[null,null,"5.","Dependent age maximum:",null,null,{"$f":"IF(P5=\"NEW\",\"26\",\"\")","v":""},null,null,"Student age maximum:",null,null,{"$f":"IF(P5=\"NEW\",\"26\",\"\")","v":""},"Verified by:"]
[]
[null,null,"6.","What is the eligibility period an employee must complete before becoming eligible for benefits?   "]
[null,null,null,"The first of the month following:"]
[]
[null,null,null,"Apply to all employees?"]
[]
[null,null,"7.","For part-time employees, does the time employed count towards the eligibility period for full-time employees?*"]
[null,null,null,"*Medical and Medical/Dental groups: This option is only available when the group's employee eligibility period is first of the month following 30 or 60 days.\n*Dental only groups: This option is only available when the group's employee eligibility period is first of the month following 30, 60 or 90 days. "]
[]
[]
[null,null,"8.","When do changes made during open enrollment become effective?"]
[null,null,null,"At renewal?",null,null,null,null,null,null,null,"On Date:  "]
[]
[]
[]
[null,null,"9.","Will out of state employees (other than those in SW Washington) be covered by Moda Health?:"]
[]
[null,null,null,"*If yes list state(s) and number of employees in each (Employees who reside in the state of Hawaii are not eligible to enroll for medical coverage):"]

{"sheet":"Group Size","index":2,"n_rows":56,"n_cols":9,"rows_kept":56,"cut":false,"hidden":false,"merged":[[49,16242,49,16249],[49,16250,49,16257],[49,16258,49,16265],[49,16234,49,16241],[49,16162,49,16169],[49,16170,49,16177],[49,16178,49,16185],[49,16186,49,16193],[49,16194,49,16201],[43,3,43,5],[3,2,3,8],[54,2,54,4],[54,5,54,6],[51,2,51,8],[48,3,48,5],[49,2,49,8],[49,16338,49,16345],[49,15594,49,15601],[49,15866,49,15873],[49,15810,49,15817],[49,15818,49,15825],[49,15826,49,15833],[49,15834,49,15841],[49,15762,49,15769],[49,15770,49,15777],[49,15778,49,15785],[49,15786,49,15793],[49,15794,49,15801],[49,15682,49,15689],[49,15690,49,15697],[49,15698,49,15705],[49,15706,49,15713],[49,16346,49,16353],[49,16282,49,16289],[49,16290,49,16297],[49,16298,49,16305],[49,16306,49,16313],[49,16314,49,16321],[49,15914,49,15921],[49,15842,49,15849],[49,15850,49,15857],[49,15858,49,15865],[49,16322,49,16329],[49,16330,49,16337],[49,16202,49,16209],[49,16210,49,16217],[49,16218,49,16225],[49,16226,49,16233],[49,16138,49,16145],[49,16146,49,16153],[49,16154,49,16161],[49,16082,49,16089],[49,16090,49,16097],[49,16098,49,16105],[49,16106,49,16113],[49,16114,49,16121],[49,16010,49,16017],[49,16018,49,16025],[49,16026,49,16033],[49,16034,49,16041],[49,16122,49,16129],[49,16130,49,16137],[49,16266,49,16273],[49,16274,49,16281],[2,2,2,8],[24,3,24,6],[49,16042,49,16049],[49,16050,49,16057],[49,16058,49,16065],[49,16066,49,16073],[49,16074,49,16081],[49,16002,49,16009],[49,15954,49,15961],[49,15722,49,15729],[49,15730,49,15737],[49,15738,49,15745],[49,15746,49,15753],[49,15754,49,15761],[49,15882,49,15889],[49,15890,49,15897],[49,15898,49,15905],[49,15906,49,15913],[49,15874,49,15881],[49,15962,49,15969],[49,15970,49,15977],[49,15978,49,15985],[49,15986,49,15993],[49,15994,49,16001],[49,15922,49,15929],[49,15930,49,15937],[49,15938,49,15945],[49,15946,49,15953],[49,15562,49,15569],[49,15570,49,15577],[49,15578,49,15585],[49,15586,49,15593],[49,15714,49,15721],[49,15802,49,15809],[49,15642,49,15649],[49,15650,49,15657],[49,15658,49,15665],[49,15666,49,15673],[49,15674,49,15681],[49,15602,49,15609],[49,15610,49,15617],[49,15618,49,15625],[49,15626,49,15633],[49,15634,49,15641],[49,15274,49,15281],[49,15522,49,15529],[49,15530,49,15537],[49,15538,49,15545],[49,15546,49,15553],[49,15554,49,15561],[49,15402,49,15409],[49,15410,49,15417],[49,15418,49,15425],[49,15426,49,15433],[49,15490,49,15497],[49,15498,49,15505],[49,15506,49,15513],[49,15514,49,15521],[49,15442,49,15449],[49,15450,49,15457],[49,15458,49,15465],[49,15466,49,15473],[49,15474,49,15481],[49,15362,49,15369],[49,15370,49,15377],[49,15378,49,15385],[49,15386,49,15393],[49,15394,49,15401],[49,15482,49,15489],[49,15434,49,15441],[49,15338,49,15345],[49,15346,49,15353],[49,15354,49,15361],[49,15282,49,15289],[49,15290,49,15297],[49,15298,49,15305],[49,15306,49,15313],[49,15314,49,15321],[49,15210,49,15217],[49,15218,49,15225],[49,15226,49,15233],[49,15234,49,15241],[49,15322,49,15329],[49,15330,49,15337],[49,15242,49,15249],[49,15250,49,15257],[49,15258,49,15265],[49,15266,49,15273],[49,14922,49,14929],[49,14930,49,14937],[49,14938,49,14945],[49,14946,49,14953],[49,14954,49,14961],[49,15202,49,15209],[49,15082,49,15089],[49,15090,49,15097],[49,15098,49,15105],[49,15106,49,15113],[49,15170,49,15177],[49,15178,49,15185],[49,15186,49,15193],[49,15194,49,15201],[49,15122,49,15129],[49,15130,49,15137],[49,15138,49,15145],[49,15146,49,15153],[49,15154,49,15161],[49,15042,49,15049],[49,15050,49,15057],[49,15058,49,15065],[49,15066,49,15073],[49,15074,49,15081],[49,15162,49,15169],[49,15114,49,15121],[49,15002,49,15009],[49,15010,49,15017],[49,15018,49,15025],[49,15026,49,15033],[49,15034,49,15041],[49,14962,49,14969],[49,14970,49,14977],[49,14978,49,14985],[49,14986,49,14993],[49,14994,49,15001],[49,14634,49,14641],[49,14882,49,14889],[49,14890,49,14897],[49,14898,49,14905],[49,14906,49,14913],[49,14914,49,14921],[49,14762,49,14769],[49,14770,49,14777],[49,14778,49,14785],[49,14786,49,14793],[49,14850,49,14857],[49,14858,49,14865],[49,14866,49,14873],[49,14874,49,14881],[49,14802,49,14809],[49,14810,49,14817],[49,14818,49,14825],[49,14826,49,14833],[49,14834,49,14841],[49,14722,49,14729],[49,14730,49,14737],[49,14738,49,14745],[49,14746,49,14753],[49,14754,49,14761],[49,14842,49,14849],[49,14794,49,14801],[49,14698,49,14705],[49,14706,49,14713],[49,14714,49,14721],[49,14642,49,14649],[49,14650,49,14657],[49,14658,49,14665],[49,14666,49,14673],[49,14674,49,14681],[49,14570,49,14577],[49,14578,49,14585],[49,14586,49,14593],[49,14594,49,14601],[49,14682,49,14689],[49,14690,49,14697],[49,14602,49,14609],[49,14610,49,14617],[49,14618,49,14625],[49,14626,49,14633],[49,14282,49,14289],[49,14290,49,14297],[49,14298,49,14305],[49,14306,49,14313],[49,14314,49,14321],[49,14562,49,14569],[49,14442,49,14449],[49,14450,49,14457],[49,14458,49,14465],[49,14466,49,14473],[49,14530,49,14537],[49,14538,49,14545],[49,14546,49,14553],[49,14554,49,14561],[49,14482,49,14489],[49,14490,49,14497],[49,14498,49,14505],[49,14506,49,14513],[49,14514,49,14521],[49,14402,49,14409],[49,14410,49,14417],[49,14418,49,14425],[49,14426,49,14433],[49,14434,49,14441],[49,14522,49,14529],[49,14474,49,14481],[49,14362,49,14369],[49,14370,49,14377],[49,14378,49,14385],[49,14386,49,14393],[49,14394,49,14401],[49,14322,49,14329],[49,14330,49,14337],[49,14338,49,14345],[49,14346,49,14353],[49,14354,49,14361],[49,13994,49,14001],[49,14242,49,14249],[49,14250,49,14257],[49,14258,49,14265],[49,14266,49,14273],[49,14274,49,14281],[49,14122,49,14129],[49,14130,49,14137],[49,14138,49,14145],[49,14146,49,14153],[49,14210,49,14217],[49,14218,49,14225],[49,14226,49,14233],[49,14234,49,14241],[49,14162,49,14169],[49,14170,49,14177],[49,14178,49,14185],[49,14186,49,14193],[49,14194,49,14201],[49,14082,49,14089],[49,14090,49,14097],[49,14098,49,14105],[49,14106,49,14113],[49,14114,49,14121],[49,14202,49,14209],[49,14154,49,14161],[49,14058,49,14065],[49,14066,49,14073],[49,14074,49,14081],[49,14002,49,14009],[49,14010,49,14017],[49,14018,49,14025],[49,14026,49,14033],[49,14034,49,14041],[49,13930,49,13937],[49,13938,49,13945],[49,13946,49,13953],[49,13954,49,13961],[49,14042,49,14049],[49,14050,49,14057],[49,13962,49,13969],[49,13970,49,13977],[49,13978,49,13985],[49,13986,49,13993],[49,13642,49,13649],[49,13650,49,13657],[49,13658,49,13665],[49,13666,49,13673],[49,13674,49,13681],[49,13922,49,13929],[49,13802,49,13809],[49,13810,49,13817],[49,13818,49,13825],[49,13826,49,13833],[49,13890,49,13897],[49,13898,49,13905],[49,13906,49,13913],[49,13914,49,13921],[49,13842,49,13849],[49,13850,49,13857],[49,13858,49,13865],[49,13866,49,13873],[49,13874,49,13881],[49,13762,49,13769],[49,13770,49,13777],[49,13778,49,13785],[49,13786,49,13793],[49,13794,49,13801],[49,13882,49,13889],[49,13834,49,13841],[49,13722,49,13729],[49,13730,49,13737],[49,13738,49,13745],[49,13746,49,13753],[49,13754,49,13761],[49,13682,49,13689],[49,13690,49,13697],[49,13698,49,13705],[49,13706,49,13713],[49,13714,49,13721],[49,13354,49,13361],[49,13602,49,13609],[49,13610,49,13617],[49,13618,49,13625],[49,13626,49,13633],[49,13634,49,13641],[49,13482,49,13489],[49,13490,49,13497],[49,13498,49,13505],[49,13506,49,13513],[49,13570,49,13577],[49,13578,49,13585],[49,13586,49,13593],[49,13594,49,13601],[49,13522,49,13529],[49,13530,49,13537],[49,13538,49,13545],[49,13546,49,13553],[49,13554,49,13561],[49,13442,49,13449],[49,13450,49,13457],[49,13458,49,13465],[49,13466,49,13473],[49,13474,49,13481],[49,13562,49,13569],[49,13514,49,13521],[49,13418,49,13425],[49,13426,49,13433],[49,13434,49,13441],[49,13362,49,13369],[49,13370,49,13377],[49,13378,49,13385],[49,13386,49,13393],[49,13394,49,13401],[49,13290,49,13297],[49,13298,49,13305],[49,13306,49,13313],[49,13314,49,13321],[49,13402,49,13409],[49,13410,49,13417],[49,13322,49,13329],[49,13330,49,13337],[49,13338,49,13345],[49,13346,49,13353],[49,13002,49,13009],[49,13010,49,13017],[49,13018,49,13025],[49,13026,49,13033],[49,13034,49,13041],[49,13282,49,13289],[49,13162,49,13169],[49,13170,49,13177],[49,13178,49,13185],[49,13186,49,13193],[49,13250,49,13257],[49,13258,49,13265],[49,13266,49,13273],[49,13274,49,13281],[49,13202,49,13209],[49,13210,49,13217],[49,13218,49,13225],[49,13226,49,13233],[49,13234,49,13241],[49,13122,49,13129],[49,13130,49,13137],[49,13138,49,13145],[49,13146,49,13153],[49,13154,49,13161],[49,13242,49,13249],[49,13194,49,13201],[49,13082,49,13089],[49,13090,49,13097],[49,13098,49,13105],[49,13106,49,13113],[49,13114,49,13121],[49,13042,49,13049],[49,13050,49,13057],[49,13058,49,13065],[49,13066,49,13073],[49,13074,49,13081],[49,12714,49,12721],[49,12962,49,12969],[49,12970,49,12977],[49,12978,49,12985],[49,12986,49,12993],[49,12994,49,13001],[49,12842,49,12849],[49,12850,49,12857],[49,12858,49,12865],[49,12866,49,12873],[49,12930,49,12937],[49,12938,49,12945],[49,12946,49,12953],[49,12954,49,12961],[49,12882,49,12889],[49,12890,49,12897],[49,12898,49,12905],[49,12906,49,12913],[49,12914,49,12921],[49,12802,49,12809],[49,12810,49,12817],[49,12818,49,12825],[49,12826,49,12833],[49,12834,49,12841],[49,12922,49,12929],[49,12874,49,12881],[49,12778,49,12785],[49,12786,49,12793],[49,12794,49,12801],[49,12722,49,12729],[49,12730,49,12737],[49,12738,49,12745],[49,12746,49,12753],[49,12754,49,12761],[49,12650,49,12657],[49,12658,49,12665],[49,12666,49,12673],[49,12674,49,12681],[49,12762,49,12769],[49,12770,49,12777],[49,12682,49,12689],[49,12690,49,12697],[49,12698,49,12705],[49,12706,49,12713],[49,12362,49,12369],[49,12370,49,12377],[49,12378,49,12385],[49,12386,49,12393],[49,12394,49,12401],[49,12642,49,12649],[49,12522,49,12529],[49,12530,49,12537],[49,12538,49,12545],[49,12546,49,12553],[49,12610,49,12617],[49,12618,49,12625],[49,12626,49,12633],[49,12634,49,12641],[49,12562,49,12569],[49,12570,49,12577],[49,12578,49,12585],[49,12586,49,12593],[49,12594,49,12601],[49,12482,49,12489],[49,12490,49,12497],[49,12498,49,12505],[49,12506,49,12513],[49,12514,49,12521],[49,12602,49,12609],[49,12554,49,12561],[49,12442,49,12449],[49,12450,49,12457],[49,12458,49,12465],[49,12466,49,12473],[49,12474,49,12481],[49,12402,49,12409],[49,12410,49,12417],[49,12418,49,12425],[49,12426,49,12433],[49,12434,49,12441],[49,12074,49,12081],[49,12322,49,12329],[49,12330,49,12337],[49,12338,49,12345],[49,12346,49,12353],[49,12354,49,12361],[49,12202,49,12209],[49,12210,49,12217],[49,12218,49,12225],[49,12226,49,12233],[49,12290,49,12297],[49,12298,49,12305],[49,12306,49,12313],[49,12314,49,12321],[49,12242,49,12249],[49,12250,49,12257],[49,12258,49,12265],[49,12266,49,12273],[49,12274,49,12281],[49,12162,49,12169],[49,12170,49,12177],[49,12178,49,12185],[49,12186,49,12193],[49,12194,49,12201],[49,12282,49,12289],[49,12234,49,12241],[49,12138,49,12145],[49,12146,49,12153],[49,12154,49,12161],[49,12082,49,12089],[49,12090,49,12097],[49,12098,49,12105],[49,12106,49,12113],[49,12114,49,12121],[49,12010,49,12017],[49,12018,49,12025],[49,12026,49,12033],[49,12034,49,12041],[49,12122,49,12129],[49,12130,49,12137],[49,12042,49,12049],[49,12050,49,12057],[49,12058,49,12065],[49,12066,49,12073],[49,11722,49,11729],[49,11730,49,11737],[49,11738,49,11745],[49,11746,49,11753],[49,11754,49,11761],[49,12002,49,12009],[49,11882,49,11889],[49,11890,49,11897],[49,11898,49,11905],[49,11906,49,11913],[49,11970,49,11977],[49,11978,49,11985],[49,11986,49,11993],[49,11994,49,12001],[49,11922,49,11929],[49,11930,49,11937],[49,11938,49,11945],[49,11946,49,11953],[49,11954,49,11961],[49,11842,49,11849],[49,11850,49,11857],[49,11858,49,11865],[49,11866,49,11873],[49,11874,49,11881],[49,11962,49,11969],[49,11914,49,11921],[49,11802,49,11809],[49,11810,49,11817],[49,11818,49,11825],[49,11826,49,11833],[49,11834,49,11841],[49,11762,49,11769],[49,11770,49,11777],[49,11778,49,11785],[49,11786,49,11793],[49,11794,49,11801],[49,11434,49,11441],[49,11682,49,11689],[49,11690,49,11697],[49,11698,49,11705],[49,11706,49,11713],[49,11714,49,11721],[49,11562,49,11569],[49,11570,49,11577],[49,11578,49,11585],[49,11586,49,11593],[49,11650,49,11657],[49,11658,49,11665],[49,11666,49,11673],[49,11674,49,11681],[49,11602,49,11609],[49,11610,49,11617],[49,11618,49,11625],[49,11626,49,11633],[49,11634,49,11641],[49,11522,49,11529],[49,11530,49,11537],[49,11538,49,11545],[49,11546,49,11553],[49,11554,49,11561],[49,11642,49,11649],[49,11594,49,11601],[49,11498,49,11505],[49,11506,49,11513],[49,11514,49,11521],[49,11442,49,11449],[49,11450,49,11457],[49,11458,49,11465],[49,11466,49,11473],[49,11474,49,11481],[49,11370,49,11377],[49,11378,49,11385],[49,11386,49,11393],[49,11394,49,11401],[49,11482,49,11489],[49,11490,49,11497],[49,11402,49,11409],[49,11410,49,11417],[49,11418,49,11425],[49,11426,49,11433],[49,11082,49,11089],[49,11090,49,11097],[49,11098,49,11105],[49,11106,49,11113],[49,11114,49,11121],[49,11362,49,11369],[49,11242,49,11249],[49,11250,49,11257],[49,11258,49,11265],[49,11266,49,11273],[49,11330,49,11337],[49,11338,49,11345],[49,11346,49,11353],[49,11354,49,11361],[49,11282,49,11289],[49,11290,49,11297],[49,11298,49,11305],[49,11306,49,11313],[49,11314,49,11321],[49,11202,49,11209],[49,11210,49,11217],[49,11218,49,11225],[49,11226,49,11233],[49,11234,49,11241],[49,11322,49,11329],[49,11274,49,11281],[49,11162,49,11169],[49,11170,49,11177],[49,11178,49,11185],[49,11186,49,11193],[49,11194,49,11201],[49,11122,49,11129],[49,11130,49,11137],[49,11138,49,11145],[49,11146,49,11153],[49,11154,49,11161],[49,10794,49,10801],[49,11042,49,11049],[49,11050,49,11057],[49,11058,49,11065],[49,11066,49,11073],[49,11074,49,11081],[49,10922,49,10929],[49,10930,49,10937],[49,10938,49,10945],[49,10946,49,10953],[49,11010,49,11017],[49,11018,49,11025],[49,11026,49,11033],[49,11034,49,11041],[49,10962,49,10969],[49,10970,49,10977],[49,10978,49,10985],[49,10986,49,10993],[49,10994,49,11001],[49,10882,49,10889],[49,10890,49,10897],[49,10898,49,10905],[49,10906,49,10913],[49,10914,49,10921],[49,11002,49,11009],[49,10954,49,10961],[49,10858,49,10865],[49,10866,49,10873],[49,10874,49,10881],[49,10802,49,10809],[49,10810,49,10817],[49,10818,49,10825],[49,10826,49,10833],[49,10834,49,10841],[49,10730,49,10737],[49,10738,49,10745],[49,10746,49,10753],[49,10754,49,10761],[49,10842,49,10849],[49,10850,49,10857],[49,10762,49,10769],[49,10770,49,10777],[49,10778,49,10785],[49,10786,49,10793],[49,10442,49,10449],[49,10450,49,10457],[49,10458,49,10465],[49,10466,49,10473],[49,10474,49,10481],[49,10722,49,10729],[49,10602,49,10609],[49,10610,49,10617],[49,10618,49,10625],[49,10626,49,10633],[49,10690,49,10697],[49,10698,49,10705],[49,10706,49,10713],[49,10714,49,10721],[49,10642,49,10649],[49,10650,49,10657],[49,10658,49,10665],[49,10666,49,10673],[49,10674,49,10681],[49,10562,49,10569],[49,10570,49,10577],[49,10578,49,10585],[49,10586,49,10593],[49,10594,49,10601],[49,10682,49,10689],[49,10634,49,10641],[49,10522,49,10529],[49,10530,49,10537],[49,10538,49,10545],[49,10546,49,10553],[49,10554,49,10561],[49,10482,49,10489],[49,10490,49,10497],[49,10498,49,10505],[49,10506,49,10513],[49,10514,49,10521],[49,10154,49,10161],[49,10402,49,10409],[49,10410,49,10417],[49,10418,49,10425],[49,10426,49,10433],[49,10434,49,10441],[49,10282,49,10289],[49,10290,49,10297],[49,10298,49,10305],[49,10306,49,10313],[49,10370,49,10377],[49,10378,49,10385],[49,10386,49,10393],[49,10394,49,10401],[49,10322,49,10329],[49,10330,49,10337],[49,10338,49,10345],[49,10346,49,10353],[49,10354,49,10361],[49,10242,49,10249],[49,10250,49,10257],[49,10258,49,10265],[49,10266,49,10273],[49,10274,49,10281],[49,10362,49,10369],[49,10314,49,10321],[49,10218,49,10225],[49,10226,49,10233],[49,10234,49,10241],[49,10162,49,10169],[49,10170,49,10177],[49,10178,49,10185],[49,10186,49,10193],[49,10194,49,10201],[49,10090,49,10097],[49,10098,49,10105],[49,10106,49,10113],[49,10114,49,10121],[49,10202,49,10209],[49,10210,49,10217],[49,10122,49,10129],[49,10130,49,10137],[49,10138,49,10145],[49,10146,49,10153],[49,9802,49,9809],[49,9810,49,9817],[49,9818,49,9825],[49,9826,49,9833],[49,9834,49,9841],[49,10082,49,10089],[49,9962,49,9969],[49,9970,49,9977],[49,9978,49,9985],[49,9986,49,9993],[49,10050,49,10057],[49,10058,49,10065],[49,10066,49,10073],[49,10074,49,10081],[49,10002,49,10009],[49,10010,49,10017],[49,10018,49,10025],[49,10026,49,10033],[49,10034,49,10041],[49,9922,49,9929],[49,9930,49,9937],[49,9938,49,9945],[49,9946,49,9953],[49,9954,49,9961],[49,10042,49,10049],[49,9994,49,10001],[49,9882,49,9889],[49,9890,49,9897],[49,9898,49,9905],[49,9906,49,9913],[49,9914,49,9921],[49,9842,49,9849],[49,9850,49,9857],[49,9858,49,9865],[49,9866,49,9873],[49,9874,49,9881],[49,9514,49,9521],[49,9762,49,9769],[49,9770,49,9777],[49,9778,49,9785],[49,9786,49,9793],[49,9794,49,9801],[49,9642,49,9649],[49,9650,49,9657],[49,9658,49,9665],[49,9666,49,9673],[49,9730,49,9737],[49,9738,49,9745],[49,9746,49,9753],[49,9754,49,9761],[49,9682,49,9689],[49,9690,49,9697],[49,9698,49,9705],[49,9706,49,9713],[49,9714,49,9721],[49,9602,49,9609],[49,9610,49,9617],[49,9618,49,9625],[49,9626,49,9633],[49,9634,49,9641],[49,9722,49,9729],[49,9674,49,9681],[49,9578,49,9585],[49,9586,49,9593],[49,9594,49,9601],[49,9522,49,9529],[49,9530,49,9537],[49,9538,49,9545],[49,9546,49,9553],[49,9554,49,9561],[49,9450,49,9457],[49,9458,49,9465],[49,9466,49,9473],[49,9474,49,9481],[49,9562,49,9569],[49,9570,49,9577],[49,9482,49,9489],[49,9490,49,9497],[49,9498,49,9505],[49,9506,49,9513],[49,9162,49,9169],[49,9170,49,9177],[49,9178,49,9185],[49,9186,49,9193],[49,9194,49,9201],[49,9442,49,9449],[49,9322,49,9329],[49,9330,49,9337],[49,9338,49,9345],[49,9346,49,9353],[49,9410,49,9417],[49,9418,49,9425],[49,9426,49,9433],[49,9434,49,9441],[49,9362,49,9369],[49,9370,49,9377],[49,9378,49,9385],[49,9386,49,9393],[49,9394,49,9401],[49,9282,49,9289],[49,9290,49,9297],[49,9298,49,9305],[49,9306,49,9313],[49,9314,49,9321],[49,9402,49,9409],[49,9354,49,9361],[49,9242,49,9249],[49,9250,49,9257],[49,9258,49,9265],[49,9266,49,9273],[49,9274,49,9281],[49,9202,49,9209],[49,9210,49,9217],[49,9218,49,9225],[49,9226,49,9233],[49,9234,49,9241],[49,8874,49,8881],[49,9122,49,9129],[49,9130,49,9137],[49,9138,49,9145],[49,9146,49,9153],[49,9154,49,9161],[49,9002,49,9009],[49,9010,49,9017],[49,9018,49,9025],[49,9026,49,9033],[49,9090,49,9097],[49,9098,49,9105],[49,9106,49,9113],[49,9114,49,9121],[49,9042,49,9049],[49,9050,49,9057],[49,9058,49,9065],[49,9066,49,9073],[49,9074,49,9081],[49,8962,49,8969],[49,8970,49,8977],[49,8978,49,8985],[49,8986,49,8993],[49,8994,49,9001],[49,9082,49,9089],[49,9034,49,9041],[49,8938,49,8945],[49,8946,49,8953],[49,8954,49,8961],[49,8882,49,8889],[49,8890,49,8897],[49,8898,49,8905],[49,8906,49,8913],[49,8914,49,8921],[49,8810,49,8817],[49,8818,49,8825],[49,8826,49,8833],[49,8834,49,8841],[49,8922,49,8929],[49,8930,49,8937],[49,8842,49,8849],[49,8850,49,8857],[49,8858,49,8865],[49,8866,49,8873],[49,8522,49,8529],[49,8530,49,8537],[49,8538,49,8545],[49,8546,49,8553],[49,8554,49,8561],[49,8802,49,8809],[49,8682,49,8689],[49,8690,49,8697],[49,8698,49,8705],[49,8706,49,8713],[49,8770,49,8777],[49,8778,49,8785],[49,8786,49,8793],[49,8794,49,8801],[49,8722,49,8729],[49,8730,49,8737],[49,8738,49,8745],[49,8746,49,8753],[49,8754,49,8761],[49,8642,49,8649],[49,8650,49,8657],[49,8658,49,8665],[49,8666,49,8673],[49,8674,49,8681],[49,8762,49,8769],[49,8714,49,8721],[49,8602,49,8609],[49,8610,49,8617],[49,8618,49,8625],[49,8626,49,8633],[49,8634,49,8641],[49,8562,49,8569],[49,8570,49,8577],[49,8578,49,8585],[49,8586,49,8593],[49,8594,49,8601],[49,8234,49,8241],[49,8482,49,8489],[49,8490,49,8497],[49,8498,49,8505],[49,8506,49,8513],[49,8514,49,8521],[49,8362,49,8369],[49,8370,49,8377],[49,8378,49,8385],[49,8386,49,8393],[49,8450,49,8457],[49,8458,49,8465]],"merged_total":4119,"flags":["merged_cut"]}
[]
[]
[null,null,"Group Size\nDetermination Form"]
[null,null,"This form must be completed for all new and renewing groups to determine whether a group is a large employer."]
[]
[null,null,"Are you a Controlled Group? "]
[]
[null,null,"If you are a controlled or affiliated group of employers as described under subsection (b), (c), (m) or (o) of section 414 of the Internal Revenue Code of 1986, Moda Health must treat all employees within the affiliated group as a single group for purposes of determining group size. You must fill out one group profile form for the entire controlled group. If a controlled group is determined as a large employer, each affiliated employer is part of the large employer even if separately the employer would not meet the definition of large employer. Therefore, each affiliated employer is considered a large group for the purposes of group size determination.\n"]
[null,null,"Section 1  >  Employee Counting Instructions"]
[]
[null,null,"A.","Total the number of employees working 130 hours for each month of the preceding calendar year."]
[null,null,"B.","Total the number of hours worked by employees working less than 130 hours for each month of the preceding calendar year, but do not include more than 120 hours per employee in a month and divide by 120. This is your Full Time Equivalent (FTE) count of the preceding calendar year."]
[null,null,"C.","Add the numbers from a and b together and divide by 12. This is your group size."]
[null,null,"When counting employees to determine group size, do not count a sole proprietor, a partner in a partnership, a 2‐percent\nS corporation shareholder, or the spouse of a person who is a sole proprietor, a temporary, seasonal, leased or contracted employee, a retired employee, or former employee on continuation coverage."]
[null,null,"Section 2  >  Employee Count",null,null,"Is this an employee only plan?:"]
[]
[null,null,"1.","On average, how many employees did the employer employ during the preceding\ncalendar year?\nIf less than 1 enrolled, no Alaska large group exists. If 1 to 50, the group is a small group. If more than 50, the group is a large group "]
[]
[null,null,"2.","If an employer was not in existence through the preceding calendar year, what is the average number of employees the employer reasonably expects to employ on business days in the current calendar year?\nIf less than 1 enrolled, no Alaska large group exists. If 1 to 50, the group is a small group. If more than 50, the group is a large group."]
[]
[null,null,"3.","How many employees will be employed on the date that coverage is to take effect?\nThe employer must have at least 1 employee enrolled on the date coverage will take effect in order to be issued large group coverage.\n",null,null,null,null,{"$f":"I19+I17","v":0}]
[]
[null,null,"4.","Out of the number of employees indicated in question #3 , indicate the number of employees not eligible for coverage due to group's eligibility rules:"]
[]
[null,null,"5.","Total number of group eligible employees (#3 ‐ #4):\nTo be an eligible employee an independent contractor must have federal taxes deducted from income related to the Group’s business"]
[]
[null,null,"6.","Out of the number of employees indicated in question #5, indicate the\nnumber of employees waiving due to other group or individual coverage:"]
[]
[null,null,"7.","Total employee count (for participation requirement)  (#5 - #6):",null,null,null,null,{"$f":"I25-I27","v":0}]
[]
[null,null,"8.","Out of the number of employees indicated in question #7, indicate the number of employees opting out of coverage: \nCount employees choosing not to take coverage here."]
[]
[null,null,"9.","Total number of employees enrolling (#7 - #8):",null,null,null,null,{"$f":"I29-I31","v":0}]
[]
[null,null,"10.","Total number of COBRA enrollees (include primary insured's only)"]
[]
[null,null,"11.","Total number of employees and COBRA enrollees (#9 + #10)",null,null,null,null,{"$f":"I35+I33","v":0}]
[]
[null,null,"12.","What type of employees are you offering coverage to:\na. All employees working 17.5 hours or more per week\nb. All employees working the minimum hours required by your specific company in order to qualify for benefits (i.e. 40 hours per week)      \n"]
[null,null," "]
[]
[null,null,"Section 3  >  Employee Participation"]
[]
[null,null,"13.","What percentage of employees participate in the plan(s)?  (#9 divided by #7) \nFor Voluntary Dental Plans:a minimum of 25% of eligible employees must participate with a minimum of 10 enrolling.",null,null,{"$f":"IFERROR(G33/G29,\"\")","v":""},null,{"$f":"IFERROR(I33/I29,\"\")","v":""}]
[]
[null,null,"Section 4  >  Dependent Participation"]
[null,null,"If you checked \"yes\" to #15 above please mark \"N/A\" for dependent participation in question #16 below.  \nPlease note that under an employee only contract, Moda will not allow any future dependents to be covered on this plan.\nIf you checked \"no\" to #15 above, but currently have no eligible dependents to enroll, please indicate 0% for dependent participation in question #16 below.  \nPlease note that under an employee + dependent contract, Moda will allow any future dependents to be covered on this plan.\nIf you checked \"no\" to #15 above, and currently have eligible dependents to enroll, please calculate your current dependent participation and indicate this percentage in question #16 below.  \nPlease note that under an employee + dependent contract, Moda will allow any future dependents to be covered on this plan.\n"]
[]
[null,null,"14.","What percentage of dependents participate in the plan(s)?",null,null,"%",null,"%"]
[null,null,"Section 5  >  Signature"]
[]
[null,null,"To the best of my knowledge, I certify that all the information contained herein is correct.  I understand that the final rates will be based on actual enrollment and may be different than the rates originally quoted and that additional information may be required to verify eligibility of the group."]
[null,null,"I am the: "]
[]
[]
[null,null,"Name (printed please)",null,null,"Signature",null,"Date"]

{"sheet":"Plan Info 1","index":3,"n_rows":63,"n_cols":14,"rows_kept":63,"cut":false,"hidden":false,"merged":[[14,8,14,11],[14,4,14,7],[18,5,18,6],[14,12,14,13],[13,2,13,8],[9,11,9,12],[5,2,5,3],[40,8,40,9],[35,3,35,7],[40,3,40,4],[39,3,39,4],[39,11,39,12],[11,6,11,8],[10,6,10,8],[34,8,34,13],[34,3,34,7],[25,2,25,5],[25,6,25,8],[11,2,11,5],[16,2,16,3],[10,2,10,5],[29,3,29,5],[27,4,27,5],[40,11,40,12],[39,8,39,9],[3,2,3,8],[9,2,9,4],[5,10,5,12],[5,5,5,9],[8,10,8,11],[8,12,8,13],[7,2,7,3],[6,2,6,3],[6,13,7,13],[9,5,9,6],[9,7,9,8],[9,9,9,10],[20,6,20,8],[28,3,28,5],[18,12,18,13],[18,7,18,8],[23,5,23,7],[26,2,26,8],[24,5,24,7],[24,2,24,4],[20,2,20,5],[19,2,19,5],[31,2,31,7],[62,9,62,13],[51,9,51,13],[47,2,47,13],[51,3,51,7],[55,2,55,3],[56,2,56,3],[54,4,54,13],[55,4,55,13],[56,4,56,13],[53,2,53,13],[57,2,57,3],[57,4,57,13],[58,4,58,13],[60,2,60,13],[61,8,61,13],[58,2,58,3],[2,2,2,13],[45,3,45,7],[45,9,45,13],[48,3,48,7],[48,9,48,13],[15,2,15,3],[17,2,17,5],[17,6,17,13],[27,8,27,10],[27,11,27,13],[18,2,18,3],[21,2,21,8],[23,2,23,4],[19,6,19,8],[42,2,42,8]]}
[]
[]
[null,null,"Types of coverage"]
[null,null,"Section 1  >  Medical"]
[]
[null,null,"Renewing with no plan design changes",null,null,"In-Network",null,null,null,null,"Out-of-Network",null,null,"Group Size"]
[null,null,"Moda Health Standard Plan Design #",null,"Plan Type","Co-pay","Deductible","Co-ins %","Out-of-Pocket","Hosptial Co-pay","Deductible","Co-ins %","Out-of-Pocket","51-99"]
[null,null,null,null,{"$f":"IF(C8=\"\",\"\",INDEX('Plan Info Lookups (Internal)'!$C$21:$C$32, MATCH(LEFT(C8,1),'Plan Info Lookups (Internal)'!$B$21:$B$32,0)))","v":""},{"$f":"IF(C8=\"\",\"\",INDEX('Plan Info Lookups (Internal)'!$C$40:$C$49,MATCH(MID(C8,3,2),'Plan Info Lookups (Internal)'!$B$40:$B$49,0)))","v":""},{"$f":"IF(C8=\"\",\"\",INDEX('Plan Info Lookups (Internal)'!$C$58:$C$93,MATCH(MID(C8,5,1),'Plan Info Lookups (Internal)'!$B$58:$B$93,0)))","v":""},{"$f":"IF(C8=\"\",\"\",INDEX('Plan Info Lookups (Internal)'!$C$101:$C$108,MATCH(MID(C8,6,1),'Plan Info Lookups (Internal)'!$B$101:$B$108,0)))","v":""},{"$f":"IF(C8=\"\",\"\",INDEX('Plan Info Lookups (Internal)'!$C$116:$C$174,MATCH(MID(C8,7,2),'Plan Info Lookups (Internal)'!B116:B174,0)))","v":""},{"$f":"IF(C8=\"\",\"\",INDEX('Plan Info Lookups (Internal)'!$C$101:$C$108,MATCH(MID(C8,6,1),'Plan Info Lookups (Internal)'!$B$101:$B$108,0)))","v":""},{"$f":"IF(C8=\"\",\"\",INDEX('Plan Info Lookups (Internal)'!$C$58:$C$93,MATCH(MID(C8,10,1),'Plan Info Lookups (Internal)'!$B$58:$B$93,0)))","v":""},{"$f":"IF(C8=\"\",\"\",INDEX('Plan Info Lookups (Internal)'!$C$101:$C$108,MATCH(MID(C8,11,1),'Plan Info Lookups (Internal)'!$B$101:$B$108,0)))","v":""},{"$f":"IF(C8=\"\",\"\",INDEX('Plan Info Lookups (Internal)'!$C$116:$C$174,MATCH(MID(C8,12,2),'Plan Info Lookups (Internal)'!B116:B174,0)))","v":""}]
[null,null,null,null,null,null,null,null,null,null,null,null,"Maximum Cost Share Wrap"]
[null,null,"Select all networks accessed:"]
[null,null,"Is this a Non-Standard/Negotiated Plan Design?*",null,null,null,"No"]
[null,null,"Are there grandfathered benefits?"]
[null,null,"*Please attach benefit summary if plan is Non-Standard/Negotiated"]
[null,null,"Section 2  >  Pharmacy"]
[null,null,null,null,"Retail",null,null,null,"Mail Order",null,null,null,"Retail & Mail Order - (Specify):"]
[null,null,"Moda Health Standard Plan Design#",null,"Value Co-pay","Select \nCo-pay","Preferred \nCo-pay","Non-Preferred Co-pay","Value Co-pay","Select Co-pay","Preferred Co-pay","Non-Pref Co-pay","Ded.","Out-of-Pocket"]
[null,null,null,null,{"$f":"IF(C17=\"\",\"\",INDEX('Plan Info Lookups (Internal)'!M20:M92,MATCH(C17,'Plan Info Lookups (Internal)'!K20:K92,0)))","v":""},{"$f":"IF(C17=\"\",\"\",INDEX('Plan Info Lookups (Internal)'!O20:O92,MATCH(C17,'Plan Info Lookups (Internal)'!K20:K92,0)))","v":""},{"$f":"IF(C17=\"\",\"\",INDEX('Plan Info Lookups (Internal)'!Q20:Q92,MATCH(C17,'Plan Info Lookups (Internal)'!K20:K92,0)))","v":""},{"$f":"IF($C$17=\"\",\"\",INDEX('Plan Info Lookups (Internal)'!S20:S92,MATCH(C17,'Plan Info Lookups (Internal)'!K20:K92,0)))","v":""},{"$f":"IF($C$17=\"\",\"\",INDEX('Plan Info Lookups (Internal)'!N20:N92,MATCH(C17,'Plan Info Lookups (Internal)'!K20:K92,0)))","v":""},{"$f":"IF($C$17=\"\",\"\",INDEX('Plan Info Lookups (Internal)'!P20:P92,MATCH(C17,'Plan Info Lookups (Internal)'!K20:K92,0)))","v":""},{"$f":"IF($C$17=\"\",\"\",INDEX('Plan Info Lookups (Internal)'!R20:R92,MATCH(C17,'Plan Info Lookups (Internal)'!K20:K92,0)))","v":""},{"$f":"IF($D$17=\"\",\"\",INDEX('Plan Info Lookups (Internal)'!T20:T92,MATCH(D17,'Plan Info Lookups (Internal)'!K20:K92,0)))","v":""},{"$f":"IF($C$17=\"\",\"\",INDEX('Plan Info Lookups (Internal)'!V20:V92,MATCH(C17,'Plan Info Lookups (Internal)'!K20:K92,0)))","v":""},{"$f":"IF($C$17=\"\",\"\",INDEX('Plan Info Lookups (Internal)'!U20:U92,MATCH(C17,'Plan Info Lookups (Internal)'!K20:K92,0)))","v":""}]
[null,null,"Include Moda Health Enhanced Specialty Services"]
[null,null,"Contraceptive Coverage:",null,null,"Type of Coverage:",null,null,null,"   Diabetic Supplies:"]
[null,null,"Is this a Non-Standard/Negotiated Plan Design?",null,null,null,"No"]
[null,null,"Are there grandfathered benefits?"]
[null,null,"Section 3  >  Vision"]
[]
[null,null,"Moda Health Standard Plan Design #",null,null,"Plan Type"]
[null,null,null,null,null,{"$f":"IF(C25=\"\",\"\",INDEX('Plan Info Lookups (Internal)'!I20:I29,MATCH(C25,'Plan Info Lookups (Internal)'!H20:H29,0)))","v":""}]
[null,null,"Is this a Non-Standard/Negotiated Plan Design?"]
[null,null,"Section 4  >  Dental"]
[null,null,null,null,null,null,null,null,"In-Network",null,null,"Out-of-Network"]
[null,null,"Delta Dental Standard Plan Design#","Plan Type",null,null,"Ded.","Max","Preventive","Basic","Major","Preventive","Basic","Major"]
[null,null,null,{"$f":"IF($C$30=\"\",\"\",INDEX('Plan Info Lookups (Internal)'!Y20:Y324,MATCH('Plan Info 1'!C30,'Plan Info Lookups (Internal)'!X20:X324,0)))","v":""},null,null,{"$f":"IF($C$30=\"\",\"\",INDEX('Plan Info Lookups (Internal)'!Z20:Z324,MATCH('Plan Info 1'!C30,'Plan Info Lookups (Internal)'!X20:X324,0)))","v":""},{"$f":"IF($C$30=\"\",\"\",INDEX('Plan Info Lookups (Internal)'!AD20:AD324,MATCH('Plan Info 1'!C30,'Plan Info Lookups (Internal)'!X20:X324,0)))","v":""},{"$f":"IF($C$30=\"\",\"\",INDEX('Plan Info Lookups (Internal)'!AA20:AA324,MATCH('Plan Info 1'!C30,'Plan Info Lookups (Internal)'!X20:X324,0)))","v":""},{"$f":"IF($C$30=\"\",\"\",INDEX('Plan Info Lookups (Internal)'!AB20:AB324,MATCH('Plan Info 1'!C30,'Plan Info Lookups (Internal)'!X20:X324,0)))","v":""},{"$f":"IF($C$30=\"\",\"\",INDEX('Plan Info Lookups (Internal)'!AC20:AC324,MATCH('Plan Info 1'!C30,'Plan Info Lookups (Internal)'!X20:X324,0)))","v":""},{"$f":"IF($C$30=\"\",\"\",INDEX('Plan Info Lookups (Internal)'!AE20:AE324,MATCH('Plan Info 1'!C30,'Plan Info Lookups (Internal)'!X20:X324,0)))","v":""},{"$f":"IF($C$30=\"\",\"\",INDEX('Plan Info Lookups (Internal)'!AF20:AF324,MATCH('Plan Info 1'!C30,'Plan Info Lookups (Internal)'!X20:X324,0)))","v":""},{"$f":"IF($C$30=\"\",\"\",INDEX('Plan Info Lookups (Internal)'!AG20:AG324,MATCH('Plan Info 1'!C30,'Plan Info Lookups (Internal)'!X20:X324,0)))","v":""}]
[null,null,"Non-Standard/Negotiated Plan Design.  Please note changes in ITALICS & BOLD.  "]
[null,null,"Mercer Marketplace Group - Non-Par MPA80 Pricing",null,null,null,null,null,"No"]
[]
[null,null,"Orthodontia:"]
[null,null,"Delta Dental Standard Plan Design#","Plan Type",null,null,null,null,"Other"]
[null,null,null,{"$f":"IF($C$36=\"\",\"\",INDEX('Plan Info Lookups (Internal)'!F20:F36,MATCH('Plan Info 1'!C36,'Plan Info Lookups (Internal)'!E20:E36,0)))","v":""},"","",""]
[null,null,"Non-Standard/Negotiated Plan Design.  Please note changes in ITALICS & BOLD.  "]
[]
[null,null,{"$f":"IF(OR(E28=\"100+\",C30=\"\"),\"Direct Option:\",IF(VLOOKUP(C30,#REF!,1)=C30,\"Direct Option Match:\",\"Direct Option:\"))","v":"Direct Option:"},null,null,"Voluntary?"]
[null,null,"Delta Dental Standard Plan Design#","Plan Type",null,"Ded.","Max.","Office Visit","Surgical Extractions",null,"Crowns","Other",null,"Ortho"]
[null,null,{"$f":"IF(OR(N7=\"Large\",LEFT(C30,1)=\"VB\"),\"\",IF(OR(E39=\"VDO1F\",E39=\"VDO2F\"),E39,IF(C30=\"\",\"\",INDEX('Plan Info Lookups (Internal)'!AH20:AH324,MATCH('Plan Info 1'!D30,'Plan Info Lookups (Internal)'!X20:X324,0)))))","v":""},{"$f":"IF($C$41=\"\",\"\",INDEX('Plan Info Lookups (Internal)'!AI20:AI324,MATCH('Plan Info 1'!C41,'Plan Info Lookups (Internal)'!AH20:AH324,0)))","v":""},{"$f":"IF(E35=\"\",\"\",E35&\" MATCH\")","v":""},{"$f":"IF($C$41=\"\",\"\",\"$0 Ded\")","v":""},{"$f":"IF($C$41=\"\",\"\",\"None\")","v":""},{"$f":"IF($C$41=\"\",\"\",INDEX('Plan Info Lookups (Internal)'!AJ20:AJ324,MATCH('Plan Info 1'!D41,'Plan Info Lookups (Internal)'!AH20:AH324,0)))","v":""},{"$f":"IF($C$41=\"\",\"\",INDEX('Plan Info Lookups (Internal)'!AK20:AK324,MATCH('Plan Info 1'!C41,'Plan Info Lookups (Internal)'!AH20:AH324,0)))","v":""},null,{"$f":"IF($C$41=\"\",\"\",INDEX('Plan Info Lookups (Internal)'!AL20:AL324,MATCH('Plan Info 1'!D41,'Plan Info Lookups (Internal)'!AH20:AH324,0)))","v":""},{"$f":"IF($C$41=\"\",\"\",\"See Summary\")","v":""},null,{"$f":"IF($C$41=\"\",\"\",\"$2,800 Copay\")","v":""}]
[null,null,null,null,null,null,null,null,null,"   Renewing with current design?:"]
[null,null,"Section 5  >  Existing Coverage"]
[]
[null,null,"1.  Please provide the previous carrier(s) name and contact phone number:"]
[null,null,"        Medical:",null,null,null,null,null,"  Dental:"]
[]
[null,null,"2.  Please provide the name and contact phone number for the current insurance carrier(s), \n      both medical and dental:"]
[null,null,"        Medical:",null,null,null,null,null,"  Dental:"]
[]
[null,null,"3. If dual coverage is available, please list the other carrier(s):"]
[null,null,"        Medical:",null,null,null,null,null,"  Dental:"]
[]
[null,null,"4. If this plan is replacing an existing plan, will members receive credit from the previous plan?"]
[null,null,null,null,"If Yes, check the type(s) of report(s) below that will be available for applying credit:"]
[null,null,"        Medical deductible:"]
[null,null,"        Medical Out-of-pocket:"]
[null,null,"        Dental deductible:"]
[null,null,"        Accumulator Report:"]
[]
[null,null,"5. If enrolling in Dental Plan A (incentive plan), will benefits for members who were covered under the \n    group's prior plan begin at the first year benefit level?"]
[]
[null,null,"      If No, select the benefit level that will apply to existing members:"]

{"sheet":"Plan Info 2","index":4,"n_rows":63,"n_cols":14,"rows_kept":63,"cut":false,"hidden":false,"merged":[[2,2,2,13],[3,2,3,8],[5,5,5,9],[5,10,5,12],[6,2,6,3],[6,13,7,13],[7,2,7,3],[5,2,5,3],[8,10,8,11],[8,12,8,13],[9,2,9,4],[9,5,9,6],[9,7,9,8],[9,9,9,10],[9,11,9,12],[17,2,17,5],[17,6,17,13],[10,2,10,5],[10,6,10,8],[11,2,11,5],[11,6,11,8],[13,2,13,8],[14,4,14,7],[14,8,14,11],[14,12,14,13],[15,2,15,3],[16,2,16,3],[18,2,18,3],[18,5,18,6],[18,7,18,8],[18,12,18,13],[19,2,19,5],[19,6,19,8],[27,11,27,13],[24,2,24,4],[24,5,24,7],[20,2,20,5],[20,6,20,8],[21,2,21,8],[23,2,23,4],[23,5,23,7],[25,2,25,5],[25,6,25,8],[26,2,26,8],[27,4,27,5],[27,8,27,10],[40,3,40,4],[40,8,40,9],[40,11,40,12],[28,3,28,5],[29,3,29,5],[31,2,31,7],[34,3,34,7],[34,8,34,13],[35,3,35,7],[39,3,39,4],[39,8,39,9],[39,11,39,12],[42,2,42,8],[45,3,45,7],[45,9,45,13],[47,2,47,13],[48,3,48,7],[48,9,48,13],[51,3,51,7],[51,9,51,13],[53,2,53,13],[54,4,54,13],[55,2,55,3],[55,4,55,13],[60,2,60,13],[61,8,61,13],[62,9,62,13],[56,2,56,3],[56,4,56,13],[57,2,57,3],[57,4,57,13],[58,2,58,3],[58,4,58,13]]}
[]
[]
[null,null,"Types of coverage"]
[null,null,"Section 1  >  Medical"]
[]
[null,null,"Renewing with no plan design changes",null,null,"In-Network",null,null,null,null,"Out-of-Network",null,null,"Group Size"]
[null,null,"Moda Health Standard Plan Design #",null,"Plan Type","Co-pay","Deductible","Co-ins %","Out-of-Pocket","Hosptial Co-pay","Deductible","Co-ins %","Out-of-Pocket","51-99"]
[null,null,null,null,{"$f":"IF(C8=\"\",\"\",INDEX('Plan Info Lookups (Internal)'!$C$21:$C$32, MATCH(LEFT(C8,1),'Plan Info Lookups (Internal)'!$B$21:$B$32,0)))","v":""},{"$f":"IF(C8=\"\",\"\",INDEX('Plan Info Lookups (Internal)'!$C$40:$C$49,MATCH(MID(C8,3,2),'Plan Info Lookups (Internal)'!$B$40:$B$49,0)))","v":""},{"$f":"IF(C8=\"\",\"\",INDEX('Plan Info Lookups (Internal)'!$C$58:$C$93,MATCH(MID(C8,5,1),'Plan Info Lookups (Internal)'!$B$58:$B$93,0)))","v":""},{"$f":"IF(C8=\"\",\"\",INDEX('Plan Info Lookups (Internal)'!$C$101:$C$108,MATCH(MID(C8,6,1),'Plan Info Lookups (Internal)'!$B$101:$B$108,0)))","v":""},{"$f":"IF(C8=\"\",\"\",INDEX('Plan Info Lookups (Internal)'!$C$116:$C$174,MATCH(MID(C8,7,2),'Plan Info Lookups (Internal)'!B116:B174,0)))","v":""},{"$f":"IF(C8=\"\",\"\",INDEX('Plan Info Lookups (Internal)'!$C$101:$C$108,MATCH(MID(C8,6,1),'Plan Info Lookups (Internal)'!$B$101:$B$108,0)))","v":""},{"$f":"IF(C8=\"\",\"\",INDEX('Plan Info Lookups (Internal)'!$C$58:$C$93,MATCH(MID(C8,10,1),'Plan Info Lookups (Internal)'!$B$58:$B$93,0)))","v":""},{"$f":"IF(C8=\"\",\"\",INDEX('Plan Info Lookups (Internal)'!$C$101:$C$108,MATCH(MID(C8,11,1),'Plan Info Lookups (Internal)'!$B$101:$B$108,0)))","v":""},{"$f":"IF(C8=\"\",\"\",INDEX('Plan Info Lookups (Internal)'!$C$116:$C$174,MATCH(MID(C8,12,2),'Plan Info Lookups (Internal)'!B116:B174,0)))","v":""}]
[null,null,null,null,null,null,null,null,null,null,null,null,"Maximum Cost Share Wrap"]
[null,null,"Select all networks accessed:"]
[null,null,"Is this a Non-Standard/Negotiated Plan Design?*",null,null,null,"No"]
[null,null,"Are there grandfathered benefits?"]
[null,null,"*Please attach benefit summary if plan is Non-Standard/Negotiated"]
[null,null,"Section 2  >  Pharmacy"]
[null,null,null,null,"Retail",null,null,null,"Mail Order",null,null,null,"Retail & Mail Order - (Specify):"]
[null,null,"Moda Health Standard Plan Design#",null,"Value Co-pay","Select \nCo-pay","Preferred \nCo-pay","Non-Preferred Co-pay","Value Co-pay","Select Co-pay","Preferred Co-pay","Non-Pref Co-pay","Ded.","Out-of-Pocket"]
[null,null,null,null,{"$f":"IF(C17=\"\",\"\",INDEX('Plan Info Lookups (Internal)'!M20:M92,MATCH(C17,'Plan Info Lookups (Internal)'!K20:K92,0)))","v":""},{"$f":"IF(C17=\"\",\"\",INDEX('Plan Info Lookups (Internal)'!O20:O92,MATCH(C17,'Plan Info Lookups (Internal)'!K20:K92,0)))","v":""},{"$f":"IF(C17=\"\",\"\",INDEX('Plan Info Lookups (Internal)'!Q20:Q92,MATCH(C17,'Plan Info Lookups (Internal)'!K20:K92,0)))","v":""},{"$f":"IF($C$17=\"\",\"\",INDEX('Plan Info Lookups (Internal)'!S20:S92,MATCH(C17,'Plan Info Lookups (Internal)'!K20:K92,0)))","v":""},{"$f":"IF($C$17=\"\",\"\",INDEX('Plan Info Lookups (Internal)'!N20:N92,MATCH(C17,'Plan Info Lookups (Internal)'!K20:K92,0)))","v":""},{"$f":"IF($C$17=\"\",\"\",INDEX('Plan Info Lookups (Internal)'!P20:P92,MATCH(C17,'Plan Info Lookups (Internal)'!K20:K92,0)))","v":""},{"$f":"IF($C$17=\"\",\"\",INDEX('Plan Info Lookups (Internal)'!R20:R92,MATCH(C17,'Plan Info Lookups (Internal)'!K20:K92,0)))","v":""},{"$f":"IF($D$17=\"\",\"\",INDEX('Plan Info Lookups (Internal)'!T20:T92,MATCH(D17,'Plan Info Lookups (Internal)'!K20:K92,0)))","v":""},{"$f":"IF($C$17=\"\",\"\",INDEX('Plan Info Lookups (Internal)'!V20:V92,MATCH(C17,'Plan Info Lookups (Internal)'!K20:K92,0)))","v":""},{"$f":"IF($C$17=\"\",\"\",INDEX('Plan Info Lookups (Internal)'!U20:U92,MATCH(C17,'Plan Info Lookups (Internal)'!K20:K92,0)))","v":""}]
[null,null,"Include Moda Health Enhanced Specialty Services"]
[null,null,"Contraceptive Coverage:",null,null,"Type of Coverage:",null,null,null,"   Diabetic Supplies:"]
[null,null,"Is this a Non-Standard/Negotiated Plan Design?",null,null,null,"No"]
[null,null,"Are there grandfathered benefits?"]
[null,null,"Section 3  >  Vision"]
[]
[null,null,"Moda Health Standard Plan Design #",null,null,"Plan Type"]
[null,null,null,null,null,{"$f":"IF(C25=\"\",\"\",INDEX('Plan Info Lookups (Internal)'!I20:I29,MATCH(C25,'Plan Info Lookups (Internal)'!H20:H29,0)))","v":""}]
[null,null,"Is this a Non-Standard/Negotiated Plan Design?"]
[null,null,"Section 4  >  Dental"]
[null,null,null,null,null,null,null,null,"In-Network",null,null,"Out-of-Network"]
[null,null,"Delta Dental Standard Plan Design#","Plan Type",null,null,"Ded.","Max","Preventive","Basic","Major","Preventive","Basic","Major"]
[null,null,null,{"$f":"IF($C$30=\"\",\"\",INDEX('Plan Info Lookups (Internal)'!Y20:Y324,MATCH('Plan Info 2'!C30,'Plan Info Lookups (Internal)'!X20:X324,0)))","v":""},null,null,{"$f":"IF($C$30=\"\",\"\",INDEX('Plan Info Lookups (Internal)'!Z20:Z324,MATCH('Plan Info 2'!C30,'Plan Info Lookups (Internal)'!X20:X324,0)))","v":""},{"$f":"IF($C$30=\"\",\"\",INDEX('Plan Info Lookups (Internal)'!AD20:AD324,MATCH('Plan Info 2'!C30,'Plan Info Lookups (Internal)'!X20:X324,0)))","v":""},{"$f":"IF($C$30=\"\",\"\",INDEX('Plan Info Lookups (Internal)'!AA20:AA324,MATCH('Plan Info 2'!C30,'Plan Info Lookups (Internal)'!X20:X324,0)))","v":""},{"$f":"IF($C$30=\"\",\"\",INDEX('Plan Info Lookups (Internal)'!AB20:AB324,MATCH('Plan Info 2'!C30,'Plan Info Lookups (Internal)'!X20:X324,0)))","v":""},{"$f":"IF($C$30=\"\",\"\",INDEX('Plan Info Lookups (Internal)'!AC20:AC324,MATCH('Plan Info 2'!C30,'Plan Info Lookups (Internal)'!X20:X324,0)))","v":""},{"$f":"IF($C$30=\"\",\"\",INDEX('Plan Info Lookups (Internal)'!AE20:AE324,MATCH('Plan Info 2'!C30,'Plan Info Lookups (Internal)'!X20:X324,0)))","v":""},{"$f":"IF($C$30=\"\",\"\",INDEX('Plan Info Lookups (Internal)'!AF20:AF324,MATCH('Plan Info 2'!C30,'Plan Info Lookups (Internal)'!X20:X324,0)))","v":""},{"$f":"IF($C$30=\"\",\"\",INDEX('Plan Info Lookups (Internal)'!AG20:AG324,MATCH('Plan Info 2'!C30,'Plan Info Lookups (Internal)'!X20:X324,0)))","v":""}]
[null,null,"Non-Standard/Negotiated Plan Design.  Please note changes in ITALICS & BOLD.  "]
[null,null,"Mercer Marketplace Group - Non-Par MPA80 Pricing",null,null,null,null,null,"No"]
[]
[null,null,"Orthodontia:"]
[null,null,"Delta Dental Standard Plan Design#","Plan Type",null,null,null,null,"Other"]
[null,null,null,{"$f":"IF($C$36=\"\",\"\",INDEX('Plan Info Lookups (Internal)'!F20:F36,MATCH('Plan Info 2'!C36,'Plan Info Lookups (Internal)'!E20:E36,0)))","v":""},"","",""]
[null,null,"Non-Standard/Negotiated Plan Design.  Please note changes in ITALICS & BOLD.  "]
[]
[null,null,{"$f":"IF(OR(E28=\"100+\",C30=\"\"),\"Direct Option:\",IF(VLOOKUP(C30,#REF!,1)=C30,\"Direct Option Match:\",\"Direct Option:\"))","v":"Direct Option:"},null,null,"Voluntary?"]
[null,null,"Delta Dental Standard Plan Design#","Plan Type",null,"Ded.","Max.","Office Visit","Surgical Extractions",null,"Crowns","Other",null,"Ortho"]
[null,null,{"$f":"IF(OR(N7=\"Large\",LEFT(C30,1)=\"VB\"),\"\",IF(OR(E39=\"VDO1F\",E39=\"VDO2F\"),E39,IF(C30=\"\",\"\",INDEX('Plan Info Lookups (Internal)'!AH20:AH324,MATCH('Plan Info 2'!D30,'Plan Info Lookups (Internal)'!X20:X324,0)))))","v":""},{"$f":"IF($C$41=\"\",\"\",INDEX('Plan Info Lookups (Internal)'!AI20:AI324,MATCH('Plan Info 2'!C41,'Plan Info Lookups (Internal)'!AH20:AH324,0)))","v":""},{"$f":"IF(E35=\"\",\"\",E35&\" MATCH\")","v":""},{"$f":"IF($C$41=\"\",\"\",\"$0 Ded\")","v":""},{"$f":"IF($C$41=\"\",\"\",\"None\")","v":""},{"$f":"IF($C$41=\"\",\"\",INDEX('Plan Info Lookups (Internal)'!AJ20:AJ324,MATCH('Plan Info 2'!D41,'Plan Info Lookups (Internal)'!AH20:AH324,0)))","v":""},{"$f":"IF($C$41=\"\",\"\",INDEX('Plan Info Lookups (Internal)'!AK20:AK324,MATCH('Plan Info 2'!C41,'Plan Info Lookups (Internal)'!AH20:AH324,0)))","v":""},null,{"$f":"IF($C$41=\"\",\"\",INDEX('Plan Info Lookups (Internal)'!AL20:AL324,MATCH('Plan Info 2'!D41,'Plan Info Lookups (Internal)'!AH20:AH324,0)))","v":""},{"$f":"IF($C$41=\"\",\"\",\"See Summary\")","v":""},null,{"$f":"IF($C$41=\"\",\"\",\"$2,800 Copay\")","v":""}]
[null,null,null,null,null,null,null,null,null,"   Renewing with current design?:"]
[null,null,"Section 5  >  Existing Coverage"]
[]
[null,null,"1.  Please provide the previous carrier(s) name and contact phone number:"]
[null,null,"        Medical:",null,null,null,null,null,"  Dental:"]
[]
[null,null,"2.  Please provide the name and contact phone number for the current insurance carrier(s), \n      both medical and dental:"]
[null,null,"        Medical:",null,null,null,null,null,"  Dental:"]
[]
[null,null,"3. If dual coverage is available, please list the other carrier(s):"]
[null,null,"        Medical:",null,null,null,null,null,"  Dental:"]
[]
[null,null,"4. If this plan is replacing an existing plan, will members receive credit from the previous plan?"]
[null,null,null,null,"If Yes, check the type(s) of report(s) below that will be available for applying credit:"]
[null,null,"        Medical deductible:"]
[null,null,"        Medical Out-of-pocket:"]
[null,null,"        Dental deductible:"]
[null,null,"        Accumulator Report:"]
[]
[null,null,"5. If enrolling in Dental Plan A (incentive plan), will benefits for members who were covered under the \n    group's prior plan begin at the first year benefit level?"]
[]
[null,null,"      If No, select the benefit level that will apply to existing members:"]

{"sheet":"Plan Info 3","index":5,"n_rows":63,"n_cols":14,"rows_kept":63,"cut":false,"hidden":false,"merged":[[2,2,2,13],[3,2,3,8],[5,5,5,9],[5,10,5,12],[6,2,6,3],[6,13,7,13],[7,2,7,3],[5,2,5,3],[8,10,8,11],[8,12,8,13],[9,2,9,4],[9,5,9,6],[9,7,9,8],[9,9,9,10],[9,11,9,12],[17,2,17,5],[17,6,17,13],[10,2,10,5],[10,6,10,8],[11,2,11,5],[11,6,11,8],[13,2,13,8],[14,4,14,7],[14,8,14,11],[14,12,14,13],[15,2,15,3],[16,2,16,3],[18,2,18,3],[18,5,18,6],[18,7,18,8],[18,12,18,13],[19,2,19,5],[19,6,19,8],[27,11,27,13],[24,2,24,4],[24,5,24,7],[20,2,20,5],[20,6,20,8],[21,2,21,8],[23,2,23,4],[23,5,23,7],[25,2,25,5],[25,6,25,8],[26,2,26,8],[27,4,27,5],[27,8,27,10],[40,3,40,4],[40,8,40,9],[40,11,40,12],[28,3,28,5],[29,3,29,5],[31,2,31,7],[34,3,34,7],[34,8,34,13],[35,3,35,7],[39,3,39,4],[39,8,39,9],[39,11,39,12],[42,2,42,8],[45,3,45,7],[45,9,45,13],[47,2,47,13],[48,3,48,7],[48,9,48,13],[51,3,51,7],[51,9,51,13],[53,2,53,13],[54,4,54,13],[55,2,55,3],[55,4,55,13],[60,2,60,13],[61,8,61,13],[62,9,62,13],[56,2,56,3],[56,4,56,13],[57,2,57,3],[57,4,57,13],[58,2,58,3],[58,4,58,13]]}
[]
[]
[null,null,"Types of coverage"]
[null,null,"Section 1  >  Medical"]
[]
[null,null,"Renewing with no plan design changes",null,null,"In-Network",null,null,null,null,"Out-of-Network",null,null,"Group Size"]
[null,null,"Moda Health Standard Plan Design #",null,"Plan Type","Co-pay","Deductible","Co-ins %","Out-of-Pocket","Hosptial Co-pay","Deductible","Co-ins %","Out-of-Pocket","51-99"]
[null,null,null,null,{"$f":"IF(C8=\"\",\"\",INDEX('Plan Info Lookups (Internal)'!$C$21:$C$32, MATCH(LEFT(C8,1),'Plan Info Lookups (Internal)'!$B$21:$B$32,0)))","v":""},{"$f":"IF(C8=\"\",\"\",INDEX('Plan Info Lookups (Internal)'!$C$40:$C$49,MATCH(MID(C8,3,2),'Plan Info Lookups (Internal)'!$B$40:$B$49,0)))","v":""},{"$f":"IF(C8=\"\",\"\",INDEX('Plan Info Lookups (Internal)'!$C$58:$C$93,MATCH(MID(C8,5,1),'Plan Info Lookups (Internal)'!$B$58:$B$93,0)))","v":""},{"$f":"IF(C8=\"\",\"\",INDEX('Plan Info Lookups (Internal)'!$C$101:$C$108,MATCH(MID(C8,6,1),'Plan Info Lookups (Internal)'!$B$101:$B$108,0)))","v":""},{"$f":"IF(C8=\"\",\"\",INDEX('Plan Info Lookups (Internal)'!$C$116:$C$174,MATCH(MID(C8,7,2),'Plan Info Lookups (Internal)'!B116:B174,0)))","v":""},{"$f":"IF(C8=\"\",\"\",INDEX('Plan Info Lookups (Internal)'!$C$101:$C$108,MATCH(MID(C8,6,1),'Plan Info Lookups (Internal)'!$B$101:$B$108,0)))","v":""},{"$f":"IF(C8=\"\",\"\",INDEX('Plan Info Lookups (Internal)'!$C$58:$C$93,MATCH(MID(C8,10,1),'Plan Info Lookups (Internal)'!$B$58:$B$93,0)))","v":""},{"$f":"IF(C8=\"\",\"\",INDEX('Plan Info Lookups (Internal)'!$C$101:$C$108,MATCH(MID(C8,11,1),'Plan Info Lookups (Internal)'!$B$101:$B$108,0)))","v":""},{"$f":"IF(C8=\"\",\"\",INDEX('Plan Info Lookups (Internal)'!$C$116:$C$174,MATCH(MID(C8,12,2),'Plan Info Lookups (Internal)'!B116:B174,0)))","v":""}]
[null,null,null,null,null,null,null,null,null,null,null,null,"Maximum Cost Share Wrap"]
[null,null,"Select all networks accessed:"]
[null,null,"Is this a Non-Standard/Negotiated Plan Design?*",null,null,null,"No"]
[null,null,"Are there grandfathered benefits?"]
[null,null,"*Please attach benefit summary if plan is Non-Standard/Negotiated"]
[null,null,"Section 2  >  Pharmacy"]
[null,null,null,null,"Retail",null,null,null,"Mail Order",null,null,null,"Retail & Mail Order - (Specify):"]
[null,null,"Moda Health Standard Plan Design#",null,"Value Co-pay","Select \nCo-pay","Preferred \nCo-pay","Non-Preferred Co-pay","Value Co-pay","Select Co-pay","Preferred Co-pay","Non-Pref Co-pay","Ded.","Out-of-Pocket"]
[null,null,null,null,{"$f":"IF(C17=\"\",\"\",INDEX('Plan Info Lookups (Internal)'!M20:M92,MATCH(C17,'Plan Info Lookups (Internal)'!K20:K92,0)))","v":""},{"$f":"IF(C17=\"\",\"\",INDEX('Plan Info Lookups (Internal)'!O20:O92,MATCH(C17,'Plan Info Lookups (Internal)'!K20:K92,0)))","v":""},{"$f":"IF(C17=\"\",\"\",INDEX('Plan Info Lookups (Internal)'!Q20:Q92,MATCH(C17,'Plan Info Lookups (Internal)'!K20:K92,0)))","v":""},{"$f":"IF($C$17=\"\",\"\",INDEX('Plan Info Lookups (Internal)'!S20:S92,MATCH(C17,'Plan Info Lookups (Internal)'!K20:K92,0)))","v":""},{"$f":"IF($C$17=\"\",\"\",INDEX('Plan Info Lookups (Internal)'!N20:N92,MATCH(C17,'Plan Info Lookups (Internal)'!K20:K92,0)))","v":""},{"$f":"IF($C$17=\"\",\"\",INDEX('Plan Info Lookups (Internal)'!P20:P92,MATCH(C17,'Plan Info Lookups (Internal)'!K20:K92,0)))","v":""},{"$f":"IF($C$17=\"\",\"\",INDEX('Plan Info Lookups (Internal)'!R20:R92,MATCH(C17,'Plan Info Lookups (Internal)'!K20:K92,0)))","v":""},{"$f":"IF($D$17=\"\",\"\",INDEX('Plan Info Lookups (Internal)'!T20:T92,MATCH(D17,'Plan Info Lookups (Internal)'!K20:K92,0)))","v":""},{"$f":"IF($C$17=\"\",\"\",INDEX('Plan Info Lookups (Internal)'!V20:V92,MATCH(C17,'Plan Info Lookups (Internal)'!K20:K92,0)))","v":""},{"$f":"IF($C$17=\"\",\"\",INDEX('Plan Info Lookups (Internal)'!U20:U92,MATCH(C17,'Plan Info Lookups (Internal)'!K20:K92,0)))","v":""}]
[null,null,"Include Moda Health Enhanced Specialty Services"]
[null,null,"Contraceptive Coverage:",null,null,"Type of Coverage:",null,null,null,"   Diabetic Supplies:"]
[null,null,"Is this a Non-Standard/Negotiated Plan Design?",null,null,null,"No"]
[null,null,"Are there grandfathered benefits?"]
[null,null,"Section 3  >  Vision"]
[]
[null,null,"Moda Health Standard Plan Design #",null,null,"Plan Type"]
[null,null,null,null,null,{"$f":"IF(C25=\"\",\"\",INDEX('Plan Info Lookups (Internal)'!I20:I29,MATCH(C25,'Plan Info Lookups (Internal)'!H20:H29,0)))","v":""}]
[null,null,"Is this a Non-Standard/Negotiated Plan Design?"]
[null,null,"Section 4  >  Dental"]
[null,null,null,null,null,null,null,null,"In-Network",null,null,"Out-of-Network"]
[null,null,"Delta Dental Standard Plan Design#","Plan Type",null,null,"Ded.","Max","Preventive","Basic","Major","Preventive","Basic","Major"]
[null,null,null,{"$f":"IF($C$30=\"\",\"\",INDEX('Plan Info Lookups (Internal)'!Y20:Y324,MATCH('Plan Info 3'!C30,'Plan Info Lookups (Internal)'!X20:X324,0)))","v":""},null,null,{"$f":"IF($C$30=\"\",\"\",INDEX('Plan Info Lookups (Internal)'!Z20:Z324,MATCH('Plan Info 3'!C30,'Plan Info Lookups (Internal)'!X20:X324,0)))","v":""},{"$f":"IF($C$30=\"\",\"\",INDEX('Plan Info Lookups (Internal)'!AD20:AD324,MATCH('Plan Info 3'!C30,'Plan Info Lookups (Internal)'!X20:X324,0)))","v":""},{"$f":"IF($C$30=\"\",\"\",INDEX('Plan Info Lookups (Internal)'!AA20:AA324,MATCH('Plan Info 3'!C30,'Plan Info Lookups (Internal)'!X20:X324,0)))","v":""},{"$f":"IF($C$30=\"\",\"\",INDEX('Plan Info Lookups (Internal)'!AB20:AB324,MATCH('Plan Info 3'!C30,'Plan Info Lookups (Internal)'!X20:X324,0)))","v":""},{"$f":"IF($C$30=\"\",\"\",INDEX('Plan Info Lookups (Internal)'!AC20:AC324,MATCH('Plan Info 3'!C30,'Plan Info Lookups (Internal)'!X20:X324,0)))","v":""},{"$f":"IF($C$30=\"\",\"\",INDEX('Plan Info Lookups (Internal)'!AE20:AE324,MATCH('Plan Info 3'!C30,'Plan Info Lookups (Internal)'!X20:X324,0)))","v":""},{"$f":"IF($C$30=\"\",\"\",INDEX('Plan Info Lookups (Internal)'!AF20:AF324,MATCH('Plan Info 3'!C30,'Plan Info Lookups (Internal)'!X20:X324,0)))","v":""},{"$f":"IF($C$30=\"\",\"\",INDEX('Plan Info Lookups (Internal)'!AG20:AG324,MATCH('Plan Info 3'!C30,'Plan Info Lookups (Internal)'!X20:X324,0)))","v":""}]
[null,null,"Non-Standard/Negotiated Plan Design.  Please note changes in ITALICS & BOLD.  "]
[null,null,"Mercer Marketplace Group - Non-Par MPA80 Pricing",null,null,null,null,null,"No"]
[]
[null,null,"Orthodontia:"]
[null,null,"Delta Dental Standard Plan Design#","Plan Type",null,null,null,null,"Other"]
[null,null,null,{"$f":"IF($C$36=\"\",\"\",INDEX('Plan Info Lookups (Internal)'!F20:F36,MATCH('Plan Info 3'!C36,'Plan Info Lookups (Internal)'!E20:E36,0)))","v":""},"","",""]
[null,null,"Non-Standard/Negotiated Plan Design.  Please note changes in ITALICS & BOLD.  "]
[]
[null,null,{"$f":"IF(OR(E28=\"100+\",C30=\"\"),\"Direct Option:\",IF(VLOOKUP(C30,#REF!,1)=C30,\"Direct Option Match:\",\"Direct Option:\"))","v":"Direct Option:"},null,null,"Voluntary?"]
[null,null,"Delta Dental Standard Plan Design#","Plan Type",null,"Ded.","Max.","Office Visit","Surgical Extractions",null,"Crowns","Other",null,"Ortho"]
[null,null,{"$f":"IF(OR(N7=\"Large\",LEFT(C30,1)=\"VB\"),\"\",IF(OR(E39=\"VDO1F\",E39=\"VDO2F\"),E39,IF(C30=\"\",\"\",INDEX('Plan Info Lookups (Internal)'!AH20:AH324,MATCH('Plan Info 3'!D30,'Plan Info Lookups (Internal)'!X20:X324,0)))))","v":""},{"$f":"IF($C$41=\"\",\"\",INDEX('Plan Info Lookups (Internal)'!AI20:AI324,MATCH('Plan Info 3'!C41,'Plan Info Lookups (Internal)'!AH20:AH324,0)))","v":""},{"$f":"IF(E35=\"\",\"\",E35&\" MATCH\")","v":""},{"$f":"IF($C$41=\"\",\"\",\"$0 Ded\")","v":""},{"$f":"IF($C$41=\"\",\"\",\"None\")","v":""},{"$f":"IF($C$41=\"\",\"\",INDEX('Plan Info Lookups (Internal)'!AJ20:AJ324,MATCH('Plan Info 3'!D41,'Plan Info Lookups (Internal)'!AH20:AH324,0)))","v":""},{"$f":"IF($C$41=\"\",\"\",INDEX('Plan Info Lookups (Internal)'!AK20:AK324,MATCH('Plan Info 3'!C41,'Plan Info Lookups (Internal)'!AH20:AH324,0)))","v":""},null,{"$f":"IF($C$41=\"\",\"\",INDEX('Plan Info Lookups (Internal)'!AL20:AL324,MATCH('Plan Info 3'!D41,'Plan Info Lookups (Internal)'!AH20:AH324,0)))","v":""},{"$f":"IF($C$41=\"\",\"\",\"See Summary\")","v":""},null,{"$f":"IF($C$41=\"\",\"\",\"$2,800 Copay\")","v":""}]
[null,null,null,null,null,null,null,null,null,"   Renewing with current design?:"]
[null,null,"Section 5  >  Existing Coverage"]
[]
[null,null,"1.  Please provide the previous carrier(s) name and contact phone number:"]
[null,null,"        Medical:",null,null,null,null,null,"  Dental:"]
[]
[null,null,"2.  Please provide the name and contact phone number for the current insurance carrier(s), \n      both medical and dental:"]
[null,null,"        Medical:",null,null,null,null,null,"  Dental:"]
[]
[null,null,"3. If dual coverage is available, please list the other carrier(s):"]
[null,null,"        Medical:",null,null,null,null,null,"  Dental:"]
[]
[null,null,"4. If this plan is replacing an existing plan, will members receive credit from the previous plan?"]
[null,null,null,null,"If Yes, check the type(s) of report(s) below that will be available for applying credit:"]
[null,null,"        Medical deductible:"]
[null,null,"        Medical Out-of-pocket:"]
[null,null,"        Dental deductible:"]
[null,null,"        Accumulator Report:"]
[]
[null,null,"5. If enrolling in Dental Plan A (incentive plan), will benefits for members who were covered under the \n    group's prior plan begin at the first year benefit level?"]
[]
[null,null,"      If No, select the benefit level that will apply to existing members:"]

{"sheet":"Rates Insured 1","index":6,"n_rows":42,"n_cols":10,"rows_kept":42,"cut":false,"hidden":false,"merged":[[24,2,24,4],[20,2,20,4],[19,2,19,4],[22,2,22,4],[23,2,23,4],[29,2,29,4],[25,2,25,4],[26,2,26,4],[2,2,2,6],[21,2,21,4],[10,2,10,5],[15,2,15,4],[16,2,16,4],[17,2,17,4],[18,2,18,4],[7,2,7,5],[7,6,7,9],[10,6,10,9],[14,2,14,4],[27,2,27,4],[28,2,28,4],[42,6,42,9],[42,2,42,5],[33,2,33,5],[33,6,33,9],[36,2,36,9],[37,6,37,9]]}
[]
[]
[null,null,"Rate Information\nInsured"]
[null,null,"Section 1  >  Rate Information - Insured"]
[]
[]
[null,null,"Funding Type:",null,null,null,"Rate Structure:"]
[]
[]
[null,null,"Effective Date: ",null,null,null,"Ending Date:"]
[null,null,{"$f":"IF(ISBLANK('Group Application (51+)'!P7),\"\",'Group Application (51+)'!P7)","v":""},null,null,null,{"$f":"IF(C11=\"\",\"\", EOMONTH(C11,11))","v":""}]
[null,null,"Section 2  >  Rates"]
[]
[null,null,null,null,null,{"$f":"IF(OR(G8 = \"5 Tier\", G8=\"4 Tier\",G8=\"3 Tier\"),\"EE Only\",\"\")","v":""},{"$f":"IF(OR(G8 = \"5 Tier\", G8=\"4 Tier\"),\"EE + 1\",IF(G8=\"3 Tier\",\"EE + 1\",\"\"))","v":""},{"$f":"IF(OR(G8=\"4 Tier\",G8 = \"5 Tier\"), \"EE + Family\",IF(G8=\"3 Tier\",\"EE + 2 or more\",\"\"))","v":""},{"$f":"IF(G8 = \"5 Tier\", \"EE + Child\",IF(G8=\"4 Tier\",\"EE + Child(ren)\",\"\"))","v":""},{"$f":"IF(G8=\"5 Tier\",\"EE + Children\",\"\")","v":""}]
[null,null,"Employee Counts"]
[null,null,"Medical rate"]
[null,null,"RX rate"]
[null,null,"Vision rate"]
[null,null,"Wellness Services rate"]
[null,null,"Subtotal Medical *",null,null,{"$f":"SUM(F16:F19)","v":0},{"$f":"SUM(G16:G19)","v":0},{"$f":"SUM(H16:H19)","v":0},{"$f":"SUM(I16:J19)","v":0},{"$f":"SUM(J16:K19)","v":0}]
[null,null,"Subtotal Vision *Non-Standard ONLY*",null,null,0,0,0,0,0]
[null,null,"Dental Employee Counts"]
[null,null,"Delta Dental rate"]
[null,null,"Orthodontia rate"]
[null,null,"Subtotal Dental ",null,null,{"$f":"SUM(F23:F24)","v":0},{"$f":"SUM(G23:G24)","v":0},{"$f":"SUM(H23:H24)","v":0},{"$f":"SUM(I23:J24)","v":0},{"$f":"SUM(J23:K24)","v":0}]
[null,null,"Direct Option Employee Counts"]
[null,null,"Direct Option Dental rate"]
[null,null,"Subtotal Direct Option ",null,null,{"$f":"SUM(F27:F27)","v":0},{"$f":"SUM(G27:G27)","v":0},{"$f":"SUM(H27:H27)","v":0},{"$f":"SUM(I27:J27)","v":0},{"$f":"SUM(J27:K27)","v":0}]
[null,null,"Subtotal",null,null,{"$f":"SUM(F20:F21,F25)","v":0},{"$f":"SUM(G20:G21,G25)","v":0},{"$f":"SUM(H20:H21,H25)","v":0},{"$f":"SUM(I20:I21,I25)","v":0},{"$f":"SUM(J20:J21,J25)","v":0}]
[null,null,"TOTAL BILLED",null,null,{"$f":"((F15*(F20+F21)+(F22*F25)+(F26*F28)))","v":0},{"$f":"((G15*(G20+G21)+(G22*G25)+(G26*G28)))","v":0},{"$f":"((H15*(H20+H21)+(H22*H25)+(H26*H28)))","v":0},{"$f":"((I15*(I20+I21)+(I22*I25)+(I26*I28)))","v":0},{"$f":"((J15*(J20+J21)+(J22*J25)+(J26*J28)))","v":0}]
[]
[]
[null,null,"Rate Guarantee?",null,null,null,"Estimated First Month's Premium:"]
[null,null,null,null,null,null,{"$f":"SUM(F30:J30)","v":0}]
[null,null,"Section 3  >  Payment Information"]
[]
[]
[null,null,"Premium Payment Method "]
[null,null,"Section 4  >  Commission"]
[]
[]
[null,null,"Agent Commission (Medical)",null,null,null,"Agent Commission (Dental)"]

{"sheet":"Rates Insured 2","index":7,"n_rows":42,"n_cols":10,"rows_kept":42,"cut":false,"hidden":false,"merged":[[14,2,14,4],[2,2,2,6],[7,2,7,5],[7,6,7,9],[10,2,10,5],[10,6,10,9],[26,2,26,4],[15,2,15,4],[16,2,16,4],[17,2,17,4],[18,2,18,4],[19,2,19,4],[20,2,20,4],[21,2,21,4],[22,2,22,4],[23,2,23,4],[24,2,24,4],[25,2,25,4],[37,6,37,9],[42,2,42,5],[42,6,42,9],[27,2,27,4],[28,2,28,4],[29,2,29,4],[33,2,33,5],[33,6,33,9],[36,2,36,9]]}
[]
[]
[null,null,"Rate Information\nInsured"]
[null,null,"Section 1  >  Rate Information - Insured"]
[]
[]
[null,null,"Funding Type:",null,null,null,"Rate Structure:"]
[]
[]
[null,null,"Effective Date: ",null,null,null,"Ending Date:"]
[null,null,{"$f":"IF(ISBLANK('Group Application (51+)'!P7),\"\",'Group Application (51+)'!P7)","v":""},null,null,null,{"$f":"IF(C11=\"\",\"\", EOMONTH(C11,11))","v":""}]
[null,null,"Section 2  >  Rates"]
[]
[null,null,null,null,null,{"$f":"IF(OR(G8 = \"5 Tier\", G8=\"4 Tier\",G8=\"3 Tier\"),\"EE Only\",\"\")","v":""},{"$f":"IF(OR(G8 = \"5 Tier\", G8=\"4 Tier\"),\"EE + 1\",IF(G8=\"3 Tier\",\"EE + 1\",\"\"))","v":""},{"$f":"IF(OR(G8=\"4 Tier\",G8 = \"5 Tier\"), \"EE + Family\",IF(G8=\"3 Tier\",\"EE + 2 or more\",\"\"))","v":""},{"$f":"IF(G8 = \"5 Tier\", \"EE + Child\",IF(G8=\"4 Tier\",\"EE + Child(ren)\",\"\"))","v":""},{"$f":"IF(G8=\"5 Tier\",\"EE + Children\",\"\")","v":""}]
[null,null,"Employee Counts"]
[null,null,"Medical rate"]
[null,null,"RX rate"]
[null,null,"Vision rate"]
[null,null,"Wellness Services rate"]
[null,null,"Subtotal Medical *",null,null,{"$f":"SUM(F16:F19)","v":0},{"$f":"SUM(G16:G19)","v":0},{"$f":"SUM(H16:H19)","v":0},{"$f":"SUM(I16:J19)","v":0},{"$f":"SUM(J16:K19)","v":0}]
[null,null,"Subtotal Vision *Non-Standard ONLY*",null,null,0,0,0,0,0]
[null,null,"Dental Employee Counts"]
[null,null,"Delta Dental rate"]
[null,null,"Orthodontia rate"]
[null,null,"Subtotal Dental ",null,null,{"$f":"SUM(F23:F24)","v":0},{"$f":"SUM(G23:G24)","v":0},{"$f":"SUM(H23:H24)","v":0},{"$f":"SUM(I23:J24)","v":0},{"$f":"SUM(J23:K24)","v":0}]
[null,null,"Direct Option Employee Counts"]
[null,null,"Direct Option Dental rate"]
[null,null,"Subtotal Direct Option ",null,null,{"$f":"SUM(F27:F27)","v":0},{"$f":"SUM(G27:G27)","v":0},{"$f":"SUM(H27:H27)","v":0},{"$f":"SUM(I27:J27)","v":0},{"$f":"SUM(J27:K27)","v":0}]
[null,null,"Subtotal",null,null,{"$f":"SUM(F20:F21,F25)","v":0},{"$f":"SUM(G20:G21,G25)","v":0},{"$f":"SUM(H20:H21,H25)","v":0},{"$f":"SUM(I20:I21,I25)","v":0},{"$f":"SUM(J20:J21,J25)","v":0}]
[null,null,"TOTAL BILLED",null,null,{"$f":"((F15*(F20+F21)+(F22*F25)+(F26*F28)))","v":0},{"$f":"((G15*(G20+G21)+(G22*G25)+(G26*G28)))","v":0},{"$f":"((H15*(H20+H21)+(H22*H25)+(H26*H28)))","v":0},{"$f":"((I15*(I20+I21)+(I22*I25)+(I26*I28)))","v":0},{"$f":"((J15*(J20+J21)+(J22*J25)+(J26*J28)))","v":0}]
[]
[]
[null,null,"Rate Guarantee?",null,null,null,"Estimated First Month's Premium:"]
[null,null,null,null,null,null,{"$f":"SUM(F30:J30)","v":0}]
[null,null,"Section 3  >  Payment Information"]
[]
[]
[null,null,"Premium Payment Method "]
[null,null,"Section 4  >  Commission"]
[]
[]
[null,null,"Agent Commission (Medical)",null,null,null,"Agent Commission (Dental)"]

{"sheet":"Rates Insured 3","index":8,"n_rows":42,"n_cols":10,"rows_kept":42,"cut":false,"hidden":false,"merged":[[14,2,14,4],[2,2,2,6],[7,2,7,5],[7,6,7,9],[10,2,10,5],[10,6,10,9],[26,2,26,4],[15,2,15,4],[16,2,16,4],[17,2,17,4],[18,2,18,4],[19,2,19,4],[20,2,20,4],[21,2,21,4],[22,2,22,4],[23,2,23,4],[24,2,24,4],[25,2,25,4],[37,6,37,9],[42,2,42,5],[42,6,42,9],[27,2,27,4],[28,2,28,4],[29,2,29,4],[33,2,33,5],[33,6,33,9],[36,2,36,9]]}
[]
[]
[null,null,"Rate Information\nInsured"]
[null,null,"Section 1  >  Rate Information - Insured"]
[]
[]
[null,null,"Funding Type:",null,null,null,"Rate Structure:"]
[]
[]
[null,null,"Effective Date: ",null,null,null,"Ending Date:"]
[null,null,{"$f":"IF(ISBLANK('Group Application (51+)'!P7),\"\",'Group Application (51+)'!P7)","v":""},null,null,null,{"$f":"IF(C11=\"\",\"\", EOMONTH(C11,11))","v":""}]
[null,null,"Section 2  >  Rates"]
[]
[null,null,null,null,null,{"$f":"IF(OR(G8 = \"5 Tier\", G8=\"4 Tier\",G8=\"3 Tier\"),\"EE Only\",\"\")","v":""},{"$f":"IF(OR(G8 = \"5 Tier\", G8=\"4 Tier\"),\"EE + 1\",IF(G8=\"3 Tier\",\"EE + 1\",\"\"))","v":""},{"$f":"IF(OR(G8=\"4 Tier\",G8 = \"5 Tier\"), \"EE + Family\",IF(G8=\"3 Tier\",\"EE + 2 or more\",\"\"))","v":""},{"$f":"IF(G8 = \"5 Tier\", \"EE + Child\",IF(G8=\"4 Tier\",\"EE + Child(ren)\",\"\"))","v":""},{"$f":"IF(G8=\"5 Tier\",\"EE + Children\",\"\")","v":""}]
[null,null,"Employee Counts"]
[null,null,"Medical rate"]
[null,null,"RX rate"]
[null,null,"Vision rate"]
[null,null,"Wellness Services rate"]
[null,null,"Subtotal Medical *",null,null,{"$f":"SUM(F16:F19)","v":0},{"$f":"SUM(G16:G19)","v":0},{"$f":"SUM(H16:H19)","v":0},{"$f":"SUM(I16:J19)","v":0},{"$f":"SUM(J16:K19)","v":0}]
[null,null,"Subtotal Vision *Non-Standard ONLY*",null,null,0,0,0,0,0]
[null,null,"Dental Employee Counts"]
[null,null,"Delta Dental rate"]
[null,null,"Orthodontia rate"]
[null,null,"Subtotal Dental ",null,null,{"$f":"SUM(F23:F24)","v":0},{"$f":"SUM(G23:G24)","v":0},{"$f":"SUM(H23:H24)","v":0},{"$f":"SUM(I23:J24)","v":0},{"$f":"SUM(J23:K24)","v":0}]
[null,null,"Direct Option Employee Counts"]
[null,null,"Direct Option Dental rate"]
[null,null,"Subtotal Direct Option ",null,null,{"$f":"SUM(F27:F27)","v":0},{"$f":"SUM(G27:G27)","v":0},{"$f":"SUM(H27:H27)","v":0},{"$f":"SUM(I27:J27)","v":0},{"$f":"SUM(J27:K27)","v":0}]
[null,null,"Subtotal",null,null,{"$f":"SUM(F20:F21,F25)","v":0},{"$f":"SUM(G20:G21,G25)","v":0},{"$f":"SUM(H20:H21,H25)","v":0},{"$f":"SUM(I20:I21,I25)","v":0},{"$f":"SUM(J20:J21,J25)","v":0}]
[null,null,"TOTAL BILLED",null,null,{"$f":"((F15*(F20+F21)+(F22*F25)+(F26*F28)))","v":0},{"$f":"((G15*(G20+G21)+(G22*G25)+(G26*G28)))","v":0},{"$f":"((H15*(H20+H21)+(H22*H25)+(H26*H28)))","v":0},{"$f":"((I15*(I20+I21)+(I22*I25)+(I26*I28)))","v":0},{"$f":"((J15*(J20+J21)+(J22*J25)+(J26*J28)))","v":0}]
[]
[]
[null,null,"Rate Guarantee?",null,null,null,"Estimated First Month's Premium:"]
[null,null,null,null,null,null,{"$f":"SUM(F30:J30)","v":0}]
[null,null,"Section 3  >  Payment Information"]
[]
[]
[null,null,"Premium Payment Method "]
[null,null,"Section 4  >  Commission"]
[]
[]
[null,null,"Agent Commission (Medical)",null,null,null,"Agent Commission (Dental)"]

{"sheet":"Rates ASO","index":9,"n_rows":94,"n_cols":9,"rows_kept":94,"cut":false,"hidden":false,"merged":[[19,4,19,7],[34,2,34,7],[81,5,81,8],[82,5,82,8],[21,2,21,7],[77,2,77,4],[77,5,77,8],[78,5,78,8],[79,5,79,8],[80,2,80,4],[80,5,80,8],[32,3,32,5],[20,2,20,7],[22,2,22,7],[75,5,75,8],[76,5,76,8],[94,2,94,8],[83,2,83,8],[89,5,89,8],[90,5,90,8],[91,2,91,4],[91,5,91,8],[92,5,92,8],[86,5,86,8],[87,5,87,8],[88,2,88,4],[88,5,88,8],[5,5,5,8],[6,5,6,8],[7,5,7,8],[2,2,2,5],[93,5,93,8],[23,2,23,7],[24,2,24,7],[25,2,25,7],[72,5,72,8],[65,5,65,8],[66,5,66,8],[67,2,67,4],[67,5,67,8],[70,5,70,8],[71,5,71,8],[72,2,72,4],[11,2,11,7],[13,2,13,7],[14,2,14,7],[18,2,18,7],[7,2,7,4],[10,2,10,3],[17,2,17,3],[12,2,12,6],[36,2,36,5],[37,2,37,5],[38,2,38,5],[39,2,39,5],[36,6,36,7],[37,6,37,7],[39,6,39,7],[38,6,38,7],[41,6,41,7],[42,6,42,7],[40,2,40,5],[44,2,44,7],[60,2,60,7],[48,2,48,3],[43,6,43,7],[41,2,41,5],[42,2,42,5],[43,2,43,5],[40,6,40,7],[51,3,51,7],[45,2,45,7],[49,6,49,7],[49,2,49,5],[61,2,61,7],[62,2,62,7],[52,3,52,5],[52,6,52,7],[54,2,54,7],[55,2,55,7],[56,2,56,7],[59,2,59,3],[26,6,26,7],[27,6,27,7],[26,2,26,5],[27,2,27,5],[31,3,31,5],[29,4,29,7],[28,2,28,3],[29,2,29,3],[28,4,28,7]]}
[]
[]
[null,null,"Rate Information \nASO"]
[null,null,"Section 1  >  Rate Information - ASO"]
[]
[]
[null,null,"Effective Date: ",null,null,"Ending Date:"]
[null,null,{"$f":"IF(ISBLANK('Group Application (51+)'!P7),\"\",'Group Application (51+)'!P7)","v":""},null,null,{"$f":"IF(C8=\"\",\"\", EOMONTH(C8,11))","v":""}]
[null,null,"Section 2  > Dental Rates"]
[]
[null,null,"PEPM",null,null,null,null,null,"Amount:"]
[null,null,"Administration:"]
[null,null,"Health Through Oral Wellness (HtOW):"]
[null,null,"Commission:"]
[null,null,"Total:",null,null,null,null,null,{"$f":"SUM(I12:I14)","v":0}]
[null,null,"Section 3  > Medical"]
[]
[null,null,"PEPM",null,null,null,null,null,"Amount:"]
[null,null,"Administration:"]
[null,null,"PPO Access Fee:"]
[null,null,"Commission:"]
[null,null,"Out of Network Facility Pricing:"]
[null,null,"E-Doc & Nurseline:"]
[null,null,"Tobacco Cessation Fee:"]
[null,null,"EAP (Employer Assistance Program) Fee:"]
[null,null,"Injectable Benefits Management Fee:"]
[null,null,"Subrogation Fee:",null,null,null,"25% of Savings"]
[null,null,"Claims Management (CM2) Fee:",null,null,null,"25% of Savings"]
[null,null,"Wellness Services:"]
[null,null,"Other:"]
[]
[null,null,null,"Imaging Management (eviCore) (claim's expense)",null,null,"$0.55 pmpm","No"]
[null,null,null,"Enhanced Musculoskeletal Review (eviCore) (claim's expense)",null,null,"$1.00 pmpm","No"]
[]
[null,null,"Total:",null,null,null,null,null,{"$f":"SUM(I19:I26)+SUM(I29:I30)","v":0}]
[]
[null,null,"# of Subscribers:"]
[null,null,"Stop Loss Contract Type:"]
[null,null,"Specific Stop Loss Fee:",null,null,null,null,null,{"$f":"+G39","v":0}]
[null,null,"Specific Level:"]
[null,null,"Aggregate Stop Loss Fee:",null,null,null,null,null,{"$f":"+G41","v":0}]
[null,null,"Aggregate Attachment Point:"]
[null,null,"Aggregate Level:"]
[null,null,"Minimum Aggregate Ded (85%):"]
[null,null,"Stop Loss Interface Fee (for a Stop Loss carrier other than Moda)",null,null,null,null,null,0]
[null,null,"Total Stop Loss Fees:",null,null,null,null,null,{"$f":"I39+I41+I45","v":0}]
[null,null,"Section 4  > Pharmacy"]
[]
[null,null,"PEPM",null,null,null,null,null,"Amount:"]
[null,null,"Administration:",null,null,null,"Commercial Group"]
[]
[null,null,null,"Moda Administration",null,null,null,null,"Incl. in Medical"]
[null,null,null,"PBM fee (Rx claim's expense)"]
[]
[null,null,"PBM Interface Fee (for a PBM other than Moda)",null,null,null,null,null,0]
[null,null,"Commission:"]
[null,null,"Total:",null,null,null,null,null,{"$f":"+I56+I55","v":0}]
[null,null,"Section 5  > Vision"]
[]
[null,null,"PEPM",null,null,null,null,null,"Amount:"]
[null,null,"Administration:",null,null,null,null,null,"Incl. in Medical"]
[null,null,"Commission:"]
[null,null,"Total :",null,null,null,null,null,{"$f":"SUM(I61:I62)","v":0}]
[null,null,"Section 6  >  ASO Administration - Payment Information"]
[]
[]
[null,null,"ASO Admin Billing Method:",null,null,"If list bill, Admin will be paid by:"]
[]
[null,null,"Section 7  >  ASO Claims - Payment Information"]
[]
[]
[null,null,"Claims Frequency:",null,null,"ASO Claims Payment Method:"]
[null,null,"Weekly",null,null,"Moda initiated EFT"]
[null,null,"Section 8  >  ASO Claims Billing  "]
[]
[]
[null,null,"Contact Name:",null,null,"Address:"]
[]
[]
[null,null,"Phone:",null,null,"Fax:"]
[]
[]
[null,null,"Email:"]
[]
[null,null,"Section 9  >  Utilization Report "]
[]
[]
[null,null,"Will report be sent with the bill or alone?",null,null,"Report style:"]
[]
[]
[null,null,"Has PHI Agreement been submitted?",null,null,"How will group receive bill (mail, fax or email)?"]
[]
[]
[null,null,"Frequency of Utilization Report:"]

{"sheet":"Rate Minimum Premium (Internal)","index":10,"n_rows":43,"n_cols":9,"rows_kept":43,"cut":false,"hidden":true,"merged":[[29,2,29,3],[30,2,30,3],[31,2,31,3],[5,3,5,4],[16,2,16,3],[21,2,21,3],[2,2,2,5],[42,2,42,4],[42,5,42,8],[40,2,40,4],[40,5,40,8],[41,2,41,4],[41,5,41,8],[22,2,22,3],[6,8,7,8],[24,8,25,8],[38,8,39,8],[33,2,33,3],[34,2,34,3]]}
[]
[]
[null,null,"Rate Information \nMinimum Premium"]
[null,null,"Section 1  >  Rate Information - Minimum Premium"]
[]
[null,null,"Rate Structure:",null,null,"Effective Date:",{"$f":"IF(ISBLANK('Group Application (51+)'!P7),\"\", 'Group Application (51+)'!P7)","v":""},"Ending Date:",{"$f":"IF(G6=\"\",\"\",EOMONTH(G6,11))","v":""}]
[null,null,"Section 2  >  Rates",null,null,null,null,null,"Total"]
[]
[null,null,null,null,{"$f":"IF(D6=\"\",\"\",IF(D6=\"4 Tier\",\"EE\",IF(D6=\"3 Tier\",\"Emp Only\",IF(D6=\"Composite\",\"PEPM\",IF(D6=\"ASO\",\"PEPM\",IF(D6=\"Other-see comments\",\"\"))))))","v":""},{"$f":"IF(D6=\"\",\"\",IF(D6=\"4 Tier\",\"EE + SP\",IF(D6=\"3 Tier\",\"Emp + 1\",IF(D6=\"Composite\",\"\",IF(D6=\"ASO\",\"\",IF(D6=\"Other-see comments\",\"\"))))))","v":""},{"$f":"IF(D6=\"\",\"\",IF(D6=\"4 Tier\",\"EE + Family\",IF(D6=\"3 Tier\",\"Emp + 2 or more\",IF(D6=\"Composite\",\"\",IF(D6=\"ASO\",\"\",IF(D6=\"Other-see comments\",\"\"))))))","v":""},{"$f":"IF(D6=\"\",\"\",IF(D6=\"4 Tier\",\"EE + Child(ren)\",IF(D6=\"3 Tier\",\"\",IF(D6=\"Composite\",\"\",IF(D6=\"ASO\",\"\",IF(D6=\"Other-see comments\",\"\"))))))","v":""}]
[null,null,"Employee Counts",null,null,null,null,null,{"$f":"SUM(E10:H10)","v":0}]
[null,null,"Medical Min. Premium Rate",null,null,null,null,null,{"$f":"($E$10*E11)+($F$10*F11)+($G$10*G11)+($H$10*H11)","v":0}]
[null,null,"Medical MCL Premium Rate",null,null,null,null,null,0]
[null,null,"Rx Min. Premium Rate",null,null,null,null,null,0]
[null,null,"Rx MCL Premium Rate",null,null,null,null,null,0]
[null,null,"Vision Min. Premium Rate",null,null,null,null,null,0]
[null,null,"Vision MCL Premium Rate",null,null,null,null,null,0]
[null,null,"Subtotal Medical ",null,{"$f":"SUM(E11:E12)","v":0},{"$f":"SUM(F11:F12)","v":0},{"$f":"SUM(G11:G12)","v":0},{"$f":"SUM(H11:H12)","v":0},{"$f":"SUM(I11:I16)","v":0}]
[null,null,"Dental Min. Premium Rate",null,null,null,null,null,{"$f":"($E$10*E18)+($F$10*F18)+($G$10*G18)+($H$10*H18)","v":0}]
[null,null,"Dental MCL Premium Rate",null,null,null,null,null,{"$f":"($E$10*E19)+($F$10*F19)+($G$10*G19)+($H$10*H19)","v":0}]
[null,null,"Ortho Min. Premium Rate",null,null,null,null,null,{"$f":"($E$10*E20)+($F$10*F20)+($G$10*G20)+($H$10*H20)","v":0}]
[null,null,"Orhto MCL Premium Rate",null,null,null,null,null,{"$f":"($E$10*E21)+($F$10*F21)+($G$10*G21)+($H$10*H21)","v":0}]
[null,null,"Subtotal Dental ",null,{"$f":"SUM(E18:E20)","v":0},{"$f":"SUM(F18:F20)","v":0},{"$f":"SUM(G18:G20)","v":0},{"$f":"SUM(H18:H20)","v":0},{"$f":"SUM(I18:I21)","v":0}]
[null,null,"TOTAL BILLED",null,{"$f":"SUM(E17+E22)","v":0},{"$f":"SUM(F17+F22)","v":0},{"$f":"SUM(G17+G22)","v":0},{"$f":"SUM(H17+H22)","v":0},{"$f":"SUM(I17+I22)","v":0}]
[null,null,"* Indicate only if Vision rates should be broken out from Medical and Dental Rates on bill."]
[null,null,"Section 3  >  Misc. Information"]
[]
[null,null,null,null,null,null,null,null,"Included in Minimum Premium rates above?"]
[null,null,"Specific SL level"]
[null,null,"Reserves: Medical"]
[null,null,"Reserves: RX"]
[null,null,"Reserves: Vision"]
[null,null,"Reserves: Dental"]
[null,null,"Reserves: Orthodontia"]
[null,null,"Agent Commission: Medical"]
[null,null,"Agent Commission: Rx"]
[null,null,"Agent Commission: Vision"]
[null,null,"Agent Commission: Dental"]
[null,null,"Agent Commission: Orthodontia"]
[null,null,"Section 4  >  Payment Information"]
[]
[null,null,"Premium Payment Method"]
[null,null,"ACH  frequency"]
[null,null,"Positive/Negative billing:"]

{"sheet":"Plan Info Lookups (Internal)","index":11,"n_rows":185,"n_cols":42,"rows_kept":185,"cut":false,"hidden":true,"merged":[[110,1,110,2],[34,1,34,2],[51,1,51,2],[52,1,52,2],[94,1,94,2],[95,1,95,2],[109,1,109,2],[33,1,33,2],[14,1,14,2],[14,4,14,5],[14,7,14,8],[14,10,14,11],[15,1,15,2]]}
[]
[null,"Medical 11-Digit Plan Codes",null,null,null,null,null,null,null,null,null,null,null,null,null,null,null,null,null,null,null,null,null,null,null,null,null,null,null,null,null,null,null,null,null,null,null,null,null,"Add New Class",null,"Date of Hire, no waiting period"]
[null,null,null,"Yellow cells are drop down boxes.  Select your plan's benefit and 11 digit code will populate below.",null,null,null,null,null,null,null,null,null,null,null,null,null,null,null,null,null,null,null,null,null,null,null,null,null,null,null,null,null,null,null,null,null,null,null,"Add New Subgroup",null,"Date of Hire"]
[null,null,"Plan Type","OV Copay","In-Net Ded","In-Net Coins","In-Net OOP","Out Ded","Out Coins","Out OOP",null,null,null,null,null,null,null,null,null,null,null,null,null,null,null,null,null,null,null,null,null,null,null,null,null,null,null,null,null,"Change",null,"Date of Hire plus one month orientation period"]
[null,"Your Plan:","PPO","$20","$2000","20%","$3,000","$2000","50%","$15,000",null,null,null,null,null,null,null,null,null,null,null,null,null,null,null,null,null,null,null,null,null,null,null,null,null,null,null,null,null,"Change Agent of Record",null,"Date of Hire or Date of Hire when 1st of the month"]
[null,null,null,null,null,null,null,null,null,null,null,null,null,null,null,null,null,null,null,null,null,null,null,null,null,null,null,null,null,null,null,null,null,null,null,null,null,null,null,"Change EFT",null,"Date of Hire or Date of Hire when 1st of the month plus one month orientation period"]
[null,"Your Plan's Code:",null,{"$f":"INDEX(B21:B32,MATCH(C5,C21:C32,0))&\"-\"&INDEX(B40:B49,MATCH(D5,C40:C49,0))&INDEX(B58:B93,MATCH(E5,C58:C93,0))&INDEX(B101:B108,MATCH(F5,C101:C108))&INDEX(B116:B174,MATCH(G5,C116:C174))&\"-\"&INDEX(B58:B93,MATCH(H5,C58:C93))&INDEX(B101:B108,MATCH(I5,C101:C108))&INDEX(B116:B174,MATCH(J5,C116:C174))","v":"2-206203-6517"},null,null,null,null,null,null,null,null,null,null,null,null,null,null,null,null,null,null,null,null,null,null,null,null,null,null,null,null,null,null,null,null,null,null,null,"New",null,"30 days"]
[null,null,null,null,null,{"$f":"IFERROR(VLOOKUP(C5,D22:D32,2,FALSE)&\"-\"&VLOOKUP(D5,#REF!,2,FALSE)&VLOOKUP(E5,L44:M339,2,FALSE)&VLOOKUP(F5,#REF!,2,FALSE)&VLOOKUP(G5,C114:D139,2,FALSE)&\"-\"&VLOOKUP(H5,L44:O45,2,FALSE)&VLOOKUP(I5,#REF!,2,FALSE)&VLOOKUP(J5,C114:D169,2,FALSE),\"\")","v":""},null,null,null,null,null,null,null,null,null,null,null,null,null,null,null,null,null,null,null,null,null,null,null,null,null,null,null,null,null,null,null,null,null,"New Line of Business",null,"30 days plus one month orientation period"]
[null,"Your Plan's Description:",null,{"$f":"IF(C5=\"Beneficial PPO\",C5&\" : \"&D5&\"(5) OV, \"&E5&\" In-net Ded, \"&F5&\" (\"&G5&\")\"&\"; Out: \"&H5&\" Ded, \"&I5&\" (\"&J5&\")\",IF(C5=\"HSA PPO\",C5&\" : \"&E5&\" In-net Ded, \"&F5&\" (\"&G5&\")\"&\"; Out: \"&H5&\" Ded, \"&I5&\" (\"&J5&\")\",C5&\" : \"&D5&\" OV, \"&E5&\" In-net Ded, \"&F5&\" (\"&G5&\")\"&\"; Out: \"&H5&\" Ded, \"&I5&\" (\"&J5&\")\"))","v":"PPO : $20 OV, $2000 In-net Ded, 20% ($3,000); Out: $2000 Ded, 50% ($15,000)"},null,null,null,null,null,null,null,null,null,null,null,null,null,null,null,null,null,null,null,null,null,null,null,null,null,null,null,null,null,null,null,null,null,null,null,"New with Consortium",null,"60 days"]
[null,null,null,null,null,null,null,null,null,null,null,null,null,null,null,null,null,null,null,null,null,null,null,null,null,null,null,null,null,null,null,null,null,null,null,null,null,null,null,"Renewal",null,"60 days plus one month orientation period"]
[null,"Example:","2-150202-2404"," = PPO Copay: $15 ov, 20% ($2,000),Out: $250 Ded/ 40% ($4,000)",null,null,null,null,null,null,null,null,null,null,null,null,null,null,null,null,null,null,null,null,null,null,null,null,null,null,null,null,null,null,null,null,null,null,null,"Renewing with Consortium",null,"90 days (dental only)"]
[null,null,"A-BBCDEE-FGHH",null,null,null,null,null,null,null,null,null,null,null,null,null,null,null,null,null,null,null,null,null,null,null,null,null,null,null,null,null,null,null,null,null,null,null,null,"Revised Renewal",null,"90 days plus one month orientation period (dental only)"]
[null,null,null,null,null,null,null,null,null,null,null,null,null,null,null,null,null,null,null,null,null,null,null,null,null,null,null,null,null,null,null,null,null,null,null,null,null,null,null,"Reinstate"]
[null,null,null,null,null,null,null,null,null,null,null,null,null,null,null,null,null,null,null,null,null,null,null,null,null,null,null,null,null,null,null,null,null,null,null,null,null,null,null,"Renewal New Line of Business"]
[null,"Medical 11-Digit Plan Codes",null,null,"Ortho Plan IDs",null," ","Vision Plan IDs",null,null,"Pharmacy Plan IDs",null,null,null,null,null,null,null,null,null,null,null," ","Dental Plan IDs",null,null,null,null,null,null,null,null,null,null,null,null,null,null,null,"Term New Contract"]
[null,"Plan Type Options: A",null,null,"Source:",null," ","Source:",null," ","Source:",null,null,null,null,null,null,null,null,null,null,null," ","Source:"]
[null,"Source:","SBC Naming Convention Code List revised 092618.pdf"," ","Updated:",null," ","Updated:",null,null,"Updated:",null,null,null,null,null,null,null,null,null,null,null," ","Updated:"]
[null,"Updated:","2018-09-26",null,"Notes:",null," ","Notes:",null," ","Notes:",null,null,null,null,null,null,null,null,null,null,null," ","Notes:"]
[null,"Notes:","Named Range \"PlanID_type\""," ","Plan ID","Description"," ","Plan ID","Description"," ","Plan ID","Description","Retail Value Co-Pay","Mail Value Co-Pay","Retail Select Co-Pay","Mail Select Co-Pay","Retail Preferred Co-Pay","Mail Preferred Co-Pay","Retail Non-Preferred Co-Pay","Mail Non-Preferred Co-Pay","Retail & Mail Order OOP","Retail & Mail Order Ded"," ","Plan ID","Plan Name","Deductible","In-Network Preventive","In-Network Basic","In-Network Major","Maximum","Out-of-Network Preventative","Out-of-Network Basic","Out-of-Network Major",null,null,null,null,null," "]
[null,"Code","Description"," ","A500","Adult Ortho, 50% to $500 Maximum"," ","AKV100","Vision: 100% w/ $200 Max"," ","AKRX21020%503XC90","Rx: PBM: $2/$10/20%/50%; 3x Mail Order (w/ contra.)","$2","$6","$10","$30","20%","20%","50%","50%","Combined (Refer to Medical OOP)","-"," ","A0","PREMIER OPTION A ","$0","70%/80%/90%/100%","70%/80%/90%/100%","50%","$1,500","N/A","N/A","N/A"]
[null,"1","Indemnity (51+)"," ","A1000","Adult Ortho, 50% to $1,000 Maximum"," ","AKV1003","Vision: 100% w/ $300 Max"," ","AKRX21020503XC90","Rx: PBM: $2/$10/$20/50%; 3x Mail Order (w/ contra.)","$2","$6","$10","$30","$20","$60","50%","50%","Combined (Refer to Medical OOP)","-"," ","A0 (Modified)","PREMIER OPTION A ","$0","70%/80%/90%/100%","70%/80%/90%/100%","70%/80%/90%/100%","$1,500","N/A","N/A","N/A"]
[null,"T","Portability"," ","A1500","Adult Ortho, 50% to $1,500 Maximum"," ","AKV80","Vision: 80% w/ No Max"," ","AKRX21025503XC90","Rx: PBM: $2/$10/$25/50%; 3x Mail Order (w/ contra.)","$2","$6","$10","$30","$25","$75","50%","50%","Combined (Refer to Medical OOP)","-"," ","A01","Dental Plan A, $1,000 Max","PREMIER OPTION A ","$0","70%/80%/90%/100%","70%/80%/90%/100%","50%","$1,000","N/A","N/A"]
[null,"2","PPO"," ","A2000","Adult Ortho, 50% to $2,000 Maximum"," ","AKVEO","Vision: 100% Eye Exam Only"," ","AKRX21030503XC90","Rx: PBM: $2/$10/$30/$50; 3x Mail Order (w/ contra.)","$2","$6","$10","$30","$30","$90","$50","$150","Combined (Refer to Medical OOP)","-"," ","A02","PREMIER OPTION A ","$0","70%/80%/90%/100%","70%/80%/90%/100%","50%","$2,000","N/A","N/A","N/A"]
[null,"3","POS"," ","A2500","Adult Ortho, 50% to $2,500 Maximum"," ","AKVHI","Vision: High Option"," ","AKRX21040603XC90","Rx: PBM: $2/$10/$40/$60; 3x Mail Order (w/ contra.)","$2","$6","$10","$30","$40","$120","$60","$180","Combined (Refer to Medical OOP)","-"," ","A025","PREMIER OPTION A ","$0","70%/80%/90%/100%","70%/80%/90%/100%","50%","$2,500","N/A","N/A","N/A"]
[null,"B","Beneficial PPO"," ","AC500","Adult & Child Ortho, 50% to $500 Maximum"," ","AKVSUP","Vision: Super Option"," ","AKRX21525503XC90","Rx: PBM: $2/$15/$25/50%; 3x Mail Order (w/ contra.)","$2","$6","$15","$45","$25","$75","50%","50%","Combined (Refer to Medical OOP)","-"," ","AP0","PPO OPTION A","$0","70%/80%/90%/100%","70%/80%/90%/100%","50%","$1,500","50%/60%/70%/80%","50%/60%/70%/80%","50%"]
[null,"E","HSA Embedded Individual OOP"," ","AC1000","Adult & Child Ortho, 50% to $1,000 Maximum"," ","AKH80","80% to $800 max every 3 yrs"," ","AKRX21535503XC90","Rx: PBM: $2/$15/$35/50%; 3x Mail Order (w/ contra.)","$2","$6","$15","$45","$35","$105","50%","50%","Combined (Refer to Medical OOP)","-"," ","AP02","PPO OPTION A","$0","70%/80%/90%/100%","70%/80%/90%/100%","50%","$2,000","50%/60%/70%/80%","50%/60%/70%/80%","50%"]
[null,"D","HSA PPO Deductible Embedded"," ","AC1500","Adult & Child Ortho, 50% to $1,500 Maximum"," ",null,null," ","AKRX15503XC90","Rx: PBM $15 or 50% (whichever's greater) w/ 3x Mail Order (w/ contra.); ","$2","$6","$15/50%","$45/50%","$15/50%","$45/50%","$15/50%","$45/50%","Combined (Refer to Medical OOP)","-"," ","AP025","PPO OPTION A","$0","70%/80%/90%/100%","70%/80%/90%/100%","50%","$2,500","50%/60%/70%/80%","50%/60%/70%/80%","50%"]
[null,"H","HSA PPO"," ","AC2000","Adult & Child Ortho, 50% to $2,000 Maximum"," ",null,null," ","AKRX250D21020503XC90","Rx: PBM: $250 Ded, then $2/$10/$20/$50, 3x Mail Order Copay","$2 (Ded wvd)","$6 (Ded wvd)","$10 (Ded wvd)","$30 (Ded wvd)","$20","$60","$50","$150","Combined (Refer to Medical OOP)","$250Ded (wvd value/gen)"," ","B25","PREMIER OPTION B","$25","100%(Ded. wavied)","80%","50%","$1,500","N/A","N/A","N/A"]
[null,"U","Summit PPO"," ","AC2500","Adult & Child Ortho, 50% to $2,500 Maximum"," ",null,null," ","AKRX25CA90","Rx: PBM: $5/20%; Mail Order: $5/20% (w/ contra.)","$2","$6","$5/20%","$5/20%","$5/20%","$5/20%","$5/20%","$5/20%","Combined (Refer to Medical OOP)","-"," ","B251","PREMIER OPTION B","$25","100%(Ded. wavied)","80%","50%","$1,000","N/A","N/A","N/A"]
[null,"V","Value PPO"," ","C500","Child Ortho, 50% to $500 Maximum"," ",null,null," ","AKRX30C90","Rx: PBM: 30%; Mail Order: 30% (w/ contra.)","$2","$6","30%","30%","30%","30%","30%","30%","Combined (Refer to Medical OOP)","-"," ","B252","PREMIER OPTION B","$25","100%(Ded. wavied)","80%","50%","$2,000","N/A","N/A","N/A"]
[null,"Y","Synergy PPO"," ","C1000","Child Ortho, 50% to $1,000 Maximum"," ",null,null," ","AKRX30CA90","Rx: PBM: $10/20%; Mail Order: $10/20% (w/ contra.)","$2","$6","$10/20%","$10/20%","$10/20%","$10/20%","$10/20%","$10/20%","Combined (Refer to Medical OOP)","-"," ","B2525","PREMIER OPTION B","$25","100%(Ded. wavied)","80%","50%","$2,500","N/A","N/A","N/A"]
[null,"W","WellConnect"," ","C1500","Child Ortho, 50% to $1,500 Maximum"," ",null,null," ","AKRX35CA90","Rx: PBM: $15/20%; Mail Order: $15/20% (w/ contra.)","$2","$6","$15/20%","$15/20%","$15/20%","$15/20%","$15/20%","$15/20%","Combined (Refer to Medical OOP)","-"," ","B3X25","PREMIER OPTION B FAMILY DEDUCTIBLE","$25/$75","100%(Ded. wavied)","80%","50%","$1,500","N/A","N/A","N/A"]
[null,null,null," ","C2000","Child Ortho, 50% to $2,000 Maximum"," ",null,null," ","AKRX40C90","Rx: PBM: 40% Copay; Mail Order: 40% Copay (w/ contra.)","$2","$6","40%","40%","40%","40%","40%","40%","Combined (Refer to Medical OOP)","-"," ","B3X251","PREMIER OPTION B FAMILY DEDUCTIBLE","$25/$75","100%(Ded. wavied)","80%","50%","$1,000","N/A","N/A","N/A"]
[null,"Medical 11-Digit Plan Codes",null," ","C2500","Child Ortho, 50% to $2,500 Maximum"," ",null,null," ","AKRX2515503XC90","Rx: PBM: $2/$5/$15/50%; 3x Mail Order (w/ contra.)","$2","$6","$5","$15","$15","$45","50%","50%","Combined (Refer to Medical OOP)","-"," ","B3X252","PREMIER OPTION B FAMILY DEDUCTIBLE","$25/$75","100%(Ded. wavied)","80%","50%","$2,000","N/A","N/A","N/A"]
[null,"OV Copay Options - BB",null," ","VCO1000","Voluntary Child Ortho, 50% to $1,000 Maximum; 24-month Exclusionary Period"," ",null,null," ",null,null,null,null,null,null,null,null,null,null,null,null," ","B3X2525","PREMIER OPTION B FAMILY DEDUCTIBLE","$25/$75","100%(Ded. wavied)","80%","50%","$2,500","N/A","N/A","N/A"]
[null,"Source:","Quotes_51.xls"," ","VCO1500","Voluntary Child Ortho, 50% to $1,500 Maximum; 24-month Exclusionary Period"," ",null,null," ",null,null,null,null,null,null,null,null,null,null,null,null," ","B3X50","PREMIER OPTION B FAMILY DEDUCTIBLE","$50/$150","100%(Ded. wavied)","80%","50%","$1,500","N/A","N/A","N/A"]
[null,"Updated:","2/28/2008 TS"," ",null,null,null,null,null,null,null,null,null,null,null,null,null,null,null,null,null,null," ","B3X501","PREMIER OPTION B FAMILY DEDUCTIBLE","$50/$150","100%(Ded. wavied)","80%","50%","$1,000","N/A","N/A","N/A"]
[null,"Notes:","Named Range \"PlanID_Copay\""," ",null,null,null,null,null,null,null,null,null,null,null,null,null,null,null,null,null,null," ","B3X502","PREMIER OPTION B FAMILY DEDUCTIBLE","$50/$150","100%(Ded. wavied)","80%","50%","$2,000","N/A","N/A","N/A"]
[null,"Code","Description"," ",null,null,null,null,null,null,null,null,null,null,null,null,null,null,null,null,null,null," ","B3X5025","PREMIER OPTION B FAMILY DEDUCTIBLE","$50/$150","100%(Ded. wavied)","80%","50%","$2,500","N/A","N/A","N/A"]
[null,"00","No Copay"," ",null,null,null,null,null,null,null,null,null,null,null,null,null,null,null,null,null,null," ","B3X50_PF","Dental Plan B w/ Preventive First, $50/$150 Ded, $1,500 Max","PREMIER OPTION B FAMILY DED W/ PREVENTIVE FIRST","$50/$150","100%(Ded. wavied)","80%","50%","$1,500","N/A","N/A"]
[null,"10","$10"," ",null,null,null,null,null,null,null,null,null,null,null,null,null,null,null,null,null,null," ","B3X501_PF","Dental Plan B w/ Preventive First, $50/$150 Ded, $1,000 Max","PREMIER OPTION B FAMILY DED W/ PREVENTIVE FIRST","$50/$150","100%(Ded. wavied)","80%","50%","$1,000","N/A","N/A"]
[null,"15","$15"," ",null,null,null,null,null,null,null,null,null,null,null,null,null,null,null,null,null,null," ","B3X502_PF","Dental Plan B w/ Preventive First, $50/$150 Ded, $2,000 Max","PREMIER OPTION B FAMILY DED W/ PREVENTIVE FIRST","$50/$150","100%(Ded. wavied)","80%","50%","$2,000","N/A","N/A"]
[null,"20","$20"," ",null,null,null,null,null,null,null,null,null,null,null,null,null,null,null,null,null,null," ","B3X5025_PF","Dental Plan B w/ Preventive First, $50/$150 Ded, $2,500 Max","PREMIER OPTION B FAMILY DED W/ PREVENTIVE FIRST","$50/$150","100%(Ded. wavied)","80%","50%","$2,500","N/A","N/A"]
[null,"25","$25"," ",null,null,null,null,null,null,null,null,null,null,null,null,null,null,null,null,null,null," ","B50","PREMIER OPTION B","$50","100%(Ded. wavied)","80%","50%","$1,500","N/A","N/A","N/A"]
[null,"30","$30"," ",null,null,null,null,null,null,null,null,null,null,null,null,null,null,null,null,null,null," ","B501","PREMIER OPTION B","$50","100%(Ded. wavied)","80%","50%","$1,000","N/A","N/A","N/A"]
[null,"35","$35"," ",null,null,null,null,null,null,null,null,null,null,null,null,null,null,null,null,null,null," ","B502","PREMIER OPTION B","$50","100%(Ded. wavied)","80%","50%","$2,000","N/A","N/A","N/A"]
[null,"40","$40"," ",null,null,null,null,null,null,null,null,null,null,null,null,null,null,null,null,null,null," ","B5025","PREMIER OPTION B","$50","100%(Ded. wavied)","80%","50%","$2,500","N/A","N/A","N/A"]
[null,"50","$50"," ",null,null,null,null,null,null,null,null,null,null,null,null,null,null,null,null,null,null," ","BP25","PPO OPTION B","$25","100%(Ded. wavied)","80%","50%","$1,500","80%(Ded. wavied)","60%","50%"]
[null,"75","$75"," ",null,null,null,null,null,null,null,null,null,null,null,null,null,null,null,null,null,null," ","BP251","PPO OPTION B","$25","100%(Ded. wavied)","80%","50%","$1,000","80%(Ded. wavied)","60%","50%"]
[null,null,null," ",null,null,null,null,null,null,null,null,null,null,null,null,null,null,null,null,null,null," ","BP252","PPO OPTION B","$25","100%(Ded. wavied)","80%","50%","$2,000","80%(Ded. wavied)","60%","50%"]
[null,null,null," ",null,null,null,null,null,null,null,null,null,null,null,null,null,null,null,null,null,null," ","BP2525","PPO OPTION B","$25","100%(Ded. wavied)","80%","50%","$2,500","80%(Ded. wavied)","60%","50%"]
[null,"Medical 11-Digit Plan Codes",null," ",null,null,null,null,null,null,null,null,null,null,null,null,null,null,null,null,null,null," ","BP3X25","PPO OPTION B FAMILY DEDUCTIBLE","$25/$75","100%(Ded. wavied)","80%","50%","$1,500","80%(Ded. wavied)","60%","50%"]
[null,"Deduct Options: C and F",null," ",null,null,null,null,null,null,null,null,null,null,null,null,null,null,null,null,null,null," ","BP3X251","PPO OPTION B FAMILY DEDUCTIBLE","$25/$75","100%(Ded. wavied)","80%","50%","$1,000","80%(Ded. wavied)","60%","50%"]
[null,"Source:","Quotes_51.xls"," ",null,null,null,null,null,null,null,null,null,null,null,null,null,null,null,null,null,null," ","BP3X252","PPO OPTION B FAMILY DEDUCTIBLE","$25/$75","100%(Ded. wavied)","80%","50%","$2,000","80%(Ded. wavied)","60%","50%"]
[null,"Updated:","2/28/2008 TS"," ",null,null,null,null,null,null,null,null,null,null,null,null,null,null,null,null,null,null," ","BP3X2525","PPO OPTION B FAMILY DEDUCTIBLE","$25/$75","100%(Ded. wavied)","80%","50%","$2,500","80%(Ded. wavied)","60%","50%"]
[null,"Notes:","Named Range \"PlanID_ded\""," ",null,null,null,null,null,null,null,null,null,null,null,null,null,null,null,null,null,null," ","BP3X50","PPO OPTION B FAMILY DEDUCTIBLE","$50/$150","100%(Ded. wavied)","80%","50%","$1,500","80%(Ded. wavied)","60%","50%"]
[null,"Code","Description"," ",null,null,null,null,null,null,null,null,null,null,null,null,null,null,null,null,null,null," ","BP3X501","PPO OPTION B FAMILY DEDUCTIBLE","$50/$150","100%(Ded. wavied)","80%","50%","$1,000","80%(Ded. wavied)","60%","50%"]
[null,"0","No Ded"," ",null,null,null,null,null,null,null,null,null,null,null,null,null,null,null,null,null,null," ","BP3X502","PPO OPTION B FAMILY DEDUCTIBLE","$50/$150","100%(Ded. wavied)","80%","50%","$2,000","80%(Ded. wavied)","60%","50%"]
[null,"Y",100," ",null,null,null,null,null,null,null,null,null,null,null,null,null,null,null,null,null,null," ","BP3X5025","PPO OPTION B FAMILY DEDUCTIBLE","$50/$150","100%(Ded. wavied)","80%","50%","$2,500","80%(Ded. wavied)","60%","50%"]
[null,"2","$250"," ",null,null,null,null,null,null,null,null,null,null,null,null,null,null,null,null,null,null," ","BP3X50_PF","Dental Plan B w/ Preventive First, $50/$150 Ded, $1,500 Max","PPO OPTION BP FAMILY DED W/ PREVENTIVE FIRST","$50/$150","100%(Ded. wavied)","80%","50%","$1,500","80%(Ded. wavied)","60%"]
[null,"5","$500"," ",null,null,null,null,null,null,null,null,null,null,null,null,null,null,null,null,null,null," ","BP3X501_PF","Dental Plan B w/ Preventive First, $50/$150 Ded, $1,000 Max","PPO OPTION BP FAMILY DED W/ PREVENTIVE FIRST","$50/$150","100%(Ded. wavied)","80%","50%","$1,000","80%(Ded. wavied)","60%"]
[null,"7","$750"," ",null,null,null,null,null,null,null,null,null,null,null,null,null,null,null,null,null,null," ","BP3X502_PF","Dental Plan B w/ Preventive First, $50/$150 Ded, $2,000 Max","PPO OPTION BP FAMILY DED W/ PREVENTIVE FIRST","$50/$150","100%(Ded. wavied)","80%","50%","$2,000","80%(Ded. wavied)","60%"]
[null,"9","$1000"," ",null,null,null,null,null,null,null,null,null,null,null,null,null,null,null,null,null,null," ","BP3X5025_PF","Dental Plan B w/ Preventive First, $50/$150 Ded, $2,500 Max","PPO OPTION BP FAMILY DED W/ PREVENTIVE FIRST","$50/$150","100%(Ded. wavied)","80%","50%","$2,500","80%(Ded. wavied)","60%"]
[null,"L",1250," ",null,null,null,null,null,null,null,null,null,null,null,null,null,null,null,null,null,null," ","BP50","PPO OPTION B","$50","100%(Ded. wavied)","80%","50%","$1,500","80%(Ded. wavied)","60%","50%"]
[null,"R","$1300"," ",null,null,null,null,null,null,null,null,null,null,null,null,null,null,null,null,null,null," ","BP501","PPO OPTION B","$50","100%(Ded. wavied)","80%","50%","$1,000","80%(Ded. wavied)","60%","50%"]
[null,"X","$1350"," ",null,null,null,null,null,null,null,null,null,null,null,null,null,null,null,null,null,null," ","BP502","PPO OPTION B","$50","100%(Ded. wavied)","80%","50%","$2,000","80%(Ded. wavied)","60%","50%"]
[null,"1","$1500"," ",null,null,null,null,null,null,null,null,null,null,null,null,null,null,null,null,null,null," ","BP5025","PPO OPTION B","$50","100%(Ded. wavied)","80%","50%","$2,500","80%(Ded. wavied)","60%","50%"]
[null,"6","$2000"," ",null,null,null,null,null,null,null,null,null,null,null,null,null,null,null,null,null,null," ","BPA3X50","Dental Plan B, $50/$150 Ded, $1,500 Max","PPO OPTION BPA FAMILY DEDUCTIBLE","$50/$150","100%(Ded. wavied)","90%","50%","$1,500","90%(Ded. wavied)","70%"]
[null,"T","$2400"," ",null,null,null,null,null,null,null,null,null,null,null,null,null,null,null,null,null,null," ","BPA3X501","Dental Plan B, $50/$150 Ded, $1,000 Max","PPO OPTION BPA FAMILY DEDUCTIBLE","$50/$150","100%(Ded. wavied)","90%","50%","$1,000","90%(Ded. wavied)","70%"]
[null,"8","$2500"," ",null,null,null,null,null,null,null,null,null,null,null,null,null,null,null,null,null,null," ","BPA3X502","Dental Plan B, $50/$150 Ded, $2,000 Max","PPO OPTION BPA FAMILY DEDUCTIBLE","$50/$150","100%(Ded. wavied)","90%","50%","$2,000","90%(Ded. wavied)","70%"]
[null,"S","$2600"," ",null,null,null,null,null,null,null,null,null,null,null,null,null,null,null,null,null,null," ","BPA3X5025","Dental Plan B, $50/$150 Ded, $2,500 Max","PPO OPTION BPA FAMILY DEDUCTIBLE","$50/$150","100%(Ded. wavied)","90%","50%","$2,500","90%(Ded. wavied)","70%"]
[null,"Z","$2700"," ",null,null,null,null,null,null,null,null,null,null,null,null,null,null,null,null,null,null," ","BPA3X50_PF","Dental Plan B w/ Preventive First, $50/$150 Ded, $1,500 Max","PPO OPTION BPA FAMILY DED W/ PREVENTIVE FIRST","$50/$150","100%(Ded. wavied)","90%","50%","$1,500","90%(Ded. wavied)","70%"]
[null,"H","$2800"," ",null,null,null,null,null,null,null,null,null,null,null,null,null,null,null,null,null,null," ","BPA3X501_PF","Dental Plan B w/ Preventive First, $50/$150 Ded, $1,000 Max","PPO OPTION BPA FAMILY DED W/ PREVENTIVE FIRST","$50/$150","100%(Ded. wavied)","90%","50%","$1,000","90%(Ded. wavied)","70%"]
[null,"3","$3000"," ",null,null,null,null,null,null,null,null,null,null,null,null,null,null,null,null,null,null," ","BPA3X502_PF","Dental Plan B w/ Preventive First, $50/$150 Ded, $2,000 Max","PPO OPTION BPA FAMILY DED W/ PREVENTIVE FIRST","$50/$150","100%(Ded. wavied)","90%","50%","$2,000","90%(Ded. wavied)","70%"]
[null,"U","$3275"," ",null,null,null,null,null,null,null,null,null,null,null,null,null,null,null,null,null,null," ","BPA3X5025_PF","Dental Plan B w/ Preventive First, $50/$150 Ded, $2,500 Max","PPO OPTION BPA FAMILY DED W/ PREVENTIVE FIRST","$50/$150","100%(Ded. wavied)","90%","50%","$2,500","90%(Ded. wavied)","70%"]
[null,"F","$3500"," ",null,null,null,null,null,null,null,null,null,null,null,null,null,null,null,null,null,null," ","BPB3X50","Dental Plan B, $50/$150 Ded, $1,500 Max","PPO OPTION BPB FAMILY DEDUCTIBLE","$50/$150","100%(Ded. wavied)","80%","50%","$1,500","90%(Ded. wavied)","70%"]
[null,"4","$4000"," ",null,null,null,null,null,null,null,null,null,null,null,null,null,null,null,null,null,null," ","BPB3X501","Dental Plan B, $50/$150 Ded, $1,000 Max","PPO OPTION BPB FAMILY DEDUCTIBLE","$50/$150","100%(Ded. wavied)","80%","50%","$1,000","90%(Ded. wavied)","70%"]
[null,"Q","$4500"," ",null,null,null,null,null,null,null,null,null,null,null,null,null,null,null,null,null,null," ","BPB3X502","Dental Plan B, $50/$150 Ded, $2,000 Max","PPO OPTION BPB FAMILY DEDUCTIBLE","$50/$150","100%(Ded. wavied)","80%","50%","$2,000","90%(Ded. wavied)","70%"]
[null,"D","$5000"," ",null,null,null,null,null,null,null,null,null,null,null,null,null,null,null,null,null,null," ","BPB3X5025","Dental Plan B, $50/$150 Ded, $2,500 Max","PPO OPTION BPB FAMILY DEDUCTIBLE","$50/$150","100%(Ded. wavied)","80%","50%","$2,500","90%(Ded. wavied)","70%"]
[null,"B","$5600"," ",null,null,null,null,null,null,null,null,null,null,null,null,null,null,null,null,null,null," ","BPB3X50_PF","Dental Plan B w/ Preventive First, $50/$150 Ded, $1,500 Max","PPO OPTION BPB FAMILY DED W/ PREVENTIVE FIRST","$50/$150","100%(Ded. wavied)","80%","50%","$1,500","90%(Ded. wavied)","70%"]
[null,"A","$6000"," ",null,null,null,null,null,null,null,null,null,null,null,null,null,null,null,null,null,null," ","BPB3X501_PF","Dental Plan B w/ Preventive First, $50/$150 Ded, $1,000 Max","PPO OPTION BPB FAMILY DED W/ PREVENTIVE FIRST","$50/$150","100%(Ded. wavied)","80%","50%","$1,000","90%(Ded. wavied)","70%"]
[null,"V",6350," ",null,null,null,null,null,null,null,null,null,null,null,null,null,null,null,null,null,null," ","BPB3X502_PF","Dental Plan B w/ Preventive First, $50/$150 Ded, $2,000 Max","PPO OPTION BPB FAMILY DED W/ PREVENTIVE FIRST","$50/$150","100%(Ded. wavied)","80%","50%","$2,000","90%(Ded. wavied)","70%"]
[null,"W",6550," ",null,null,null,null,null,null,null,null,null,null,null,null,null,null,null,null,null,null," ","BPB3X5025_PF","Dental Plan B w/ Preventive First, $50/$150 Ded, $2,500 Max","PPO OPTION BPB FAMILY DED W/ PREVENTIVE FIRST","$50/$150","100%(Ded. wavied)","80%","50%","$2,500","90%(Ded. wavied)","70%"]
[null,"M","$7000"," ",null,null,null,null,null,null,null,null,null,null,null,null,null,null,null,null,null,null," ","C25","PREMIER OPTION C ","$25","80%","80%","50%","$1,500","N/A","N/A","N/A"]
[null,"E","$7500"," ",null,null,null,null,null,null,null,null,null,null,null,null,null,null,null,null,null,null," ","C251","PREMIER OPTION C ","$25","80%","80%","50%","$1,000","N/A","N/A","N/A"]
[null,"O",7900," ",null,null,null,null,null,null,null,null,null,null,null,null,null,null,null,null,null,null," ","C252","PREMIER OPTION C ","$25","80%","80%","50%","$2,000","N/A","N/A","N/A"]
[null,"C","$8000"," ",null,null,null,null,null,null,null,null,null,null,null,null,null,null,null,null,null,null," ","C2525","PREMIER OPTION C ","$25","80%","80%","50%","$2,500","N/A","N/A","N/A"]
[null,"P","$9000"," ",null,null,null,null,null,null,null,null,null,null,null,null,null,null,null,null,null,null," ","C3X25","PREMIER OPTION C FAMILY DEDUCTIBLE","$25/$75","80%","80%","50%","$1,500","N/A","N/A","N/A"]
[null,"G","$10000"," ",null,null,null,null,null,null,null,null,null,null,null,null,null,null,null,null,null,null," ","C3X251","PREMIER OPTION C FAMILY DEDUCTIBLE","$25/$75","80%","80%","50%","$1,000","N/A","N/A","N/A"]
[null,"I","$15000"," ",null,null,null,null,null,null,null,null,null,null,null,null,null,null,null,null,null,null," ","C3X252","PREMIER OPTION C FAMILY DEDUCTIBLE","$25/$75","80%","80%","50%","$2,000","N/A","N/A","N/A"]
[null,"N","$21000"," ",null,null,null,null,null,null,null,null,null,null,null,null,null,null,null,null,null,null," ","C3X2525","PREMIER OPTION C FAMILY DEDUCTIBLE","$25/$75","80%","80%","50%","$2,500","N/A","N/A","N/A"]
[null,"J","$22500"," ",null,null,null,null,null,null,null,null,null,null,null,null,null,null,null,null,null,null," ","C3X50","PREMIER OPTION C FAMILY DEDUCTIBLE","$50/$150","80%","80%","50%","$1,500","N/A","N/A","N/A"]
[null,"K","$30000"," ",null,null,null,null,null,null,null,null,null,null,null,null,null,null,null,null,null,null," ","C3X501","PREMIER OPTION C FAMILY DEDUCTIBLE","$50/$150","80%","80%","50%","$1,000","N/A","N/A","N/A"]
[null,null,null," ",null,null,null,null,null,null,null,null,null,null,null,null,null,null,null,null,null,null," ","C3X502","PREMIER OPTION C FAMILY DEDUCTIBLE","$50/$150","80%","80%","50%","$2,000","N/A","N/A","N/A"]
[null,"Medical 11-Digit Plan Codes",null," ",null,null,null,null,null,null,null,null,null,null,null,null,null,null,null,null,null,null," ","C3X5025","PREMIER OPTION C FAMILY DEDUCTIBLE","$50/$150","80%","80%","50%","$2,500","N/A","N/A","N/A"]
[null,"Coinsurance: D and G",null," ",null,null,null,null,null,null,null,null,null,null,null,null,null,null,null,null,null,null," ","C50","PREMIER OPTION C ","$50","80%","80%","50%","$1,500","N/A","N/A","N/A"]
[null,"Source:","Quotes_51.xls"," ",null,null,null,null,null,null,null,null,null,null,null,null,null,null,null,null,null,null," ","C501","PREMIER OPTION C ","$50","80%","80%","50%","$1,000","N/A","N/A","N/A"]
[null,"Updated:","2/28/2008 TS"," ",null,null,null,null,null,null,null,null,null,null,null,null,null,null,null,null,null,null," ","C502","PREMIER OPTION C ","$50","80%","80%","50%","$2,000","N/A","N/A","N/A"]
[null,"Notes:","Named Range \"PlanID_coinsurance\""," ",null,null,null,null,null,null,null,null,null,null,null,null,null,null,null,null,null,null," ","C5025","PREMIER OPTION C ","$50","80%","80%","50%","$2,500","N/A","N/A","N/A"]
[null,"Code","Description"," ",null,null,null,null,null,null,null,null,null,null,null,null,null,null,null,null,null,null," ","CP25","PPO OPTION C","$25","80%","80%","50%","$1,500","60%","60%","50%"]
[null,"0","0%"," ",null,null,null,null,null,null,null,null,null,null,null,null,null,null,null,null,null,null," ","CP251","PPO OPTION C","$25","80%","80%","50%","$1,000","60%","60%","50%"]
[null,"1","10%"," ",null,null,null,null,null,null,null,null,null,null,null,null,null,null,null,null,null,null," ","CP252","PPO OPTION C","$25","80%","80%","50%","$2,000","60%","60%","50%"]
[null,"2","20%"," ",null,null,null,null,null,null,null,null,null,null,null,null,null,null,null,null,null,null," ","CP2525","PPO OPTION C","$25","80%","80%","50%","$2,500","60%","60%","50%"]
[null,"6","25%"," ",null,null,null,null,null,null,null,null,null,null,null,null,null,null,null,null,null,null," ","CP3X25","PPO OPTION C FAMILY DEDUCTIBLE","$25/$75","80%","80%","50%","$1,500","60%","60%","50%"]
[null,"3","30%"," ",null,null,null,null,null,null,null,null,null,null,null,null,null,null,null,null,null,null," ","CP3X251","PPO OPTION C FAMILY DEDUCTIBLE","$25/$75","80%","80%","50%","$1,000","60%","60%","50%"]
[null,"4","40%"," ",null,null,null,null,null,null,null,null,null,null,null,null,null,null,null,null,null,null," ","CP3X252","PPO OPTION C FAMILY DEDUCTIBLE","$25/$75","80%","80%","50%","$2,000","60%","60%","50%"]
[null,"5","50%"," ",null,null,null,null,null,null,null,null,null,null,null,null,null,null,null,null,null,null," ","CP3X2525","PPO OPTION C FAMILY DEDUCTIBLE","$25/$75","80%","80%","50%","$2,500","60%","60%","50%"]
[null,"7","$100/Day In-Hosp (5), 10% Coins"," ",null,null,null,null,null,null,null,null,null,null,null,null,null,null,null,null,null,null," ","CP3X50","PPO OPTION C FAMILY DEDUCTIBLE","$50/$150","80%","80%","50%","$1,500","60%","60%","50%"]
[null,null,null," ",null,null,null,null,null,null,null,null,null,null,null,null,null,null,null,null,null,null," ","CP3X501","PPO OPTION C FAMILY DEDUCTIBLE","$50/$150","80%","80%","50%","$1,000","60%","60%","50%"]
[null,"Medical 11-Digit Plan Codes",null," ",null,null,null,null,null,null,null,null,null,null,null,null,null,null,null,null,null,null," ","CP3X502","PPO OPTION C FAMILY DEDUCTIBLE","$50/$150","80%","80%","50%","$2,000","60%","60%","50%"]
[null,"OOP Max - EE and  HH",null," ",null,null,null,null,null,null,null,null,null,null,null,null,null,null,null,null,null,null," ","CP3X5025","PPO OPTION C FAMILY DEDUCTIBLE","$50/$150","80%","80%","50%","$2,500","60%","60%","50%"]
[null,"Source:","Quotes_51.xls"," ",null,null,null,null,null,null,null,null,null,null,null,null,null,null,null,null,null,null," ","CP50","PPO OPTION C","$50","80%","80%","50%","$1,500","60%","60%","50%"]
[null,"Updated:","2/28/2008 TS"," ",null,null,null,null,null,null,null,null,null,null,null,null,null,null,null,null,null,null," ","CP501","PPO OPTION C","$50","80%","80%","50%","$1,000","60%","60%","50%"]
[null,"Notes:","Named Range \"PlanID_OOP\""," ",null,null,null,null,null,null,null,null,null,null,null,null,null,null,null,null,null,null," ","CP502","PPO OPTION C","$50","80%","80%","50%","$2,000","60%","60%","50%"]
[null,"Code","Description"," ",null,null,null,null,null,null,null,null,null,null,null,null,null,null,null,null,null,null," ","CP5025","PPO OPTION C","$50","80%","80%","50%","$2,500","60%","60%","50%"]
[null,"00","No OOP Max"," ",null,null,null,null,null,null,null,null,null,null,null,null,null,null,null,null,null,null," ","D25","PREMIER OPTION D","$25","80%(Ded. wavied)","50%","50%","$1,500","N/A","N/A","N/A"]
[null,"01","$1,000"," ",null,null,null,null,null,null,null,null,null,null,null,null,null,null,null,null,null,null," ","D251","PREMIER OPTION D","$25","80%(Ded. wavied)","50%","50%","$1,000","N/A","N/A","N/A"]
[null,"11","$1,500"," ",null,null,null,null,null,null,null,null,null,null,null,null,null,null,null,null,null,null," ","D252","PREMIER OPTION D","$25","80%(Ded. wavied)","50%","50%","$2,000","N/A","N/A","N/A"]
[null,"16","$1,600"," ",null,null,null,null,null,null,null,null,null,null,null,null,null,null,null,null,null,null," ","D2525","PREMIER OPTION D","$25","80%(Ded. wavied)","50%","50%","$2,500","N/A","N/A","N/A"]
[null,"17","$1,750"," ",null,null,null,null,null,null,null,null,null,null,null,null,null,null,null,null,null,null," ","D3X25","PREMIER OPTION D FAMILY DEDUCTIBLE","$25/$75","80%(Ded. wavied)","50%","50%","$1,500","N/A","N/A","N/A"]
[null,"02","$2,000"," ",null,null,null,null,null,null,null,null,null,null,null,null,null,null,null,null,null,null," ","D3X251","PREMIER OPTION D FAMILY DEDUCTIBLE","$25/$75","80%(Ded. wavied)","50%","50%","$1,000","N/A","N/A","N/A"]
[null,"LG","$2,200"," ",null,null,null,null,null,null,null,null,null,null,null,null,null,null,null,null,null,null," ","D3X252","PREMIER OPTION D FAMILY DEDUCTIBLE","$25/$75","80%(Ded. wavied)","50%","50%","$2,000","N/A","N/A","N/A"]
[null,"22","$2,250"," ",null,null,null,null,null,null,null,null,null,null,null,null,null,null,null,null,null,null," ","D3X2525","PREMIER OPTION D FAMILY DEDUCTIBLE","$25/$75","80%(Ded. wavied)","50%","50%","$2,500","N/A","N/A","N/A"]
[null,"25","$2,500"," ",null,null,null,null,null,null,null,null,null,null,null,null,null,null,null,null,null,null," ","D3X50","PREMIER OPTION D FAMILY DEDUCTIBLE","$50/$150","80%(Ded. wavied)","50%","50%","$1,500","N/A","N/A","N/A"]
[null,"28","$2,800"," ",null,null,null,null,null,null,null,null,null,null,null,null,null,null,null,null,null,null," ","D3X501","PREMIER OPTION D FAMILY DEDUCTIBLE","$50/$150","80%(Ded. wavied)","50%","50%","$1,000","N/A","N/A","N/A"]
[null,"03","$3,000"," ",null,null,null,null,null,null,null,null,null,null,null,null,null,null,null,null,null,null," ","D3X502","PREMIER OPTION D FAMILY DEDUCTIBLE","$50/$150","80%(Ded. wavied)","50%","50%","$2,000","N/A","N/A","N/A"]
[null,"32","$3,200"," ",null,null,null,null,null,null,null,null,null,null,null,null,null,null,null,null,null,null," ","D3X5025","PREMIER OPTION D FAMILY DEDUCTIBLE","$50/$150","80%(Ded. wavied)","50%","50%","$2,500","N/A","N/A","N/A"]
[null,"33","$3,250"," ",null,null,null,null,null,null,null,null,null,null,null,null,null,null,null,null,null,null,null,"D50","PREMIER OPTION D ","$50","80%(Ded. wavied)","50%","50%","$1,500","N/A","N/A","N/A"]
[null,"34","$3,275"," ",null,null,null,null,null,null,null,null,null,null,null,null,null,null,null,null,null,null,null,"D501","PREMIER OPTION D ","$50","80%(Ded. wavied)","50%","50%","$1,000","N/A","N/A","N/A"]
[null,"35","$3,500"," ",null,null,null,null,null,null,null,null,null,null,null,null,null,null,null,null,null,null,null,"D502","PREMIER OPTION D ","$50","80%(Ded. wavied)","50%","50%","$2,000","N/A","N/A","N/A"]
[null,"37","$3,750"," ",null,null,null,null,null,null,null,null,null,null,null,null,null,null,null,null,null,null,null,"D5025","PREMIER OPTION D ","$50","80%(Ded. wavied)","50%","50%","$2,500","N/A","N/A","N/A"]
[null,"SM","$3,800"," ",null,null,null,null,null,null,null,null,null,null,null,null,null,null,null,null,null,null,null,"DP25","PPO OPTION D","$25","80%(Ded. wavied)","50%","50%","$1,500","60% Ded. Waived","50%","50%"]
[null,"04","$4,000"," ",null,null,null,null,null,null,null,null,null,null,null,null,null,null,null,null,null,null,null,"DP251","PPO OPTION D","$25","80%(Ded. wavied)","50%","50%","$1,000","60% Ded. Waived","50%","50%"]
[null,"MX","$4,400"," ",null,null,null,null,null,null,null,null,null,null,null,null,null,null,null,null,null,null,null,"DP252","PPO OPTION D","$25","80%(Ded. wavied)","50%","50%","$2,000","60% Ded. Waived","50%","50%"]
[null,"45","$4,500"," ",null,null,null,null,null,null,null,null,null,null,null,null,null,null,null,null,null,null,null,"DP2525","PPO OPTION D","$25","80%(Ded. wavied)","50%","50%","$2,500","60% Ded. Waived","50%","50%"]
[null,"47","$4,750"," ",null,null,null,null,null,null,null,null,null,null,null,null,null,null,null,null,null,null,null,"DP3X25","PPO OPTION D FAMILY DEDUCTIBLE","$25/$75","80%(Ded. wavied)","50%","50%","$1,500","60% Ded. Waived","50%","50%"]
[null,"05","$5,000"," ",null,null,null,null,null,null,null,null,null,null,null,null,null,null,null,null,null,null,null,"DP3X251","PPO OPTION D FAMILY DEDUCTIBLE","$25/$75","80%(Ded. wavied)","50%","50%","$1,000","60% Ded. Waived","50%","50%"]
[null,"52","$5,250"," ",null,null,null,null,null,null,null,null,null,null,null,null,null,null,null,null,null,null,null,"DP3X252","PPO OPTION D FAMILY DEDUCTIBLE","$25/$75","80%(Ded. wavied)","50%","50%","$2,000","60% Ded. Waived","50%","50%"]
[null,"55","$5,500"," ",null,null,null,null,null,null,null,null,null,null,null,null,null,null,null,null,null,null,null,"DP3X2525","PPO OPTION D FAMILY DEDUCTIBLE","$25/$75","80%(Ded. wavied)","50%","50%","$2,500","60% Ded. Waived","50%","50%"]
[null,"57","$5,750"," ",null,null,null,null,null,null,null,null,null,null,null,null,null,null,null,null,null,null,null,"DP3X50","PPO OPTION D FAMILY DEDUCTIBLE","$50/$150","80%(Ded. wavied)","50%","50%","$1,500","60% Ded. Waived","50%","50%"]
[null,"06","$6,000"," ",null,null,null,null,null,null,null,null,null,null,null,null,null,null,null,null,null,null,null,"DP3X501","PPO OPTION D FAMILY DEDUCTIBLE","$50/$150","80%(Ded. wavied)","50%","50%","$1,000","60% Ded. Waived","50%","50%"]
[null,"63","$6,350"," ",null,null,null,null,null,null,null,null,null,null,null,null,null,null,null,null,null,null,null,"DP3X502","PPO OPTION D FAMILY DEDUCTIBLE","$50/$150","80%(Ded. wavied)","50%","50%","$2,000","60% Ded. Waived","50%","50%"]
[null,"64","$6,400"," ",null,null,null,null,null,null,null,null,null,null,null,null,null,null,null,null,null,null,null,"DP3X5025","PPO OPTION D FAMILY DEDUCTIBLE","$50/$150","80%(Ded. wavied)","50%","50%","$2,500","60% Ded. Waived","50%","50%"]
[null,"19","$6,450"," ",null,null,null,null,null,null,null,null,null,null,null,null,null,null,null,null,null,null,null,"DP50","PPO OPTION D","$50","80%(Ded. wavied)","50%","50%","$1,500","60% Ded. Waived","50%","50%"]
[null,"65","$6,500"," ",null,null,null,null,null,null,null,null,null,null,null,null,null,null,null,null,null,null,null,"DP501","PPO OPTION D","$50","80%(Ded. wavied)","50%","50%","$1,000","60% Ded. Waived","50%","50%"]
[null,"67","$6,550"," ",null,null,null,null,null,null,null,null,null,null,null,null,null,null,null,null,null,null,null,"DP502","PPO OPTION D","$50","80%(Ded. wavied)","50%","50%","$2,000","60% Ded. Waived","50%","50%"]
[null,"66","$6,600"," ",null,null,null,null,null,null,null,null,null,null,null,null,null,null,null,null,null,null,null,"DP5025","PPO OPTION D","$50","80%(Ded. wavied)","50%","50%","$2,500","60% Ded. Waived","50%","50%"]
[null,"H6","$6,650"," ",null,null,null,null,null,null,null,null,null,null,null,null,null,null,null,null,null,null,null,"E0","PREMIER OPTION E ","$0","50%","50%","50%","$1,500","N/A","N/A","N/A"]
[null,"H1","$6,850"," ",null,null,null,null,null,null,null,null,null,null,null,null,null,null,null,null,null,null,null,"E01","PREMIER OPTION E ","$0","50%","50%","50%","$1,000","N/A","N/A","N/A"]
[null,"07","$7,000"," ",null,null,null,null,null,null,null,null,null,null,null,null,null,null,null,null,null,null,null,"E02","PREMIER OPTION E ","$0","50%","50%","50%","$2,000","N/A","N/A","N/A"]
[null,"71","$7,150"," ",null,null,null,null,null,null,null,null,null,null,null,null,null,null,null,null,null,null,null,"E025","PREMIER OPTION E ","$0","50%","50%","50%","$2,500","N/A","N/A","N/A"]
[null,"H8","$7,350"," ",null,null,null,null,null,null,null,null,null,null,null,null,null,null,null,null,null,null,null,"L3X50_PF","Dental Plan L, $50/$150 Ded, $1,500 Max, includes Preventive First, Composites and Nitrous Oxide","PREMIER OPTION L FAMILY  DED W/ PREVENTIVE FIRST","$50/$150","100%(Ded. wavied)","80%","50%","$1,500","N/A","N/A"]
[null,"75","$7,500"," ",null,null,null,null,null,null,null,null,null,null,null,null,null,null,null,null,null,null,null,"L3X502_PF","Dental Plan L, $50/$150 Ded, $2,000 Max, includes Preventive First, Composites and Nitrous Oxide","PREMIER OPTION L FAMILY  DED W/ PREVENTIVE FIRST","$50/$150","100%(Ded. wavied)","80%","50%","$2,000","N/A","N/A"]
[null,"MN","$7,600"," ",null,null,null,null,null,null,null,null,null,null,null,null,null,null,null,null,null,null,null,"L3X5025_PF","Dental Plan L, $50/$150 Ded, $2,500 Max, includes Preventive First, Composites and Nitrous Oxide","PREMIER OPTION L FAMILY  DED W/ PREVENTIVE FIRST","$50/$150","100%(Ded. wavied)","80%","50%","$2,500","N/A","N/A"]
[null,"08","$8,000"," ",null,null,null,null,null,null,null,null,null,null,null,null,null,null,null,null,null,null,null,"VB3X50","VOLUNTARY PREMIER OPTION B","$50/$150","100%(Ded. wavied)","80%","50%","$1,500","N/A","N/A","N/A"]
[null,"85","$8,500"," ",null,null,null,null,null,null,null,null,null,null,null,null,null,null,null,null,null,null,null,"VB3X501","VOLUNTARY PREMIER OPTION B","$50/$150","100%(Ded. wavied)","80%","50%","$1,000","N/A","N/A","N/A"]
[null,"09","$9,000"," ",null,null,null,null,null,null,null,null,null,null,null,null,null,null,null,null,null,null,null,"VB3X507","VOLUNTARY PREMIER OPTION B","$50/$150","100%(Ded. wavied)","80%","50%","See Summary","N/A","N/A","N/A"]
[null,"10","$10,000"," ",null,null,null,null,null,null,null,null,null,null,null,null,null,null,null,null,null,null,null,"VBP3X50","VOLUNTARY PPO OPTION B","$50/$150","100%(Ded. wavied)","80%","50%","$1,500","80%","50%","50%"]
[null,"13","$10,500"," ",null,null,null,null,null,null,null,null,null,null,null,null,null,null,null,null,null,null,null,"VBP3X501","VOLUNTARY PPO OPTION B","$50/$150","100%(Ded. wavied)","80%","50%","$1,000","80%","50%","50%"]
[null,"56","$11,000"," ",null,null,null,null,null,null,null,null,null,null,null,null,null,null,null,null,null,null,null,"VBP3X507","VOLUNTARY PPO OPTION B","$50/$150","100%(Ded. wavied)","80%","50%","See Summary","80%","50%","50%"]
[null,"12","$12,000"," ",null,null,null,null,null,null,null,null,null,null,null,null,null,null,null,null,null,null,null,"VBPA3X50","Voluntary Dental Plan B, $50/$150 Ded, $1,500 Max","VOLUNTARY PPO OPTION BPA FAMILY DEDUCTIBLE","$50/$150","100%(Ded. wavied)","90%","50%","$1,500","90%(Ded. wavied)","70%"]
[null,"29","$12,500"," ",null,null,null,null,null,null,null,null,null,null,null,null,null,null,null,null,null,null,null,"VBPA3X501","Voluntary Dental Plan B, $50/$150 Ded, $1,000 Max","VOLUNTARY PPO OPTION BPA FAMILY DEDUCTIBLE","$50/$150","100%(Ded. wavied)","90%","50%","$1,000","90%(Ded. wavied)","70%"]
[null,"27","$12,700"," ",null,null,null,null,null,null,null,null,null,null,null,null,null,null,null,null,null,null,null,"VC3X50","VOLUNTARY PREMIER OPTION C","$50/$150","80%","80%","50%","$1,500","N/A","N/A","N/A"]
[null,"62","$12,900"," ",null,null,null,null,null,null,null,null,null,null,null,null,null,null,null,null,null,null,null,"VC3X501","VOLUNTARY PREMIER OPTION C","$50/$150","80%","80%","50%","$1,000","N/A","N/A","N/A"]
[null,"43","$13,100"," ",null,null,null,null,null,null,null,null,null,null,null,null,null,null,null,null,null,null,null,"VC3X507","VOLUNTARY PREMIER OPTION C","$50/$150","80%","80%","50%","See Summary","N/A","N/A","N/A"]
[null,"86","$13,200"," ",null,null,null,null,null,null,null,null,null,null,null,null,null,null,null,null,null,null,null,"VDPA","OLD VOLUNTARY PLAN A","$50","100%(Ded.waived)","50%","50%","$1,000","N/A","N/A","N/A"]
[null,"H7","$13,300"," ",null,null,null,null,null,null,null,null,null,null,null,null,null,null,null,null,null,null,null,"VDPAO","OLD VOLUNTARY PLAN A  W/ORTHO","$50","100%(Ded.waived)","50%","50%","$1,000","N/A","N/A","N/A"]
[null,"14","$13,500"," ",null,null,null,null,null,null,null,null,null,null,null,null,null,null,null,null,null,null,null,"VDPB","OLD VOLUNTARY PLAN B","$50","80%(Ded. wavied)","50%","50%","$1,000","N/A","N/A","N/A"]
[null,"H2","$13,700"," ",null,null,null,null,null,null,null,null,null,null,null,null,null,null,null,null,null,null,null,"VDPBO","OLD VOLUNTARY PLAN B  W/ORTHO","$50","80%(Ded. wavied)","50%","50%","$1,000","N/A","N/A","N/A"]
[null,"74","$14,300",null,null,null,null,null,null,null,null,null,null,null,null,null,null,null,null,null,null,null,null,"VDPC","OLD VOLUNTARY PLAN C","$50","50%(Ded. wavied)","50%","50%","$1,000","N/A","N/A","N/A"]
[null,"H9","$14,700",null,null,null,null,null,null,null,null,null,null,null,null,null,null,null,null,null,null,null,null,"VDPCO","OLD VOLUNTARY PLAN C  W/ORTHO","$50","50%(Ded. wavied)","50%","50%","$1,000","N/A","N/A","N/A"]
[null,"15","$15,000",null,null,null,null,null,null,null,null,null,null,null,null,null,null,null,null,null,null,null,null,"VW3X50","Voluntary Dental Plan W, $50/$150 Ded, $1,500 Max","VOLUNTARY PREMIER OPTION W FAMILY DEDUCTIBLE","$50/$150","80%(Ded. wavied)","80%","50%","$1,500","N/A","N/A"]
[null,"87","$20,000",null,null,null,null,null,null,null,null,null,null,null,null,null,null,null,null,null,null,null,null,"VW3X501","Voluntary Dental Plan W, $50/$150 Ded, $1,000 Max","VOLUNTARY PREMIER OPTION W FAMILY DEDUCTIBLE","$50/$150","80%(Ded. wavied)","80%","50%","$1,000","N/A","N/A"]
[null,"30","$30,000",null,null,null,null,null,null,null,null,null,null,null,null,null,null,null,null,null,null,null,null,"W3X50","PREMIER OPTION W FAMILY DEDUCTIBLE","$50/$150","80%(Ded. wavied)","80%","50%","$1,500","N/A","N/A","N/A"]
[null,null,null,null,null,null,null,null,null,null,null,null,null,null,null,null,null,null,null,null,null,null,null,"W3X501","PREMIER OPTION W FAMILY DEDUCTIBLE","$50/$150","80%(Ded. wavied)","80%","50%","$1,000","N/A","N/A","N/A"]
[null,null,null,null,null,null,null,null,null,null,null,null,null,null,null,null,null,null,null,null,null,null,null,"W3X502","Dental Plan W, $50/$150 Ded, $2,000 Max","PREMIER OPTION W FAMILY DEDUCTIBLE","$50/$150","80%(Ded. wavied)","80%","50%","$2,000","N/A","N/A"]
[null,null,null,null,null,null,null,null,null,null,null,null,null,null,null,null,null,null,null,null,null,null,null,"W3X5025","Dental Plan W, $50/$150 Ded, $2,500 Max","PREMIER OPTION W FAMILY DEDUCTIBLE","$50/$150","80%(Ded. wavied)","80%","50%","$2,500","N/A","N/A"]
[null,null,null,null,null,null,null,null,null,null,null,null,null,null,null,null,null,null,null,null,null,null,null,"W3X50_PF","Dental Plan W w/ Preventive First, $50/$150 Ded, $1,500 Max","PREMIER OPTION W FAMILY DED W/ PREVENTIVE FIRST","$50/$150","80%(Ded. wavied)","80%","50%","$1,500","N/A","N/A"]
[null,null,null,null,null,null,null,null,null,null,null,null,null,null,null,null,null,null,null,null,null,null,null,"W3X501_PF","Dental Plan W w/ Preventive First, $50/$150 Ded, $1,000 Max","PREMIER OPTION W FAMILY DED W/ PREVENTIVE FIRST","$50/$150","80%(Ded. wavied)","80%","50%","$1,000","N/A","N/A"]
[null,null,null,null,null,null,null,null,null,null,null,null,null,null,null,null,null,null,null,null,null,null,null,"W3X502_PF","Dental Plan W w/ Preventive First, $50/$150 Ded, $2,000 Max","PREMIER OPTION W FAMILY DED W/ PREVENTIVE FIRST","$50/$150","80%(Ded. wavied)","80%","50%","$2,000","N/A","N/A"]
[null,null,null,null,null,null,null,null,null,null,null,null,null,null,null,null,null,null,null,null,null,null,null,"W3X5025_PF","Dental Plan W w/ Preventive First, $50/$150 Ded, $2,500 Max","PREMIER OPTION W FAMILY DED W/ PREVENTIVE FIRST","$50/$150","80%(Ded. wavied)","80%","50%","$2,500","N/A","N/A"]
[null,null,null,null,null,null,null,null,null,null,null,null,null,null,null,null,null,null,null,null,null,null,null,"W50","Dental Plan W, $50 Ded, $1,500 Max","PREMIER OPTION W","$50","80%(Ded. wavied)","80%","50%","$1,500","N/A","N/A"]
[null,null,null,null,null,null,null,null,null,null,null,null,null,null,null,null,null,null,null,null,null,null,null,"W501","Dental Plan W, $50 Ded, $1,000 Max","PREMIER OPTION W","$50","80%(Ded. wavied)","80%","50%","$1,000","N/A","N/A"]
[null,null,null,null,null,null,null,null,null,null,null,null,null,null,null,null,null,null,null,null,null,null,null,"W502","Dental Plan W, $50 Ded, $2,000 Max","PREMIER OPTION W","$50","80%(Ded. wavied)","80%","50%","$2,000","N/A","N/A"]
[null,null,null,null,null,null,null,null,null,null,null,null,null,null,null,null,null,null,null,null,null,null,null,"W5025","Dental Plan W, $50 Ded, $2,500 Max","PREMIER OPTION W","$50","80%(Ded. wavied)","80%","50%","$2,500","N/A","N/A"]

{"sheet":"Account Structure","index":12,"n_rows":81,"n_cols":7,"rows_kept":81,"cut":false,"hidden":false,"merged":[[34,2,34,8],[11,3,11,8],[16,3,16,5],[27,3,27,8],[30,3,30,7],[32,3,32,8],[21,3,21,5],[18,3,18,8],[15,6,15,8],[16,6,16,8],[12,3,12,8],[13,3,13,8],[23,3,23,8],[24,3,24,8],[78,6,78,8],[80,6,80,8],[81,6,81,8],[75,6,75,8],[83,2,83,8],[77,6,77,8],[2,2,2,5],[22,3,22,8],[53,3,53,8],[62,3,62,8],[66,6,66,8],[56,3,56,7],[59,3,59,7],[50,3,50,7],[37,6,37,8],[38,6,38,8],[40,6,40,8],[41,6,41,8],[5,2,5,8],[47,2,47,8],[6,3,6,8],[9,3,9,8],[72,6,72,8],[74,6,74,8],[43,6,43,8],[44,6,44,8],[65,6,65,8],[68,6,68,8],[69,6,69,8],[71,6,71,8]]}
[]
[]
[null,null,"Account Structure\nWorksheet"]
[null,null,"Section 1  >  COBRA"]
[]
[null,null,"Moda Health subsidiary, Benefit Help Solutions (BHS), provides COBRA Administration at no additional cost to Moda Health Medical Groups or Moda Health Medical Groups with Delta Dental of Oregon.  If your group is sized 51-99, BHS Cobra Administration is included in the Moda Health and Delta Dental products only. Fees will apply to groups with 100+ eligible and for groups who choose BHS administration for product lines outside of Moda Health.  If electing to use BHS to administer your COBRA, mark Yes for question 9b."]
[null,null,"1.","Does the group use a TPA for COBRA or Retiree Administration? "]
[]
[]
[null,null,"1a.","If yes, enter TPA name and address                                                                                                                                                                                  "]
[]
[]
[null,null,null,"Address:"]
[]
[]
[null,null,null,"Phone:",null,null,"Contact:"]
[]
[]
[null,null,"1b.","If no, will the group elect COBRA administration through BenefitHelp Solutions (BHS)?                                                                                                                                                                                            "]
[]
[]
[null,null,"1c.","Who will be paying the COBRA premiums?"]
[]
[null,null,null,"If you have COBRA eligble plans outside of Moda, contact BHS for COBRA Administration Fees"]
[null,null,null,"Benefit Help Solutions: BHS-S&Steam@benefithelpsolutions.com"]
[null,null,"Section 2  >  Billing"]
[]
[null,null,"2.","Are billing statements sent to multiple locations? If yes, please list each location and their billing address below."]
[]
[]
[null,null,"3.","Will the group need the members separated on the invoice?"]
[]
[null,null,null,"If yes, please be sure to indicate the subgroup that each member belongs to on their enrollment form.  \nPlease list these subgroups below."]
[]
[null,null,"If you answered yes to any of the above questions, please list each location/subgroup and their billing address:"]
[]
[]
[null,null,null,"Define Subgroup 1:",null,null,"Subgroup Address 1:"]
[]
[]
[null,null,null,"Define Subgroup 2:",null,null,"Subgroup Address 2:"]
[]
[]
[null,null,null,"Define Subgroup 3:",null,null,"Subgroup Address 3:"]
[]
[null,null,"Section 3  >   Class Structure"]
[]
[null,null,"4.   Does the billing statement need to be sorted by classification?"]
[]
[]
[null,null,"4.","Do all employees have the same benefit options?"]
[]
[]
[null,null,"6.","Are there specific reporting requirements for each classification of employee?"]
[]
[]
[null,null,"5.","Is the eligibility waiting period the same for each classification?"]
[]
[]
[null,null,"6.","Does each class use the network listed on Plan Info tab?"]
[]
[]
[null,null,"7.","If you answered no to any of the above, please define the classes and benefits below."]
[]
[]
[null,null,null,"Define Classifications 1:",null,null,"Benefit 1:"]
[]
[]
[null,null,null,"Define Classifications 2:",null,null,"Benefit 2:"]
[]
[]
[null,null,null,"Define Classifications 3:",null,null,"Benefit 3:"]
[]
[]
[null,null,null,"Define Classifications 4:",null,null,"Benefit 4:"]
[]
[]
[null,null,null,"Define Classifications 5:",null,null,"Benefit 5:"]
[]
[]
[null,null,null,"Define Classifications 6:",null,null,"Benefit 6:"]

{"sheet":"Sales Summary (Internal)","index":13,"n_rows":12,"n_cols":4,"rows_kept":12,"cut":false,"hidden":false,"merged":[[7,3,7,5],[8,3,8,5],[9,3,9,5],[11,2,11,5],[2,2,2,5],[3,3,3,5],[4,3,4,5],[5,3,5,5],[6,3,6,5],[10,3,10,5]]}
[false]
[]
[null,null,"Sales Summary \n(Internal Only)"]
[null,null,"Performance Guarantee?"]
[null,null,"Initial Enrollment"]
[null,null,"Group has EAP manually billed by Accounting:"]
[null,null,"Group benefits are based on a Calendar Year, Eligibility Year or Plan Year:","Calendar Year"]
[null,null,"Will group elect Wellness Services?"]
[null,null,"Deliver initial ID Cards to?","Member"]
[null,null,"What month does the group's fiscal year begin? "]
[null,null,{"$f":"IF(OR('Group Application (51+)'!P5 =\"New with Consortium\",'Group Application (51+)'!P5 =\"Renewing with Consortium\"),\"New/Renewing Consortium Group! Send email to michael.nguyen@modahealth.com\",\"\")","v":""},{"$f":"IF($A$1=TRUE,\"Group has packaged product, please contact BHS directly on COBRA Admnistration information at \nBHS-S&Steam@benefithelpsolutions.com\",\"\")","v":""}]
[null,null,"Comments:"]

{"sheet":"Agent Info","index":14,"n_rows":28,"n_cols":6,"rows_kept":28,"cut":false,"hidden":false,"merged":[[12,2,12,6],[15,2,15,6],[17,2,17,6],[2,2,2,4]]}
[]
[]
[null,null,"Agent Information"]
[null,null,"Section 1  >  Agent Information"]
[]
[]
[null,null,"Agent Name:",null,null,"Agency"]
[]
[]
[null,null,"License #:",null,null,"Tax ID# ( For Tax purposes, please indicate if Tax ID or S/S #):"]
[]
[]
[null,null,"I hereby make application to Moda Health/Delta Dental, on behalf of the Group, for the Group Policies indicated in this group application.  I understand that there is no coverage in effect until Moda Health/Delta Dental accepts this Application and premium deposit and establishes an until Moda Health/Delta Dental accepts this Application and premium deposit and establishes an effective date.  If this Application is not accepted, the premium deposit will be refunded.\n\nI hereby certify all eligible employees are enrolling in the selected Group Policies and all enrolling employees meet the eligibility requirements specified above. In addition, I hereby appoint the above agent as our Agent of Record to represent us in matters of group insurance benefits provided by Moda Health/Delta Dental. This appointment is in effect on the same day as this Policy and will remain in force until rescinded in writing."]
[null,null,"Section 2  >  For all medical plans only"]
[]
[null,null,"In addition, I hereby acknowledge responsibility on behalf of the Group to provide the Summary of Benefits & Coverage (SBC), Uniform Glossary, and the Initial Notice of HIPAA Special Enrollment Rights and Exclusion Periods to all employees on or before the date they enroll in the selected Group Policies."]
[]
[null,null,"By signing below, I agree that the signature will be the electronic representation of my signature and initials for all purposes when I (or my agent) uses them on documents, including legally binding contracts."]
[null,null,"X"]
[null,null,"Authorized Signature for GROUP",null,null,"Authorized Signer's Title"]
[]
[null,null,"Authorized Signer's Printed Name",null,null,"Date"]
[null,null,"X"]
[null,null,"Authorized AGENT Signature"]
[]
[null,null,"Authorized Agent's Printed Name",null,null,"Date"]
[null,null,"X"]
[null,null,"Marketing Representative Signature",null,null,"Date"]

{"sheet":"BIU (Internal)","index":15,"n_rows":246,"n_cols":10,"rows_kept":246,"cut":false,"hidden":false,"merged":[[33,6,33,7],[46,6,46,7],[35,6,35,7],[36,6,36,7],[37,6,37,7],[34,6,34,7],[43,6,43,7],[44,6,44,7],[45,6,45,7],[38,6,38,7],[39,6,39,7],[40,6,40,7],[41,6,41,7],[42,6,42,7],[14,2,14,10],[32,2,32,10],[9,7,9,8],[9,9,9,10],[10,7,10,8],[10,9,10,10],[22,6,22,7],[23,6,23,7],[24,6,24,7],[25,6,25,7],[26,6,26,7],[27,6,27,7],[28,6,28,7],[29,6,29,7],[8,7,8,8],[8,9,8,10],[3,2,3,10],[4,3,4,4],[6,7,6,10],[7,7,7,8],[7,9,7,10]]}
[false]
[]
[]
[null,null,"Business Implementation \nUnit (Internal Only)"]
[null,null,"Group Application # :"]
[]
[null,null,"Department","Date IN","Date OUT","Completed by",null,"Sales and Service"]
[null,null,"Sales & Service",null,null,null,null,"Sales Rep",null," "]
[null,null,"BIU",null,null,null,null,"Service Rep",null," "]
[null,null,"Underwriting ",null,null,null,null,"Sales Assistant"]
[null,null,"BIU",null,null,null,null,"NEW grp, date all info recv"]
[null,null,"Pharmacy"]
[null,null,"Benefit Configuration"]
[]
[null,null,"Section 1  >  Account structure"]
[null,null,"Parent Group:"]
[null,null,"Group Number:"]
[null,null,"Subgroup:"]
[null,null,"Subgroup:"]
[null,null,"Class:"]
[null,null,"Class:"]
[null,null,null,"Plan ID","Product ID",null,null,null,{"$f":"IF(G22=\"0081\",\"0001,0008,0010,0011,0012,0013,0014,0026,0030,0031\",\"\")","v":""}]
[null,null,"Medical:",null,null,"PDBL:",null,null,"BC:",{"$f":"IF(G23=\"0081\",\"0001,0008,0010,0011,0012,0013,0014,0026,0030,0031\",\"\")","v":""}]
[null,null,"Medical:",null,null,"PDBL:",null,null,"BC:",{"$f":"IF(G24=\"0081\",\"0001,0008,0010,0011,0012,0013,0014,0026,0030,0031\",\"\")","v":""}]
[null,null,"Pharmacy:",null,null,"PDBL:",null,null,"BC:",{"$f":"IF(G25=\"0021\",\"0004,0008,0013\",IF(G25=\"0045\",\"0004,0008,0013\",\"\"))","v":""}]
[null,null,"Pharmacy:",null,null,"PDBL:",null,null,"BC:",{"$f":"IF(G26=\"0021\",\"0004,0008,0013\",IF(G26=\"0045\",\"0004,0008,0013\",\"\"))","v":""}]
[null,null,"Vision:",null,null,"PDBL:",null,null,"BC:",{"$f":"IF(G27=\"0020\",\"0003,0008,0013\",IF(G27=\"0025\",\"0003,0008,0010,0013\",IF(G27=\"0041\",\"0003,0008,0013\",IF(G27=\"0044\",\"0003,0008,0013\",\"\"))))","v":""}]
[null,null,"Vision:",null,null,"PDBL:",null,null,"BC:",{"$f":"IF(G28=\"0020\",\"0003,0008,0013\",IF(G28=\"0025\",\"0003,0008,0010,0013\",IF(G28=\"0041\",\"0003,0008,0013\",IF(G28=\"0044\",\"0003,0008,0013\",\"\"))))","v":""}]
[null,null,"Dental:",null,null,"PDBL:",null,null,"BC:",{"$f":"IF(G29=\"0080\",\"0002,0008,0013,0030\",IF(G29=\"0088\",\"0002,0008,0013,0027,0030\",\"\"))","v":""}]
[null,null,"Dental:",null,null,"PDBL:",null,null,"BC:",{"$f":"IF(G30=\"0080\",\"0002,0008,0013,0030\",IF(G30=\"0088\",\"0002,0008,0013,0027,0030\",\"\"))","v":""}]
[]
[]
[null,null,"Section 2  >  Pharmacy"]
[null,null,"Group Number:",null,null,null,"Division*",null,"Carrier Code","Benefit Code"]
[null,null,"Subgroup:",null,null,null,null,null,null,{"$f":"IF(ISERROR(INDEX($C$54:$E$125,SMALL(IF(#REF!=$C$54:$C$125,ROW($C$54:$C$125)),ROW(3:3)),4)),\"\",INDEX($C$54:$E$125,SMALL(IF(#REF!=$C$54:$C$125,ROW($C$54:$C$125)),ROW(3:3)),4))","v":""}]
[null,null,"Subgroup:",null,null,null,null,null,null,{"$f":"IF(ISERROR(INDEX($C$54:$E$125,SMALL(IF(#REF!=$C$54:$C$125,ROW($C$54:$C$125)),ROW(#REF!)),4)),\"\",INDEX($C$54:$E$125,SMALL(IF(#REF!=$C$54:$C$125,ROW($C$54:$C$125)),ROW(#REF!)),4))","v":""}]
[null,null,"Class:",null,null,null,null,null,null,{"$f":"IF(ISERROR(INDEX($C$54:$E$125,SMALL(IF(#REF!=$C$54:$C$125,ROW($C$54:$C$125)),ROW(4:4)),4)),\"\",INDEX($C$54:$E$125,SMALL(IF(#REF!=$C$54:$C$125,ROW($C$54:$C$125)),ROW(4:4)),4))","v":""}]
[null,null,"Class:",null,null,null,null,null,null,{"$f":"IF(ISERROR(INDEX($C$54:$E$125,SMALL(IF(#REF!=$C$54:$C$125,ROW($C$54:$C$125)),ROW(#REF!)),4)),\"\",INDEX($C$54:$E$125,SMALL(IF(#REF!=$C$54:$C$125,ROW($C$54:$C$125)),ROW(#REF!)),4))","v":""}]
[null,null,"Pharmacy:",null,null,null,null,null,null,{"$f":"IF(ISERROR(INDEX($C$54:$E$125,SMALL(IF(#REF!=$C$54:$C$125,ROW($C$54:$C$125)),ROW(#REF!)),4)),\"\",INDEX($C$54:$E$125,SMALL(IF(#REF!=$C$54:$C$125,ROW($C$54:$C$125)),ROW(#REF!)),4))","v":""}]
[null,null,"Pharmacy:",null,null,null,null,null,null,{"$f":"IF(ISERROR(INDEX($C$54:$E$125,SMALL(IF(#REF!=$C$54:$C$125,ROW($C$54:$C$125)),ROW(5:5)),4)),\"\",INDEX($C$54:$E$125,SMALL(IF(#REF!=$C$54:$C$125,ROW($C$54:$C$125)),ROW(5:5)),4))","v":""}]
[null,null,"Headquarter Code:",null,null,null,null,null,null,{"$f":"IF(ISERROR(INDEX($C$54:$E$125,SMALL(IF(#REF!=$C$54:$C$125,ROW($C$54:$C$125)),ROW(7:7)),4)),\"\",INDEX($C$54:$E$125,SMALL(IF(#REF!=$C$54:$C$125,ROW($C$54:$C$125)),ROW(7:7)),4))","v":""}]
[null,null,"BIN:",null,null,null,null,null,null,{"$f":"IF(ISERROR(INDEX($C$54:$E$125,SMALL(IF(#REF!=$C$54:$C$125,ROW($C$54:$C$125)),ROW(8:8)),4)),\"\",INDEX($C$54:$E$125,SMALL(IF(#REF!=$C$54:$C$125,ROW($C$54:$C$125)),ROW(8:8)),4))","v":""}]
[null,null,null,null,null,null,null,null,null,{"$f":"IF(ISERROR(INDEX($C$54:$E$125,SMALL(IF(#REF!=$C$54:$C$125,ROW($C$54:$C$125)),ROW(9:9)),4)),\"\",INDEX($C$54:$E$125,SMALL(IF(#REF!=$C$54:$C$125,ROW($C$54:$C$125)),ROW(9:9)),4))","v":""}]
[null,null,null,null,null,null,null,null,null,{"$f":"IF(ISERROR(INDEX($C$54:$E$125,SMALL(IF(#REF!=$C$54:$C$125,ROW($C$54:$C$125)),ROW(12:12)),4)),\"\",INDEX($C$54:$E$125,SMALL(IF(#REF!=$C$54:$C$125,ROW($C$54:$C$125)),ROW(12:12)),4))","v":""}]
[null,null,null,null,null,null,null,null,null,{"$f":"IF(ISERROR(INDEX($C$54:$E$125,SMALL(IF(#REF!=$C$54:$C$125,ROW($C$54:$C$125)),ROW(13:13)),4)),\"\",INDEX($C$54:$E$125,SMALL(IF(#REF!=$C$54:$C$125,ROW($C$54:$C$125)),ROW(13:13)),4))","v":""}]
[null,null,null,null,null,null,null,null,null,{"$f":"IF(ISERROR(INDEX($C$54:$E$125,SMALL(IF(#REF!=$C$54:$C$125,ROW($C$54:$C$125)),ROW(#REF!)),4)),\"\",INDEX($C$54:$E$125,SMALL(IF(#REF!=$C$54:$C$125,ROW($C$54:$C$125)),ROW(#REF!)),4))","v":""}]
[null,null,null,null,null,null,null,null,null,{"$f":"IF(ISERROR(INDEX($C$54:$E$125,SMALL(IF(#REF!=$C$54:$C$125,ROW($C$54:$C$125)),ROW(#REF!)),4)),\"\",INDEX($C$54:$E$125,SMALL(IF(#REF!=$C$54:$C$125,ROW($C$54:$C$125)),ROW(#REF!)),4))","v":""}]
[]
[]
[]
[]
[]
[]
[null,null,"Discount Card","38251","9ODDISC"]
[null,null,"Discount Card","38252","9ODDISC"]
[null,null,"Discount Card","38253","9ODDISC"]
[null,null,"Discount Card","38254","9ODDISC"]
[null,null,"Discount Card","38255","9ODDISC"]
[null,null,"Discount Card","38256","9ODDISC"]
[null,null,"Discount Card","38258","9ODDISCM"]
[null,null,"RX01525502XC90",38600,"ODOPTIOND"]
[null,null,"RX01525502XC90",38601,"ODOPTIONDM"]
[]
[]
[null,null,"RX01525502XC90",38602,"ODOPTIOND"]
[null,null,"RX01525502XC90",38603,"ODOPTIOND"]
[null,null,"RX01525502XC90",38604,"ODOPTIOND"]
[null,null,"RX01525502XC90",38605,"ODOPTIOND"]
[null,null,"RX01525502XC90",38613,"ODOPTIOND"]
[null,null,"RX01525502XC90",38626,"ODOPTIOND"]
[null,null,"RX01525502XC90",38627,"ODOPTIOND"]
[null,null,"RX01525502XC90",38631,"ODOPTIOND"]
[null,null,"RX01525502XC90",38645,"ODOPTIOND"]
[null,null,"RX01535502XC90",38600,"ODOPTIONF"]
[null,null,"RX01535502XC90",38601,"ODOPTIONFM"]
[null,null,"RX01535502XC90",38602,"ODOPTIONF"]
[null,null,"RX01535502XC90",38603,"ODOPTIONF"]
[null,null,"RX01535502XC90",38604,"ODOPTIONF"]
[null,null,"RX01535502XC90",38605,"ODOPTIONF"]
[null,null,"RX01535502XC90",38613,"ODOPTIONF"]
[null,null,"RX01535502XC90",38626,"ODOPTIONF"]
[null,null,"RX01535502XC90",38627,"ODOPTIONF"]
[null,null,"RX01535502XC90",38631,"ODOPTIONF"]
[null,null,"RX01535502XC90",38638,"ODOPTIONFS"]
[null,null,"RX01535502XC90",38645,"ODOPTIONF"]
[]
[]
[]
[null,null,"RX1020%502XC90",38600,"Moda HealthTD2"]
[null,null,"RX1020%502XC90",38601,"Moda HealthTD2M"]
[null,null,"RX1020%502XC90",38602,"Moda HealthTD2"]
[null,null,"RX1020%502XC90",38603,"Moda HealthTD2"]
[null,null,"RX1020%502XC90",38604,"Moda HealthTD2"]
[]
[null,null,"RX1020%502XC90",38605,"Moda HealthTD2"]
[]
[null,null,"RX1020%502XC90",38613,"Moda HealthTD2"]
[null,null,"RX1020%502XC90",38626,"Moda HealthTD2"]
[null,null,"RX1020%502XC90",38627,"Moda HealthTD2"]
[null,null,"RX1020%502XC90",38631,"Moda HealthTD2"]
[null,null,"RX1020%502XC90",38638,"Moda HealthTD2S"]
[null,null,"RX1020%502XC90",38645,"Moda HealthTD2"]
[null,null,"RX1020502XC90",38600,"Moda HealthTD3"]
[null,null,"RX1020502XC90",38601,"Moda HealthTD3M"]
[null,null,"RX1020502XC90",38602,"Moda HealthTD3"]
[null,null,"RX1020502XC90",38603,"Moda HealthTD3"]
[null,null,"RX1020502XC90",38604,"Moda HealthTD3"]
[null,null,"RX1020502XC90",38605,"Moda HealthTD3"]
[null,null,"RX1020502XC90",38613,"Moda HealthTD3"]
[null,null,"RX1020502XC90",38626,"Moda HealthTD3"]
[null,null,"RX1020502XC90",38627,"Moda HealthTD3"]
[null,null,"RX1020502XC90",38631,"Moda HealthTD3"]
[null,null,"RX1020502XC90",38638,"Moda HealthTD3S"]
[null,null,"RX1020502XC90",38645,"Moda HealthTD3"]
[null,null,"RX1025502XC90",38600,"Moda HealthTD4"]
[null,null,"RX1025502XC90",38601,"Moda HealthTD4M"]
[null,null,"RX1025502XC90",38602,"Moda HealthTD4"]
[null,null,"RX1025502XC90",38603,"Moda HealthTD4"]
[null,null,"RX1025502XC90",38604,"Moda HealthTD4"]
[null,null,"RX1025502XC90",38605,"Moda HealthTD4"]
[null,null,"RX1025502XC90",38613,"Moda HealthTD4"]
[null,null,"RX1025502XC90",38626,"Moda HealthTD4"]
[null,null,"RX1025502XC90",38627,"Moda HealthTD4"]
[]
[]
[]
[]
[]
[]
[]
[]
[]
[]
[]
[]
[]
[null,null,"RX1525$502XC90",38638,"Moda HealthTD7S"]
[null,null,"RX1525$502XC90",38645,"Moda HealthTD7"]
[null,null,"RX1525502XC90",38600,"Moda HealthTD6"]
[null,null,"RX1525502XC90",38601,"Moda HealthTD6M"]
[null,null,"RX1525502XC90",38602,"Moda HealthTD6"]
[null,null,"RX1525502XC90",38603,"Moda HealthTD6"]
[null,null,"RX1525502XC90",38604,"Moda HealthTD6"]
[null,null,"RX1525502XC90",38605,"Moda HealthTD6"]
[null,null,"RX1525502XC90",38613,"Moda HealthTD6"]
[null,null,"RX1525502XC90",38626,"Moda HealthTD6"]
[null,null,"RX1525502XC90",38627,"Moda HealthTD6"]
[null,null,"RX1525502XC90",38631,"Moda HealthTD6"]
[null,null,"RX1525502XC90",38638,"Moda HealthTD6S"]
[null,null,"RX1525502XC90",38645,"Moda HealthTD6"]
[null,null,"RX15502XC90",38600,"ODPIONEER"]
[null,null,"RX15502XC90",38601,"ODPIONEERM"]
[null,null,"RX15502XC90",38602,"ODPIONEER"]
[null,null,"RX15502XC90",38603,"ODPIONEER"]
[null,null,"RX15502XC90",38604,"ODPIONEER"]
[null,null,"RX15502XC90",38605,"ODPIONEER"]
[null,null,"RX15502XC90",38613,"ODPIONEER"]
[null,null,"RX15502XC90",38626,"ODPIONEER"]
[null,null,"RX15502XC90",38627,"ODPIONEER"]
[null,null,"RX15502XC90",38631,"ODPIONEER"]
[null,null,"RX15502XC90",38638,"ODPIONEERS"]
[null,null,"RX15502XC90",38645,"ODPIONEER"]
[null,null,"RX250D15DW25502XC90",38600,"ODOPTDED"]
[null,null,"RX250D15DW25502XC90",38601,"ODOPTDEDM"]
[null,null,"RX250D15DW25502XC90",38602,"ODOPTDED"]
[null,null,"RX250D15DW25502XC90",38603,"ODOPTDED"]
[null,null,"RX250D15DW25502XC90",38604,"ODOPTDED"]
[null,null,"RX250D15DW25502XC90",38605,"ODOPTDED"]
[null,null,"RX250D15DW25502XC90",38613,"ODOPTDED"]
[null,null,"RX250D15DW25502XC90",38626,"ODOPTDED"]
[null,null,"RX250D15DW25502XC90",38627,"ODOPTDED"]
[null,null,"RX250D15DW25502XC90",38631,"ODOPTDED"]
[null,null,"RX250D15DW25502XC90",38638,"ODOPTDEDS"]
[null,null,"RX250D15DW25502XC90",38645,"ODOPTDED"]
[null,null,"RX25CA90",38600,"OD5/20%"]
[null,null,"RX25CA90",38601,"OD5/20%M"]
[null,null,"RX25CA90",38602,"OD5/20%"]
[null,null,"RX25CA90",38603,"OD5/20%"]
[null,null,"RX25CA90",38604,"OD5/20%"]
[null,null,"RX25CA90",38605,"OD5/20%"]
[null,null,"RX25CA90",38613,"OD5/20%"]
[null,null,"RX25CA90",38626,"OD5/20%"]
[null,null,"RX25CA90",38627,"OD5/20%"]
[null,null,"RX25CA90",38631,"OD5/20%"]
[null,null,"RX25CA90",38638,"OD5/20%S"]
[null,null,"RX25CA90",38645,"OD5/20%"]
[null,null,"RX30CA90",38600,"OD10/20%"]
[null,null,"RX30CA90",38601,"OD10/20%M"]
[null,null,"RX30CA90",38602,"OD10/20%"]
[null,null,"RX30CA90",38603,"OD10/20%"]
[null,null,"RX30CA90",38604,"OD10/20%"]
[null,null,"RX30CA90",38605,"OD10/20%"]
[null,null,"RX30CA90",38613,"OD10/20%"]
[null,null,"RX30CA90",38626,"OD10/20%"]
[null,null,"RX30CA90",38627,"OD10/20%"]
[null,null,"RX30CA90",38631,"OD10/20%"]
[null,null,"RX30CA90",38638,"OD10/20%S"]
[null,null,"RX30CA90",38645,"OD10/20%"]
[null,null,"RX35CA90",38600,"OD152015"]
[null,null,"RX35CA90",38601,"OD152015M"]
[null,null,"RX35CA90",38602,"OD152015"]
[null,null,"RX35CA90",38603,"OD152015"]
[null,null,"RX35CA90",38604,"OD152015"]
[null,null,"RX35CA90",38605,"OD152015"]
[null,null,"RX35CA90",38613,"OD152015"]
[null,null,"RX35CA90",38626,"OD152015"]
[null,null,"RX35CA90",38627,"OD152015"]
[null,null,"RX35CA90",38631,"OD152015"]
[null,null,"RX35CA90",38638,"OD152015S"]
[null,null,"RX35CA90",38645,"OD152015"]
[null,null,"RX515502XC90",38600,"Moda HealthTD1"]
[null,null,"RX515502XC90",38601,"Moda HealthTD1M"]
[null,null,"RX515502XC90",38602,"Moda HealthTD1"]
[null,null,"RX515502XC90",38603,"Moda HealthTD1"]
[null,null,"RX515502XC90",38604,"Moda HealthTD1"]
[null,null,"RX515502XC90",38605,"Moda HealthTD1"]
[null,null,"RX515502XC90",38613,"Moda HealthTD1"]
[null,null,"RX515502XC90",38626,"Moda HealthTD1"]
[null,null,"RX515502XC90",38627,"Moda HealthTD1"]
[null,null,"RX515502XC90",38631,"Moda HealthTD1"]
[null,null,"RX515502XC90",38638,"Moda HealthTD1S"]
[null,null,"RX515502XC90",38645,"Moda HealthTD1"]
[null,null,"RX60C90",38600,"OD40%"]
[null,null,"RX60C90",38601,"OD40%M"]
[null,null,"RX60C90",38602,"OD40%"]
[null,null,"RX60C90",38603,"OD40%"]
[null,null,"RX60C90",38604,"OD40%"]
[null,null,"RX60C90",38605,"OD40%"]
[null,null,"RX60C90",38613,"OD40%"]
[null,null,"RX60C90",38626,"OD40%"]
[null,null,"RX60C90",38627,"OD40%"]
[null,null,"RX60C90",38631,"OD40%"]
[null,null,"RX60C90",38638,"OD40%S"]
[null,null,"RX60C90",38645,"OD40%"]
[null,null,"RX70C90",38600,"OD30S"]
[null,null,"RX70C90",38601,"OD30SM"]
[null,null,"RX70C90",38602,"OD30S"]
[null,null,"RX70C90",38603,"OD30S"]
[null,null,"RX70C90",38604,"OD30S"]
[null,null,"RX70C90",38605,"OD30S"]
[null,null,"RX70C90",38613,"OD30S"]
[null,null,"RX70C90",38626,"OD30S"]
[null,null,"RX70C90",38627,"OD30S"]
[null,null,"RX70C90",38631,"OD30S"]
[null,null,"RX70C90",38638,"OD30SS"]
[null,null,"RX70C90",38645,"OD30S"]

{"sheet":"COBRA Packaged Product","index":16,"n_rows":80,"n_cols":10,"rows_kept":80,"cut":false,"hidden":false,"merged":[[5,3,5,4],[5,5,5,6],[5,7,5,8],[6,3,6,4],[6,5,6,6],[6,7,6,8],[0,0,0,9],[3,2,3,6],[3,7,3,8],[4,3,4,4],[4,5,4,6],[4,7,4,8],[11,3,11,4],[11,5,11,6],[11,7,11,8],[12,3,12,4],[12,5,12,6],[12,7,12,8],[7,3,7,4],[7,6,7,8],[9,2,9,6],[9,7,9,8],[10,3,10,4],[10,5,10,6],[10,7,10,8],[17,3,17,4],[17,5,17,6],[17,7,17,8],[18,3,18,4],[18,5,18,6],[18,7,18,8],[13,3,13,4],[13,6,13,8],[15,2,15,6],[15,7,15,8],[16,3,16,4],[16,5,16,6],[16,7,16,8],[23,3,23,4],[23,5,23,6],[23,7,23,8],[24,3,24,4],[24,5,24,6],[24,7,24,8],[19,3,19,4],[19,6,19,8],[21,2,21,6],[21,7,21,8],[22,3,22,4],[22,5,22,6],[22,7,22,8],[29,3,29,4],[29,5,29,6],[29,7,29,8],[30,3,30,4],[30,5,30,6],[30,7,30,8],[25,3,25,4],[25,6,25,8],[27,2,27,6],[27,7,27,8],[28,3,28,4],[28,5,28,6],[28,7,28,8],[43,11,43,12],[36,3,36,4],[36,11,36,12],[37,3,37,4],[37,5,37,6],[38,2,38,3],[38,4,38,5],[38,6,38,7],[31,3,31,4],[31,6,31,8],[33,1,33,8],[34,3,34,4],[34,5,34,6],[35,3,35,4],[43,3,43,4],[42,3,42,4],[49,1,49,9],[40,1,40,9],[41,3,41,4],[75,2,75,3],[75,4,75,9],[44,3,44,4],[54,9,56,9],[57,2,57,3],[57,4,57,9],[63,2,63,3],[63,4,63,9],[69,2,69,3],[69,4,69,9],[50,1,50,9],[52,1,52,8],[53,1,53,8],[54,2,56,2],[54,3,56,3],[54,4,56,4],[54,5,56,5],[54,6,56,6],[54,7,55,7],[54,8,55,8]]}
[{"$f":"CONCATENATE(\"COBRA and Premium Administration for \",'Group Application (51+)'!C11)","v":"COBRA and Premium Administration for "}]
[]
[]
[null,"Coverage Type","[Enter Plan Name]",null,null,null,null,"[Carrier Group Number]"]
[null,"[Enter Carrier]","Rate load:","[ ]",null,"Dependent status:",null,{"$f":"#REF!","v":{"$error":"#REF!"}}]
[null,{"$f":"#REF!","v":{"$error":"#REF!"}},"Premiums:","[ ]",null,"Dependent disability status:",null,{"$f":"#REF!","v":{"$error":"#REF!"}}]
[null,"Insurance Type","Remittance:","[ ]",null,"Domestic partners:",null,{"$f":"#REF!","v":{"$error":"#REF!"}}]
[null,"Plan Bundles","Term Type:",{"$f":"#REF!","v":{"$error":"#REF!"}},null,"Newborn:",{"$f":"#REF!","v":{"$error":"#REF!"}}]
[]
[null,"Coverage Type","[Enter Plan Name]",null,null,null,null,"[Carrier Group Number]"]
[null,"[Enter Carrier]","Rate load:","[ ]",null,"Dependent status:",null,{"$f":"#REF!","v":{"$error":"#REF!"}}]
[null,{"$f":"#REF!","v":{"$error":"#REF!"}},"Premiums:","[ ]",null,"Dependent disability status:",null,{"$f":"#REF!","v":{"$error":"#REF!"}}]
[null,"Insurance Type","Remittance:","[ ]",null,"Domestic partners:",null,{"$f":"#REF!","v":{"$error":"#REF!"}}]
[null,"Plan Bundles","Term Type:",{"$f":"#REF!","v":{"$error":"#REF!"}},null,"Newborn:",{"$f":"#REF!","v":{"$error":"#REF!"}}]
[]
[null,"Coverage Type","[Enter Plan Name]",null,null,null,null,"[Carrier Group Number]"]
[null,"[Enter Carrier]","Rate load:","[ ]",null,"Dependent status:",null,{"$f":"#REF!","v":{"$error":"#REF!"}}]
[null,{"$f":"#REF!","v":{"$error":"#REF!"}},"Premiums:","[ ]",null,"Dependent disability status:",null,{"$f":"#REF!","v":{"$error":"#REF!"}}]
[null,"Insurance Type","Remittance:","[ ]",null,"Domestic partners:",null,{"$f":"#REF!","v":{"$error":"#REF!"}}]
[null,"Plan Bundles","Term Type:",{"$f":"#REF!","v":{"$error":"#REF!"}},null,"Newborn:",{"$f":"#REF!","v":{"$error":"#REF!"}}]
[]
[null,"Coverage Type","[Enter Plan Name]",null,null,null,null,"[Carrier Group Number]"]
[null,"[Enter Carrier]","Rate load:","[ ]",null,"Dependent status:",null,{"$f":"#REF!","v":{"$error":"#REF!"}}]
[null,{"$f":"#REF!","v":{"$error":"#REF!"}},"Premiums:","[ ]",null,"Dependent disability status:",null,{"$f":"#REF!","v":{"$error":"#REF!"}}]
[null,"Insurance Type","Remittance:","[ ]",null,"Domestic partners:",null,{"$f":"#REF!","v":{"$error":"#REF!"}}]
[null,"Plan Bundles","Term Type:",{"$f":"#REF!","v":{"$error":"#REF!"}},null,"Newborn:",{"$f":"#REF!","v":{"$error":"#REF!"}}]
[]
[null,"Coverage Type","[Enter Plan Name]",null,null,null,null,"[Carrier Group Number]"]
[null,"[Enter Carrier]","Rate load:","[ ]",null,"Dependent status:",null,{"$f":"#REF!","v":{"$error":"#REF!"}}]
[null,{"$f":"#REF!","v":{"$error":"#REF!"}},"Premiums:","[ ]",null,"Dependent disability status:",null,{"$f":"#REF!","v":{"$error":"#REF!"}}]
[null,"Insurance Type","Remittance:","[ ]",null,"Domestic partners:",null,{"$f":"#REF!","v":{"$error":"#REF!"}}]
[null,"Plan Bundles","Term Type:",{"$f":"#REF!","v":{"$error":"#REF!"}},null,"Newborn:",{"$f":"#REF!","v":{"$error":"#REF!"}}]
[]
[null,"Administration"]
[null,"BHS COBRA Notices:"," [ ]","Terminating dependents:",null," [ ]",null,"File group:"," [ ]"]
[null,"QE Notification:"," [ ]"," Group notification:",null," [ ]",null,"Member letters:"," [ ]"]
[null,"Number of current continuants:"," [ ]","48% disability load collected:",null,"Yes"]
[null,"Open Enrollment:"," [ ]","Open Enrollment dates:",null," [ ]",null,"Sent by:"," [ ]"]
[null,"Open Enrollment mandatory:"," [ ]",null,"Plan change at Open Enrollment:",null," [ ]"]
[]
[null,"Package Product Administration"]
[null,"BHS COBRA Notices:","QE Notice","48% disability load collected:",null,null,"Are plans Self-Funded or Fully Insured:","Fully Insured"]
[null,"Initial QE Notification:","Spreadsheet","Open Enrollment dates:",null,null,"Remittance:","To Carrier"]
[null,"Number of current continuants:",1,"Plan Change at Open Enrollment:",null,"Members must follow subscribers.","Newborns:","Begin date of birth"]
[null,"Rate Load:",0.02,"Open Enrollment Packets:",null,"Packets (don't bill)","Terming Dependents:","At anytime"]
[null,"Open Enrollment Mandatory:","No",null,null,null,"Initial Notice Fee",5,"Sent by:","BHS"]
[]
[null,null,null,null,null,null,null,"Census Check:"," [ ]"]
[]
[null,"COBRA Tab Comments"]
[]
[]
[null,"Outstanding Items"]
[]
[null,null,"TIER","Coverage Premium",{"$f":"CONCATENATE(\"Amount to \",'[11]Page 1 '!D8)","v":"Amount to "},"Amount to     Carrier","COBRA 2% Admin Load\nto BHS","COBRA  + Premium","Disability Surcharge","COBRA + Disability Premium"]
[]
[null,null,null,null,null,null,null,0.02,0.48]
[null,{"$f":"+IF('Plan Info 1'!$C$8 <> \"\",\"Medical 1\",\"\")","v":""}]
[null,{"$f":"+IF(B58<> \"\",\"Moda Health\",\"\")","v":""},"QB Only",{"$f":"+'Rates Insured 1'!$F$20","v":0},0,{"$f":"IFERROR(D59-E59,0)","v":0},{"$f":"H59-D59","v":0},{"$f":"IFERROR(ROUND((1+H$57)*E59,2)+ROUND((1+H$57)*F59,2),IF(H$57=\"Included\",IFERROR(E59+F59,0),0))","v":0},0,{"$f":"IF(I59=0, 0, IFERROR(H59+I59,0))","v":0}]
[null,{"$f":"IF(B58<>\"\",CONCATENATE(TEXT('Rates Insured 1'!$C$11,\"mm/dd/yyyy\"), \" - \",TEXT('Rates Insured 1'!$G$6,\"mm/dd/yyyy\")),\"\")","v":""},"QB + Spouse",{"$f":"+'Rates Insured 1'!$G$20","v":0},0,{"$f":"IFERROR(D60-E60,0)","v":0},{"$f":"H60-D60","v":0},0,0,{"$f":"IF(I60=0, 0, IFERROR(H60+I60,0))","v":0}]
[null,null,"Family",{"$f":"+'Rates Insured 1'!$H$20","v":0},0,{"$f":"IFERROR(D61-E61,0)","v":0},{"$f":"H61-D61","v":0},0,0,{"$f":"IF(I61=0, 0, IFERROR(H61+I61,0))","v":0}]
[null,null,"QB + Children",{"$f":"+'Rates Insured 1'!$I$20","v":0},0,{"$f":"IFERROR(D62-E62,0)","v":0},{"$f":"H62-D62","v":0},0,0,{"$f":"IF(I62=0, 0, IFERROR(H62+I62,0))","v":0}]
[]
[null,{"$f":"+IF('Plan Info 2'!$C$8 <> \"\",\"Medical 2\",\"\")","v":""}]
[null,{"$f":"+IF(B64<> \"\",\"Moda Health\",\"\")","v":""},"QB Only",{"$f":"+'Rates Insured 2'!$F$20","v":0},0,{"$f":"IFERROR(D65-E65,0)","v":0},{"$f":"H65-D65","v":0},{"$f":"IFERROR(ROUND((1+H$57)*E65,2)+ROUND((1+H$57)*F65,2),IF(H$57=\"Included\",IFERROR(E65+F65,0),0))","v":0},0,{"$f":"IF(I65=0, 0, IFERROR(H65+I65,0))","v":0}]
[null,{"$f":"IF(B64<>\"\",CONCATENATE(TEXT('Rates Insured 2'!$C$11,\"mm/dd/yyyy\"), \" - \",TEXT('Rates Insured 2'!$G$11,\"mm/dd/yyyy\")),\"\")","v":""},"QB + Spouse",{"$f":"+'Rates Insured 2'!$G$20","v":0},0,{"$f":"IFERROR(D66-E66,0)","v":0},{"$f":"H66-D66","v":0},0,0,{"$f":"IF(I66=0, 0, IFERROR(H66+I66,0))","v":0}]
[null,null,"Family",{"$f":"+'Rates Insured 2'!$H$20","v":0},0,{"$f":"IFERROR(D67-E67,0)","v":0},{"$f":"H67-D67","v":0},0,0,{"$f":"IF(I67=0, 0, IFERROR(H67+I67,0))","v":0}]
[null,null,"QB + Children",{"$f":"+'Rates Insured 2'!$I$20","v":0},0,{"$f":"IFERROR(D68-E68,0)","v":0},{"$f":"H68-D68","v":0},0,0,{"$f":"IF(I68=0, 0, IFERROR(H68+I68,0))","v":0}]
[]
[null,{"$f":"+IF('Plan Info 3'!$C$8 <> \"\",\"Medical 3\",\"\")","v":""}]
[null,{"$f":"+IF(B70<> \"\",\"Moda Health\",\"\")","v":""},"QB Only",{"$f":"+'Rates Insured 3'!$F$20","v":0},0,{"$f":"IFERROR(D71-E71,0)","v":0},{"$f":"H71-D71","v":0},{"$f":"IFERROR(ROUND((1+H$57)*E71,2)+ROUND((1+H$57)*F71,2),IF(H$57=\"Included\",IFERROR(E71+F71,0),0))","v":0},0,{"$f":"IF(I71=0, 0, IFERROR(H71+I71,0))","v":0}]
[null,{"$f":"IF(B70<>\"\",CONCATENATE(TEXT('Rates Insured 3'!$C$11,\"mm/dd/yyyy\"), \" - \",TEXT('Rates Insured 3'!$G$11,\"mm/dd/yyyy\")),\"\")","v":""},"QB + Spouse",{"$f":"+'Rates Insured 3'!$G$20","v":0},0,{"$f":"IFERROR(D72-E72,0)","v":0},{"$f":"H72-D72","v":0},0,0,{"$f":"IF(I72=0, 0, IFERROR(H72+I72,0))","v":0}]
[null,null,"Family",{"$f":"+'Rates Insured 3'!$H$20","v":0},0,{"$f":"IFERROR(D73-E73,0)","v":0},{"$f":"H73-D73","v":0},0,0,{"$f":"IF(I73=0, 0, IFERROR(H73+I73,0))","v":0}]
[null,null,"QB + Children",{"$f":"+'Rates Insured 3'!$I$20","v":0},0,{"$f":"IFERROR(D74-E74,0)","v":0},{"$f":"H74-D74","v":0},0,0,{"$f":"IF(I74=0, 0, IFERROR(H74+I74,0))","v":0}]
[]
[null,{"$f":"+IF('Plan Info 1'!$C$30 <> \"\",\"Dental 1\",\"\")","v":""}]
[null,{"$f":"+IF(B76<> \"\",\"Delta Dental\",\"\")","v":""},"QB Only",{"$f":"+'Rates Insured 3'!$D$19","v":0},0,{"$f":"IFERROR(D77-E77,0)","v":0},{"$f":"H77-D77","v":0},{"$f":"IFERROR(ROUND((1+H$57)*E77,2)+ROUND((1+H$57)*F77,2),IF(H$57=\"Included\",IFERROR(E77+F77,0),0))","v":0},0,{"$f":"IF(I77=0, 0, IFERROR(H77+I77,0))","v":0}]
[null,{"$f":"IF(B76<>\"\",CONCATENATE(TEXT('Rates Insured 1'!$C$11,\"mm/dd/yyyy\"), \" - \",TEXT('Rates Insured 1'!$G$6,\"mm/dd/yyyy\")),\"\")","v":""},"QB + Spouse",{"$f":"+'Rates Insured 3'!$E$19","v":0},0,{"$f":"IFERROR(D78-E78,0)","v":0},{"$f":"H78-D78","v":0},0,0,{"$f":"IF(I78=0, 0, IFERROR(H78+I78,0))","v":0}]
[null,null,"Family",{"$f":"+'Rates Insured 3'!$F$19","v":0},0,{"$f":"IFERROR(D79-E79,0)","v":0},{"$f":"H79-D79","v":0},0,0,{"$f":"IF(I79=0, 0, IFERROR(H79+I79,0))","v":0}]
[null,null,"QB + Children",{"$f":"+'Rates Insured 3'!$G$19","v":0},0,{"$f":"IFERROR(D80-E80,0)","v":0},{"$f":"H80-D80","v":0},0,0,{"$f":"IF(I80=0, 0, IFERROR(H80+I80,0))","v":0}]

{"sheet":"BHS COBRA Flyer","index":17,"n_rows":4,"n_cols":3,"rows_kept":4,"cut":false,"hidden":false,"merged":[[3,2,5,2]]}
[]
[]
[]
[null,null,"BHS COBRA \nFlyer"]

{"sheet":"ESA - FI","index":18,"n_rows":3,"n_cols":3,"rows_kept":3,"cut":false,"hidden":false,"merged":[[2,2,4,6]]}
[]
[]
[null,null,"Electronic Services \nAgreement"]

{"sheet":"ESA - ASO","index":19,"n_rows":4,"n_cols":3,"rows_kept":4,"cut":false,"hidden":false,"merged":[[3,2,5,2]]}
[]
[]
[]
[null,null,"Electronic Services \nAgreement"]

{"sheet":"Reports (Internal)","index":20,"n_rows":38,"n_cols":9,"rows_kept":38,"cut":false,"hidden":true,"merged":[[2,2,2,8],[31,4,31,8],[35,4,35,5],[37,2,37,8],[38,2,38,8]]}
[]
[]
[null,null,"Reports"]
[null,null,"Medical","51-100","100-300","300-999","1000+","To \n(Group/\nAgent)","CC \n(Group/\nAgent)"]
[null,null,"Activity","N/A","M","M","M"]
[null,null,"Large Claims","N/A","M","M","M"]
[null,null,"Case Management","N/A","M","M","M"]
[null,null,"Income-Cost Experience","N/A","N/A","Annual\n(Refunding)","Annual\n(Refunding)"]
[null,null,"Lag Report (see below)","N/A","N/A","M (ASO)","M (ASO)"]
[null,null,"Schedule A, form 5500 (fully-insured groups)","N/A","A","A","A"]
[null,null,"CM2 ","N/A","M","M","M"]
[null,null,"Actuarial Cost and Utilization Analysis","N/A","N/A","A","A"]
[]
[null,null,"Pharmacy","51-100","100-300","300-999","1000+","To \nGroup","To \nAgent"]
[null,null,"RX Report","N/A","Q","Q","Q"]
[]
[null,null,"Dental","51-100","100-300","300-999","1000+","To \nGroup","To \nAgent"]
[null,null,"Activity","N/A","M","M","M"]
[null,null,"Income-Cost Experience","N/A","N/A","Annual\n(Refunding)","Annual\n(Refunding)"]
[null,null,"Lag Report (see below)","N/A","N/A","M (ASO)","M (ASO)"]
[null,null,"Schedule A, form 5500 (fully-insured groups)","N/A","A","A","A"]
[null,null,"Standard Online Reporting Packages:"]
[null,null,"Medical Monthly Reports",null,"Dental Monthly Reports"]
[null,null,"Activity Report",null,"Activity Report"]
[null,null,"Distribution of Charges",null,"Distribution of Charges"]
[null,null,"Distribution of Paid",null,"Distribution of Paid"]
[null,null,"Large Claims Report",null,"Savings Report"]
[null,null,"Savings Report",null,"Tiered Enrollment Report"]
[null,null,"Tiered Enrollment Report"]
[]
[null,null,"Report Distribution:"]
[null,null,"Group Contact Name"]
[null,null,"Agent Contact Name"]
[]
[null,null,"Online Reporting:"]
[null,null,"Will group access online reporting:"]
[null,null,"If yes, complete and attach Electronic Service Agreement."]
[null,null,"Comments:"]

{"sheet":"Nondiscrimination_Taglines","index":21,"n_rows":0,"n_cols":0,"rows_kept":0,"cut":false,"hidden":false,"merged":[]}

{"sheet":"Drop Down Options","index":22,"n_rows":246,"n_cols":6,"rows_kept":246,"cut":false,"hidden":true,"merged":[]}
["GENERAL","ALL TABS","COBRA, Retiree, Rates, Carriers","HRA","FSA","Transit"]
["Group App Type","Contract","Coverage Type","Eligible expenses","Eligible Expenses","Rollover"]
["Renewal","Standard","Medical","All 213(d) expenses","All 213(d) expenses","Yes"]
["Revised Renewal","Custom","Medical 2","Medical Deductible expenses only","Dental, vision and preventative care","Yes, up to [Max]"]
["Carrier Renewal","Public Entity","Medical 3","Rx Deductible expenses only","Dental and vision expenses","No"]
["Change","issued by Employer Group","Dental","Dental Deductible expenses only","Dental expenses"]
["New","Auto-Adjudication","Dental 2","Vision Deductible expenses only","Vision expenses","Rollover applied"]
["Term","N/A","Dental 3","Medical, Rx, Dental and Vision Deductible expenses only","Expenses associated with the GHP","After the plan's run-out period"]
["Business Entity","Invoice Type","Vision","Medical Coinsurance expenses only","Deductible only expenses","At the beginning of the new plan year"]
["C-Corp","PEPM:","Vision 2","Rx Coinsurance expenses only","[Enter Text]","[Enter Text]"]
["S-Corp","PEPM/PO:","Pharmacy","Dental Coinsurance expenses only"]
["Partnership","PO:","Pharmacy 2","Vision Coinsurance expenses only","Runout Period","Rollover w/out new election"]
["Sole Proprietor","PSPM:","EAP","Medical, Rx, Dental and Vision Coinsurance expenses only","90 days","Yes"]
["Church (ERISA Exempt)","PPPM:","FSA","Medical GHP expenses only","[Enter Text]","No"]
["Church (Subject to ERISA)","PCPM:","HRA","Rx GHP expenses only"]
["Government (ERISA Exempt)","PRPM:","Other","Dental GHP expenses only","Heroes","Benefits card"]
["Public (Subject to ERISA)",null,null,"Vision GHP expenses only","Yes","Mandatory"]
["Not for Profit",null,null,"Medical, Rx, Dental and Vision GHP expenses only","No","Optional"]
["Contact Type",null,"Carrier Report","Alternative care expenses only",null,"Not offered"]
["Group Administrator:",null,"Paper","Standalone Dental expenses funding only","Carryover"]
["Accounting:",null,"Electronic","Standalone Vision expenses funding only","Yes effective [MMM, DD YYYY]","Period of coverage"]
["Accounts Payable:",null,"[Enter Text]","[Enter first option], Premium Reimbursement","No","Month"]
["Accounting Contact:",null,null,"[Enter Text]",null,"Year"]
["Administrative Contact:",null,"Open Enrollment",null,"Grace Period","[Enter Text]"]
["Benefits Manager:",null,"Packets (bill)","Benefits card","75 days, congruent to runout"]
["CEO:",null,"Packets (don't bill)","Mandatory","75 days, prior to runout","Runout after period of coverage"]
["CFO:",null,"Labels (don't bill)","Mandatory if autopay not picked","XX days, congruent to runout","180 days"]
["COO:",null,null,"Optional","XX days, prior to runout","90 days"]
["CPO:",null,"Remittance","Not offered","None","[Enter Text]"]
["Comptroller:",null,"Send to carrier"]
["Controller:",null,"Send to employer group","Funding schedule","Autopay","Runout after plan year"]
["Director of HR:",null,"Send to [Enter Text]","Annually, effective [1st of Plan Year]","Yes - auto-enroll","180 days"]
["Director of Personnel:",null,"Combination (see comments)","Quarterly, effective [Enter Date]","Yes - optional","90 days"]
["Executive Contact:",null,null,"Monthly, effective [Enter Date]","auto-enroll if benefits card not picked","[Enter Text]"]
["HR Generalist:",null,"New Born","[Enter Text]","No"]
["HR Manager:",null,"Begin date of birth",null,null,"Term date"]
["HR / Benefits Contact:",null,"15/16 rule","Reimbursement period","Benefits card","End of month after termination"]
["Invoice Contact:",null,"Begin first of the month following DOB","Date of inception","Mandatory","Date of termination"]
["Other Contact:",null,null,"Plan year","Mandatory if autopay not picked"]
["Personnel Manager:",null,"Insured","[Enter Text]","Optional","Term runout"]
["Reports Contact:",null,"Fully insured",null,"Not offered","180-days after term date"]
["Third Party Contact:",null,"Self insured","Autopay",null,"90-days after term date"]
["Vice President:",null,null,"Yes - auto-enroll","Benefit summaries","XX-days after term date"]
["Vice President of HR:",null,"Admin Fee","Yes - optional","Received MM/DD/YY"]
["Send Plan Documents",null,"2% to BHS","Mandatory if benefits card not picked","No","Contributions term"]
["Agent first",null,"2% to employer group","No",null,"Date of term"]
["Group first",null,"2% to [Enter Text]",null,"Spend down","EOM"]
["Agent and group",null,"2% not collected","Runout Period","Yes, through the end of the plan year"]
["Third Party Administrator",null,"XX% to BHS","90 days","Yes, XX-days after term date","Autorenew plan "]
["Future",null,"XX% to employer group","none","No","Yes"]
["Previous",null,"XX% to [Enter Text]","[Enter Text]",null,"No"]
[null,null,"$XX to BHS",null,"Catch up contributions"]
["TPA Reports",null,"$XX to employer group","Rollover","Yes","Initital enrollment"]
["No reports",null,"$XX to [Enter Text]","Yes, no maximum","No","Paper"]
["BHS will receive reports on [MM/DD/YY]",null,"Rate load not collected","Yes, up to [MAX]",null,"Electronic"]
["BHS will provide reports on [MM/DD/YY]",null,null,"No","New hire contribution","Census"]
[null,null,"Bundled","[Enter text]","Full"]
["Performance Guarentee",null,"Standalone",null,"Prorated","Ongoing eligibility"]
["Yes",null,"Bundled with Medical","Deductible",null,"Paper"]
["No",null,"Bundled with Vision","Calendar","HSA benefits card","Electronic"]
["[ ]",null,"Bundled with HRA","Plan year, [MMM-MMM]","Mandatory"]
[null,null,"Bundled with Pharmacy",null,"Optional","Contribution remittance"]
[null,null,"Bundled with Dental","Crossover","Not offered","Paper"]
[null,null,"Bundled with [Enter Text]","Yes",null,"Electronic"]
[null,null,"Integrated with [Plan Name]","No","HSA benefits card restrictions","BHS EFT"]
[null,null,null,null,"Only healthcare related merchants","Group initiated ACH"]
[null,null,"Notices","Family benefit","All merchant category codes"]
[null,null,"Initial and QE Notice","Umbrella",null,"Bill for:"]
[null,null,"Initial Notice","Embedded","Term date","Claims"]
[null,null,"QE Notice",null,"End of month after termination","Contributions"]
[null,null,"None","Plan priority","Date of termination"]
[null,null,null,"FSA first",null,"Payroll Cycles"]
[null,null,"Dependent status","HRA first","Term runout",12]
[null,null,"26 years old",null,"90 days after term date",24]
[null,null,"[Enter age] years old","New hire contribution","90 days after plan year",26]
[null,null,"[custom]","Full","XX days after term date",52]
[null,null,null,"Prorated","XX days after plan year","[Enter Text]"]
[null,null,"Disabled dependent status"]
[null,null,"26 years old","Term date","Contributions term","Remittance to match payroll"]
[null,null,"[Enter age] years old","End of month after termination","Date of term","Yes"]
[null,null,"[custom]","Date of termination","EOM","No"]
[]
[null,null,"Contract","Term runout","Autorenew plan ","Plan documents"]
[null,null,"Standard","90-days after term date","Yes","Standard"]
[null,null,"Customized","90-days after plan year","No","Customized"]
[null,null,null,"XX-days after term date"]
[null,null,"Tier","XX-days after plan year","Initital enrollment","Owner Participation Rules"]
[null,null,"QB Only",null,"Paper","Disclosed"]
[null,null,"QB + 1","Contributions at termination","Electronic","Not yet disclosed"]
[null,null,"QB + Spouse","Full","Census"]
[null,null,"QB + Child","Prorated",null,"Benefits card charged to"]
[null,null,"QB + Children",null,"Ongoing eligibility","Employer"]
[null,null,"Family","Spend down","Paper","Participant"]
[null,null,"Spouse Only","Yes - No limit","Electronic"]
[null,null,"Spouse + Child","Yes - XX-day limit"]
[null,null,"Spouse + Children","No","Contribution remittance"]
[null,null,"Child Only",null,"Paper"]
[null,null,"Member specific rate","Spend down fees paid by","Electronic"]
[null,null,"Flat rate","Employer","BHS EFT"]
[null,null,null,"HRA Account","Group initiated ACH"]
[null,null,null,"Participant"]
[null,null,"Retiree",null,"Bill for:"]
[null,null,"Ret + Sp","Autoroll employees on 1/1","Claims"]
[null,null,"Ret + Child","Yes","Contributions"]
[null,null,"Ret + Children","No"]
[null,null,"Family",null,"Payroll Cycles"]
[null,null,"Flat rate","Autorenew plan ",12]
[null,null,"Ret specific","Yes",24]
[null,null,null,"No","26 with 24 deductions"]
[null,null,null,null,26]
[null,null,"Invoice Type","Initital enrollment/Ongoing eligibility",52]
[null,null,"PEPM:","Electronic","[Enter Text]"]
[null,null,"PEPM/PO:","Spreadsheet"]
[null,null,"PO:","Business Objects","Remittance to match payroll"]
[null,null,null,"Roster/Census","Yes"]
[null,null,"Premiums","Forms","No"]
[null,null,"Bill to participant"]
[null,null,"Bill X% to participant","Contribution remittance","Claims funding"]
[null,null,"Bill to employer","Paper","BHS-initiated ACH"]
[null,null,"[Enter Text]","BHS initiated ACH","Group-initiated ACH"]
[null,null,null,"Group initiated ACH","Prefunded"]
[null,null,"Grace period",null,"[Enter Text]"]
[null,null,"30 days","Bill for:"]
[null,null,"30 days, one time late payment","Claims","Plan documents"]
[null,null,"XX days","Contributions","Standard"]
[null,null,"XX days, one time late payment",null,"Customized"]
[null,null,null,"Payroll Cycles"]
[null,null,"Domestic partners",12,"ERISA Applies"]
[null,null,"Yes, same sex included","24, [Dates of month]","Yes"]
[null,null,"Yes, as a QB","26 with 24 deductions","No"]
[null,null,"Yes, as a dependent",26]
[null,null,"Yes with signed affadavit",52,"Nondiscrimination Testing"]
[null,null,"Yes, [Enter criteria]","[Enter Text]","Yes"]
[null,null,"No",null,"No"]
[null,null,null,"Remittance to match payroll"]
[null,null,"Open enrollment","Yes","Owner Participation Rules"]
[null,null,"Members may change plans","No","Disclosed"]
[null,null,"Members must follow subscriber",null,"Not yet disclosed"]
[null,null,"Members may not change plans","Plan documents"]
[null,null,"[Enter other arrangement]","Standard","Benefits card charged to"]
[null,null,null,"Customized","Employer"]
[null,null,"Payment options",null,"Participant"]
[null,null,"Self-pay","ERISA Applies"]
[null,null,"Self-pay and EFT","Yes","Tier"]
[null,null,"Self-pay and pension deduct","No","EE Only"]
[null,null,"Self-pay, EFT and pension deduct",null,"EE + 1"]
[null,null,"Self-pay, EFT, VEBA and pension deduct","Nondiscrimination Testing","EE + Spouse"]
[null,null,"EFT","Yes","EE + Child"]
[null,null,"EFT and pension deduct","No","EE + Children"]
[null,null,"EFT, VEBA and pension deduct",null,"Family"]
[null,null,"Pension deduct","Owner Participation Rules"]
[null,null,"Pension deduct and VEBA","Disclosed"]
[null,null,"VEBA","Not yet disclosed","Benefits Card Auto-Adjudication"]
[null,null,null,null,"Yes, $0 - $250.01 auto-adjudication"]
[null,null,"Member letters","Benefits card charged to","Yes, $0 - $XXX.01 auto-adjudication"]
[null,null,"Standard","Employer","No"]
[null,null,"Customized","Participant"]
[null,null,null,null,"Census Check"]
[null,null,"Notification process","Medical Enrollment","Monthly"]
[null,null,"Email","Employer's GHP","Quarterly"]
[null,null,"Fax","An employer's GHP","Semi-Annually"]
[null,null,"Letter","Not required"]
[]
[null,null,"QE Notifications","Tier"]
[null,null,"Spreadsheet","EE Only"]
[null,null,"Online","EE + 1"]
[null,null,"Manually","EE + Spouse"]
[null,null,null,"EE + Child"]
[null,null,"Additional reports","EE + Children"]
[null,null,"Yes","Family"]
[null,null,"No"]
[]
[null,null,"Dependent and spousal benefits","Census Check"]
[null,null,"Same","Monthly"]
[null,null,"Different","Quarterly"]
[null,null,null,"Semi-Annually"]
[null,null,"Independent Dependents"]
[null,null,"Yes","Rx included in deductible"]
[null,null,"No","Yes"]
[null,null,null,"No"]
[null,null,"Terminating Dependents"]
[null,null,"Only with a qualifying event","Pediatric Dental/Vision"]
[null,null,"At any time","Yes"]
[null,null,null,"No"]
[null,null,"Carrier payment"]
[null,null,"Check"]
[null,null,"ACH"]
[null,null,"Inter-Company Transfer"]
[]
[null,null,"Electronic carrier report"]
[null,null,"Yes"]
[null,null,"No"]
[]
[null,null,"Employer remittance"]
[null,null,"ACH"]
[null,null,"Check"]
[]
[null,null,"Components"]
[null,null,"Medical"]
[null,null,"Dental"]
[null,null,"Vision"]
[null,null,"RX"]
[null,null,"Admin"]
[null,null,"Disability Surchage"]
[null,null,"HRA"]
[null,null,"HRA Adamin"]
[null,null,"FSA"]
[null,null,"FSA Admin"]
[null,null,"EAP"]
[null,null,"EAP Admin"]
[]
[null,null,"Term Type"]
[null,null,"End of Month"]
[null,null,"Event"]
[null,null,"Wash/Roll Rule"]
[]
[null,null,"File Group"]
[null,null,"Yes"]
[null,null,"No"]
[null,null,"Open Enrollment Admin Rates"]
[null,null,"Print"]
[null,null,"Mail"]
[null,null,"Print and mail"]
[null,null,"N/A"]
[null,null,"Census Check"]
[null,null,"Monthly"]
[null,null,"Quarterly"]
[null,null,"Semi-Annually"]
[null,null,"Annually"]
[]
[null,null,"Sent by"]
[null,null,"BHS"]
[null,null,"Employer group"]
[null,null,"[Enter Text]"]
[]
[null,null,"Send to"]
[null,null,"Agent"]
[null,null,"Employer group"]
[null,null,"[Enter Text]"]
[]
[null,null,"Rate Load Handling"]
[null,null,"Remit to group"]
[null,null,"Offset Admin Bill"]
[null,null,"Retained by BHS"]
[null,null,"N/A"]
[null,null,"[Enter Text]"]

{"sheet":"Refunding (Internal)","index":23,"n_rows":48,"n_cols":10,"rows_kept":48,"cut":false,"hidden":true,"merged":[[33,2,33,9],[38,2,38,9],[46,3,46,7],[19,3,19,4],[19,7,19,8],[20,7,20,9],[21,3,21,4],[21,7,21,9],[22,7,30,9],[13,3,13,4],[14,3,14,4],[16,2,16,6],[16,7,16,9],[17,3,17,4],[17,7,17,8],[12,3,12,4],[2,2,2,9],[3,2,3,9],[4,5,4,6],[5,5,5,6],[6,5,6,6],[8,7,8,9],[9,3,9,4],[11,3,11,4]]}
[]
[]
[null,null,"Retention Group \nAccounting Considerations"]
[null,null,"Section 1  >  Group information"]
[null,null,"Legal Name:",null,null,null,null,"Effective Date:",{"$f":"IF(ISBLANK('[7]Group Application (51+)'!E5), \"\", '[7]Group Application (51+)'!E5)","v":""}]
[null,null,"Billing Name:",null,null,null,null,"Contract Type:"]
[null,null,"Group #:"]
[]
[null,null,"  Dental Admin Rate:",null,null,null,null,"  Vision Admin Rate:"]
[null,null,null,"Percentage of Premium:",null,null,null,null,"Percentage of Premium:"]
[null,null,null,null,null,"OR",null,null,null,"OR "]
[null,null,null,"PEPM:",null,null,null,null,"PEPM:"]
[null,null,null,"Commission:",null,null,null,null,"Commission:"]
[null,null,null,"ACA:",null,null,null,null,"ACA:"]
[null,null,null,"Miscellaneous:",null,null,null,null,"Miscellaneous:"]
[]
[null,null,"  Medical/Rx Admin Rate:",null,null,null,null,"  Medical Pooling Rate:"]
[null,null,null,"Percentage of Premium:",null,null,null,"Percentage of Premium:"]
[null,null,null,null,null,"OR",null,null,null,"OR"]
[null,null,null,"Retention PEPM:",null,null,null,"Retention PEPM:"]
[null,null,null,null,"PCORI:"]
[null,null,null,"WA Regulatory Assessment:",null,null,null,"  Comments"]
[null,null,null,null,"Misc.  Fee 1:  "]
[null,null,null,null,"Misc.  Fee 2:  "]
[null,null,null,null,"Misc.  Fee 3:  "]
[null,null,null,null,"Total PEPM Admin:",{"$f":"SUM(F20:F25)","v":0}]
[null,null,null,null,"   ACA Fee %:"]
[null,null,null,null,"  Agent Commission %:"]
[null,null,null,null,"   Refunding Agreement:"]
[null,null,null,null,"Underwriting contact:"]
[]
[]
[]
[null,null,"Section 1  > Rate information (for new groups and groups making changes their existing plan)"]
[null,null,"1.","Does Group receive Pharmacy rebates?",null,null,null,null,"(Y/N):"]
[null,null,null,"    If so, what is the percentage?"]
[null,null,"Mutualization"]
[null,null,"2.","Does the contract include mutualization between Dental and Medical/Rx/Vision?",null,null,null,null,"(Y/N):"]
[null,null,"Interest"]
[null,null,"3.","Does that contract obligate Moda Health/Delta Dental to pay interest on the liability?",null,null,null,null,"(Y/N):"]
[null,null,"4.","On what balance will the interest be based?",null,null,null,null,null,{"$f":"IF(ISBLANK(J40),\"\", IF(J40=\"Yes\",\"Ending Liability\",\"N/A\"))","v":""}]
[null,null,"5.","What rate will be used for interest?"]
[null,null,"6.","What day of the month will be used to determine the interest rate?"]
[null,null,"7.","What is the minimum interest rate, if applicable."]
[null,null,"8.","Has the contract or amendment been signed by both parties?",null,null,null,null,"(Y/N):"]
[null,null,"9.","What is the runout period for the Group after termination (# of months)?"]
[null,null,"10.","Are there any special agreements or verbal commitments that are not contained in the most current contract? If yes, please include in comments.",null,null,null,null,"(Y/N):"]
[null,null,"11.","Has a final copy of the contract or amendment been provided to Accounting?",null,null,null,null,"(Y/N):"]

{"sheet":"NAICS Codes (Internal)","index":24,"n_rows":1059,"n_cols":4,"rows_kept":1059,"cut":false,"hidden":true,"merged":[]}
[]
[null,"NAICS Code","Description","Column1"]
[null,111110,"Soybean Farming",{"$f":"Table1[[#This Row],[NAICS Code]]&\" - \"&Table1[[#This Row],[Description]]","v":"111110 - Soybean Farming"}]
[null,111120,"Oilseed (except Soybean) Farming",{"$f":"Table1[[#This Row],[NAICS Code]]&\" - \"&Table1[[#This Row],[Description]]","v":"111120 - Oilseed (except Soybean) Farming"}]
[null,111130,"Dry Pea and Bean Farming",{"$f":"Table1[[#This Row],[NAICS Code]]&\" - \"&Table1[[#This Row],[Description]]","v":"111130 - Dry Pea and Bean Farming"}]
[null,111140,"Wheat Farming",{"$f":"Table1[[#This Row],[NAICS Code]]&\" - \"&Table1[[#This Row],[Description]]","v":"111140 - Wheat Farming"}]
[null,111150,"Corn Farming",{"$f":"Table1[[#This Row],[NAICS Code]]&\" - \"&Table1[[#This Row],[Description]]","v":"111150 - Corn Farming"}]
[null,111160,"Rice Farming",{"$f":"Table1[[#This Row],[NAICS Code]]&\" - \"&Table1[[#This Row],[Description]]","v":"111160 - Rice Farming"}]
[null,111191,"Oilseed and Grain Combination Farming",{"$f":"Table1[[#This Row],[NAICS Code]]&\" - \"&Table1[[#This Row],[Description]]","v":"111191 - Oilseed and Grain Combination Farming"}]
[null,111199,"All Other Grain Farming",{"$f":"Table1[[#This Row],[NAICS Code]]&\" - \"&Table1[[#This Row],[Description]]","v":"111199 - All Other Grain Farming"}]
[null,111211,"Potato Farming",{"$f":"Table1[[#This Row],[NAICS Code]]&\" - \"&Table1[[#This Row],[Description]]","v":"111211 - Potato Farming"}]
[null,111219,"Other Vegetable (except Potato) and Melon Farming",{"$f":"Table1[[#This Row],[NAICS Code]]&\" - \"&Table1[[#This Row],[Description]]","v":"111219 - Other Vegetable (except Potato) and Melon Farming"}]
[null,111310,"Orange Groves",{"$f":"Table1[[#This Row],[NAICS Code]]&\" - \"&Table1[[#This Row],[Description]]","v":"111310 - Orange Groves"}]
[null,111320,"Citrus (except Orange) Groves",{"$f":"Table1[[#This Row],[NAICS Code]]&\" - \"&Table1[[#This Row],[Description]]","v":"111320 - Citrus (except Orange) Groves"}]
[null,111331,"Apple Orchards",{"$f":"Table1[[#This Row],[NAICS Code]]&\" - \"&Table1[[#This Row],[Description]]","v":"111331 - Apple Orchards"}]
[null,111332,"Grape Vineyards",{"$f":"Table1[[#This Row],[NAICS Code]]&\" - \"&Table1[[#This Row],[Description]]","v":"111332 - Grape Vineyards"}]
[null,111333,"Strawberry Farming",{"$f":"Table1[[#This Row],[NAICS Code]]&\" - \"&Table1[[#This Row],[Description]]","v":"111333 - Strawberry Farming"}]
[null,111334,"Berry (except Strawberry) Farming",{"$f":"Table1[[#This Row],[NAICS Code]]&\" - \"&Table1[[#This Row],[Description]]","v":"111334 - Berry (except Strawberry) Farming"}]
[null,111335,"Tree Nut Farming",{"$f":"Table1[[#This Row],[NAICS Code]]&\" - \"&Table1[[#This Row],[Description]]","v":"111335 - Tree Nut Farming"}]
[null,111336,"Fruit and Tree Nut Combination Farming",{"$f":"Table1[[#This Row],[NAICS Code]]&\" - \"&Table1[[#This Row],[Description]]","v":"111336 - Fruit and Tree Nut Combination Farming"}]
[null,111339,"Other Noncitrus Fruit Farming",{"$f":"Table1[[#This Row],[NAICS Code]]&\" - \"&Table1[[#This Row],[Description]]","v":"111339 - Other Noncitrus Fruit Farming"}]
[null,111411,"Mushroom Production",{"$f":"Table1[[#This Row],[NAICS Code]]&\" - \"&Table1[[#This Row],[Description]]","v":"111411 - Mushroom Production"}]
[null,111419,"Other Food Crops Grown Under Cover",{"$f":"Table1[[#This Row],[NAICS Code]]&\" - \"&Table1[[#This Row],[Description]]","v":"111419 - Other Food Crops Grown Under Cover"}]
[null,111421,"Nursery and Tree Production",{"$f":"Table1[[#This Row],[NAICS Code]]&\" - \"&Table1[[#This Row],[Description]]","v":"111421 - Nursery and Tree Production"}]
[null,111422,"Floriculture Production",{"$f":"Table1[[#This Row],[NAICS Code]]&\" - \"&Table1[[#This Row],[Description]]","v":"111422 - Floriculture Production"}]
[null,111910,"Tobacco Farming",{"$f":"Table1[[#This Row],[NAICS Code]]&\" - \"&Table1[[#This Row],[Description]]","v":"111910 - Tobacco Farming"}]
[null,111920,"Cotton Farming",{"$f":"Table1[[#This Row],[NAICS Code]]&\" - \"&Table1[[#This Row],[Description]]","v":"111920 - Cotton Farming"}]
[null,111930,"Sugarcane Farming",{"$f":"Table1[[#This Row],[NAICS Code]]&\" - \"&Table1[[#This Row],[Description]]","v":"111930 - Sugarcane Farming"}]
[null,111940,"Hay Farming",{"$f":"Table1[[#This Row],[NAICS Code]]&\" - \"&Table1[[#This Row],[Description]]","v":"111940 - Hay Farming"}]
[null,111991,"Sugar Beet Farming",{"$f":"Table1[[#This Row],[NAICS Code]]&\" - \"&Table1[[#This Row],[Description]]","v":"111991 - Sugar Beet Farming"}]
[null,111992,"Peanut Farming",{"$f":"Table1[[#This Row],[NAICS Code]]&\" - \"&Table1[[#This Row],[Description]]","v":"111992 - Peanut Farming"}]
[null,111998,"All Other Miscellaneous Crop Farming",{"$f":"Table1[[#This Row],[NAICS Code]]&\" - \"&Table1[[#This Row],[Description]]","v":"111998 - All Other Miscellaneous Crop Farming"}]
[null,112111,"Beef Cattle Ranching and Farming",{"$f":"Table1[[#This Row],[NAICS Code]]&\" - \"&Table1[[#This Row],[Description]]","v":"112111 - Beef Cattle Ranching and Farming"}]
[null,112112,"Cattle Feedlots",{"$f":"Table1[[#This Row],[NAICS Code]]&\" - \"&Table1[[#This Row],[Description]]","v":"112112 - Cattle Feedlots"}]
[null,112120,"Dairy Cattle and Milk Production",{"$f":"Table1[[#This Row],[NAICS Code]]&\" - \"&Table1[[#This Row],[Description]]","v":"112120 - Dairy Cattle and Milk Production"}]
[null,112130,"Dual-Purpose Cattle Ranching and Farming",{"$f":"Table1[[#This Row],[NAICS Code]]&\" - \"&Table1[[#This Row],[Description]]","v":"112130 - Dual-Purpose Cattle Ranching and Farming"}]
[null,112210,"Hog and Pig Farming",{"$f":"Table1[[#This Row],[NAICS Code]]&\" - \"&Table1[[#This Row],[Description]]","v":"112210 - Hog and Pig Farming"}]
[null,112310,"Chicken Egg Production",{"$f":"Table1[[#This Row],[NAICS Code]]&\" - \"&Table1[[#This Row],[Description]]","v":"112310 - Chicken Egg Production"}]
[null,112320,"Broilers and Other Meat Type Chicken Production",{"$f":"Table1[[#This Row],[NAICS Code]]&\" - \"&Table1[[#This Row],[Description]]","v":"112320 - Broilers and Other Meat Type Chicken Production"}]
[null,112330,"Turkey Production",{"$f":"Table1[[#This Row],[NAICS Code]]&\" - \"&Table1[[#This Row],[Description]]","v":"112330 - Turkey Production"}]
[null,112340,"Poultry Hatcheries",{"$f":"Table1[[#This Row],[NAICS Code]]&\" - \"&Table1[[#This Row],[Description]]","v":"112340 - Poultry Hatcheries"}]
[null,112390,"Other Poultry Production",{"$f":"Table1[[#This Row],[NAICS Code]]&\" - \"&Table1[[#This Row],[Description]]","v":"112390 - Other Poultry Production"}]
[null,112410,"Sheep Farming",{"$f":"Table1[[#This Row],[NAICS Code]]&\" - \"&Table1[[#This Row],[Description]]","v":"112410 - Sheep Farming"}]
[null,112420,"Goat Farming",{"$f":"Table1[[#This Row],[NAICS Code]]&\" - \"&Table1[[#This Row],[Description]]","v":"112420 - Goat Farming"}]
[null,112511,"Finfish Farming and Fish Hatcheries",{"$f":"Table1[[#This Row],[NAICS Code]]&\" - \"&Table1[[#This Row],[Description]]","v":"112511 - Finfish Farming and Fish Hatcheries"}]
[null,112512,"Shellfish Farming",{"$f":"Table1[[#This Row],[NAICS Code]]&\" - \"&Table1[[#This Row],[Description]]","v":"112512 - Shellfish Farming"}]
[null,112519,"Other Aquaculture",{"$f":"Table1[[#This Row],[NAICS Code]]&\" - \"&Table1[[#This Row],[Description]]","v":"112519 - Other Aquaculture"}]
[null,112910,"Apiculture",{"$f":"Table1[[#This Row],[NAICS Code]]&\" - \"&Table1[[#This Row],[Description]]","v":"112910 - Apiculture"}]
[null,112920,"Horses and Other Equine Production",{"$f":"Table1[[#This Row],[NAICS Code]]&\" - \"&Table1[[#This Row],[Description]]","v":"112920 - Horses and Other Equine Production"}]
[null,112930,"Fur-Bearing Animal and Rabbit Production",{"$f":"Table1[[#This Row],[NAICS Code]]&\" - \"&Table1[[#This Row],[Description]]","v":"112930 - Fur-Bearing Animal and Rabbit Production"}]
[null,112990,"All Other Animal Production",{"$f":"Table1[[#This Row],[NAICS Code]]&\" - \"&Table1[[#This Row],[Description]]","v":"112990 - All Other Animal Production"}]
[null,113110,"Timber Tract Operations",{"$f":"Table1[[#This Row],[NAICS Code]]&\" - \"&Table1[[#This Row],[Description]]","v":"113110 - Timber Tract Operations"}]
[null,113210,"Forest Nurseries and Gathering of Forest Products",{"$f":"Table1[[#This Row],[NAICS Code]]&\" - \"&Table1[[#This Row],[Description]]","v":"113210 - Forest Nurseries and Gathering of Forest Products"}]
[null,113310,"Logging",{"$f":"Table1[[#This Row],[NAICS Code]]&\" - \"&Table1[[#This Row],[Description]]","v":"113310 - Logging"}]
[null,114111,"Finfish Fishing",{"$f":"Table1[[#This Row],[NAICS Code]]&\" - \"&Table1[[#This Row],[Description]]","v":"114111 - Finfish Fishing"}]
[null,114112,"Shellfish Fishing",{"$f":"Table1[[#This Row],[NAICS Code]]&\" - \"&Table1[[#This Row],[Description]]","v":"114112 - Shellfish Fishing"}]
[null,114119,"Other Marine Fishing",{"$f":"Table1[[#This Row],[NAICS Code]]&\" - \"&Table1[[#This Row],[Description]]","v":"114119 - Other Marine Fishing"}]
[null,114210,"Hunting and Trapping",{"$f":"Table1[[#This Row],[NAICS Code]]&\" - \"&Table1[[#This Row],[Description]]","v":"114210 - Hunting and Trapping"}]
[null,115111,"Cotton Ginning",{"$f":"Table1[[#This Row],[NAICS Code]]&\" - \"&Table1[[#This Row],[Description]]","v":"115111 - Cotton Ginning"}]
[null,115112,"Soil Preparation, Planting, and Cultivating",{"$f":"Table1[[#This Row],[NAICS Code]]&\" - \"&Table1[[#This Row],[Description]]","v":"115112 - Soil Preparation, Planting, and Cultivating"}]
[null,115113,"Crop Harvesting, Primarily by Machine",{"$f":"Table1[[#This Row],[NAICS Code]]&\" - \"&Table1[[#This Row],[Description]]","v":"115113 - Crop Harvesting, Primarily by Machine"}]
[null,115114,"Postharvest Crop Activities (except Cotton Ginning)",{"$f":"Table1[[#This Row],[NAICS Code]]&\" - \"&Table1[[#This Row],[Description]]","v":"115114 - Postharvest Crop Activities (except Cotton Ginning)"}]
[null,115115,"Farm Labor Contractors and Crew Leaders",{"$f":"Table1[[#This Row],[NAICS Code]]&\" - \"&Table1[[#This Row],[Description]]","v":"115115 - Farm Labor Contractors and Crew Leaders"}]
[null,115116,"Farm Management Services",{"$f":"Table1[[#This Row],[NAICS Code]]&\" - \"&Table1[[#This Row],[Description]]","v":"115116 - Farm Management Services"}]
[null,115210,"Support Activities for Animal Production",{"$f":"Table1[[#This Row],[NAICS Code]]&\" - \"&Table1[[#This Row],[Description]]","v":"115210 - Support Activities for Animal Production"}]
[null,115310,"Support Activities for Forestry",{"$f":"Table1[[#This Row],[NAICS Code]]&\" - \"&Table1[[#This Row],[Description]]","v":"115310 - Support Activities for Forestry"}]
[null,211120,"Crude Petroleum Extraction ",{"$f":"Table1[[#This Row],[NAICS Code]]&\" - \"&Table1[[#This Row],[Description]]","v":"211120 - Crude Petroleum Extraction "}]
[null,211130,"Natural Gas Extraction",{"$f":"Table1[[#This Row],[NAICS Code]]&\" - \"&Table1[[#This Row],[Description]]","v":"211130 - Natural Gas Extraction"}]
[null,212111,"Bituminous Coal and Lignite Surface Mining",{"$f":"Table1[[#This Row],[NAICS Code]]&\" - \"&Table1[[#This Row],[Description]]","v":"212111 - Bituminous Coal and Lignite Surface Mining"}]
[null,212112,"Bituminous Coal Underground Mining",{"$f":"Table1[[#This Row],[NAICS Code]]&\" - \"&Table1[[#This Row],[Description]]","v":"212112 - Bituminous Coal Underground Mining"}]
[null,212113,"Anthracite Mining",{"$f":"Table1[[#This Row],[NAICS Code]]&\" - \"&Table1[[#This Row],[Description]]","v":"212113 - Anthracite Mining"}]
[null,212210,"Iron Ore Mining",{"$f":"Table1[[#This Row],[NAICS Code]]&\" - \"&Table1[[#This Row],[Description]]","v":"212210 - Iron Ore Mining"}]
[null,212221,"Gold Ore Mining",{"$f":"Table1[[#This Row],[NAICS Code]]&\" - \"&Table1[[#This Row],[Description]]","v":"212221 - Gold Ore Mining"}]
[null,212222,"Silver Ore Mining",{"$f":"Table1[[#This Row],[NAICS Code]]&\" - \"&Table1[[#This Row],[Description]]","v":"212222 - Silver Ore Mining"}]
[null,212230,"Copper, Nickel, Lead, and Zinc Mining ",{"$f":"Table1[[#This Row],[NAICS Code]]&\" - \"&Table1[[#This Row],[Description]]","v":"212230 - Copper, Nickel, Lead, and Zinc Mining "}]
[null,212291,"Uranium-Radium-Vanadium Ore Mining",{"$f":"Table1[[#This Row],[NAICS Code]]&\" - \"&Table1[[#This Row],[Description]]","v":"212291 - Uranium-Radium-Vanadium Ore Mining"}]
[null,212299,"All Other Metal Ore Mining",{"$f":"Table1[[#This Row],[NAICS Code]]&\" - \"&Table1[[#This Row],[Description]]","v":"212299 - All Other Metal Ore Mining"}]
[null,212311,"Dimension Stone Mining and Quarrying",{"$f":"Table1[[#This Row],[NAICS Code]]&\" - \"&Table1[[#This Row],[Description]]","v":"212311 - Dimension Stone Mining and Quarrying"}]
[null,212312,"Crushed and Broken Limestone Mining and Quarrying",{"$f":"Table1[[#This Row],[NAICS Code]]&\" - \"&Table1[[#This Row],[Description]]","v":"212312 - Crushed and Broken Limestone Mining and Quarrying"}]
[null,212313,"Crushed and Broken Granite Mining and Quarrying",{"$f":"Table1[[#This Row],[NAICS Code]]&\" - \"&Table1[[#This Row],[Description]]","v":"212313 - Crushed and Broken Granite Mining and Quarrying"}]
[null,212319,"Other Crushed and Broken Stone Mining and Quarrying",{"$f":"Table1[[#This Row],[NAICS Code]]&\" - \"&Table1[[#This Row],[Description]]","v":"212319 - Other Crushed and Broken Stone Mining and Quarrying"}]
[null,212321,"Construction Sand and Gravel Mining",{"$f":"Table1[[#This Row],[NAICS Code]]&\" - \"&Table1[[#This Row],[Description]]","v":"212321 - Construction Sand and Gravel Mining"}]
[null,212322,"Industrial Sand Mining",{"$f":"Table1[[#This Row],[NAICS Code]]&\" - \"&Table1[[#This Row],[Description]]","v":"212322 - Industrial Sand Mining"}]
[null,212324,"Kaolin and Ball Clay Mining",{"$f":"Table1[[#This Row],[NAICS Code]]&\" - \"&Table1[[#This Row],[Description]]","v":"212324 - Kaolin and Ball Clay Mining"}]
[null,212325,"Clay and Ceramic and Refractory Minerals Mining",{"$f":"Table1[[#This Row],[NAICS Code]]&\" - \"&Table1[[#This Row],[Description]]","v":"212325 - Clay and Ceramic and Refractory Minerals Mining"}]
[null,212391,"Potash, Soda, and Borate Mineral Mining",{"$f":"Table1[[#This Row],[NAICS Code]]&\" - \"&Table1[[#This Row],[Description]]","v":"212391 - Potash, Soda, and Borate Mineral Mining"}]
[null,212392,"Phosphate Rock Mining",{"$f":"Table1[[#This Row],[NAICS Code]]&\" - \"&Table1[[#This Row],[Description]]","v":"212392 - Phosphate Rock Mining"}]
[null,212393,"Other Chemical and Fertilizer Mineral Mining",{"$f":"Table1[[#This Row],[NAICS Code]]&\" - \"&Table1[[#This Row],[Description]]","v":"212393 - Other Chemical and Fertilizer Mineral Mining"}]
[null,212399,"All Other Nonmetallic Mineral Mining",{"$f":"Table1[[#This Row],[NAICS Code]]&\" - \"&Table1[[#This Row],[Description]]","v":"212399 - All Other Nonmetallic Mineral Mining"}]
[null,213111,"Drilling Oil and Gas Wells",{"$f":"Table1[[#This Row],[NAICS Code]]&\" - \"&Table1[[#This Row],[Description]]","v":"213111 - Drilling Oil and Gas Wells"}]
[null,213112,"Support Activities for Oil and Gas Operations",{"$f":"Table1[[#This Row],[NAICS Code]]&\" - \"&Table1[[#This Row],[Description]]","v":"213112 - Support Activities for Oil and Gas Operations"}]
[null,213113,"Support Activities for Coal Mining",{"$f":"Table1[[#This Row],[NAICS Code]]&\" - \"&Table1[[#This Row],[Description]]","v":"213113 - Support Activities for Coal Mining"}]
[null,213114,"Support Activities for Metal Mining",{"$f":"Table1[[#This Row],[NAICS Code]]&\" - \"&Table1[[#This Row],[Description]]","v":"213114 - Support Activities for Metal Mining"}]
[null,213115,"Support Activities for Nonmetallic Minerals (except Fuels)",{"$f":"Table1[[#This Row],[NAICS Code]]&\" - \"&Table1[[#This Row],[Description]]","v":"213115 - Support Activities for Nonmetallic Minerals (except Fuels)"}]
[null,221111,"Hydroelectric Power Generation",{"$f":"Table1[[#This Row],[NAICS Code]]&\" - \"&Table1[[#This Row],[Description]]","v":"221111 - Hydroelectric Power Generation"}]
[null,221112,"Fossil Fuel Electric Power Generation",{"$f":"Table1[[#This Row],[NAICS Code]]&\" - \"&Table1[[#This Row],[Description]]","v":"221112 - Fossil Fuel Electric Power Generation"}]
[null,221113,"Nuclear Electric Power Generation",{"$f":"Table1[[#This Row],[NAICS Code]]&\" - \"&Table1[[#This Row],[Description]]","v":"221113 - Nuclear Electric Power Generation"}]
[null,221114,"Solar Electric Power Generation",{"$f":"Table1[[#This Row],[NAICS Code]]&\" - \"&Table1[[#This Row],[Description]]","v":"221114 - Solar Electric Power Generation"}]
[null,221115,"Wind Electric Power Generation",{"$f":"Table1[[#This Row],[NAICS Code]]&\" - \"&Table1[[#This Row],[Description]]","v":"221115 - Wind Electric Power Generation"}]
[null,221116,"Geothermal Electric Power Generation",{"$f":"Table1[[#This Row],[NAICS Code]]&\" - \"&Table1[[#This Row],[Description]]","v":"221116 - Geothermal Electric Power Generation"}]
[null,221117,"Biomass Electric Power Generation",{"$f":"Table1[[#This Row],[NAICS Code]]&\" - \"&Table1[[#This Row],[Description]]","v":"221117 - Biomass Electric Power Generation"}]
[null,221118,"Other Electric Power Generation",{"$f":"Table1[[#This Row],[NAICS Code]]&\" - \"&Table1[[#This Row],[Description]]","v":"221118 - Other Electric Power Generation"}]
[null,221121,"Electric Bulk Power Transmission and Control",{"$f":"Table1[[#This Row],[NAICS Code]]&\" - \"&Table1[[#This Row],[Description]]","v":"221121 - Electric Bulk Power Transmission and Control"}]
[null,221122,"Electric Power Distribution",{"$f":"Table1[[#This Row],[NAICS Code]]&\" - \"&Table1[[#This Row],[Description]]","v":"221122 - Electric Power Distribution"}]
[null,221210,"Natural Gas Distribution",{"$f":"Table1[[#This Row],[NAICS Code]]&\" - \"&Table1[[#This Row],[Description]]","v":"221210 - Natural Gas Distribution"}]
[null,221310,"Water Supply and Irrigation Systems",{"$f":"Table1[[#This Row],[NAICS Code]]&\" - \"&Table1[[#This Row],[Description]]","v":"221310 - Water Supply and Irrigation Systems"}]
[null,221320,"Sewage Treatment Facilities",{"$f":"Table1[[#This Row],[NAICS Code]]&\" - \"&Table1[[#This Row],[Description]]","v":"221320 - Sewage Treatment Facilities"}]
[null,221330,"Steam and Air-Conditioning Supply",{"$f":"Table1[[#This Row],[NAICS Code]]&\" - \"&Table1[[#This Row],[Description]]","v":"221330 - Steam and Air-Conditioning Supply"}]
[null,236115,"New Single-Family Housing Construction (except Operative Builders)",{"$f":"Table1[[#This Row],[NAICS Code]]&\" - \"&Table1[[#This Row],[Description]]","v":"236115 - New Single-Family Housing Construction (except Operative Builders)"}]
[null,236116,"New Multifamily Housing Construction (except Operative Builders)",{"$f":"Table1[[#This Row],[NAICS Code]]&\" - \"&Table1[[#This Row],[Description]]","v":"236116 - New Multifamily Housing Construction (except Operative Builders)"}]
[null,236117,"New Housing Operative Builders",{"$f":"Table1[[#This Row],[NAICS Code]]&\" - \"&Table1[[#This Row],[Description]]","v":"236117 - New Housing Operative Builders"}]
[null,236118,"Residential Remodelers",{"$f":"Table1[[#This Row],[NAICS Code]]&\" - \"&Table1[[#This Row],[Description]]","v":"236118 - Residential Remodelers"}]
[null,236210,"Industrial Building Construction",{"$f":"Table1[[#This Row],[NAICS Code]]&\" - \"&Table1[[#This Row],[Description]]","v":"236210 - Industrial Building Construction"}]
[null,236220,"Commercial and Institutional Building Construction",{"$f":"Table1[[#This Row],[NAICS Code]]&\" - \"&Table1[[#This Row],[Description]]","v":"236220 - Commercial and Institutional Building Construction"}]
[null,237110,"Water and Sewer Line and Related Structures Construction",{"$f":"Table1[[#This Row],[NAICS Code]]&\" - \"&Table1[[#This Row],[Description]]","v":"237110 - Water and Sewer Line and Related Structures Construction"}]
[null,237120,"Oil and Gas Pipeline and Related Structures Construction",{"$f":"Table1[[#This Row],[NAICS Code]]&\" - \"&Table1[[#This Row],[Description]]","v":"237120 - Oil and Gas Pipeline and Related Structures Construction"}]
[null,237130,"Power and Communication Line and Related Structures Construction",{"$f":"Table1[[#This Row],[NAICS Code]]&\" - \"&Table1[[#This Row],[Description]]","v":"237130 - Power and Communication Line and Related Structures Construction"}]
[null,237210,"Land Subdivision",{"$f":"Table1[[#This Row],[NAICS Code]]&\" - \"&Table1[[#This Row],[Description]]","v":"237210 - Land Subdivision"}]
[null,237310,"Highway, Street, and Bridge Construction",{"$f":"Table1[[#This Row],[NAICS Code]]&\" - \"&Table1[[#This Row],[Description]]","v":"237310 - Highway, Street, and Bridge Construction"}]
[null,237990,"Other Heavy and Civil Engineering Construction",{"$f":"Table1[[#This Row],[NAICS Code]]&\" - \"&Table1[[#This Row],[Description]]","v":"237990 - Other Heavy and Civil Engineering Construction"}]
[null,238110,"Poured Concrete Foundation and Structure Contractors",{"$f":"Table1[[#This Row],[NAICS Code]]&\" - \"&Table1[[#This Row],[Description]]","v":"238110 - Poured Concrete Foundation and Structure Contractors"}]
[null,238120,"Structural Steel and Precast Concrete Contractors",{"$f":"Table1[[#This Row],[NAICS Code]]&\" - \"&Table1[[#This Row],[Description]]","v":"238120 - Structural Steel and Precast Concrete Contractors"}]
[null,238130,"Framing Contractors",{"$f":"Table1[[#This Row],[NAICS Code]]&\" - \"&Table1[[#This Row],[Description]]","v":"238130 - Framing Contractors"}]
[null,238140,"Masonry Contractors",{"$f":"Table1[[#This Row],[NAICS Code]]&\" - \"&Table1[[#This Row],[Description]]","v":"238140 - Masonry Contractors"}]
[null,238150,"Glass and Glazing Contractors",{"$f":"Table1[[#This Row],[NAICS Code]]&\" - \"&Table1[[#This Row],[Description]]","v":"238150 - Glass and Glazing Contractors"}]
[null,238160,"Roofing Contractors",{"$f":"Table1[[#This Row],[NAICS Code]]&\" - \"&Table1[[#This Row],[Description]]","v":"238160 - Roofing Contractors"}]
[null,238170,"Siding Contractors",{"$f":"Table1[[#This Row],[NAICS Code]]&\" - \"&Table1[[#This Row],[Description]]","v":"238170 - Siding Contractors"}]
[null,238190,"Other Foundation, Structure, and Building Exterior Contractors",{"$f":"Table1[[#This Row],[NAICS Code]]&\" - \"&Table1[[#This Row],[Description]]","v":"238190 - Other Foundation, Structure, and Building Exterior Contractors"}]
[null,238210,"Electrical Contractors and Other Wiring Installation Contractors",{"$f":"Table1[[#This Row],[NAICS Code]]&\" - \"&Table1[[#This Row],[Description]]","v":"238210 - Electrical Contractors and Other Wiring Installation Contractors"}]
[null,238220,"Plumbing, Heating, and Air-Conditioning Contractors",{"$f":"Table1[[#This Row],[NAICS Code]]&\" - \"&Table1[[#This Row],[Description]]","v":"238220 - Plumbing, Heating, and Air-Conditioning Contractors"}]
[null,238290,"Other Building Equipment Contractors",{"$f":"Table1[[#This Row],[NAICS Code]]&\" - \"&Table1[[#This Row],[Description]]","v":"238290 - Other Building Equipment Contractors"}]
[null,238310,"Drywall and Insulation Contractors",{"$f":"Table1[[#This Row],[NAICS Code]]&\" - \"&Table1[[#This Row],[Description]]","v":"238310 - Drywall and Insulation Contractors"}]
[null,238320,"Painting and Wall Covering Contractors",{"$f":"Table1[[#This Row],[NAICS Code]]&\" - \"&Table1[[#This Row],[Description]]","v":"238320 - Painting and Wall Covering Contractors"}]
[null,238330,"Flooring Contractors",{"$f":"Table1[[#This Row],[NAICS Code]]&\" - \"&Table1[[#This Row],[Description]]","v":"238330 - Flooring Contractors"}]
[null,238340,"Tile and Terrazzo Contractors",{"$f":"Table1[[#This Row],[NAICS Code]]&\" - \"&Table1[[#This Row],[Description]]","v":"238340 - Tile and Terrazzo Contractors"}]
[null,238350,"Finish Carpentry Contractors",{"$f":"Table1[[#This Row],[NAICS Code]]&\" - \"&Table1[[#This Row],[Description]]","v":"238350 - Finish Carpentry Contractors"}]
[null,238390,"Other Building Finishing Contractors",{"$f":"Table1[[#This Row],[NAICS Code]]&\" - \"&Table1[[#This Row],[Description]]","v":"238390 - Other Building Finishing Contractors"}]
[null,238910,"Site Preparation Contractors",{"$f":"Table1[[#This Row],[NAICS Code]]&\" - \"&Table1[[#This Row],[Description]]","v":"238910 - Site Preparation Contractors"}]
[null,238990,"All Other Specialty Trade Contractors",{"$f":"Table1[[#This Row],[NAICS Code]]&\" - \"&Table1[[#This Row],[Description]]","v":"238990 - All Other Specialty Trade Contractors"}]
[null,311111,"Dog and Cat Food Manufacturing",{"$f":"Table1[[#This Row],[NAICS Code]]&\" - \"&Table1[[#This Row],[Description]]","v":"311111 - Dog and Cat Food Manufacturing"}]
[null,311119,"Other Animal Food Manufacturing",{"$f":"Table1[[#This Row],[NAICS Code]]&\" - \"&Table1[[#This Row],[Description]]","v":"311119 - Other Animal Food Manufacturing"}]
[null,311211,"Flour Milling",{"$f":"Table1[[#This Row],[NAICS Code]]&\" - \"&Table1[[#This Row],[Description]]","v":"311211 - Flour Milling"}]
[null,311212,"Rice Milling",{"$f":"Table1[[#This Row],[NAICS Code]]&\" - \"&Table1[[#This Row],[Description]]","v":"311212 - Rice Milling"}]
[null,311213,"Malt Manufacturing",{"$f":"Table1[[#This Row],[NAICS Code]]&\" - \"&Table1[[#This Row],[Description]]","v":"311213 - Malt Manufacturing"}]
[null,311221,"Wet Corn Milling",{"$f":"Table1[[#This Row],[NAICS Code]]&\" - \"&Table1[[#This Row],[Description]]","v":"311221 - Wet Corn Milling"}]
[null,311224,"Soybean and Other Oilseed Processing",{"$f":"Table1[[#This Row],[NAICS Code]]&\" - \"&Table1[[#This Row],[Description]]","v":"311224 - Soybean and Other Oilseed Processing"}]
[null,311225,"Fats and Oils Refining and Blending",{"$f":"Table1[[#This Row],[NAICS Code]]&\" - \"&Table1[[#This Row],[Description]]","v":"311225 - Fats and Oils Refining and Blending"}]
[null,311230,"Breakfast Cereal Manufacturing",{"$f":"Table1[[#This Row],[NAICS Code]]&\" - \"&Table1[[#This Row],[Description]]","v":"311230 - Breakfast Cereal Manufacturing"}]
[null,311313,"Beet Sugar Manufacturing",{"$f":"Table1[[#This Row],[NAICS Code]]&\" - \"&Table1[[#This Row],[Description]]","v":"311313 - Beet Sugar Manufacturing"}]
[null,311314,"Cane Sugar Manufacturing",{"$f":"Table1[[#This Row],[NAICS Code]]&\" - \"&Table1[[#This Row],[Description]]","v":"311314 - Cane Sugar Manufacturing"}]
[null,311340,"Nonchocolate Confectionery Manufacturing",{"$f":"Table1[[#This Row],[NAICS Code]]&\" - \"&Table1[[#This Row],[Description]]","v":"311340 - Nonchocolate Confectionery Manufacturing"}]
[null,311351,"Chocolate and Confectionery Manufacturing from Cacao Beans",{"$f":"Table1[[#This Row],[NAICS Code]]&\" - \"&Table1[[#This Row],[Description]]","v":"311351 - Chocolate and Confectionery Manufacturing from Cacao Beans"}]
[null,311352,"Confectionery Manufacturing from Purchased Chocolate",{"$f":"Table1[[#This Row],[NAICS Code]]&\" - \"&Table1[[#This Row],[Description]]","v":"311352 - Confectionery Manufacturing from Purchased Chocolate"}]
[null,311411,"Frozen Fruit, Juice, and Vegetable Manufacturing",{"$f":"Table1[[#This Row],[NAICS Code]]&\" - \"&Table1[[#This Row],[Description]]","v":"311411 - Frozen Fruit, Juice, and Vegetable Manufacturing"}]
[null,311412,"Frozen Specialty Food Manufacturing",{"$f":"Table1[[#This Row],[NAICS Code]]&\" - \"&Table1[[#This Row],[Description]]","v":"311412 - Frozen Specialty Food Manufacturing"}]
[null,311421,"Fruit and Vegetable Canning",{"$f":"Table1[[#This Row],[NAICS Code]]&\" - \"&Table1[[#This Row],[Description]]","v":"311421 - Fruit and Vegetable Canning"}]
[null,311422,"Specialty Canning",{"$f":"Table1[[#This Row],[NAICS Code]]&\" - \"&Table1[[#This Row],[Description]]","v":"311422 - Specialty Canning"}]
[null,311423,"Dried and Dehydrated Food Manufacturing",{"$f":"Table1[[#This Row],[NAICS Code]]&\" - \"&Table1[[#This Row],[Description]]","v":"311423 - Dried and Dehydrated Food Manufacturing"}]
[null,311511,"Fluid Milk Manufacturing",{"$f":"Table1[[#This Row],[NAICS Code]]&\" - \"&Table1[[#This Row],[Description]]","v":"311511 - Fluid Milk Manufacturing"}]
[null,311512,"Creamery Butter Manufacturing",{"$f":"Table1[[#This Row],[NAICS Code]]&\" - \"&Table1[[#This Row],[Description]]","v":"311512 - Creamery Butter Manufacturing"}]
[null,311513,"Cheese Manufacturing",{"$f":"Table1[[#This Row],[NAICS Code]]&\" - \"&Table1[[#This Row],[Description]]","v":"311513 - Cheese Manufacturing"}]
[null,311514,"Dry, Condensed, and Evaporated Dairy Product Manufacturing",{"$f":"Table1[[#This Row],[NAICS Code]]&\" - \"&Table1[[#This Row],[Description]]","v":"311514 - Dry, Condensed, and Evaporated Dairy Product Manufacturing"}]
[null,311520,"Ice Cream and Frozen Dessert Manufacturing",{"$f":"Table1[[#This Row],[NAICS Code]]&\" - \"&Table1[[#This Row],[Description]]","v":"311520 - Ice Cream and Frozen Dessert Manufacturing"}]
[null,311611,"Animal (except Poultry) Slaughtering",{"$f":"Table1[[#This Row],[NAICS Code]]&\" - \"&Table1[[#This Row],[Description]]","v":"311611 - Animal (except Poultry) Slaughtering"}]
[null,311612,"Meat Processed from Carcasses",{"$f":"Table1[[#This Row],[NAICS Code]]&\" - \"&Table1[[#This Row],[Description]]","v":"311612 - Meat Processed from Carcasses"}]
[null,311613,"Rendering and Meat Byproduct Processing",{"$f":"Table1[[#This Row],[NAICS Code]]&\" - \"&Table1[[#This Row],[Description]]","v":"311613 - Rendering and Meat Byproduct Processing"}]
[null,311615,"Poultry Processing",{"$f":"Table1[[#This Row],[NAICS Code]]&\" - \"&Table1[[#This Row],[Description]]","v":"311615 - Poultry Processing"}]
[null,311710,"Seafood Product Preparation and Packaging",{"$f":"Table1[[#This Row],[NAICS Code]]&\" - \"&Table1[[#This Row],[Description]]","v":"311710 - Seafood Product Preparation and Packaging"}]
[null,311811,"Retail Bakeries",{"$f":"Table1[[#This Row],[NAICS Code]]&\" - \"&Table1[[#This Row],[Description]]","v":"311811 - Retail Bakeries"}]
[null,311812,"Commercial Bakeries",{"$f":"Table1[[#This Row],[NAICS Code]]&\" - \"&Table1[[#This Row],[Description]]","v":"311812 - Commercial Bakeries"}]
[null,311813,"Frozen Cakes, Pies, and Other Pastries Manufacturing",{"$f":"Table1[[#This Row],[NAICS Code]]&\" - \"&Table1[[#This Row],[Description]]","v":"311813 - Frozen Cakes, Pies, and Other Pastries Manufacturing"}]
[null,311821,"Cookie and Cracker Manufacturing",{"$f":"Table1[[#This Row],[NAICS Code]]&\" - \"&Table1[[#This Row],[Description]]","v":"311821 - Cookie and Cracker Manufacturing"}]
[null,311824,"Dry Pasta, Dough, and Flour Mixes Manufacturing from Purchased Flour",{"$f":"Table1[[#This Row],[NAICS Code]]&\" - \"&Table1[[#This Row],[Description]]","v":"311824 - Dry Pasta, Dough, and Flour Mixes Manufacturing from Purchased Flour"}]
[null,311830,"Tortilla Manufacturing",{"$f":"Table1[[#This Row],[NAICS Code]]&\" - \"&Table1[[#This Row],[Description]]","v":"311830 - Tortilla Manufacturing"}]
[null,311911,"Roasted Nuts and Peanut Butter Manufacturing",{"$f":"Table1[[#This Row],[NAICS Code]]&\" - \"&Table1[[#This Row],[Description]]","v":"311911 - Roasted Nuts and Peanut Butter Manufacturing"}]
[null,311919,"Other Snack Food Manufacturing",{"$f":"Table1[[#This Row],[NAICS Code]]&\" - \"&Table1[[#This Row],[Description]]","v":"311919 - Other Snack Food Manufacturing"}]
[null,311920,"Coffee and Tea Manufacturing",{"$f":"Table1[[#This Row],[NAICS Code]]&\" - \"&Table1[[#This Row],[Description]]","v":"311920 - Coffee and Tea Manufacturing"}]
[null,311930,"Flavoring Syrup and Concentrate Manufacturing",{"$f":"Table1[[#This Row],[NAICS Code]]&\" - \"&Table1[[#This Row],[Description]]","v":"311930 - Flavoring Syrup and Concentrate Manufacturing"}]
[null,311941,"Mayonnaise, Dressing, and Other Prepared Sauce Manufacturing",{"$f":"Table1[[#This Row],[NAICS Code]]&\" - \"&Table1[[#This Row],[Description]]","v":"311941 - Mayonnaise, Dressing, and Other Prepared Sauce Manufacturing"}]
[null,311942,"Spice and Extract Manufacturing",{"$f":"Table1[[#This Row],[NAICS Code]]&\" - \"&Table1[[#This Row],[Description]]","v":"311942 - Spice and Extract Manufacturing"}]
[null,311991,"Perishable Prepared Food Manufacturing",{"$f":"Table1[[#This Row],[NAICS Code]]&\" - \"&Table1[[#This Row],[Description]]","v":"311991 - Perishable Prepared Food Manufacturing"}]
[null,311999,"All Other Miscellaneous Food Manufacturing",{"$f":"Table1[[#This Row],[NAICS Code]]&\" - \"&Table1[[#This Row],[Description]]","v":"311999 - All Other Miscellaneous Food Manufacturing"}]
[null,312111,"Soft Drink Manufacturing",{"$f":"Table1[[#This Row],[NAICS Code]]&\" - \"&Table1[[#This Row],[Description]]","v":"312111 - Soft Drink Manufacturing"}]
[null,312112,"Bottled Water Manufacturing",{"$f":"Table1[[#This Row],[NAICS Code]]&\" - \"&Table1[[#This Row],[Description]]","v":"312112 - Bottled Water Manufacturing"}]
[null,312113,"Ice Manufacturing",{"$f":"Table1[[#This Row],[NAICS Code]]&\" - \"&Table1[[#This Row],[Description]]","v":"312113 - Ice Manufacturing"}]
[null,312120,"Breweries",{"$f":"Table1[[#This Row],[NAICS Code]]&\" - \"&Table1[[#This Row],[Description]]","v":"312120 - Breweries"}]
[null,312130,"Wineries",{"$f":"Table1[[#This Row],[NAICS Code]]&\" - \"&Table1[[#This Row],[Description]]","v":"312130 - Wineries"}]
[null,312140,"Distilleries",{"$f":"Table1[[#This Row],[NAICS Code]]&\" - \"&Table1[[#This Row],[Description]]","v":"312140 - Distilleries"}]
[null,312230,"Tobacco Manufacturing",{"$f":"Table1[[#This Row],[NAICS Code]]&\" - \"&Table1[[#This Row],[Description]]","v":"312230 - Tobacco Manufacturing"}]
[null,313110,"Fiber, Yarn, and Thread Mills",{"$f":"Table1[[#This Row],[NAICS Code]]&\" - \"&Table1[[#This Row],[Description]]","v":"313110 - Fiber, Yarn, and Thread Mills"}]
[null,313210,"Broadwoven Fabric Mills",{"$f":"Table1[[#This Row],[NAICS Code]]&\" - \"&Table1[[#This Row],[Description]]","v":"313210 - Broadwoven Fabric Mills"}]
[null,313220,"Narrow Fabric Mills and Schiffli Machine Embroidery",{"$f":"Table1[[#This Row],[NAICS Code]]&\" - \"&Table1[[#This Row],[Description]]","v":"313220 - Narrow Fabric Mills and Schiffli Machine Embroidery"}]
[null,313230,"Nonwoven Fabric Mills",{"$f":"Table1[[#This Row],[NAICS Code]]&\" - \"&Table1[[#This Row],[Description]]","v":"313230 - Nonwoven Fabric Mills"}]
[null,313240,"Knit Fabric Mills",{"$f":"Table1[[#This Row],[NAICS Code]]&\" - \"&Table1[[#This Row],[Description]]","v":"313240 - Knit Fabric Mills"}]
[null,313310,"Textile and Fabric Finishing Mills",{"$f":"Table1[[#This Row],[NAICS Code]]&\" - \"&Table1[[#This Row],[Description]]","v":"313310 - Textile and Fabric Finishing Mills"}]
[null,313320,"Fabric Coating Mills",{"$f":"Table1[[#This Row],[NAICS Code]]&\" - \"&Table1[[#This Row],[Description]]","v":"313320 - Fabric Coating Mills"}]
[null,314110,"Carpet and Rug Mills",{"$f":"Table1[[#This Row],[NAICS Code]]&\" - \"&Table1[[#This Row],[Description]]","v":"314110 - Carpet and Rug Mills"}]
[null,314120,"Curtain and Linen Mills",{"$f":"Table1[[#This Row],[NAICS Code]]&\" - \"&Table1[[#This Row],[Description]]","v":"314120 - Curtain and Linen Mills"}]
[null,314910,"Textile Bag and Canvas Mills",{"$f":"Table1[[#This Row],[NAICS Code]]&\" - \"&Table1[[#This Row],[Description]]","v":"314910 - Textile Bag and Canvas Mills"}]
[null,314994,"Rope, Cordage, Twine, Tire Cord, and Tire Fabric Mills",{"$f":"Table1[[#This Row],[NAICS Code]]&\" - \"&Table1[[#This Row],[Description]]","v":"314994 - Rope, Cordage, Twine, Tire Cord, and Tire Fabric Mills"}]
[null,314999,"All Other Miscellaneous Textile Product Mills",{"$f":"Table1[[#This Row],[NAICS Code]]&\" - \"&Table1[[#This Row],[Description]]","v":"314999 - All Other Miscellaneous Textile Product Mills"}]
[null,315110,"Hosiery and Sock Mills",{"$f":"Table1[[#This Row],[NAICS Code]]&\" - \"&Table1[[#This Row],[Description]]","v":"315110 - Hosiery and Sock Mills"}]
[null,315190,"Other Apparel Knitting Mills",{"$f":"Table1[[#This Row],[NAICS Code]]&\" - \"&Table1[[#This Row],[Description]]","v":"315190 - Other Apparel Knitting Mills"}]
[null,315210,"Cut and Sew Apparel Contractors",{"$f":"Table1[[#This Row],[NAICS Code]]&\" - \"&Table1[[#This Row],[Description]]","v":"315210 - Cut and Sew Apparel Contractors"}]
[null,315220,"Mens and Boys Cut and Sew Apparel Manufacturing",{"$f":"Table1[[#This Row],[NAICS Code]]&\" - \"&Table1[[#This Row],[Description]]","v":"315220 - Mens and Boys Cut and Sew Apparel Manufacturing"}]
[null,315240,"Womens, Girls, and Infants Cut and Sew Apparel Manufacturing",{"$f":"Table1[[#This Row],[NAICS Code]]&\" - \"&Table1[[#This Row],[Description]]","v":"315240 - Womens, Girls, and Infants Cut and Sew Apparel Manufacturing"}]
[null,315280,"Other Cut and Sew Apparel Manufacturing",{"$f":"Table1[[#This Row],[NAICS Code]]&\" - \"&Table1[[#This Row],[Description]]","v":"315280 - Other Cut and Sew Apparel Manufacturing"}]
[null,315990,"Apparel Accessories and Other Apparel Manufacturing",{"$f":"Table1[[#This Row],[NAICS Code]]&\" - \"&Table1[[#This Row],[Description]]","v":"315990 - Apparel Accessories and Other Apparel Manufacturing"}]
[null,316110,"Leather and Hide Tanning and Finishing",{"$f":"Table1[[#This Row],[NAICS Code]]&\" - \"&Table1[[#This Row],[Description]]","v":"316110 - Leather and Hide Tanning and Finishing"}]
[null,316210,"Footwear Manufacturing",{"$f":"Table1[[#This Row],[NAICS Code]]&\" - \"&Table1[[#This Row],[Description]]","v":"316210 - Footwear Manufacturing"}]
[null,316992,"Women's Handbag and Purse Manufacturing",{"$f":"Table1[[#This Row],[NAICS Code]]&\" - \"&Table1[[#This Row],[Description]]","v":"316992 - Women's Handbag and Purse Manufacturing"}]
[null,316998,"All Other Leather Good and Allied Product Manufacturing",{"$f":"Table1[[#This Row],[NAICS Code]]&\" - \"&Table1[[#This Row],[Description]]","v":"316998 - All Other Leather Good and Allied Product Manufacturing"}]
[null,321113,"Sawmills",{"$f":"Table1[[#This Row],[NAICS Code]]&\" - \"&Table1[[#This Row],[Description]]","v":"321113 - Sawmills"}]
[null,321114,"Wood Preservation",{"$f":"Table1[[#This Row],[NAICS Code]]&\" - \"&Table1[[#This Row],[Description]]","v":"321114 - Wood Preservation"}]
[null,321211,"Hardwood Veneer and Plywood Manufacturing",{"$f":"Table1[[#This Row],[NAICS Code]]&\" - \"&Table1[[#This Row],[Description]]","v":"321211 - Hardwood Veneer and Plywood Manufacturing"}]
[null,321212,"Softwood Veneer and Plywood Manufacturing",{"$f":"Table1[[#This Row],[NAICS Code]]&\" - \"&Table1[[#This Row],[Description]]","v":"321212 - Softwood Veneer and Plywood Manufacturing"}]
[null,321213,"Engineered Wood Member (except Truss) Manufacturing",{"$f":"Table1[[#This Row],[NAICS Code]]&\" - \"&Table1[[#This Row],[Description]]","v":"321213 - Engineered Wood Member (except Truss) Manufacturing"}]
[null,321214,"Truss Manufacturing",{"$f":"Table1[[#This Row],[NAICS Code]]&\" - \"&Table1[[#This Row],[Description]]","v":"321214 - Truss Manufacturing"}]
[null,321219,"Reconstituted Wood Product Manufacturing",{"$f":"Table1[[#This Row],[NAICS Code]]&\" - \"&Table1[[#This Row],[Description]]","v":"321219 - Reconstituted Wood Product Manufacturing"}]
[null,321911,"Wood Window and Door Manufacturing",{"$f":"Table1[[#This Row],[NAICS Code]]&\" - \"&Table1[[#This Row],[Description]]","v":"321911 - Wood Window and Door Manufacturing"}]
[null,321912,"Cut Stock, Resawing Lumber, and Planing",{"$f":"Table1[[#This Row],[NAICS Code]]&\" - \"&Table1[[#This Row],[Description]]","v":"321912 - Cut Stock, Resawing Lumber, and Planing"}]
[null,321918,"Other Millwork (including Flooring)",{"$f":"Table1[[#This Row],[NAICS Code]]&\" - \"&Table1[[#This Row],[Description]]","v":"321918 - Other Millwork (including Flooring)"}]
[null,321920,"Wood Container and Pallet Manufacturing",{"$f":"Table1[[#This Row],[NAICS Code]]&\" - \"&Table1[[#This Row],[Description]]","v":"321920 - Wood Container and Pallet Manufacturing"}]
[null,321991,"Manufactured Home (Mobile Home) Manufacturing",{"$f":"Table1[[#This Row],[NAICS Code]]&\" - \"&Table1[[#This Row],[Description]]","v":"321991 - Manufactured Home (Mobile Home) Manufacturing"}]
[null,321992,"Prefabricated Wood Building Manufacturing",{"$f":"Table1[[#This Row],[NAICS Code]]&\" - \"&Table1[[#This Row],[Description]]","v":"321992 - Prefabricated Wood Building Manufacturing"}]
[null,321999,"All Other Miscellaneous Wood Product Manufacturing",{"$f":"Table1[[#This Row],[NAICS Code]]&\" - \"&Table1[[#This Row],[Description]]","v":"321999 - All Other Miscellaneous Wood Product Manufacturing"}]
[null,322110,"Pulp Mills",{"$f":"Table1[[#This Row],[NAICS Code]]&\" - \"&Table1[[#This Row],[Description]]","v":"322110 - Pulp Mills"}]
[null,322121,"Paper (except Newsprint) Mills",{"$f":"Table1[[#This Row],[NAICS Code]]&\" - \"&Table1[[#This Row],[Description]]","v":"322121 - Paper (except Newsprint) Mills"}]
[null,322122,"Newsprint Mills",{"$f":"Table1[[#This Row],[NAICS Code]]&\" - \"&Table1[[#This Row],[Description]]","v":"322122 - Newsprint Mills"}]
[null,322130,"Paperboard Mills",{"$f":"Table1[[#This Row],[NAICS Code]]&\" - \"&Table1[[#This Row],[Description]]","v":"322130 - Paperboard Mills"}]
[null,322211,"Corrugated and Solid Fiber Box Manufacturing",{"$f":"Table1[[#This Row],[NAICS Code]]&\" - \"&Table1[[#This Row],[Description]]","v":"322211 - Corrugated and Solid Fiber Box Manufacturing"}]
[null,322212,"Folding Paperboard Box Manufacturing",{"$f":"Table1[[#This Row],[NAICS Code]]&\" - \"&Table1[[#This Row],[Description]]","v":"322212 - Folding Paperboard Box Manufacturing"}]
[null,322219,"Other Paperboard Container Manufacturing",{"$f":"Table1[[#This Row],[NAICS Code]]&\" - \"&Table1[[#This Row],[Description]]","v":"322219 - Other Paperboard Container Manufacturing"}]
[null,322220,"Paper Bag and Coated and Treated Paper Manufacturing",{"$f":"Table1[[#This Row],[NAICS Code]]&\" - \"&Table1[[#This Row],[Description]]","v":"322220 - Paper Bag and Coated and Treated Paper Manufacturing"}]
[null,322230,"Stationery Product Manufacturing",{"$f":"Table1[[#This Row],[NAICS Code]]&\" - \"&Table1[[#This Row],[Description]]","v":"322230 - Stationery Product Manufacturing"}]
[null,322291,"Sanitary Paper Product Manufacturing",{"$f":"Table1[[#This Row],[NAICS Code]]&\" - \"&Table1[[#This Row],[Description]]","v":"322291 - Sanitary Paper Product Manufacturing"}]
[null,322299,"All Other Converted Paper Product Manufacturing",{"$f":"Table1[[#This Row],[NAICS Code]]&\" - \"&Table1[[#This Row],[Description]]","v":"322299 - All Other Converted Paper Product Manufacturing"}]
[null,323111,"Commercial Gravure Printing",{"$f":"Table1[[#This Row],[NAICS Code]]&\" - \"&Table1[[#This Row],[Description]]","v":"323111 - Commercial Gravure Printing"}]
[null,323113,"Commercial Screen Printing",{"$f":"Table1[[#This Row],[NAICS Code]]&\" - \"&Table1[[#This Row],[Description]]","v":"323113 - Commercial Screen Printing"}]
[null,323117,"Books Printing",{"$f":"Table1[[#This Row],[NAICS Code]]&\" - \"&Table1[[#This Row],[Description]]","v":"323117 - Books Printing"}]
[null,323120,"Support Activities for Printing",{"$f":"Table1[[#This Row],[NAICS Code]]&\" - \"&Table1[[#This Row],[Description]]","v":"323120 - Support Activities for Printing"}]
[null,324110,"Petroleum Refineries",{"$f":"Table1[[#This Row],[NAICS Code]]&\" - \"&Table1[[#This Row],[Description]]","v":"324110 - Petroleum Refineries"}]
[null,324121,"Asphalt Paving Mixture and Block Manufacturing",{"$f":"Table1[[#This Row],[NAICS Code]]&\" - \"&Table1[[#This Row],[Description]]","v":"324121 - Asphalt Paving Mixture and Block Manufacturing"}]
[null,324122,"Asphalt Shingle and Coating Materials Manufacturing",{"$f":"Table1[[#This Row],[NAICS Code]]&\" - \"&Table1[[#This Row],[Description]]","v":"324122 - Asphalt Shingle and Coating Materials Manufacturing"}]
[null,324191,"Petroleum Lubricating Oil and Grease Manufacturing",{"$f":"Table1[[#This Row],[NAICS Code]]&\" - \"&Table1[[#This Row],[Description]]","v":"324191 - Petroleum Lubricating Oil and Grease Manufacturing"}]
[null,324199,"All Other Petroleum and Coal Products Manufacturing",{"$f":"Table1[[#This Row],[NAICS Code]]&\" - \"&Table1[[#This Row],[Description]]","v":"324199 - All Other Petroleum and Coal Products Manufacturing"}]
[null,325110,"Petrochemical Manufacturing",{"$f":"Table1[[#This Row],[NAICS Code]]&\" - \"&Table1[[#This Row],[Description]]","v":"325110 - Petrochemical Manufacturing"}]
[null,325120,"Industrial Gas Manufacturing",{"$f":"Table1[[#This Row],[NAICS Code]]&\" - \"&Table1[[#This Row],[Description]]","v":"325120 - Industrial Gas Manufacturing"}]
[null,325130,"Synthetic Dye and Pigment Manufacturing",{"$f":"Table1[[#This Row],[NAICS Code]]&\" - \"&Table1[[#This Row],[Description]]","v":"325130 - Synthetic Dye and Pigment Manufacturing"}]
[null,325180,"Other Basic Inorganic Chemical Manufacturing",{"$f":"Table1[[#This Row],[NAICS Code]]&\" - \"&Table1[[#This Row],[Description]]","v":"325180 - Other Basic Inorganic Chemical Manufacturing"}]
[null,325193,"Ethyl Alcohol Manufacturing",{"$f":"Table1[[#This Row],[NAICS Code]]&\" - \"&Table1[[#This Row],[Description]]","v":"325193 - Ethyl Alcohol Manufacturing"}]
[null,325194,"Cyclic Crude, Intermediate, and Gum and Wood Chemical Manufacturing",{"$f":"Table1[[#This Row],[NAICS Code]]&\" - \"&Table1[[#This Row],[Description]]","v":"325194 - Cyclic Crude, Intermediate, and Gum and Wood Chemical Manufacturing"}]
[null,325199,"All Other Basic Organic Chemical Manufacturing",{"$f":"Table1[[#This Row],[NAICS Code]]&\" - \"&Table1[[#This Row],[Description]]","v":"325199 - All Other Basic Organic Chemical Manufacturing"}]
[null,325211,"Plastics Material and Resin Manufacturing",{"$f":"Table1[[#This Row],[NAICS Code]]&\" - \"&Table1[[#This Row],[Description]]","v":"325211 - Plastics Material and Resin Manufacturing"}]
[null,325212,"Synthetic Rubber Manufacturing",{"$f":"Table1[[#This Row],[NAICS Code]]&\" - \"&Table1[[#This Row],[Description]]","v":"325212 - Synthetic Rubber Manufacturing"}]
[null,325220,"Artificial and Synthetic Fibers and Filaments Manufacturing",{"$f":"Table1[[#This Row],[NAICS Code]]&\" - \"&Table1[[#This Row],[Description]]","v":"325220 - Artificial and Synthetic Fibers and Filaments Manufacturing"}]
[null,325311,"Nitrogenous Fertilizer Manufacturing",{"$f":"Table1[[#This Row],[NAICS Code]]&\" - \"&Table1[[#This Row],[Description]]","v":"325311 - Nitrogenous Fertilizer Manufacturing"}]
[null,325312,"Phosphatic Fertilizer Manufacturing",{"$f":"Table1[[#This Row],[NAICS Code]]&\" - \"&Table1[[#This Row],[Description]]","v":"325312 - Phosphatic Fertilizer Manufacturing"}]
[null,325314,"Fertilizer (Mixing Only) Manufacturing",{"$f":"Table1[[#This Row],[NAICS Code]]&\" - \"&Table1[[#This Row],[Description]]","v":"325314 - Fertilizer (Mixing Only) Manufacturing"}]
[null,325320,"Pesticide and Other Agricultural Chemical Manufacturing",{"$f":"Table1[[#This Row],[NAICS Code]]&\" - \"&Table1[[#This Row],[Description]]","v":"325320 - Pesticide and Other Agricultural Chemical Manufacturing"}]
[null,325411,"Medicinal and Botanical Manufacturing",{"$f":"Table1[[#This Row],[NAICS Code]]&\" - \"&Table1[[#This Row],[Description]]","v":"325411 - Medicinal and Botanical Manufacturing"}]
[null,325412,"Pharmaceutical Preparation Manufacturing",{"$f":"Table1[[#This Row],[NAICS Code]]&\" - \"&Table1[[#This Row],[Description]]","v":"325412 - Pharmaceutical Preparation Manufacturing"}]
[null,325413,"In-Vitro Diagnostic Substance Manufacturing",{"$f":"Table1[[#This Row],[NAICS Code]]&\" - \"&Table1[[#This Row],[Description]]","v":"325413 - In-Vitro Diagnostic Substance Manufacturing"}]
[null,325414,"Biological Product (except Diagnostic) Manufacturing",{"$f":"Table1[[#This Row],[NAICS Code]]&\" - \"&Table1[[#This Row],[Description]]","v":"325414 - Biological Product (except Diagnostic) Manufacturing"}]
[null,325510,"Paint and Coating Manufacturing",{"$f":"Table1[[#This Row],[NAICS Code]]&\" - \"&Table1[[#This Row],[Description]]","v":"325510 - Paint and Coating Manufacturing"}]
[null,325520,"Adhesive Manufacturing",{"$f":"Table1[[#This Row],[NAICS Code]]&\" - \"&Table1[[#This Row],[Description]]","v":"325520 - Adhesive Manufacturing"}]
[null,325611,"Soap and Other Detergent Manufacturing",{"$f":"Table1[[#This Row],[NAICS Code]]&\" - \"&Table1[[#This Row],[Description]]","v":"325611 - Soap and Other Detergent Manufacturing"}]
[null,325612,"Polish and Other Sanitation Good Manufacturing",{"$f":"Table1[[#This Row],[NAICS Code]]&\" - \"&Table1[[#This Row],[Description]]","v":"325612 - Polish and Other Sanitation Good Manufacturing"}]
[null,325613,"Surface Active Agent Manufacturing",{"$f":"Table1[[#This Row],[NAICS Code]]&\" - \"&Table1[[#This Row],[Description]]","v":"325613 - Surface Active Agent Manufacturing"}]
[null,325620,"Toilet Preparation Manufacturing",{"$f":"Table1[[#This Row],[NAICS Code]]&\" - \"&Table1[[#This Row],[Description]]","v":"325620 - Toilet Preparation Manufacturing"}]
[null,325910,"Printing Ink Manufacturing",{"$f":"Table1[[#This Row],[NAICS Code]]&\" - \"&Table1[[#This Row],[Description]]","v":"325910 - Printing Ink Manufacturing"}]
[null,325920,"Explosives Manufacturing",{"$f":"Table1[[#This Row],[NAICS Code]]&\" - \"&Table1[[#This Row],[Description]]","v":"325920 - Explosives Manufacturing"}]
[null,325991,"Custom Compounding of Purchased Resins",{"$f":"Table1[[#This Row],[NAICS Code]]&\" - \"&Table1[[#This Row],[Description]]","v":"325991 - Custom Compounding of Purchased Resins"}]
[null,325992,"Photographic Film, Paper, Plate, and Chemical Manufacturing",{"$f":"Table1[[#This Row],[NAICS Code]]&\" - \"&Table1[[#This Row],[Description]]","v":"325992 - Photographic Film, Paper, Plate, and Chemical Manufacturing"}]
[null,325998,"All Other Miscellaneous Chemical Product and Preparation Manufacturing",{"$f":"Table1[[#This Row],[NAICS Code]]&\" - \"&Table1[[#This Row],[Description]]","v":"325998 - All Other Miscellaneous Chemical Product and Preparation Manufacturing"}]
[null,326111,"Plastics Bag and Pouch Manufacturing",{"$f":"Table1[[#This Row],[NAICS Code]]&\" - \"&Table1[[#This Row],[Description]]","v":"326111 - Plastics Bag and Pouch Manufacturing"}]
[null,326112,"Plastics Packaging Film and Sheet (including Laminated) Manufacturing",{"$f":"Table1[[#This Row],[NAICS Code]]&\" - \"&Table1[[#This Row],[Description]]","v":"326112 - Plastics Packaging Film and Sheet (including Laminated) Manufacturing"}]
[null,326113,"Unlaminated Plastics Film and Sheet (except Packaging) Manufacturing",{"$f":"Table1[[#This Row],[NAICS Code]]&\" - \"&Table1[[#This Row],[Description]]","v":"326113 - Unlaminated Plastics Film and Sheet (except Packaging) Manufacturing"}]
[null,326121,"Unlaminated Plastics Profile Shape Manufacturing",{"$f":"Table1[[#This Row],[NAICS Code]]&\" - \"&Table1[[#This Row],[Description]]","v":"326121 - Unlaminated Plastics Profile Shape Manufacturing"}]
[null,326122,"Plastics Pipe and Pipe Fitting Manufacturing",{"$f":"Table1[[#This Row],[NAICS Code]]&\" - \"&Table1[[#This Row],[Description]]","v":"326122 - Plastics Pipe and Pipe Fitting Manufacturing"}]
[null,326130,"Laminated Plastics Plate, Sheet (except Packaging), and Shape Manufacturing",{"$f":"Table1[[#This Row],[NAICS Code]]&\" - \"&Table1[[#This Row],[Description]]","v":"326130 - Laminated Plastics Plate, Sheet (except Packaging), and Shape Manufacturing"}]
[null,326140,"Polystyrene Foam Product Manufacturing",{"$f":"Table1[[#This Row],[NAICS Code]]&\" - \"&Table1[[#This Row],[Description]]","v":"326140 - Polystyrene Foam Product Manufacturing"}]
[null,326150,"Urethane and Other Foam Product (except Polystyrene) Manufacturing",{"$f":"Table1[[#This Row],[NAICS Code]]&\" - \"&Table1[[#This Row],[Description]]","v":"326150 - Urethane and Other Foam Product (except Polystyrene) Manufacturing"}]
[null,326160,"Plastics Bottle Manufacturing",{"$f":"Table1[[#This Row],[NAICS Code]]&\" - \"&Table1[[#This Row],[Description]]","v":"326160 - Plastics Bottle Manufacturing"}]
[null,326191,"Plastics Plumbing Fixture Manufacturing",{"$f":"Table1[[#This Row],[NAICS Code]]&\" - \"&Table1[[#This Row],[Description]]","v":"326191 - Plastics Plumbing Fixture Manufacturing"}]
[null,326199,"All Other Plastics Product Manufacturing",{"$f":"Table1[[#This Row],[NAICS Code]]&\" - \"&Table1[[#This Row],[Description]]","v":"326199 - All Other Plastics Product Manufacturing"}]
[null,326211,"Tire Manufacturing (except Retreading)",{"$f":"Table1[[#This Row],[NAICS Code]]&\" - \"&Table1[[#This Row],[Description]]","v":"326211 - Tire Manufacturing (except Retreading)"}]
[null,326212,"Tire Retreading",{"$f":"Table1[[#This Row],[NAICS Code]]&\" - \"&Table1[[#This Row],[Description]]","v":"326212 - Tire Retreading"}]
[null,326220,"Rubber and Plastics Hoses and Belting Manufacturing",{"$f":"Table1[[#This Row],[NAICS Code]]&\" - \"&Table1[[#This Row],[Description]]","v":"326220 - Rubber and Plastics Hoses and Belting Manufacturing"}]
[null,326291,"Rubber Product Manufacturing for Mechanical Use",{"$f":"Table1[[#This Row],[NAICS Code]]&\" - \"&Table1[[#This Row],[Description]]","v":"326291 - Rubber Product Manufacturing for Mechanical Use"}]
[null,326299,"All Other Rubber Product Manufacturing",{"$f":"Table1[[#This Row],[NAICS Code]]&\" - \"&Table1[[#This Row],[Description]]","v":"326299 - All Other Rubber Product Manufacturing"}]
[null,327110,"Pottery, Ceramics, and Plumbing Fixture Manufacturing",{"$f":"Table1[[#This Row],[NAICS Code]]&\" - \"&Table1[[#This Row],[Description]]","v":"327110 - Pottery, Ceramics, and Plumbing Fixture Manufacturing"}]
[null,327120,"Clay Building Material and Refractories Manufacturing",{"$f":"Table1[[#This Row],[NAICS Code]]&\" - \"&Table1[[#This Row],[Description]]","v":"327120 - Clay Building Material and Refractories Manufacturing"}]
[null,327211,"Flat Glass Manufacturing",{"$f":"Table1[[#This Row],[NAICS Code]]&\" - \"&Table1[[#This Row],[Description]]","v":"327211 - Flat Glass Manufacturing"}]
[null,327212,"Other Pressed and Blown Glass and Glassware Manufacturing",{"$f":"Table1[[#This Row],[NAICS Code]]&\" - \"&Table1[[#This Row],[Description]]","v":"327212 - Other Pressed and Blown Glass and Glassware Manufacturing"}]
[null,327213,"Glass Container Manufacturing",{"$f":"Table1[[#This Row],[NAICS Code]]&\" - \"&Table1[[#This Row],[Description]]","v":"327213 - Glass Container Manufacturing"}]
[null,327215,"Glass Product Manufacturing Made of Purchased Glass",{"$f":"Table1[[#This Row],[NAICS Code]]&\" - \"&Table1[[#This Row],[Description]]","v":"327215 - Glass Product Manufacturing Made of Purchased Glass"}]
[null,327310,"Cement Manufacturing",{"$f":"Table1[[#This Row],[NAICS Code]]&\" - \"&Table1[[#This Row],[Description]]","v":"327310 - Cement Manufacturing"}]
[null,327320,"Ready-Mix Concrete Manufacturing",{"$f":"Table1[[#This Row],[NAICS Code]]&\" - \"&Table1[[#This Row],[Description]]","v":"327320 - Ready-Mix Concrete Manufacturing"}]
[null,327331,"Concrete Block and Brick Manufacturing",{"$f":"Table1[[#This Row],[NAICS Code]]&\" - \"&Table1[[#This Row],[Description]]","v":"327331 - Concrete Block and Brick Manufacturing"}]
[null,327332,"Concrete Pipe Manufacturing",{"$f":"Table1[[#This Row],[NAICS Code]]&\" - \"&Table1[[#This Row],[Description]]","v":"327332 - Concrete Pipe Manufacturing"}]
[null,327390,"Other Concrete Product Manufacturing",{"$f":"Table1[[#This Row],[NAICS Code]]&\" - \"&Table1[[#This Row],[Description]]","v":"327390 - Other Concrete Product Manufacturing"}]
[null,327410,"Lime Manufacturing",{"$f":"Table1[[#This Row],[NAICS Code]]&\" - \"&Table1[[#This Row],[Description]]","v":"327410 - Lime Manufacturing"}]
[null,327420,"Gypsum Product Manufacturing",{"$f":"Table1[[#This Row],[NAICS Code]]&\" - \"&Table1[[#This Row],[Description]]","v":"327420 - Gypsum Product Manufacturing"}]
[null,327910,"Abrasive Product Manufacturing",{"$f":"Table1[[#This Row],[NAICS Code]]&\" - \"&Table1[[#This Row],[Description]]","v":"327910 - Abrasive Product Manufacturing"}]
[null,327991,"Cut Stone and Stone Product Manufacturing",{"$f":"Table1[[#This Row],[NAICS Code]]&\" - \"&Table1[[#This Row],[Description]]","v":"327991 - Cut Stone and Stone Product Manufacturing"}]
[null,327992,"Ground or Treated Mineral and Earth Manufacturing",{"$f":"Table1[[#This Row],[NAICS Code]]&\" - \"&Table1[[#This Row],[Description]]","v":"327992 - Ground or Treated Mineral and Earth Manufacturing"}]
[null,327993,"Mineral Wool Manufacturing",{"$f":"Table1[[#This Row],[NAICS Code]]&\" - \"&Table1[[#This Row],[Description]]","v":"327993 - Mineral Wool Manufacturing"}]
[null,327999,"All Other Miscellaneous Nonmetallic Mineral Product Manufacturing",{"$f":"Table1[[#This Row],[NAICS Code]]&\" - \"&Table1[[#This Row],[Description]]","v":"327999 - All Other Miscellaneous Nonmetallic Mineral Product Manufacturing"}]
[null,331110,"Iron and Steel Mills and Ferroalloy Manufacturing",{"$f":"Table1[[#This Row],[NAICS Code]]&\" - \"&Table1[[#This Row],[Description]]","v":"331110 - Iron and Steel Mills and Ferroalloy Manufacturing"}]
[null,331210,"Iron and Steel Pipe and Tube Manufacturing from Purchased Steel",{"$f":"Table1[[#This Row],[NAICS Code]]&\" - \"&Table1[[#This Row],[Description]]","v":"331210 - Iron and Steel Pipe and Tube Manufacturing from Purchased Steel"}]
[null,331221,"Rolled Steel Shape Manufacturing",{"$f":"Table1[[#This Row],[NAICS Code]]&\" - \"&Table1[[#This Row],[Description]]","v":"331221 - Rolled Steel Shape Manufacturing"}]
[null,331222,"Steel Wire Drawing",{"$f":"Table1[[#This Row],[NAICS Code]]&\" - \"&Table1[[#This Row],[Description]]","v":"331222 - Steel Wire Drawing"}]
[null,331313,"Alumina Refining and Primary Aluminum Production",{"$f":"Table1[[#This Row],[NAICS Code]]&\" - \"&Table1[[#This Row],[Description]]","v":"331313 - Alumina Refining and Primary Aluminum Production"}]
[null,331314,"Secondary Smelting and Alloying of Aluminum",{"$f":"Table1[[#This Row],[NAICS Code]]&\" - \"&Table1[[#This Row],[Description]]","v":"331314 - Secondary Smelting and Alloying of Aluminum"}]
[null,331315,"Aluminum Sheet, Plate, and Foil Manufacturing",{"$f":"Table1[[#This Row],[NAICS Code]]&\" - \"&Table1[[#This Row],[Description]]","v":"331315 - Aluminum Sheet, Plate, and Foil Manufacturing"}]
[null,331318,"Other Aluminum Rolling, Drawing, and Extruding",{"$f":"Table1[[#This Row],[NAICS Code]]&\" - \"&Table1[[#This Row],[Description]]","v":"331318 - Other Aluminum Rolling, Drawing, and Extruding"}]
[null,331410,"Nonferrous Metal (except Aluminum) Smelting and Refining",{"$f":"Table1[[#This Row],[NAICS Code]]&\" - \"&Table1[[#This Row],[Description]]","v":"331410 - Nonferrous Metal (except Aluminum) Smelting and Refining"}]
[null,331420,"Copper Rolling, Drawing, Extruding, and Alloying",{"$f":"Table1[[#This Row],[NAICS Code]]&\" - \"&Table1[[#This Row],[Description]]","v":"331420 - Copper Rolling, Drawing, Extruding, and Alloying"}]
[null,331491,"Nonferrous Metal (except Copper and Aluminum) Rolling, Drawing, and Extruding",{"$f":"Table1[[#This Row],[NAICS Code]]&\" - \"&Table1[[#This Row],[Description]]","v":"331491 - Nonferrous Metal (except Copper and Aluminum) Rolling, Drawing, and Extruding"}]
[null,331492,"Secondary Smelting, Refining, and Alloying of Nonferrous Metal (except Copper and Aluminum)",{"$f":"Table1[[#This Row],[NAICS Code]]&\" - \"&Table1[[#This Row],[Description]]","v":"331492 - Secondary Smelting, Refining, and Alloying of Nonferrous Metal (except Copper and Aluminum)"}]
[null,331511,"Iron Foundries",{"$f":"Table1[[#This Row],[NAICS Code]]&\" - \"&Table1[[#This Row],[Description]]","v":"331511 - Iron Foundries"}]
[null,331512,"Steel Investment Foundries",{"$f":"Table1[[#This Row],[NAICS Code]]&\" - \"&Table1[[#This Row],[Description]]","v":"331512 - Steel Investment Foundries"}]
[null,331513,"Steel Foundries (except Investment)",{"$f":"Table1[[#This Row],[NAICS Code]]&\" - \"&Table1[[#This Row],[Description]]","v":"331513 - Steel Foundries (except Investment)"}]
[null,331523,"Nonferrous Metal Die-Casting Foundries",{"$f":"Table1[[#This Row],[NAICS Code]]&\" - \"&Table1[[#This Row],[Description]]","v":"331523 - Nonferrous Metal Die-Casting Foundries"}]
[null,331524,"Aluminum Foundries (except Die-Casting)",{"$f":"Table1[[#This Row],[NAICS Code]]&\" - \"&Table1[[#This Row],[Description]]","v":"331524 - Aluminum Foundries (except Die-Casting)"}]
[null,331529,"Other Nonferrous Metal Foundries (except Die-Casting)",{"$f":"Table1[[#This Row],[NAICS Code]]&\" - \"&Table1[[#This Row],[Description]]","v":"331529 - Other Nonferrous Metal Foundries (except Die-Casting)"}]
[null,332111,"Iron and Steel Forging",{"$f":"Table1[[#This Row],[NAICS Code]]&\" - \"&Table1[[#This Row],[Description]]","v":"332111 - Iron and Steel Forging"}]
[null,332112,"Nonferrous Forging",{"$f":"Table1[[#This Row],[NAICS Code]]&\" - \"&Table1[[#This Row],[Description]]","v":"332112 - Nonferrous Forging"}]
[null,332114,"Custom Roll Forming",{"$f":"Table1[[#This Row],[NAICS Code]]&\" - \"&Table1[[#This Row],[Description]]","v":"332114 - Custom Roll Forming"}]
[null,332117,"Powder Metallurgy Part Manufacturing",{"$f":"Table1[[#This Row],[NAICS Code]]&\" - \"&Table1[[#This Row],[Description]]","v":"332117 - Powder Metallurgy Part Manufacturing"}]
[null,332119,"Metal Crown, Closure, and Other Metal Stamping (except Automotive)",{"$f":"Table1[[#This Row],[NAICS Code]]&\" - \"&Table1[[#This Row],[Description]]","v":"332119 - Metal Crown, Closure, and Other Metal Stamping (except Automotive)"}]
[null,332215,"Metal Kitchen Cookware, Utensil, Cutlery, and Flatware (except Precious) Manufacturing",{"$f":"Table1[[#This Row],[NAICS Code]]&\" - \"&Table1[[#This Row],[Description]]","v":"332215 - Metal Kitchen Cookware, Utensil, Cutlery, and Flatware (except Precious) Manufacturing"}]
[null,332216,"Saw Blade and Handtool Manufacturing",{"$f":"Table1[[#This Row],[NAICS Code]]&\" - \"&Table1[[#This Row],[Description]]","v":"332216 - Saw Blade and Handtool Manufacturing"}]
[null,332311,"Prefabricated Metal Building and Component Manufacturing",{"$f":"Table1[[#This Row],[NAICS Code]]&\" - \"&Table1[[#This Row],[Description]]","v":"332311 - Prefabricated Metal Building and Component Manufacturing"}]
[null,332312,"Fabricated Structural Metal Manufacturing",{"$f":"Table1[[#This Row],[NAICS Code]]&\" - \"&Table1[[#This Row],[Description]]","v":"332312 - Fabricated Structural Metal Manufacturing"}]
[null,332313,"Plate Work Manufacturing",{"$f":"Table1[[#This Row],[NAICS Code]]&\" - \"&Table1[[#This Row],[Description]]","v":"332313 - Plate Work Manufacturing"}]
[null,332321,"Metal Window and Door Manufacturing",{"$f":"Table1[[#This Row],[NAICS Code]]&\" - \"&Table1[[#This Row],[Description]]","v":"332321 - Metal Window and Door Manufacturing"}]
[null,332322,"Sheet Metal Work Manufacturing",{"$f":"Table1[[#This Row],[NAICS Code]]&\" - \"&Table1[[#This Row],[Description]]","v":"332322 - Sheet Metal Work Manufacturing"}]
[null,332323,"Ornamental and Architectural Metal Work Manufacturing",{"$f":"Table1[[#This Row],[NAICS Code]]&\" - \"&Table1[[#This Row],[Description]]","v":"332323 - Ornamental and Architectural Metal Work Manufacturing"}]
[null,332410,"Power Boiler and Heat Exchanger Manufacturing",{"$f":"Table1[[#This Row],[NAICS Code]]&\" - \"&Table1[[#This Row],[Description]]","v":"332410 - Power Boiler and Heat Exchanger Manufacturing"}]
[null,332420,"Metal Tank (Heavy Gauge) Manufacturing",{"$f":"Table1[[#This Row],[NAICS Code]]&\" - \"&Table1[[#This Row],[Description]]","v":"332420 - Metal Tank (Heavy Gauge) Manufacturing"}]
[null,332431,"Metal Can Manufacturing",{"$f":"Table1[[#This Row],[NAICS Code]]&\" - \"&Table1[[#This Row],[Description]]","v":"332431 - Metal Can Manufacturing"}]
[null,332439,"Other Metal Container Manufacturing",{"$f":"Table1[[#This Row],[NAICS Code]]&\" - \"&Table1[[#This Row],[Description]]","v":"332439 - Other Metal Container Manufacturing"}]
[null,332510,"Hardware Manufacturing",{"$f":"Table1[[#This Row],[NAICS Code]]&\" - \"&Table1[[#This Row],[Description]]","v":"332510 - Hardware Manufacturing"}]
[null,332613,"Spring Manufacturing",{"$f":"Table1[[#This Row],[NAICS Code]]&\" - \"&Table1[[#This Row],[Description]]","v":"332613 - Spring Manufacturing"}]
[null,332618,"Other Fabricated Wire Product Manufacturing",{"$f":"Table1[[#This Row],[NAICS Code]]&\" - \"&Table1[[#This Row],[Description]]","v":"332618 - Other Fabricated Wire Product Manufacturing"}]
[null,332710,"Machine Shops",{"$f":"Table1[[#This Row],[NAICS Code]]&\" - \"&Table1[[#This Row],[Description]]","v":"332710 - Machine Shops"}]
[null,332721,"Precision Turned Product Manufacturing",{"$f":"Table1[[#This Row],[NAICS Code]]&\" - \"&Table1[[#This Row],[Description]]","v":"332721 - Precision Turned Product Manufacturing"}]
[null,332722,"Bolt, Nut, Screw, Rivet, and Washer Manufacturing",{"$f":"Table1[[#This Row],[NAICS Code]]&\" - \"&Table1[[#This Row],[Description]]","v":"332722 - Bolt, Nut, Screw, Rivet, and Washer Manufacturing"}]
[null,332811,"Metal Heat Treating",{"$f":"Table1[[#This Row],[NAICS Code]]&\" - \"&Table1[[#This Row],[Description]]","v":"332811 - Metal Heat Treating"}]
[null,332812,"Metal Coating, Engraving (except Jewelry and Silverware), and Allied Services to Manufacturers",{"$f":"Table1[[#This Row],[NAICS Code]]&\" - \"&Table1[[#This Row],[Description]]","v":"332812 - Metal Coating, Engraving (except Jewelry and Silverware), and Allied Services to Manufacturers"}]
[null,332813,"Electroplating, Plating, Polishing, Anodizing, and Coloring",{"$f":"Table1[[#This Row],[NAICS Code]]&\" - \"&Table1[[#This Row],[Description]]","v":"332813 - Electroplating, Plating, Polishing, Anodizing, and Coloring"}]
[null,332911,"Industrial Valve Manufacturing",{"$f":"Table1[[#This Row],[NAICS Code]]&\" - \"&Table1[[#This Row],[Description]]","v":"332911 - Industrial Valve Manufacturing"}]
[null,332912,"Fluid Power Valve and Hose Fitting Manufacturing",{"$f":"Table1[[#This Row],[NAICS Code]]&\" - \"&Table1[[#This Row],[Description]]","v":"332912 - Fluid Power Valve and Hose Fitting Manufacturing"}]
[null,332913,"Plumbing Fixture Fitting and Trim Manufacturing",{"$f":"Table1[[#This Row],[NAICS Code]]&\" - \"&Table1[[#This Row],[Description]]","v":"332913 - Plumbing Fixture Fitting and Trim Manufacturing"}]
[null,332919,"Other Metal Valve and Pipe Fitting Manufacturing",{"$f":"Table1[[#This Row],[NAICS Code]]&\" - \"&Table1[[#This Row],[Description]]","v":"332919 - Other Metal Valve and Pipe Fitting Manufacturing"}]
[null,332991,"Ball and Roller Bearing Manufacturing",{"$f":"Table1[[#This Row],[NAICS Code]]&\" - \"&Table1[[#This Row],[Description]]","v":"332991 - Ball and Roller Bearing Manufacturing"}]
[null,332992,"Small Arms Ammunition Manufacturing",{"$f":"Table1[[#This Row],[NAICS Code]]&\" - \"&Table1[[#This Row],[Description]]","v":"332992 - Small Arms Ammunition Manufacturing"}]
[null,332993,"Ammunition (except Small Arms) Manufacturing",{"$f":"Table1[[#This Row],[NAICS Code]]&\" - \"&Table1[[#This Row],[Description]]","v":"332993 - Ammunition (except Small Arms) Manufacturing"}]
[null,332994,"Small Arms Manufacturing",{"$f":"Table1[[#This Row],[NAICS Code]]&\" - \"&Table1[[#This Row],[Description]]","v":"332994 - Small Arms Manufacturing"}]
[null,332996,"Fabricated Pipe and Pipe Fitting Manufacturing",{"$f":"Table1[[#This Row],[NAICS Code]]&\" - \"&Table1[[#This Row],[Description]]","v":"332996 - Fabricated Pipe and Pipe Fitting Manufacturing"}]
[null,332999,"All Other Miscellaneous Fabricated Metal Product Manufacturing",{"$f":"Table1[[#This Row],[NAICS Code]]&\" - \"&Table1[[#This Row],[Description]]","v":"332999 - All Other Miscellaneous Fabricated Metal Product Manufacturing"}]
[null,333111,"Farm Machinery and Equipment Manufacturing",{"$f":"Table1[[#This Row],[NAICS Code]]&\" - \"&Table1[[#This Row],[Description]]","v":"333111 - Farm Machinery and Equipment Manufacturing"}]
[null,333112,"Lawn and Garden Tractor and Home Lawn and Garden Equipment Manufacturing",{"$f":"Table1[[#This Row],[NAICS Code]]&\" - \"&Table1[[#This Row],[Description]]","v":"333112 - Lawn and Garden Tractor and Home Lawn and Garden Equipment Manufacturing"}]
[null,333120,"Construction Machinery Manufacturing",{"$f":"Table1[[#This Row],[NAICS Code]]&\" - \"&Table1[[#This Row],[Description]]","v":"333120 - Construction Machinery Manufacturing"}]
[null,333131,"Mining Machinery and Equipment Manufacturing",{"$f":"Table1[[#This Row],[NAICS Code]]&\" - \"&Table1[[#This Row],[Description]]","v":"333131 - Mining Machinery and Equipment Manufacturing"}]
[null,333132,"Oil and Gas Field Machinery and Equipment Manufacturing",{"$f":"Table1[[#This Row],[NAICS Code]]&\" - \"&Table1[[#This Row],[Description]]","v":"333132 - Oil and Gas Field Machinery and Equipment Manufacturing"}]
[null,333241,"Food Product Machinery Manufacturing",{"$f":"Table1[[#This Row],[NAICS Code]]&\" - \"&Table1[[#This Row],[Description]]","v":"333241 - Food Product Machinery Manufacturing"}]
[null,333242,"Semiconductor Machinery Manufacturing",{"$f":"Table1[[#This Row],[NAICS Code]]&\" - \"&Table1[[#This Row],[Description]]","v":"333242 - Semiconductor Machinery Manufacturing"}]
[null,333243,"Sawmill, Woodworking, and Paper Machinery Manufacturing",{"$f":"Table1[[#This Row],[NAICS Code]]&\" - \"&Table1[[#This Row],[Description]]","v":"333243 - Sawmill, Woodworking, and Paper Machinery Manufacturing"}]
[null,333244,"Printing Machinery and Equipment Manufacturing",{"$f":"Table1[[#This Row],[NAICS Code]]&\" - \"&Table1[[#This Row],[Description]]","v":"333244 - Printing Machinery and Equipment Manufacturing"}]
[null,333249,"Other Industrial Machinery Manufacturing",{"$f":"Table1[[#This Row],[NAICS Code]]&\" - \"&Table1[[#This Row],[Description]]","v":"333249 - Other Industrial Machinery Manufacturing"}]
[null,333314,"Optical Instrument and Lens Manufacturing",{"$f":"Table1[[#This Row],[NAICS Code]]&\" - \"&Table1[[#This Row],[Description]]","v":"333314 - Optical Instrument and Lens Manufacturing"}]
[null,333316,"Photographic and Photocopying Equipment Manufacturing",{"$f":"Table1[[#This Row],[NAICS Code]]&\" - \"&Table1[[#This Row],[Description]]","v":"333316 - Photographic and Photocopying Equipment Manufacturing"}]
[null,333318,"Other Commercial and Service Industry Machinery Manufacturing",{"$f":"Table1[[#This Row],[NAICS Code]]&\" - \"&Table1[[#This Row],[Description]]","v":"333318 - Other Commercial and Service Industry Machinery Manufacturing"}]
[null,333413,"Industrial and Commercial Fan and Blower and Air Purification Equipment Manufacturing",{"$f":"Table1[[#This Row],[NAICS Code]]&\" - \"&Table1[[#This Row],[Description]]","v":"333413 - Industrial and Commercial Fan and Blower and Air Purification Equipment Manufacturing"}]
[null,333414,"Heating Equipment (except Warm Air Furnaces) Manufacturing",{"$f":"Table1[[#This Row],[NAICS Code]]&\" - \"&Table1[[#This Row],[Description]]","v":"333414 - Heating Equipment (except Warm Air Furnaces) Manufacturing"}]
[null,333415,"Air-Conditioning and Warm Air Heating Equipment and Commercial and Industrial Refrigeration Equipment Manufacturing",{"$f":"Table1[[#This Row],[NAICS Code]]&\" - \"&Table1[[#This Row],[Description]]","v":"333415 - Air-Conditioning and Warm Air Heating Equipment and Commercial and Industrial Refrigeration Equipment Manufacturing"}]
[null,333511,"Industrial Mold Manufacturing",{"$f":"Table1[[#This Row],[NAICS Code]]&\" - \"&Table1[[#This Row],[Description]]","v":"333511 - Industrial Mold Manufacturing"}]
[null,333514,"Special Die and Tool, Die Set, Jig, and Fixture Manufacturing",{"$f":"Table1[[#This Row],[NAICS Code]]&\" - \"&Table1[[#This Row],[Description]]","v":"333514 - Special Die and Tool, Die Set, Jig, and Fixture Manufacturing"}]
[null,333515,"Cutting Tool and Machine Tool Accessory Manufacturing",{"$f":"Table1[[#This Row],[NAICS Code]]&\" - \"&Table1[[#This Row],[Description]]","v":"333515 - Cutting Tool and Machine Tool Accessory Manufacturing"}]
[null,333517,"Machine Tool Manufacturing",{"$f":"Table1[[#This Row],[NAICS Code]]&\" - \"&Table1[[#This Row],[Description]]","v":"333517 - Machine Tool Manufacturing"}]
[null,333519,"Rolling Mill and Other Metalworking Machinery Manufacturing",{"$f":"Table1[[#This Row],[NAICS Code]]&\" - \"&Table1[[#This Row],[Description]]","v":"333519 - Rolling Mill and Other Metalworking Machinery Manufacturing"}]
[null,333611,"Turbine and Turbine Generator Set Units Manufacturing",{"$f":"Table1[[#This Row],[NAICS Code]]&\" - \"&Table1[[#This Row],[Description]]","v":"333611 - Turbine and Turbine Generator Set Units Manufacturing"}]
[null,333612,"Speed Changer, Industrial High-Speed Drive, and Gear Manufacturing",{"$f":"Table1[[#This Row],[NAICS Code]]&\" - \"&Table1[[#This Row],[Description]]","v":"333612 - Speed Changer, Industrial High-Speed Drive, and Gear Manufacturing"}]
[null,333613,"Mechanical Power Transmission Equipment Manufacturing",{"$f":"Table1[[#This Row],[NAICS Code]]&\" - \"&Table1[[#This Row],[Description]]","v":"333613 - Mechanical Power Transmission Equipment Manufacturing"}]
[null,333618,"Other Engine Equipment Manufacturing",{"$f":"Table1[[#This Row],[NAICS Code]]&\" - \"&Table1[[#This Row],[Description]]","v":"333618 - Other Engine Equipment Manufacturing"}]
[null,333912,"Air and Gas Compressor Manufacturing",{"$f":"Table1[[#This Row],[NAICS Code]]&\" - \"&Table1[[#This Row],[Description]]","v":"333912 - Air and Gas Compressor Manufacturing"}]
[null,333914,"Measuring, Dispensing, and Other Pumping Equipment Manufacturing",{"$f":"Table1[[#This Row],[NAICS Code]]&\" - \"&Table1[[#This Row],[Description]]","v":"333914 - Measuring, Dispensing, and Other Pumping Equipment Manufacturing"}]
[null,333921,"Elevator and Moving Stairway Manufacturing",{"$f":"Table1[[#This Row],[NAICS Code]]&\" - \"&Table1[[#This Row],[Description]]","v":"333921 - Elevator and Moving Stairway Manufacturing"}]
[null,333922,"Conveyor and Conveying Equipment Manufacturing",{"$f":"Table1[[#This Row],[NAICS Code]]&\" - \"&Table1[[#This Row],[Description]]","v":"333922 - Conveyor and Conveying Equipment Manufacturing"}]
[null,333923,"Overhead Traveling Crane, Hoist, and Monorail System Manufacturing",{"$f":"Table1[[#This Row],[NAICS Code]]&\" - \"&Table1[[#This Row],[Description]]","v":"333923 - Overhead Traveling Crane, Hoist, and Monorail System Manufacturing"}]
[null,333924,"Industrial Truck, Tractor, Trailer, and Stacker Machinery Manufacturing",{"$f":"Table1[[#This Row],[NAICS Code]]&\" - \"&Table1[[#This Row],[Description]]","v":"333924 - Industrial Truck, Tractor, Trailer, and Stacker Machinery Manufacturing"}]
[null,333991,"Power-Driven Handtool Manufacturing",{"$f":"Table1[[#This Row],[NAICS Code]]&\" - \"&Table1[[#This Row],[Description]]","v":"333991 - Power-Driven Handtool Manufacturing"}]
[null,333992,"Welding and Soldering Equipment Manufacturing",{"$f":"Table1[[#This Row],[NAICS Code]]&\" - \"&Table1[[#This Row],[Description]]","v":"333992 - Welding and Soldering Equipment Manufacturing"}]
[null,333993,"Packaging Machinery Manufacturing",{"$f":"Table1[[#This Row],[NAICS Code]]&\" - \"&Table1[[#This Row],[Description]]","v":"333993 - Packaging Machinery Manufacturing"}]
[null,333994,"Industrial Process Furnace and Oven Manufacturing",{"$f":"Table1[[#This Row],[NAICS Code]]&\" - \"&Table1[[#This Row],[Description]]","v":"333994 - Industrial Process Furnace and Oven Manufacturing"}]
[null,333995,"Fluid Power Cylinder and Actuator Manufacturing",{"$f":"Table1[[#This Row],[NAICS Code]]&\" - \"&Table1[[#This Row],[Description]]","v":"333995 - Fluid Power Cylinder and Actuator Manufacturing"}]
[null,333996,"Fluid Power Pump and Motor Manufacturing",{"$f":"Table1[[#This Row],[NAICS Code]]&\" - \"&Table1[[#This Row],[Description]]","v":"333996 - Fluid Power Pump and Motor Manufacturing"}]
[null,333997,"Scale and Balance Manufacturing",{"$f":"Table1[[#This Row],[NAICS Code]]&\" - \"&Table1[[#This Row],[Description]]","v":"333997 - Scale and Balance Manufacturing"}]
[null,333999,"All Other Miscellaneous General Purpose Machinery Manufacturing",{"$f":"Table1[[#This Row],[NAICS Code]]&\" - \"&Table1[[#This Row],[Description]]","v":"333999 - All Other Miscellaneous General Purpose Machinery Manufacturing"}]
[null,334111,"Electronic Computer Manufacturing",{"$f":"Table1[[#This Row],[NAICS Code]]&\" - \"&Table1[[#This Row],[Description]]","v":"334111 - Electronic Computer Manufacturing"}]
[null,334112,"Computer Storage Device Manufacturing",{"$f":"Table1[[#This Row],[NAICS Code]]&\" - \"&Table1[[#This Row],[Description]]","v":"334112 - Computer Storage Device Manufacturing"}]
[null,334118,"Computer Terminal and Other Computer Peripheral Equipment Manufacturing",{"$f":"Table1[[#This Row],[NAICS Code]]&\" - \"&Table1[[#This Row],[Description]]","v":"334118 - Computer Terminal and Other Computer Peripheral Equipment Manufacturing"}]
[null,334210,"Telephone Apparatus Manufacturing",{"$f":"Table1[[#This Row],[NAICS Code]]&\" - \"&Table1[[#This Row],[Description]]","v":"334210 - Telephone Apparatus Manufacturing"}]
[null,334220,"Radio and Television Broadcasting and Wireless Communications Equipment Manufacturing",{"$f":"Table1[[#This Row],[NAICS Code]]&\" - \"&Table1[[#This Row],[Description]]","v":"334220 - Radio and Television Broadcasting and Wireless Communications Equipment Manufacturing"}]
[null,334290,"Other Communications Equipment Manufacturing",{"$f":"Table1[[#This Row],[NAICS Code]]&\" - \"&Table1[[#This Row],[Description]]","v":"334290 - Other Communications Equipment Manufacturing"}]
[null,334310,"Audio and Video Equipment Manufacturing",{"$f":"Table1[[#This Row],[NAICS Code]]&\" - \"&Table1[[#This Row],[Description]]","v":"334310 - Audio and Video Equipment Manufacturing"}]
[null,334412,"Bare Printed Circuit Board Manufacturing",{"$f":"Table1[[#This Row],[NAICS Code]]&\" - \"&Table1[[#This Row],[Description]]","v":"334412 - Bare Printed Circuit Board Manufacturing"}]
[null,334413,"Semiconductor and Related Device Manufacturing",{"$f":"Table1[[#This Row],[NAICS Code]]&\" - \"&Table1[[#This Row],[Description]]","v":"334413 - Semiconductor and Related Device Manufacturing"}]
[null,334416,"Electronic Coil, Transformer, and Other Inductor Manufacturing",{"$f":"Table1[[#This Row],[NAICS Code]]&\" - \"&Table1[[#This Row],[Description]]","v":"334416 - Electronic Coil, Transformer, and Other Inductor Manufacturing"}]
[null,334417,"Electronic Connector Manufacturing",{"$f":"Table1[[#This Row],[NAICS Code]]&\" - \"&Table1[[#This Row],[Description]]","v":"334417 - Electronic Connector Manufacturing"}]
[null,334418,"Printed Circuit Assembly (Electronic Assembly) Manufacturing",{"$f":"Table1[[#This Row],[NAICS Code]]&\" - \"&Table1[[#This Row],[Description]]","v":"334418 - Printed Circuit Assembly (Electronic Assembly) Manufacturing"}]
[null,334419,"Other Electronic Component Manufacturing",{"$f":"Table1[[#This Row],[NAICS Code]]&\" - \"&Table1[[#This Row],[Description]]","v":"334419 - Other Electronic Component Manufacturing"}]
[null,334510,"Electromedical and Electrotherapeutic Apparatus Manufacturing",{"$f":"Table1[[#This Row],[NAICS Code]]&\" - \"&Table1[[#This Row],[Description]]","v":"334510 - Electromedical and Electrotherapeutic Apparatus Manufacturing"}]
[null,334511,"Search, Detection, Navigation, Guidance, Aeronautical, and Nautical System and Instrument Manufacturing",{"$f":"Table1[[#This Row],[NAICS Code]]&\" - \"&Table1[[#This Row],[Description]]","v":"334511 - Search, Detection, Navigation, Guidance, Aeronautical, and Nautical System and Instrument Manufacturing"}]
[null,334512,"Automatic Environmental Control Manufacturing for Residential, Commercial, and Appliance Use",{"$f":"Table1[[#This Row],[NAICS Code]]&\" - \"&Table1[[#This Row],[Description]]","v":"334512 - Automatic Environmental Control Manufacturing for Residential, Commercial, and Appliance Use"}]
[null,334513,"Instruments and Related Products Manufacturing for Measuring, Displaying, and Controlling Industrial Process Variables",{"$f":"Table1[[#This Row],[NAICS Code]]&\" - \"&Table1[[#This Row],[Description]]","v":"334513 - Instruments and Related Products Manufacturing for Measuring, Displaying, and Controlling Industrial Process Variables"}]
[null,334514,"Totalizing Fluid Meter and Counting Device Manufacturing",{"$f":"Table1[[#This Row],[NAICS Code]]&\" - \"&Table1[[#This Row],[Description]]","v":"334514 - Totalizing Fluid Meter and Counting Device Manufacturing"}]
[null,334515,"Instrument Manufacturing for Measuring and Testing Electricity and Electrical Signals",{"$f":"Table1[[#This Row],[NAICS Code]]&\" - \"&Table1[[#This Row],[Description]]","v":"334515 - Instrument Manufacturing for Measuring and Testing Electricity and Electrical Signals"}]
[null,334516,"Analytical Laboratory Instrument Manufacturing",{"$f":"Table1[[#This Row],[NAICS Code]]&\" - \"&Table1[[#This Row],[Description]]","v":"334516 - Analytical Laboratory Instrument Manufacturing"}]
[null,334517,"Irradiation Apparatus Manufacturing",{"$f":"Table1[[#This Row],[NAICS Code]]&\" - \"&Table1[[#This Row],[Description]]","v":"334517 - Irradiation Apparatus Manufacturing"}]
[null,334519,"Other Measuring and Controlling Device Manufacturing",{"$f":"Table1[[#This Row],[NAICS Code]]&\" - \"&Table1[[#This Row],[Description]]","v":"334519 - Other Measuring and Controlling Device Manufacturing"}]
[null,334613,"Magnetic and Optical Recording Media Manufacturing",{"$f":"Table1[[#This Row],[NAICS Code]]&\" - \"&Table1[[#This Row],[Description]]","v":"334613 - Magnetic and Optical Recording Media Manufacturing"}]
[null,334614,"Software and Other Prerecorded Compact Disc, Tape, and Record Reproducing",{"$f":"Table1[[#This Row],[NAICS Code]]&\" - \"&Table1[[#This Row],[Description]]","v":"334614 - Software and Other Prerecorded Compact Disc, Tape, and Record Reproducing"}]
[null,335110,"Electric Lamp Bulb and Part Manufacturing",{"$f":"Table1[[#This Row],[NAICS Code]]&\" - \"&Table1[[#This Row],[Description]]","v":"335110 - Electric Lamp Bulb and Part Manufacturing"}]
[null,335121,"Residential Electric Lighting Fixture Manufacturing",{"$f":"Table1[[#This Row],[NAICS Code]]&\" - \"&Table1[[#This Row],[Description]]","v":"335121 - Residential Electric Lighting Fixture Manufacturing"}]
[null,335122,"Commercial, Industrial, and Institutional Electric Lighting Fixture Manufacturing",{"$f":"Table1[[#This Row],[NAICS Code]]&\" - \"&Table1[[#This Row],[Description]]","v":"335122 - Commercial, Industrial, and Institutional Electric Lighting Fixture Manufacturing"}]
[null,335129,"Other Lighting Equipment Manufacturing",{"$f":"Table1[[#This Row],[NAICS Code]]&\" - \"&Table1[[#This Row],[Description]]","v":"335129 - Other Lighting Equipment Manufacturing"}]
[null,335210,"Small Electrical Appliance Manufacturing",{"$f":"Table1[[#This Row],[NAICS Code]]&\" - \"&Table1[[#This Row],[Description]]","v":"335210 - Small Electrical Appliance Manufacturing"}]
[null,335220,"Major Household Appliance Manufacturing ",{"$f":"Table1[[#This Row],[NAICS Code]]&\" - \"&Table1[[#This Row],[Description]]","v":"335220 - Major Household Appliance Manufacturing "}]
[null,335311,"Power, Distribution, and Specialty Transformer Manufacturing",{"$f":"Table1[[#This Row],[NAICS Code]]&\" - \"&Table1[[#This Row],[Description]]","v":"335311 - Power, Distribution, and Specialty Transformer Manufacturing"}]
[null,335312,"Motor and Generator Manufacturing",{"$f":"Table1[[#This Row],[NAICS Code]]&\" - \"&Table1[[#This Row],[Description]]","v":"335312 - Motor and Generator Manufacturing"}]
[null,335313,"Switchgear and Switchboard Apparatus Manufacturing",{"$f":"Table1[[#This Row],[NAICS Code]]&\" - \"&Table1[[#This Row],[Description]]","v":"335313 - Switchgear and Switchboard Apparatus Manufacturing"}]
[null,335314,"Relay and Industrial Control Manufacturing",{"$f":"Table1[[#This Row],[NAICS Code]]&\" - \"&Table1[[#This Row],[Description]]","v":"335314 - Relay and Industrial Control Manufacturing"}]
[null,335911,"Storage Battery Manufacturing",{"$f":"Table1[[#This Row],[NAICS Code]]&\" - \"&Table1[[#This Row],[Description]]","v":"335911 - Storage Battery Manufacturing"}]
[null,335912,"Primary Battery Manufacturing",{"$f":"Table1[[#This Row],[NAICS Code]]&\" - \"&Table1[[#This Row],[Description]]","v":"335912 - Primary Battery Manufacturing"}]
[null,335921,"Fiber Optic Cable Manufacturing",{"$f":"Table1[[#This Row],[NAICS Code]]&\" - \"&Table1[[#This Row],[Description]]","v":"335921 - Fiber Optic Cable Manufacturing"}]
[null,335929,"Other Communication and Energy Wire Manufacturing",{"$f":"Table1[[#This Row],[NAICS Code]]&\" - \"&Table1[[#This Row],[Description]]","v":"335929 - Other Communication and Energy Wire Manufacturing"}]
[null,335931,"Current-Carrying Wiring Device Manufacturing",{"$f":"Table1[[#This Row],[NAICS Code]]&\" - \"&Table1[[#This Row],[Description]]","v":"335931 - Current-Carrying Wiring Device Manufacturing"}]
[null,335932,"Noncurrent-Carrying Wiring Device Manufacturing",{"$f":"Table1[[#This Row],[NAICS Code]]&\" - \"&Table1[[#This Row],[Description]]","v":"335932 - Noncurrent-Carrying Wiring Device Manufacturing"}]
[null,335991,"Carbon and Graphite Product Manufacturing",{"$f":"Table1[[#This Row],[NAICS Code]]&\" - \"&Table1[[#This Row],[Description]]","v":"335991 - Carbon and Graphite Product Manufacturing"}]
[null,335999,"All Other Miscellaneous Electrical Equipment and Component Manufacturing",{"$f":"Table1[[#This Row],[NAICS Code]]&\" - \"&Table1[[#This Row],[Description]]","v":"335999 - All Other Miscellaneous Electrical Equipment and Component Manufacturing"}]
[null,336111,"Automobile Manufacturing",{"$f":"Table1[[#This Row],[NAICS Code]]&\" - \"&Table1[[#This Row],[Description]]","v":"336111 - Automobile Manufacturing"}]
[null,336112,"Light Truck and Utility Vehicle Manufacturing",{"$f":"Table1[[#This Row],[NAICS Code]]&\" - \"&Table1[[#This Row],[Description]]","v":"336112 - Light Truck and Utility Vehicle Manufacturing"}]
[null,336120,"Heavy Duty Truck Manufacturing",{"$f":"Table1[[#This Row],[NAICS Code]]&\" - \"&Table1[[#This Row],[Description]]","v":"336120 - Heavy Duty Truck Manufacturing"}]
[null,336211,"Motor Vehicle Body Manufacturing",{"$f":"Table1[[#This Row],[NAICS Code]]&\" - \"&Table1[[#This Row],[Description]]","v":"336211 - Motor Vehicle Body Manufacturing"}]
[null,336212,"Truck Trailer Manufacturing",{"$f":"Table1[[#This Row],[NAICS Code]]&\" - \"&Table1[[#This Row],[Description]]","v":"336212 - Truck Trailer Manufacturing"}]
[null,336213,"Motor Home Manufacturing",{"$f":"Table1[[#This Row],[NAICS Code]]&\" - \"&Table1[[#This Row],[Description]]","v":"336213 - Motor Home Manufacturing"}]
[null,336214,"Travel Trailer and Camper Manufacturing",{"$f":"Table1[[#This Row],[NAICS Code]]&\" - \"&Table1[[#This Row],[Description]]","v":"336214 - Travel Trailer and Camper Manufacturing"}]
[null,336310,"Motor Vehicle Gasoline Engine and Engine Parts Manufacturing",{"$f":"Table1[[#This Row],[NAICS Code]]&\" - \"&Table1[[#This Row],[Description]]","v":"336310 - Motor Vehicle Gasoline Engine and Engine Parts Manufacturing"}]
[null,336320,"Motor Vehicle Electrical and Electronic Equipment Manufacturing",{"$f":"Table1[[#This Row],[NAICS Code]]&\" - \"&Table1[[#This Row],[Description]]","v":"336320 - Motor Vehicle Electrical and Electronic Equipment Manufacturing"}]
[null,336330,"Motor Vehicle Steering and Suspension Components (except Spring) Manufacturing",{"$f":"Table1[[#This Row],[NAICS Code]]&\" - \"&Table1[[#This Row],[Description]]","v":"336330 - Motor Vehicle Steering and Suspension Components (except Spring) Manufacturing"}]
[null,336340,"Motor Vehicle Brake System Manufacturing",{"$f":"Table1[[#This Row],[NAICS Code]]&\" - \"&Table1[[#This Row],[Description]]","v":"336340 - Motor Vehicle Brake System Manufacturing"}]
[null,336350,"Motor Vehicle Transmission and Power Train Parts Manufacturing",{"$f":"Table1[[#This Row],[NAICS Code]]&\" - \"&Table1[[#This Row],[Description]]","v":"336350 - Motor Vehicle Transmission and Power Train Parts Manufacturing"}]
[null,336360,"Motor Vehicle Seating and Interior Trim Manufacturing",{"$f":"Table1[[#This Row],[NAICS Code]]&\" - \"&Table1[[#This Row],[Description]]","v":"336360 - Motor Vehicle Seating and Interior Trim Manufacturing"}]
[null,336370,"Motor Vehicle Metal Stamping",{"$f":"Table1[[#This Row],[NAICS Code]]&\" - \"&Table1[[#This Row],[Description]]","v":"336370 - Motor Vehicle Metal Stamping"}]
[null,336390,"Other Motor Vehicle Parts Manufacturing",{"$f":"Table1[[#This Row],[NAICS Code]]&\" - \"&Table1[[#This Row],[Description]]","v":"336390 - Other Motor Vehicle Parts Manufacturing"}]
[null,336411,"Aircraft Manufacturing",{"$f":"Table1[[#This Row],[NAICS Code]]&\" - \"&Table1[[#This Row],[Description]]","v":"336411 - Aircraft Manufacturing"}]
[null,336412,"Aircraft Engine and Engine Parts Manufacturing",{"$f":"Table1[[#This Row],[NAICS Code]]&\" - \"&Table1[[#This Row],[Description]]","v":"336412 - Aircraft Engine and Engine Parts Manufacturing"}]
[null,336413,"Other Aircraft Parts and Auxiliary Equipment Manufacturing",{"$f":"Table1[[#This Row],[NAICS Code]]&\" - \"&Table1[[#This Row],[Description]]","v":"336413 - Other Aircraft Parts and Auxiliary Equipment Manufacturing"}]
[null,336414,"Guided Missile and Space Vehicle Manufacturing",{"$f":"Table1[[#This Row],[NAICS Code]]&\" - \"&Table1[[#This Row],[Description]]","v":"336414 - Guided Missile and Space Vehicle Manufacturing"}]
[null,336415,"Guided Missile and Space Vehicle Propulsion Unit and Propulsion Unit Parts Manufacturing",{"$f":"Table1[[#This Row],[NAICS Code]]&\" - \"&Table1[[#This Row],[Description]]","v":"336415 - Guided Missile and Space Vehicle Propulsion Unit and Propulsion Unit Parts Manufacturing"}]
[null,336419,"Other Guided Missile and Space Vehicle Parts and Auxiliary Equipment Manufacturing",{"$f":"Table1[[#This Row],[NAICS Code]]&\" - \"&Table1[[#This Row],[Description]]","v":"336419 - Other Guided Missile and Space Vehicle Parts and Auxiliary Equipment Manufacturing"}]
[null,336510,"Railroad Rolling Stock Manufacturing",{"$f":"Table1[[#This Row],[NAICS Code]]&\" - \"&Table1[[#This Row],[Description]]","v":"336510 - Railroad Rolling Stock Manufacturing"}]
[null,336611,"Ship Building and Repairing",{"$f":"Table1[[#This Row],[NAICS Code]]&\" - \"&Table1[[#This Row],[Description]]","v":"336611 - Ship Building and Repairing"}]
[null,336612,"Boat Building",{"$f":"Table1[[#This Row],[NAICS Code]]&\" - \"&Table1[[#This Row],[Description]]","v":"336612 - Boat Building"}]
[null,336991,"Motorcycle, Bicycle, and Parts Manufacturing",{"$f":"Table1[[#This Row],[NAICS Code]]&\" - \"&Table1[[#This Row],[Description]]","v":"336991 - Motorcycle, Bicycle, and Parts Manufacturing"}]
[null,336992,"Military Armored Vehicle, Tank, and Tank Component Manufacturing",{"$f":"Table1[[#This Row],[NAICS Code]]&\" - \"&Table1[[#This Row],[Description]]","v":"336992 - Military Armored Vehicle, Tank, and Tank Component Manufacturing"}]
[null,336999,"All Other Transportation Equipment Manufacturing",{"$f":"Table1[[#This Row],[NAICS Code]]&\" - \"&Table1[[#This Row],[Description]]","v":"336999 - All Other Transportation Equipment Manufacturing"}]
[null,337110,"Wood Kitchen Cabinet and Countertop Manufacturing",{"$f":"Table1[[#This Row],[NAICS Code]]&\" - \"&Table1[[#This Row],[Description]]","v":"337110 - Wood Kitchen Cabinet and Countertop Manufacturing"}]
[null,337121,"Upholstered Household Furniture Manufacturing",{"$f":"Table1[[#This Row],[NAICS Code]]&\" - \"&Table1[[#This Row],[Description]]","v":"337121 - Upholstered Household Furniture Manufacturing"}]
[null,337122,"Nonupholstered Wood Household Furniture Manufacturing",{"$f":"Table1[[#This Row],[NAICS Code]]&\" - \"&Table1[[#This Row],[Description]]","v":"337122 - Nonupholstered Wood Household Furniture Manufacturing"}]
[null,337124,"Metal Household Furniture Manufacturing",{"$f":"Table1[[#This Row],[NAICS Code]]&\" - \"&Table1[[#This Row],[Description]]","v":"337124 - Metal Household Furniture Manufacturing"}]
[null,337125,"Household Furniture (except Wood and Metal) Manufacturing",{"$f":"Table1[[#This Row],[NAICS Code]]&\" - \"&Table1[[#This Row],[Description]]","v":"337125 - Household Furniture (except Wood and Metal) Manufacturing"}]
[null,337127,"Institutional Furniture Manufacturing",{"$f":"Table1[[#This Row],[NAICS Code]]&\" - \"&Table1[[#This Row],[Description]]","v":"337127 - Institutional Furniture Manufacturing"}]
[null,337211,"Wood Office Furniture Manufacturing",{"$f":"Table1[[#This Row],[NAICS Code]]&\" - \"&Table1[[#This Row],[Description]]","v":"337211 - Wood Office Furniture Manufacturing"}]
[null,337212,"Custom Architectural Woodwork and Millwork Manufacturing",{"$f":"Table1[[#This Row],[NAICS Code]]&\" - \"&Table1[[#This Row],[Description]]","v":"337212 - Custom Architectural Woodwork and Millwork Manufacturing"}]
[null,337214,"Office Furniture (except Wood) Manufacturing",{"$f":"Table1[[#This Row],[NAICS Code]]&\" - \"&Table1[[#This Row],[Description]]","v":"337214 - Office Furniture (except Wood) Manufacturing"}]
[null,337215,"Showcase, Partition, Shelving, and Locker Manufacturing",{"$f":"Table1[[#This Row],[NAICS Code]]&\" - \"&Table1[[#This Row],[Description]]","v":"337215 - Showcase, Partition, Shelving, and Locker Manufacturing"}]
[null,337910,"Mattress Manufacturing",{"$f":"Table1[[#This Row],[NAICS Code]]&\" - \"&Table1[[#This Row],[Description]]","v":"337910 - Mattress Manufacturing"}]
[null,337920,"Blind and Shade Manufacturing",{"$f":"Table1[[#This Row],[NAICS Code]]&\" - \"&Table1[[#This Row],[Description]]","v":"337920 - Blind and Shade Manufacturing"}]
[null,339112,"Surgical and Medical Instrument Manufacturing",{"$f":"Table1[[#This Row],[NAICS Code]]&\" - \"&Table1[[#This Row],[Description]]","v":"339112 - Surgical and Medical Instrument Manufacturing"}]
[null,339113,"Surgical Appliance and Supplies Manufacturing",{"$f":"Table1[[#This Row],[NAICS Code]]&\" - \"&Table1[[#This Row],[Description]]","v":"339113 - Surgical Appliance and Supplies Manufacturing"}]
[null,339114,"Dental Equipment and Supplies Manufacturing",{"$f":"Table1[[#This Row],[NAICS Code]]&\" - \"&Table1[[#This Row],[Description]]","v":"339114 - Dental Equipment and Supplies Manufacturing"}]
[null,339115,"Ophthalmic Goods Manufacturing",{"$f":"Table1[[#This Row],[NAICS Code]]&\" - \"&Table1[[#This Row],[Description]]","v":"339115 - Ophthalmic Goods Manufacturing"}]
[null,339116,"Dental Laboratories",{"$f":"Table1[[#This Row],[NAICS Code]]&\" - \"&Table1[[#This Row],[Description]]","v":"339116 - Dental Laboratories"}]
[null,339910,"Jewelry and Silverware Manufacturing",{"$f":"Table1[[#This Row],[NAICS Code]]&\" - \"&Table1[[#This Row],[Description]]","v":"339910 - Jewelry and Silverware Manufacturing"}]
[null,339920,"Sporting and Athletic Goods Manufacturing",{"$f":"Table1[[#This Row],[NAICS Code]]&\" - \"&Table1[[#This Row],[Description]]","v":"339920 - Sporting and Athletic Goods Manufacturing"}]
[null,339930,"Doll, Toy, and Game Manufacturing",{"$f":"Table1[[#This Row],[NAICS Code]]&\" - \"&Table1[[#This Row],[Description]]","v":"339930 - Doll, Toy, and Game Manufacturing"}]
[null,339940,"Office Supplies (except Paper) Manufacturing",{"$f":"Table1[[#This Row],[NAICS Code]]&\" - \"&Table1[[#This Row],[Description]]","v":"339940 - Office Supplies (except Paper) Manufacturing"}]
[null,339950,"Sign Manufacturing",{"$f":"Table1[[#This Row],[NAICS Code]]&\" - \"&Table1[[#This Row],[Description]]","v":"339950 - Sign Manufacturing"}]
[null,339991,"Gasket, Packing, and Sealing Device Manufacturing",{"$f":"Table1[[#This Row],[NAICS Code]]&\" - \"&Table1[[#This Row],[Description]]","v":"339991 - Gasket, Packing, and Sealing Device Manufacturing"}]
[null,339992,"Musical Instrument Manufacturing",{"$f":"Table1[[#This Row],[NAICS Code]]&\" - \"&Table1[[#This Row],[Description]]","v":"339992 - Musical Instrument Manufacturing"}]
[null,339993,"Fastener, Button, Needle, and Pin Manufacturing",{"$f":"Table1[[#This Row],[NAICS Code]]&\" - \"&Table1[[#This Row],[Description]]","v":"339993 - Fastener, Button, Needle, and Pin Manufacturing"}]
[null,339994,"Broom, Brush, and Mop Manufacturing",{"$f":"Table1[[#This Row],[NAICS Code]]&\" - \"&Table1[[#This Row],[Description]]","v":"339994 - Broom, Brush, and Mop Manufacturing"}]
[null,339995,"Burial Casket Manufacturing",{"$f":"Table1[[#This Row],[NAICS Code]]&\" - \"&Table1[[#This Row],[Description]]","v":"339995 - Burial Casket Manufacturing"}]
[null,339999,"All Other Miscellaneous Manufacturing",{"$f":"Table1[[#This Row],[NAICS Code]]&\" - \"&Table1[[#This Row],[Description]]","v":"339999 - All Other Miscellaneous Manufacturing"}]
[null,423110,"Automobile and Other Motor Vehicle Merchant Wholesalers",{"$f":"Table1[[#This Row],[NAICS Code]]&\" - \"&Table1[[#This Row],[Description]]","v":"423110 - Automobile and Other Motor Vehicle Merchant Wholesalers"}]
[null,423120,"Motor Vehicle Supplies and New Parts Merchant Wholesalers",{"$f":"Table1[[#This Row],[NAICS Code]]&\" - \"&Table1[[#This Row],[Description]]","v":"423120 - Motor Vehicle Supplies and New Parts Merchant Wholesalers"}]
[null,423130,"Tire and Tube Merchant Wholesalers",{"$f":"Table1[[#This Row],[NAICS Code]]&\" - \"&Table1[[#This Row],[Description]]","v":"423130 - Tire and Tube Merchant Wholesalers"}]
[null,423140,"Motor Vehicle Parts (Used) Merchant Wholesalers",{"$f":"Table1[[#This Row],[NAICS Code]]&\" - \"&Table1[[#This Row],[Description]]","v":"423140 - Motor Vehicle Parts (Used) Merchant Wholesalers"}]
[null,423210,"Furniture Merchant Wholesalers",{"$f":"Table1[[#This Row],[NAICS Code]]&\" - \"&Table1[[#This Row],[Description]]","v":"423210 - Furniture Merchant Wholesalers"}]
[null,423220,"Home Furnishing Merchant Wholesalers",{"$f":"Table1[[#This Row],[NAICS Code]]&\" - \"&Table1[[#This Row],[Description]]","v":"423220 - Home Furnishing Merchant Wholesalers"}]
[null,423310,"Lumber, Plywood, Millwork, and Wood Panel Merchant Wholesalers",{"$f":"Table1[[#This Row],[NAICS Code]]&\" - \"&Table1[[#This Row],[Description]]","v":"423310 - Lumber, Plywood, Millwork, and Wood Panel Merchant Wholesalers"}]
[null,423320,"Brick, Stone, and Related Construction Material Merchant Wholesalers",{"$f":"Table1[[#This Row],[NAICS Code]]&\" - \"&Table1[[#This Row],[Description]]","v":"423320 - Brick, Stone, and Related Construction Material Merchant Wholesalers"}]
[null,423330,"Roofing, Siding, and Insulation Material Merchant Wholesalers",{"$f":"Table1[[#This Row],[NAICS Code]]&\" - \"&Table1[[#This Row],[Description]]","v":"423330 - Roofing, Siding, and Insulation Material Merchant Wholesalers"}]
[null,423390,"Other Construction Material Merchant Wholesalers",{"$f":"Table1[[#This Row],[NAICS Code]]&\" - \"&Table1[[#This Row],[Description]]","v":"423390 - Other Construction Material Merchant Wholesalers"}]
[null,423410,"Photographic Equipment and Supplies Merchant Wholesalers",{"$f":"Table1[[#This Row],[NAICS Code]]&\" - \"&Table1[[#This Row],[Description]]","v":"423410 - Photographic Equipment and Supplies Merchant Wholesalers"}]
[null,423420,"Office Equipment Merchant Wholesalers",{"$f":"Table1[[#This Row],[NAICS Code]]&\" - \"&Table1[[#This Row],[Description]]","v":"423420 - Office Equipment Merchant Wholesalers"}]
[null,423430,"Computer and Computer Peripheral Equipment and Software Merchant Wholesalers",{"$f":"Table1[[#This Row],[NAICS Code]]&\" - \"&Table1[[#This Row],[Description]]","v":"423430 - Computer and Computer Peripheral Equipment and Software Merchant Wholesalers"}]
[null,423440,"Other Commercial Equipment Merchant Wholesalers",{"$f":"Table1[[#This Row],[NAICS Code]]&\" - \"&Table1[[#This Row],[Description]]","v":"423440 - Other Commercial Equipment Merchant Wholesalers"}]
[null,423450,"Medical, Dental, and Hospital Equipment and Supplies Merchant Wholesalers",{"$f":"Table1[[#This Row],[NAICS Code]]&\" - \"&Table1[[#This Row],[Description]]","v":"423450 - Medical, Dental, and Hospital Equipment and Supplies Merchant Wholesalers"}]
[null,423460,"Ophthalmic Goods Merchant Wholesalers",{"$f":"Table1[[#This Row],[NAICS Code]]&\" - \"&Table1[[#This Row],[Description]]","v":"423460 - Ophthalmic Goods Merchant Wholesalers"}]
[null,423490,"Other Professional Equipment and Supplies Merchant Wholesalers",{"$f":"Table1[[#This Row],[NAICS Code]]&\" - \"&Table1[[#This Row],[Description]]","v":"423490 - Other Professional Equipment and Supplies Merchant Wholesalers"}]
[null,423510,"Metal Service Centers and Other Metal Merchant Wholesalers",{"$f":"Table1[[#This Row],[NAICS Code]]&\" - \"&Table1[[#This Row],[Description]]","v":"423510 - Metal Service Centers and Other Metal Merchant Wholesalers"}]
[null,423520,"Coal and Other Mineral and Ore Merchant Wholesalers",{"$f":"Table1[[#This Row],[NAICS Code]]&\" - \"&Table1[[#This Row],[Description]]","v":"423520 - Coal and Other Mineral and Ore Merchant Wholesalers"}]
[null,423610,"Electrical Apparatus and Equipment, Wiring Supplies, and Related Equipment Merchant  Wholesalers",{"$f":"Table1[[#This Row],[NAICS Code]]&\" - \"&Table1[[#This Row],[Description]]","v":"423610 - Electrical Apparatus and Equipment, Wiring Supplies, and Related Equipment Merchant  Wholesalers"}]
[null,423620,"Electrical and Electronic Appliance, Television, and Radio Set Merchant Wholesalers",{"$f":"Table1[[#This Row],[NAICS Code]]&\" - \"&Table1[[#This Row],[Description]]","v":"423620 - Electrical and Electronic Appliance, Television, and Radio Set Merchant Wholesalers"}]
[null,423690,"Other Electronic Parts and Equipment Merchant Wholesalers",{"$f":"Table1[[#This Row],[NAICS Code]]&\" - \"&Table1[[#This Row],[Description]]","v":"423690 - Other Electronic Parts and Equipment Merchant Wholesalers"}]
[null,423710,"Hardware Merchant Wholesalers",{"$f":"Table1[[#This Row],[NAICS Code]]&\" - \"&Table1[[#This Row],[Description]]","v":"423710 - Hardware Merchant Wholesalers"}]
[null,423720,"Plumbing and Heating Equipment and Supplies (Hydronics) Merchant Wholesalers",{"$f":"Table1[[#This Row],[NAICS Code]]&\" - \"&Table1[[#This Row],[Description]]","v":"423720 - Plumbing and Heating Equipment and Supplies (Hydronics) Merchant Wholesalers"}]
[null,423730,"Warm Air Heating and Air-Conditioning Equipment and Supplies Merchant Wholesalers",{"$f":"Table1[[#This Row],[NAICS Code]]&\" - \"&Table1[[#This Row],[Description]]","v":"423730 - Warm Air Heating and Air-Conditioning Equipment and Supplies Merchant Wholesalers"}]
[null,423740,"Refrigeration Equipment and Supplies Merchant Wholesalers",{"$f":"Table1[[#This Row],[NAICS Code]]&\" - \"&Table1[[#This Row],[Description]]","v":"423740 - Refrigeration Equipment and Supplies Merchant Wholesalers"}]
[null,423810,"Construction and Mining (except Oil Well) Machinery and Equipment Merchant Wholesalers",{"$f":"Table1[[#This Row],[NAICS Code]]&\" - \"&Table1[[#This Row],[Description]]","v":"423810 - Construction and Mining (except Oil Well) Machinery and Equipment Merchant Wholesalers"}]
[null,423820,"Farm and Garden Machinery and Equipment Merchant Wholesalers",{"$f":"Table1[[#This Row],[NAICS Code]]&\" - \"&Table1[[#This Row],[Description]]","v":"423820 - Farm and Garden Machinery and Equipment Merchant Wholesalers"}]
[null,423830,"Industrial Machinery and Equipment Merchant Wholesalers",{"$f":"Table1[[#This Row],[NAICS Code]]&\" - \"&Table1[[#This Row],[Description]]","v":"423830 - Industrial Machinery and Equipment Merchant Wholesalers"}]
[null,423840,"Industrial Supplies Merchant Wholesalers",{"$f":"Table1[[#This Row],[NAICS Code]]&\" - \"&Table1[[#This Row],[Description]]","v":"423840 - Industrial Supplies Merchant Wholesalers"}]
[null,423850,"Service Establishment Equipment and Supplies Merchant Wholesalers",{"$f":"Table1[[#This Row],[NAICS Code]]&\" - \"&Table1[[#This Row],[Description]]","v":"423850 - Service Establishment Equipment and Supplies Merchant Wholesalers"}]
[null,423860,"Transportation Equipment and Supplies (except Motor Vehicle) Merchant Wholesalers",{"$f":"Table1[[#This Row],[NAICS Code]]&\" - \"&Table1[[#This Row],[Description]]","v":"423860 - Transportation Equipment and Supplies (except Motor Vehicle) Merchant Wholesalers"}]
[null,423910,"Sporting and Recreational Goods and Supplies Merchant Wholesalers",{"$f":"Table1[[#This Row],[NAICS Code]]&\" - \"&Table1[[#This Row],[Description]]","v":"423910 - Sporting and Recreational Goods and Supplies Merchant Wholesalers"}]
[null,423920,"Toy and Hobby Goods and Supplies Merchant Wholesalers",{"$f":"Table1[[#This Row],[NAICS Code]]&\" - \"&Table1[[#This Row],[Description]]","v":"423920 - Toy and Hobby Goods and Supplies Merchant Wholesalers"}]
[null,423930,"Recyclable Material Merchant Wholesalers",{"$f":"Table1[[#This Row],[NAICS Code]]&\" - \"&Table1[[#This Row],[Description]]","v":"423930 - Recyclable Material Merchant Wholesalers"}]
[null,423940,"Jewelry, Watch, Precious Stone, and Precious Metal Merchant Wholesalers",{"$f":"Table1[[#This Row],[NAICS Code]]&\" - \"&Table1[[#This Row],[Description]]","v":"423940 - Jewelry, Watch, Precious Stone, and Precious Metal Merchant Wholesalers"}]
[null,423990,"Other Miscellaneous Durable Goods Merchant Wholesalers",{"$f":"Table1[[#This Row],[NAICS Code]]&\" - \"&Table1[[#This Row],[Description]]","v":"423990 - Other Miscellaneous Durable Goods Merchant Wholesalers"}]
[null,424110,"Printing and Writing Paper Merchant Wholesalers",{"$f":"Table1[[#This Row],[NAICS Code]]&\" - \"&Table1[[#This Row],[Description]]","v":"424110 - Printing and Writing Paper Merchant Wholesalers"}]
[null,424120,"Stationery and Office Supplies Merchant Wholesalers",{"$f":"Table1[[#This Row],[NAICS Code]]&\" - \"&Table1[[#This Row],[Description]]","v":"424120 - Stationery and Office Supplies Merchant Wholesalers"}]
[null,424130,"Industrial and Personal Service Paper Merchant Wholesalers",{"$f":"Table1[[#This Row],[NAICS Code]]&\" - \"&Table1[[#This Row],[Description]]","v":"424130 - Industrial and Personal Service Paper Merchant Wholesalers"}]
[null,424210,"Drugs and Druggists' Sundries Merchant Wholesalers",{"$f":"Table1[[#This Row],[NAICS Code]]&\" - \"&Table1[[#This Row],[Description]]","v":"424210 - Drugs and Druggists' Sundries Merchant Wholesalers"}]
[null,424310,"Piece Goods, Notions, and Other Dry Goods Merchant Wholesalers",{"$f":"Table1[[#This Row],[NAICS Code]]&\" - \"&Table1[[#This Row],[Description]]","v":"424310 - Piece Goods, Notions, and Other Dry Goods Merchant Wholesalers"}]
[null,424320,"Men's and Boys' Clothing and Furnishings Merchant Wholesalers",{"$f":"Table1[[#This Row],[NAICS Code]]&\" - \"&Table1[[#This Row],[Description]]","v":"424320 - Men's and Boys' Clothing and Furnishings Merchant Wholesalers"}]
[null,424330,"Women's, Children's, and Infants' Clothing and Accessories Merchant Wholesalers",{"$f":"Table1[[#This Row],[NAICS Code]]&\" - \"&Table1[[#This Row],[Description]]","v":"424330 - Women's, Children's, and Infants' Clothing and Accessories Merchant Wholesalers"}]
[null,424340,"Footwear Merchant Wholesalers",{"$f":"Table1[[#This Row],[NAICS Code]]&\" - \"&Table1[[#This Row],[Description]]","v":"424340 - Footwear Merchant Wholesalers"}]
[null,424410,"General Line Grocery Merchant Wholesalers",{"$f":"Table1[[#This Row],[NAICS Code]]&\" - \"&Table1[[#This Row],[Description]]","v":"424410 - General Line Grocery Merchant Wholesalers"}]
[null,424420,"Packaged Frozen Food Merchant Wholesalers",{"$f":"Table1[[#This Row],[NAICS Code]]&\" - \"&Table1[[#This Row],[Description]]","v":"424420 - Packaged Frozen Food Merchant Wholesalers"}]
[null,424430,"Dairy Product (except Dried or Canned) Merchant Wholesalers",{"$f":"Table1[[#This Row],[NAICS Code]]&\" - \"&Table1[[#This Row],[Description]]","v":"424430 - Dairy Product (except Dried or Canned) Merchant Wholesalers"}]
[null,424440,"Poultry and Poultry Product Merchant Wholesalers",{"$f":"Table1[[#This Row],[NAICS Code]]&\" - \"&Table1[[#This Row],[Description]]","v":"424440 - Poultry and Poultry Product Merchant Wholesalers"}]
[null,424450,"Confectionery Merchant Wholesalers",{"$f":"Table1[[#This Row],[NAICS Code]]&\" - \"&Table1[[#This Row],[Description]]","v":"424450 - Confectionery Merchant Wholesalers"}]
[null,424460,"Fish and Seafood Merchant Wholesalers",{"$f":"Table1[[#This Row],[NAICS Code]]&\" - \"&Table1[[#This Row],[Description]]","v":"424460 - Fish and Seafood Merchant Wholesalers"}]
[null,424470,"Meat and Meat Product Merchant Wholesalers",{"$f":"Table1[[#This Row],[NAICS Code]]&\" - \"&Table1[[#This Row],[Description]]","v":"424470 - Meat and Meat Product Merchant Wholesalers"}]
[null,424480,"Fresh Fruit and Vegetable Merchant Wholesalers",{"$f":"Table1[[#This Row],[NAICS Code]]&\" - \"&Table1[[#This Row],[Description]]","v":"424480 - Fresh Fruit and Vegetable Merchant Wholesalers"}]
[null,424490,"Other Grocery and Related Products Merchant Wholesalers",{"$f":"Table1[[#This Row],[NAICS Code]]&\" - \"&Table1[[#This Row],[Description]]","v":"424490 - Other Grocery and Related Products Merchant Wholesalers"}]
[null,424510,"Grain and Field Bean Merchant Wholesalers",{"$f":"Table1[[#This Row],[NAICS Code]]&\" - \"&Table1[[#This Row],[Description]]","v":"424510 - Grain and Field Bean Merchant Wholesalers"}]
[null,424520,"Livestock Merchant Wholesalers",{"$f":"Table1[[#This Row],[NAICS Code]]&\" - \"&Table1[[#This Row],[Description]]","v":"424520 - Livestock Merchant Wholesalers"}]
[null,424590,"Other Farm Product Raw Material Merchant Wholesalers",{"$f":"Table1[[#This Row],[NAICS Code]]&\" - \"&Table1[[#This Row],[Description]]","v":"424590 - Other Farm Product Raw Material Merchant Wholesalers"}]
[null,424610,"Plastics Materials and Basic Forms and Shapes Merchant Wholesalers",{"$f":"Table1[[#This Row],[NAICS Code]]&\" - \"&Table1[[#This Row],[Description]]","v":"424610 - Plastics Materials and Basic Forms and Shapes Merchant Wholesalers"}]
[null,424690,"Other Chemical and Allied Products Merchant Wholesalers",{"$f":"Table1[[#This Row],[NAICS Code]]&\" - \"&Table1[[#This Row],[Description]]","v":"424690 - Other Chemical and Allied Products Merchant Wholesalers"}]
[null,424710,"Petroleum Bulk Stations and Terminals",{"$f":"Table1[[#This Row],[NAICS Code]]&\" - \"&Table1[[#This Row],[Description]]","v":"424710 - Petroleum Bulk Stations and Terminals"}]
[null,424720,"Petroleum and Petroleum Products Merchant Wholesalers (except Bulk Stations and Terminals)",{"$f":"Table1[[#This Row],[NAICS Code]]&\" - \"&Table1[[#This Row],[Description]]","v":"424720 - Petroleum and Petroleum Products Merchant Wholesalers (except Bulk Stations and Terminals)"}]
[null,424810,"Beer and Ale Merchant Wholesalers",{"$f":"Table1[[#This Row],[NAICS Code]]&\" - \"&Table1[[#This Row],[Description]]","v":"424810 - Beer and Ale Merchant Wholesalers"}]
[null,424820,"Wine and Distilled Alcoholic Beverage Merchant Wholesalers",{"$f":"Table1[[#This Row],[NAICS Code]]&\" - \"&Table1[[#This Row],[Description]]","v":"424820 - Wine and Distilled Alcoholic Beverage Merchant Wholesalers"}]
[null,424910,"Farm Supplies Merchant Wholesalers",{"$f":"Table1[[#This Row],[NAICS Code]]&\" - \"&Table1[[#This Row],[Description]]","v":"424910 - Farm Supplies Merchant Wholesalers"}]
[null,424920,"Book, Periodical, and Newspaper Merchant Wholesalers",{"$f":"Table1[[#This Row],[NAICS Code]]&\" - \"&Table1[[#This Row],[Description]]","v":"424920 - Book, Periodical, and Newspaper Merchant Wholesalers"}]
[null,424930,"Flower, Nursery Stock, and Florists' Supplies Merchant Wholesalers",{"$f":"Table1[[#This Row],[NAICS Code]]&\" - \"&Table1[[#This Row],[Description]]","v":"424930 - Flower, Nursery Stock, and Florists' Supplies Merchant Wholesalers"}]
[null,424940,"Tobacco and Tobacco Product Merchant Wholesalers",{"$f":"Table1[[#This Row],[NAICS Code]]&\" - \"&Table1[[#This Row],[Description]]","v":"424940 - Tobacco and Tobacco Product Merchant Wholesalers"}]
[null,424950,"Paint, Varnish, and Supplies Merchant Wholesalers",{"$f":"Table1[[#This Row],[NAICS Code]]&\" - \"&Table1[[#This Row],[Description]]","v":"424950 - Paint, Varnish, and Supplies Merchant Wholesalers"}]
[null,424990,"Other Miscellaneous Nondurable Goods Merchant Wholesalers",{"$f":"Table1[[#This Row],[NAICS Code]]&\" - \"&Table1[[#This Row],[Description]]","v":"424990 - Other Miscellaneous Nondurable Goods Merchant Wholesalers"}]
[null,425110,"Business to Business Electronic Markets",{"$f":"Table1[[#This Row],[NAICS Code]]&\" - \"&Table1[[#This Row],[Description]]","v":"425110 - Business to Business Electronic Markets"}]
[null,425120,"Wholesale Trade Agents and Brokers",{"$f":"Table1[[#This Row],[NAICS Code]]&\" - \"&Table1[[#This Row],[Description]]","v":"425120 - Wholesale Trade Agents and Brokers"}]
[null,441110,"New Car Dealers",{"$f":"Table1[[#This Row],[NAICS Code]]&\" - \"&Table1[[#This Row],[Description]]","v":"441110 - New Car Dealers"}]
[null,441120,"Used Car Dealers",{"$f":"Table1[[#This Row],[NAICS Code]]&\" - \"&Table1[[#This Row],[Description]]","v":"441120 - Used Car Dealers"}]
[null,441210,"Recreational Vehicle Dealers",{"$f":"Table1[[#This Row],[NAICS Code]]&\" - \"&Table1[[#This Row],[Description]]","v":"441210 - Recreational Vehicle Dealers"}]
[null,441222,"Boat Dealers",{"$f":"Table1[[#This Row],[NAICS Code]]&\" - \"&Table1[[#This Row],[Description]]","v":"441222 - Boat Dealers"}]
[null,441228,"Motorcycle, ATV, and All Other Motor Vehicle Dealers",{"$f":"Table1[[#This Row],[NAICS Code]]&\" - \"&Table1[[#This Row],[Description]]","v":"441228 - Motorcycle, ATV, and All Other Motor Vehicle Dealers"}]
[null,441310,"Automotive Parts and Accessories Stores",{"$f":"Table1[[#This Row],[NAICS Code]]&\" - \"&Table1[[#This Row],[Description]]","v":"441310 - Automotive Parts and Accessories Stores"}]
[null,441320,"Tire Dealers",{"$f":"Table1[[#This Row],[NAICS Code]]&\" - \"&Table1[[#This Row],[Description]]","v":"441320 - Tire Dealers"}]
[null,442110,"Furniture Stores",{"$f":"Table1[[#This Row],[NAICS Code]]&\" - \"&Table1[[#This Row],[Description]]","v":"442110 - Furniture Stores"}]
[null,442210,"Floor Covering Stores",{"$f":"Table1[[#This Row],[NAICS Code]]&\" - \"&Table1[[#This Row],[Description]]","v":"442210 - Floor Covering Stores"}]
[null,442291,"Window Treatment Stores",{"$f":"Table1[[#This Row],[NAICS Code]]&\" - \"&Table1[[#This Row],[Description]]","v":"442291 - Window Treatment Stores"}]
[null,442299,"All Other Home Furnishings Stores",{"$f":"Table1[[#This Row],[NAICS Code]]&\" - \"&Table1[[#This Row],[Description]]","v":"442299 - All Other Home Furnishings Stores"}]
[null,443141,"Household Appliance Stores",{"$f":"Table1[[#This Row],[NAICS Code]]&\" - \"&Table1[[#This Row],[Description]]","v":"443141 - Household Appliance Stores"}]
[null,443142,"Electronics Stores",{"$f":"Table1[[#This Row],[NAICS Code]]&\" - \"&Table1[[#This Row],[Description]]","v":"443142 - Electronics Stores"}]
[null,444110,"Home Centers",{"$f":"Table1[[#This Row],[NAICS Code]]&\" - \"&Table1[[#This Row],[Description]]","v":"444110 - Home Centers"}]
[null,444120,"Paint and Wallpaper Stores",{"$f":"Table1[[#This Row],[NAICS Code]]&\" - \"&Table1[[#This Row],[Description]]","v":"444120 - Paint and Wallpaper Stores"}]
[null,444130,"Hardware Stores",{"$f":"Table1[[#This Row],[NAICS Code]]&\" - \"&Table1[[#This Row],[Description]]","v":"444130 - Hardware Stores"}]
[null,444190,"Other Building Material Dealers",{"$f":"Table1[[#This Row],[NAICS Code]]&\" - \"&Table1[[#This Row],[Description]]","v":"444190 - Other Building Material Dealers"}]
[null,444210,"Outdoor Power Equipment Stores",{"$f":"Table1[[#This Row],[NAICS Code]]&\" - \"&Table1[[#This Row],[Description]]","v":"444210 - Outdoor Power Equipment Stores"}]
[null,444220,"Nursery, Garden Center, and Farm Supply Stores",{"$f":"Table1[[#This Row],[NAICS Code]]&\" - \"&Table1[[#This Row],[Description]]","v":"444220 - Nursery, Garden Center, and Farm Supply Stores"}]
[null,445110,"Supermarkets and Other Grocery (except Convenience) Stores",{"$f":"Table1[[#This Row],[NAICS Code]]&\" - \"&Table1[[#This Row],[Description]]","v":"445110 - Supermarkets and Other Grocery (except Convenience) Stores"}]
[null,445120,"Convenience Stores",{"$f":"Table1[[#This Row],[NAICS Code]]&\" - \"&Table1[[#This Row],[Description]]","v":"445120 - Convenience Stores"}]
[null,445210,"Meat Markets",{"$f":"Table1[[#This Row],[NAICS Code]]&\" - \"&Table1[[#This Row],[Description]]","v":"445210 - Meat Markets"}]
[null,445220,"Fish and Seafood Markets",{"$f":"Table1[[#This Row],[NAICS Code]]&\" - \"&Table1[[#This Row],[Description]]","v":"445220 - Fish and Seafood Markets"}]
[null,445230,"Fruit and Vegetable Markets",{"$f":"Table1[[#This Row],[NAICS Code]]&\" - \"&Table1[[#This Row],[Description]]","v":"445230 - Fruit and Vegetable Markets"}]
[null,445291,"Baked Goods Stores",{"$f":"Table1[[#This Row],[NAICS Code]]&\" - \"&Table1[[#This Row],[Description]]","v":"445291 - Baked Goods Stores"}]
[null,445292,"Confectionery and Nut Stores",{"$f":"Table1[[#This Row],[NAICS Code]]&\" - \"&Table1[[#This Row],[Description]]","v":"445292 - Confectionery and Nut Stores"}]
[null,445299,"All Other Specialty Food Stores",{"$f":"Table1[[#This Row],[NAICS Code]]&\" - \"&Table1[[#This Row],[Description]]","v":"445299 - All Other Specialty Food Stores"}]
[null,445310,"Beer, Wine, and Liquor Stores",{"$f":"Table1[[#This Row],[NAICS Code]]&\" - \"&Table1[[#This Row],[Description]]","v":"445310 - Beer, Wine, and Liquor Stores"}]
[null,446110,"Pharmacies and Drug Stores",{"$f":"Table1[[#This Row],[NAICS Code]]&\" - \"&Table1[[#This Row],[Description]]","v":"446110 - Pharmacies and Drug Stores"}]
[null,446120,"Cosmetics, Beauty Supplies, and Perfume Stores",{"$f":"Table1[[#This Row],[NAICS Code]]&\" - \"&Table1[[#This Row],[Description]]","v":"446120 - Cosmetics, Beauty Supplies, and Perfume Stores"}]
[null,446130,"Optical Goods Stores",{"$f":"Table1[[#This Row],[NAICS Code]]&\" - \"&Table1[[#This Row],[Description]]","v":"446130 - Optical Goods Stores"}]
[null,446191,"Food (Health) Supplement Stores",{"$f":"Table1[[#This Row],[NAICS Code]]&\" - \"&Table1[[#This Row],[Description]]","v":"446191 - Food (Health) Supplement Stores"}]
[null,446199,"All Other Health and Personal Care Stores",{"$f":"Table1[[#This Row],[NAICS Code]]&\" - \"&Table1[[#This Row],[Description]]","v":"446199 - All Other Health and Personal Care Stores"}]
[null,447110,"Gasoline Stations with Convenience Stores",{"$f":"Table1[[#This Row],[NAICS Code]]&\" - \"&Table1[[#This Row],[Description]]","v":"447110 - Gasoline Stations with Convenience Stores"}]
[null,447190,"Other Gasoline Stations",{"$f":"Table1[[#This Row],[NAICS Code]]&\" - \"&Table1[[#This Row],[Description]]","v":"447190 - Other Gasoline Stations"}]
[null,448110,"Men's Clothing Stores",{"$f":"Table1[[#This Row],[NAICS Code]]&\" - \"&Table1[[#This Row],[Description]]","v":"448110 - Men's Clothing Stores"}]
[null,448120,"Women's Clothing Stores",{"$f":"Table1[[#This Row],[NAICS Code]]&\" - \"&Table1[[#This Row],[Description]]","v":"448120 - Women's Clothing Stores"}]
[null,448130,"Children's and Infants' Clothing Stores",{"$f":"Table1[[#This Row],[NAICS Code]]&\" - \"&Table1[[#This Row],[Description]]","v":"448130 - Children's and Infants' Clothing Stores"}]
[null,448140,"Family Clothing Stores",{"$f":"Table1[[#This Row],[NAICS Code]]&\" - \"&Table1[[#This Row],[Description]]","v":"448140 - Family Clothing Stores"}]
[null,448150,"Clothing Accessories Stores",{"$f":"Table1[[#This Row],[NAICS Code]]&\" - \"&Table1[[#This Row],[Description]]","v":"448150 - Clothing Accessories Stores"}]
[null,448190,"Other Clothing Stores",{"$f":"Table1[[#This Row],[NAICS Code]]&\" - \"&Table1[[#This Row],[Description]]","v":"448190 - Other Clothing Stores"}]
[null,448210,"Shoe Stores",{"$f":"Table1[[#This Row],[NAICS Code]]&\" - \"&Table1[[#This Row],[Description]]","v":"448210 - Shoe Stores"}]
[null,448310,"Jewelry Stores",{"$f":"Table1[[#This Row],[NAICS Code]]&\" - \"&Table1[[#This Row],[Description]]","v":"448310 - Jewelry Stores"}]
[null,448320,"Luggage and Leather Goods Stores",{"$f":"Table1[[#This Row],[NAICS Code]]&\" - \"&Table1[[#This Row],[Description]]","v":"448320 - Luggage and Leather Goods Stores"}]
[null,451110,"Sporting Goods Stores",{"$f":"Table1[[#This Row],[NAICS Code]]&\" - \"&Table1[[#This Row],[Description]]","v":"451110 - Sporting Goods Stores"}]
[null,451120,"Hobby, Toy, and Game Stores",{"$f":"Table1[[#This Row],[NAICS Code]]&\" - \"&Table1[[#This Row],[Description]]","v":"451120 - Hobby, Toy, and Game Stores"}]
[null,451130,"Sewing, Needlework, and Piece Goods Stores",{"$f":"Table1[[#This Row],[NAICS Code]]&\" - \"&Table1[[#This Row],[Description]]","v":"451130 - Sewing, Needlework, and Piece Goods Stores"}]
[null,451140,"Musical Instrument and Supplies Stores",{"$f":"Table1[[#This Row],[NAICS Code]]&\" - \"&Table1[[#This Row],[Description]]","v":"451140 - Musical Instrument and Supplies Stores"}]
[null,451211,"Book Stores",{"$f":"Table1[[#This Row],[NAICS Code]]&\" - \"&Table1[[#This Row],[Description]]","v":"451211 - Book Stores"}]
[null,451212,"News Dealers and Newsstands",{"$f":"Table1[[#This Row],[NAICS Code]]&\" - \"&Table1[[#This Row],[Description]]","v":"451212 - News Dealers and Newsstands"}]
[null,452210,"Department Stores",{"$f":"Table1[[#This Row],[NAICS Code]]&\" - \"&Table1[[#This Row],[Description]]","v":"452210 - Department Stores"}]
[null,452311,"Warehouse Clubs and Supercenters",{"$f":"Table1[[#This Row],[NAICS Code]]&\" - \"&Table1[[#This Row],[Description]]","v":"452311 - Warehouse Clubs and Supercenters"}]
[null,452319,"All Other General Merchandise Stores",{"$f":"Table1[[#This Row],[NAICS Code]]&\" - \"&Table1[[#This Row],[Description]]","v":"452319 - All Other General Merchandise Stores"}]
[null,453110,"Florists",{"$f":"Table1[[#This Row],[NAICS Code]]&\" - \"&Table1[[#This Row],[Description]]","v":"453110 - Florists"}]
[null,453210,"Office Supplies and Stationery Stores",{"$f":"Table1[[#This Row],[NAICS Code]]&\" - \"&Table1[[#This Row],[Description]]","v":"453210 - Office Supplies and Stationery Stores"}]
[null,453220,"Gift, Novelty, and Souvenir Stores",{"$f":"Table1[[#This Row],[NAICS Code]]&\" - \"&Table1[[#This Row],[Description]]","v":"453220 - Gift, Novelty, and Souvenir Stores"}]
[null,453310,"Used Merchandise Stores",{"$f":"Table1[[#This Row],[NAICS Code]]&\" - \"&Table1[[#This Row],[Description]]","v":"453310 - Used Merchandise Stores"}]
[null,453910,"Pet and Pet Supplies Stores",{"$f":"Table1[[#This Row],[NAICS Code]]&\" - \"&Table1[[#This Row],[Description]]","v":"453910 - Pet and Pet Supplies Stores"}]
[null,453920,"Art Dealers",{"$f":"Table1[[#This Row],[NAICS Code]]&\" - \"&Table1[[#This Row],[Description]]","v":"453920 - Art Dealers"}]
[null,453930,"Manufactured (Mobile) Home Dealers",{"$f":"Table1[[#This Row],[NAICS Code]]&\" - \"&Table1[[#This Row],[Description]]","v":"453930 - Manufactured (Mobile) Home Dealers"}]
[null,453991,"Tobacco Stores",{"$f":"Table1[[#This Row],[NAICS Code]]&\" - \"&Table1[[#This Row],[Description]]","v":"453991 - Tobacco Stores"}]
[null,453998,"All Other Miscellaneous Store Retailers (except Tobacco Stores)",{"$f":"Table1[[#This Row],[NAICS Code]]&\" - \"&Table1[[#This Row],[Description]]","v":"453998 - All Other Miscellaneous Store Retailers (except Tobacco Stores)"}]
[null,454110,"Electronic Shopping and Mail-Order Houses",{"$f":"Table1[[#This Row],[NAICS Code]]&\" - \"&Table1[[#This Row],[Description]]","v":"454110 - Electronic Shopping and Mail-Order Houses"}]
[null,454210,"Vending Machine Operators",{"$f":"Table1[[#This Row],[NAICS Code]]&\" - \"&Table1[[#This Row],[Description]]","v":"454210 - Vending Machine Operators"}]
[null,454310,"Fuel Dealers",{"$f":"Table1[[#This Row],[NAICS Code]]&\" - \"&Table1[[#This Row],[Description]]","v":"454310 - Fuel Dealers"}]
[null,454390,"Other Direct Selling Establishments",{"$f":"Table1[[#This Row],[NAICS Code]]&\" - \"&Table1[[#This Row],[Description]]","v":"454390 - Other Direct Selling Establishments"}]
[null,481111,"Scheduled Passenger Air Transportation",{"$f":"Table1[[#This Row],[NAICS Code]]&\" - \"&Table1[[#This Row],[Description]]","v":"481111 - Scheduled Passenger Air Transportation"}]
[null,481112,"Scheduled Freight Air Transportation",{"$f":"Table1[[#This Row],[NAICS Code]]&\" - \"&Table1[[#This Row],[Description]]","v":"481112 - Scheduled Freight Air Transportation"}]
[null,481211,"Nonscheduled Chartered Passenger Air Transportation",{"$f":"Table1[[#This Row],[NAICS Code]]&\" - \"&Table1[[#This Row],[Description]]","v":"481211 - Nonscheduled Chartered Passenger Air Transportation"}]
[null,481212,"Nonscheduled Chartered Freight Air Transportation",{"$f":"Table1[[#This Row],[NAICS Code]]&\" - \"&Table1[[#This Row],[Description]]","v":"481212 - Nonscheduled Chartered Freight Air Transportation"}]
[null,481219,"Other Nonscheduled Air Transportation",{"$f":"Table1[[#This Row],[NAICS Code]]&\" - \"&Table1[[#This Row],[Description]]","v":"481219 - Other Nonscheduled Air Transportation"}]
[null,482111,"Line-Haul Railroads",{"$f":"Table1[[#This Row],[NAICS Code]]&\" - \"&Table1[[#This Row],[Description]]","v":"482111 - Line-Haul Railroads"}]
[null,482112,"Short Line Railroads",{"$f":"Table1[[#This Row],[NAICS Code]]&\" - \"&Table1[[#This Row],[Description]]","v":"482112 - Short Line Railroads"}]
[null,483111,"Deep Sea Freight Transportation",{"$f":"Table1[[#This Row],[NAICS Code]]&\" - \"&Table1[[#This Row],[Description]]","v":"483111 - Deep Sea Freight Transportation"}]
[null,483112,"Deep Sea Passenger Transportation",{"$f":"Table1[[#This Row],[NAICS Code]]&\" - \"&Table1[[#This Row],[Description]]","v":"483112 - Deep Sea Passenger Transportation"}]
[null,483113,"Coastal and Great Lakes Freight Transportation",{"$f":"Table1[[#This Row],[NAICS Code]]&\" - \"&Table1[[#This Row],[Description]]","v":"483113 - Coastal and Great Lakes Freight Transportation"}]
[null,483114,"Coastal and Great Lakes Passenger Transportation",{"$f":"Table1[[#This Row],[NAICS Code]]&\" - \"&Table1[[#This Row],[Description]]","v":"483114 - Coastal and Great Lakes Passenger Transportation"}]
[null,483211,"Inland Water Freight Transportation",{"$f":"Table1[[#This Row],[NAICS Code]]&\" - \"&Table1[[#This Row],[Description]]","v":"483211 - Inland Water Freight Transportation"}]
[null,483212,"Inland Water Passenger Transportation",{"$f":"Table1[[#This Row],[NAICS Code]]&\" - \"&Table1[[#This Row],[Description]]","v":"483212 - Inland Water Passenger Transportation"}]
[null,484110,"General Freight Trucking, Local",{"$f":"Table1[[#This Row],[NAICS Code]]&\" - \"&Table1[[#This Row],[Description]]","v":"484110 - General Freight Trucking, Local"}]
[null,484121,"General Freight Trucking, Long-Distance, Truckload",{"$f":"Table1[[#This Row],[NAICS Code]]&\" - \"&Table1[[#This Row],[Description]]","v":"484121 - General Freight Trucking, Long-Distance, Truckload"}]
[null,484122,"General Freight Trucking, Long-Distance, Less Than Truckload",{"$f":"Table1[[#This Row],[NAICS Code]]&\" - \"&Table1[[#This Row],[Description]]","v":"484122 - General Freight Trucking, Long-Distance, Less Than Truckload"}]
[null,484210,"Used Household and Office Goods Moving",{"$f":"Table1[[#This Row],[NAICS Code]]&\" - \"&Table1[[#This Row],[Description]]","v":"484210 - Used Household and Office Goods Moving"}]
[null,484220,"Specialized Freight (except Used Goods) Trucking, Local",{"$f":"Table1[[#This Row],[NAICS Code]]&\" - \"&Table1[[#This Row],[Description]]","v":"484220 - Specialized Freight (except Used Goods) Trucking, Local"}]
[null,484230,"Specialized Freight (except Used Goods) Trucking, Long-Distance",{"$f":"Table1[[#This Row],[NAICS Code]]&\" - \"&Table1[[#This Row],[Description]]","v":"484230 - Specialized Freight (except Used Goods) Trucking, Long-Distance"}]
[null,485111,"Mixed Mode Transit Systems",{"$f":"Table1[[#This Row],[NAICS Code]]&\" - \"&Table1[[#This Row],[Description]]","v":"485111 - Mixed Mode Transit Systems"}]
[null,485112,"Commuter Rail Systems",{"$f":"Table1[[#This Row],[NAICS Code]]&\" - \"&Table1[[#This Row],[Description]]","v":"485112 - Commuter Rail Systems"}]
[null,485113,"Bus and Other Motor Vehicle Transit Systems",{"$f":"Table1[[#This Row],[NAICS Code]]&\" - \"&Table1[[#This Row],[Description]]","v":"485113 - Bus and Other Motor Vehicle Transit Systems"}]
[null,485119,"Other Urban Transit Systems",{"$f":"Table1[[#This Row],[NAICS Code]]&\" - \"&Table1[[#This Row],[Description]]","v":"485119 - Other Urban Transit Systems"}]
[null,485210,"Interurban and Rural Bus Transportation",{"$f":"Table1[[#This Row],[NAICS Code]]&\" - \"&Table1[[#This Row],[Description]]","v":"485210 - Interurban and Rural Bus Transportation"}]
[null,485310,"Taxi Service",{"$f":"Table1[[#This Row],[NAICS Code]]&\" - \"&Table1[[#This Row],[Description]]","v":"485310 - Taxi Service"}]
[null,485320,"Limousine Service",{"$f":"Table1[[#This Row],[NAICS Code]]&\" - \"&Table1[[#This Row],[Description]]","v":"485320 - Limousine Service"}]
[null,485410,"School and Employee Bus Transportation",{"$f":"Table1[[#This Row],[NAICS Code]]&\" - \"&Table1[[#This Row],[Description]]","v":"485410 - School and Employee Bus Transportation"}]
[null,485510,"Charter Bus Industry",{"$f":"Table1[[#This Row],[NAICS Code]]&\" - \"&Table1[[#This Row],[Description]]","v":"485510 - Charter Bus Industry"}]
[null,485991,"Special Needs Transportation",{"$f":"Table1[[#This Row],[NAICS Code]]&\" - \"&Table1[[#This Row],[Description]]","v":"485991 - Special Needs Transportation"}]
[null,485999,"All Other Transit and Ground Passenger Transportation",{"$f":"Table1[[#This Row],[NAICS Code]]&\" - \"&Table1[[#This Row],[Description]]","v":"485999 - All Other Transit and Ground Passenger Transportation"}]
[null,486110,"Pipeline Transportation of Crude Oil",{"$f":"Table1[[#This Row],[NAICS Code]]&\" - \"&Table1[[#This Row],[Description]]","v":"486110 - Pipeline Transportation of Crude Oil"}]
[null,486210,"Pipeline Transportation of Natural Gas",{"$f":"Table1[[#This Row],[NAICS Code]]&\" - \"&Table1[[#This Row],[Description]]","v":"486210 - Pipeline Transportation of Natural Gas"}]
[null,486910,"Pipeline Transportation of Refined Petroleum Products",{"$f":"Table1[[#This Row],[NAICS Code]]&\" - \"&Table1[[#This Row],[Description]]","v":"486910 - Pipeline Transportation of Refined Petroleum Products"}]
[null,486990,"All Other Pipeline Transportation",{"$f":"Table1[[#This Row],[NAICS Code]]&\" - \"&Table1[[#This Row],[Description]]","v":"486990 - All Other Pipeline Transportation"}]
[null,487110,"Scenic and Sightseeing Transportation, Land",{"$f":"Table1[[#This Row],[NAICS Code]]&\" - \"&Table1[[#This Row],[Description]]","v":"487110 - Scenic and Sightseeing Transportation, Land"}]
[null,487210,"Scenic and Sightseeing Transportation, Water",{"$f":"Table1[[#This Row],[NAICS Code]]&\" - \"&Table1[[#This Row],[Description]]","v":"487210 - Scenic and Sightseeing Transportation, Water"}]
[null,487990,"Scenic and Sightseeing Transportation, Other",{"$f":"Table1[[#This Row],[NAICS Code]]&\" - \"&Table1[[#This Row],[Description]]","v":"487990 - Scenic and Sightseeing Transportation, Other"}]
[null,488111,"Air Traffic Control",{"$f":"Table1[[#This Row],[NAICS Code]]&\" - \"&Table1[[#This Row],[Description]]","v":"488111 - Air Traffic Control"}]
[null,488119,"Other Airport Operations",{"$f":"Table1[[#This Row],[NAICS Code]]&\" - \"&Table1[[#This Row],[Description]]","v":"488119 - Other Airport Operations"}]
[null,488190,"Other Support Activities for Air Transportation",{"$f":"Table1[[#This Row],[NAICS Code]]&\" - \"&Table1[[#This Row],[Description]]","v":"488190 - Other Support Activities for Air Transportation"}]
[null,488210,"Support Activities for Rail Transportation",{"$f":"Table1[[#This Row],[NAICS Code]]&\" - \"&Table1[[#This Row],[Description]]","v":"488210 - Support Activities for Rail Transportation"}]
[null,488310,"Port and Harbor Operations",{"$f":"Table1[[#This Row],[NAICS Code]]&\" - \"&Table1[[#This Row],[Description]]","v":"488310 - Port and Harbor Operations"}]
[null,488320,"Marine Cargo Handling",{"$f":"Table1[[#This Row],[NAICS Code]]&\" - \"&Table1[[#This Row],[Description]]","v":"488320 - Marine Cargo Handling"}]
[null,488330,"Navigational Services to Shipping",{"$f":"Table1[[#This Row],[NAICS Code]]&\" - \"&Table1[[#This Row],[Description]]","v":"488330 - Navigational Services to Shipping"}]
[null,488390,"Other Support Activities for Water Transportation",{"$f":"Table1[[#This Row],[NAICS Code]]&\" - \"&Table1[[#This Row],[Description]]","v":"488390 - Other Support Activities for Water Transportation"}]
[null,488410,"Motor Vehicle Towing",{"$f":"Table1[[#This Row],[NAICS Code]]&\" - \"&Table1[[#This Row],[Description]]","v":"488410 - Motor Vehicle Towing"}]
[null,488490,"Other Support Activities for Road Transportation",{"$f":"Table1[[#This Row],[NAICS Code]]&\" - \"&Table1[[#This Row],[Description]]","v":"488490 - Other Support Activities for Road Transportation"}]
[null,488510,"Freight Transportation Arrangement",{"$f":"Table1[[#This Row],[NAICS Code]]&\" - \"&Table1[[#This Row],[Description]]","v":"488510 - Freight Transportation Arrangement"}]
[null,488991,"Packing and Crating",{"$f":"Table1[[#This Row],[NAICS Code]]&\" - \"&Table1[[#This Row],[Description]]","v":"488991 - Packing and Crating"}]
[null,488999,"All Other Support Activities for Transportation",{"$f":"Table1[[#This Row],[NAICS Code]]&\" - \"&Table1[[#This Row],[Description]]","v":"488999 - All Other Support Activities for Transportation"}]
[null,491110,"Postal Service",{"$f":"Table1[[#This Row],[NAICS Code]]&\" - \"&Table1[[#This Row],[Description]]","v":"491110 - Postal Service"}]
[null,492110,"Couriers and Express Delivery Services",{"$f":"Table1[[#This Row],[NAICS Code]]&\" - \"&Table1[[#This Row],[Description]]","v":"492110 - Couriers and Express Delivery Services"}]
[null,492210,"Local Messengers and Local Delivery",{"$f":"Table1[[#This Row],[NAICS Code]]&\" - \"&Table1[[#This Row],[Description]]","v":"492210 - Local Messengers and Local Delivery"}]
[null,493110,"General Warehousing and Storage",{"$f":"Table1[[#This Row],[NAICS Code]]&\" - \"&Table1[[#This Row],[Description]]","v":"493110 - General Warehousing and Storage"}]
[null,493120,"Refrigerated Warehousing and Storage",{"$f":"Table1[[#This Row],[NAICS Code]]&\" - \"&Table1[[#This Row],[Description]]","v":"493120 - Refrigerated Warehousing and Storage"}]
[null,493130,"Farm Product Warehousing and Storage",{"$f":"Table1[[#This Row],[NAICS Code]]&\" - \"&Table1[[#This Row],[Description]]","v":"493130 - Farm Product Warehousing and Storage"}]
[null,493190,"Other Warehousing and Storage",{"$f":"Table1[[#This Row],[NAICS Code]]&\" - \"&Table1[[#This Row],[Description]]","v":"493190 - Other Warehousing and Storage"}]
[null,511110,"Newspaper Publishers",{"$f":"Table1[[#This Row],[NAICS Code]]&\" - \"&Table1[[#This Row],[Description]]","v":"511110 - Newspaper Publishers"}]
[null,511120,"Periodical Publishers",{"$f":"Table1[[#This Row],[NAICS Code]]&\" - \"&Table1[[#This Row],[Description]]","v":"511120 - Periodical Publishers"}]
[null,511130,"Book Publishers",{"$f":"Table1[[#This Row],[NAICS Code]]&\" - \"&Table1[[#This Row],[Description]]","v":"511130 - Book Publishers"}]
[null,511140,"Directory and Mailing List Publishers",{"$f":"Table1[[#This Row],[NAICS Code]]&\" - \"&Table1[[#This Row],[Description]]","v":"511140 - Directory and Mailing List Publishers"}]
[null,511191,"Greeting Card Publishers",{"$f":"Table1[[#This Row],[NAICS Code]]&\" - \"&Table1[[#This Row],[Description]]","v":"511191 - Greeting Card Publishers"}]
[null,511199,"All Other Publishers",{"$f":"Table1[[#This Row],[NAICS Code]]&\" - \"&Table1[[#This Row],[Description]]","v":"511199 - All Other Publishers"}]
[null,511210,"Software Publishers",{"$f":"Table1[[#This Row],[NAICS Code]]&\" - \"&Table1[[#This Row],[Description]]","v":"511210 - Software Publishers"}]
[null,512110,"Motion Picture and Video Production",{"$f":"Table1[[#This Row],[NAICS Code]]&\" - \"&Table1[[#This Row],[Description]]","v":"512110 - Motion Picture and Video Production"}]
[null,512120,"Motion Picture and Video Distribution",{"$f":"Table1[[#This Row],[NAICS Code]]&\" - \"&Table1[[#This Row],[Description]]","v":"512120 - Motion Picture and Video Distribution"}]
[null,512131,"Motion Picture Theaters (except Drive-Ins)",{"$f":"Table1[[#This Row],[NAICS Code]]&\" - \"&Table1[[#This Row],[Description]]","v":"512131 - Motion Picture Theaters (except Drive-Ins)"}]
[null,512132,"Drive-In Motion Picture Theaters",{"$f":"Table1[[#This Row],[NAICS Code]]&\" - \"&Table1[[#This Row],[Description]]","v":"512132 - Drive-In Motion Picture Theaters"}]
[null,512191,"Teleproduction and Other Postproduction Services",{"$f":"Table1[[#This Row],[NAICS Code]]&\" - \"&Table1[[#This Row],[Description]]","v":"512191 - Teleproduction and Other Postproduction Services"}]
[null,512199,"Other Motion Picture and Video Industries",{"$f":"Table1[[#This Row],[NAICS Code]]&\" - \"&Table1[[#This Row],[Description]]","v":"512199 - Other Motion Picture and Video Industries"}]
[null,512230,"Music Publishers",{"$f":"Table1[[#This Row],[NAICS Code]]&\" - \"&Table1[[#This Row],[Description]]","v":"512230 - Music Publishers"}]
[null,512240,"Sound Recording Studios",{"$f":"Table1[[#This Row],[NAICS Code]]&\" - \"&Table1[[#This Row],[Description]]","v":"512240 - Sound Recording Studios"}]
[null,512250,"Record Production and Distribution",{"$f":"Table1[[#This Row],[NAICS Code]]&\" - \"&Table1[[#This Row],[Description]]","v":"512250 - Record Production and Distribution"}]
[null,512290,"Other Sound Recording Industries",{"$f":"Table1[[#This Row],[NAICS Code]]&\" - \"&Table1[[#This Row],[Description]]","v":"512290 - Other Sound Recording Industries"}]
[null,515111,"Radio Networks",{"$f":"Table1[[#This Row],[NAICS Code]]&\" - \"&Table1[[#This Row],[Description]]","v":"515111 - Radio Networks"}]
[null,515112,"Radio Stations",{"$f":"Table1[[#This Row],[NAICS Code]]&\" - \"&Table1[[#This Row],[Description]]","v":"515112 - Radio Stations"}]
[null,515120,"Television Broadcasting",{"$f":"Table1[[#This Row],[NAICS Code]]&\" - \"&Table1[[#This Row],[Description]]","v":"515120 - Television Broadcasting"}]
[null,515210,"Cable and Other Subscription Programming",{"$f":"Table1[[#This Row],[NAICS Code]]&\" - \"&Table1[[#This Row],[Description]]","v":"515210 - Cable and Other Subscription Programming"}]
[null,517311,"Wired Telecommunications Carriers",{"$f":"Table1[[#This Row],[NAICS Code]]&\" - \"&Table1[[#This Row],[Description]]","v":"517311 - Wired Telecommunications Carriers"}]
[null,517312,"Wireless Telecommunications Carriers (except Satellite)",{"$f":"Table1[[#This Row],[NAICS Code]]&\" - \"&Table1[[#This Row],[Description]]","v":"517312 - Wireless Telecommunications Carriers (except Satellite)"}]
[null,517410,"Satellite Telecommunications",{"$f":"Table1[[#This Row],[NAICS Code]]&\" - \"&Table1[[#This Row],[Description]]","v":"517410 - Satellite Telecommunications"}]
[null,517911,"Telecommunications Resellers",{"$f":"Table1[[#This Row],[NAICS Code]]&\" - \"&Table1[[#This Row],[Description]]","v":"517911 - Telecommunications Resellers"}]
[null,517919,"All Other Telecommunications",{"$f":"Table1[[#This Row],[NAICS Code]]&\" - \"&Table1[[#This Row],[Description]]","v":"517919 - All Other Telecommunications"}]
[null,518210,"Data Processing, Hosting, and Related Services",{"$f":"Table1[[#This Row],[NAICS Code]]&\" - \"&Table1[[#This Row],[Description]]","v":"518210 - Data Processing, Hosting, and Related Services"}]
[null,519110,"News Syndicates",{"$f":"Table1[[#This Row],[NAICS Code]]&\" - \"&Table1[[#This Row],[Description]]","v":"519110 - News Syndicates"}]
[null,519120,"Libraries and Archives",{"$f":"Table1[[#This Row],[NAICS Code]]&\" - \"&Table1[[#This Row],[Description]]","v":"519120 - Libraries and Archives"}]
[null,519130,"Internet Publishing and Broadcasting and Web Search Portals",{"$f":"Table1[[#This Row],[NAICS Code]]&\" - \"&Table1[[#This Row],[Description]]","v":"519130 - Internet Publishing and Broadcasting and Web Search Portals"}]
[null,519190,"All Other Information Services",{"$f":"Table1[[#This Row],[NAICS Code]]&\" - \"&Table1[[#This Row],[Description]]","v":"519190 - All Other Information Services"}]
[null,521110,"Monetary Authorities - Central Bank",{"$f":"Table1[[#This Row],[NAICS Code]]&\" - \"&Table1[[#This Row],[Description]]","v":"521110 - Monetary Authorities - Central Bank"}]
[null,522110,"Commercial Banking",{"$f":"Table1[[#This Row],[NAICS Code]]&\" - \"&Table1[[#This Row],[Description]]","v":"522110 - Commercial Banking"}]
[null,522120,"Savings Institutions",{"$f":"Table1[[#This Row],[NAICS Code]]&\" - \"&Table1[[#This Row],[Description]]","v":"522120 - Savings Institutions"}]
[null,522130,"Credit Unions",{"$f":"Table1[[#This Row],[NAICS Code]]&\" - \"&Table1[[#This Row],[Description]]","v":"522130 - Credit Unions"}]
[null,522190,"Other Depository Credit Intermediation",{"$f":"Table1[[#This Row],[NAICS Code]]&\" - \"&Table1[[#This Row],[Description]]","v":"522190 - Other Depository Credit Intermediation"}]
[null,522210,"Credit Card Issuing",{"$f":"Table1[[#This Row],[NAICS Code]]&\" - \"&Table1[[#This Row],[Description]]","v":"522210 - Credit Card Issuing"}]
[null,522220,"Sales Financing",{"$f":"Table1[[#This Row],[NAICS Code]]&\" - \"&Table1[[#This Row],[Description]]","v":"522220 - Sales Financing"}]
[null,522291,"Consumer Lending",{"$f":"Table1[[#This Row],[NAICS Code]]&\" - \"&Table1[[#This Row],[Description]]","v":"522291 - Consumer Lending"}]
[null,522292,"Real Estate Credit",{"$f":"Table1[[#This Row],[NAICS Code]]&\" - \"&Table1[[#This Row],[Description]]","v":"522292 - Real Estate Credit"}]
[null,522293,"International Trade Financing",{"$f":"Table1[[#This Row],[NAICS Code]]&\" - \"&Table1[[#This Row],[Description]]","v":"522293 - International Trade Financing"}]
[null,522294,"Secondary Market Financing",{"$f":"Table1[[#This Row],[NAICS Code]]&\" - \"&Table1[[#This Row],[Description]]","v":"522294 - Secondary Market Financing"}]
[null,522298,"All Other Nondepository Credit Intermediation",{"$f":"Table1[[#This Row],[NAICS Code]]&\" - \"&Table1[[#This Row],[Description]]","v":"522298 - All Other Nondepository Credit Intermediation"}]
[null,522310,"Mortgage and Nonmortgage Loan Brokers",{"$f":"Table1[[#This Row],[NAICS Code]]&\" - \"&Table1[[#This Row],[Description]]","v":"522310 - Mortgage and Nonmortgage Loan Brokers"}]
[null,522320,"Financial Transactions Processing, Reserve, and Clearinghouse Activities",{"$f":"Table1[[#This Row],[NAICS Code]]&\" - \"&Table1[[#This Row],[Description]]","v":"522320 - Financial Transactions Processing, Reserve, and Clearinghouse Activities"}]
[null,522390,"Other Activities Related to Credit Intermediation",{"$f":"Table1[[#This Row],[NAICS Code]]&\" - \"&Table1[[#This Row],[Description]]","v":"522390 - Other Activities Related to Credit Intermediation"}]
[null,523110,"Investment Banking and Securities Dealing",{"$f":"Table1[[#This Row],[NAICS Code]]&\" - \"&Table1[[#This Row],[Description]]","v":"523110 - Investment Banking and Securities Dealing"}]
[null,523120,"Securities Brokerage",{"$f":"Table1[[#This Row],[NAICS Code]]&\" - \"&Table1[[#This Row],[Description]]","v":"523120 - Securities Brokerage"}]
[null,523130,"Commodity Contracts Dealing",{"$f":"Table1[[#This Row],[NAICS Code]]&\" - \"&Table1[[#This Row],[Description]]","v":"523130 - Commodity Contracts Dealing"}]
[null,523140,"Commodity Contracts Brokerage",{"$f":"Table1[[#This Row],[NAICS Code]]&\" - \"&Table1[[#This Row],[Description]]","v":"523140 - Commodity Contracts Brokerage"}]
[null,523210,"Securities and Commodity Exchanges",{"$f":"Table1[[#This Row],[NAICS Code]]&\" - \"&Table1[[#This Row],[Description]]","v":"523210 - Securities and Commodity Exchanges"}]
[null,523910,"Miscellaneous Intermediation",{"$f":"Table1[[#This Row],[NAICS Code]]&\" - \"&Table1[[#This Row],[Description]]","v":"523910 - Miscellaneous Intermediation"}]
[null,523920,"Portfolio Management",{"$f":"Table1[[#This Row],[NAICS Code]]&\" - \"&Table1[[#This Row],[Description]]","v":"523920 - Portfolio Management"}]
[null,523930,"Investment Advice",{"$f":"Table1[[#This Row],[NAICS Code]]&\" - \"&Table1[[#This Row],[Description]]","v":"523930 - Investment Advice"}]
[null,523991,"Trust, Fiduciary, and Custody Activities",{"$f":"Table1[[#This Row],[NAICS Code]]&\" - \"&Table1[[#This Row],[Description]]","v":"523991 - Trust, Fiduciary, and Custody Activities"}]
[null,523999,"Miscellaneous Financial Investment Activities",{"$f":"Table1[[#This Row],[NAICS Code]]&\" - \"&Table1[[#This Row],[Description]]","v":"523999 - Miscellaneous Financial Investment Activities"}]
[null,524113,"Direct Life Insurance Carriers",{"$f":"Table1[[#This Row],[NAICS Code]]&\" - \"&Table1[[#This Row],[Description]]","v":"524113 - Direct Life Insurance Carriers"}]
[null,524114,"Direct Health and Medical Insurance Carriers",{"$f":"Table1[[#This Row],[NAICS Code]]&\" - \"&Table1[[#This Row],[Description]]","v":"524114 - Direct Health and Medical Insurance Carriers"}]
[null,524126,"Direct Property and Casualty Insurance Carriers",{"$f":"Table1[[#This Row],[NAICS Code]]&\" - \"&Table1[[#This Row],[Description]]","v":"524126 - Direct Property and Casualty Insurance Carriers"}]
[null,524127,"Direct Title Insurance Carriers",{"$f":"Table1[[#This Row],[NAICS Code]]&\" - \"&Table1[[#This Row],[Description]]","v":"524127 - Direct Title Insurance Carriers"}]
[null,524128,"Other Direct Insurance (except Life, Health, and Medical) Carriers",{"$f":"Table1[[#This Row],[NAICS Code]]&\" - \"&Table1[[#This Row],[Description]]","v":"524128 - Other Direct Insurance (except Life, Health, and Medical) Carriers"}]
[null,524130,"Reinsurance Carriers",{"$f":"Table1[[#This Row],[NAICS Code]]&\" - \"&Table1[[#This Row],[Description]]","v":"524130 - Reinsurance Carriers"}]
[null,524210,"Insurance Agencies and Brokerages",{"$f":"Table1[[#This Row],[NAICS Code]]&\" - \"&Table1[[#This Row],[Description]]","v":"524210 - Insurance Agencies and Brokerages"}]
[null,524291,"Claims Adjusting",{"$f":"Table1[[#This Row],[NAICS Code]]&\" - \"&Table1[[#This Row],[Description]]","v":"524291 - Claims Adjusting"}]
[null,524292,"Third Party Administration of Insurance and Pension Funds",{"$f":"Table1[[#This Row],[NAICS Code]]&\" - \"&Table1[[#This Row],[Description]]","v":"524292 - Third Party Administration of Insurance and Pension Funds"}]
[null,524298,"All Other Insurance Related Activities",{"$f":"Table1[[#This Row],[NAICS Code]]&\" - \"&Table1[[#This Row],[Description]]","v":"524298 - All Other Insurance Related Activities"}]
[null,525110,"Pension Funds",{"$f":"Table1[[#This Row],[NAICS Code]]&\" - \"&Table1[[#This Row],[Description]]","v":"525110 - Pension Funds"}]
[null,525120,"Health and Welfare Funds",{"$f":"Table1[[#This Row],[NAICS Code]]&\" - \"&Table1[[#This Row],[Description]]","v":"525120 - Health and Welfare Funds"}]
[null,525190,"Other Insurance Funds",{"$f":"Table1[[#This Row],[NAICS Code]]&\" - \"&Table1[[#This Row],[Description]]","v":"525190 - Other Insurance Funds"}]
[null,525910,"Open-End Investment Funds",{"$f":"Table1[[#This Row],[NAICS Code]]&\" - \"&Table1[[#This Row],[Description]]","v":"525910 - Open-End Investment Funds"}]
[null,525920,"Trusts, Estates, and Agency Accounts",{"$f":"Table1[[#This Row],[NAICS Code]]&\" - \"&Table1[[#This Row],[Description]]","v":"525920 - Trusts, Estates, and Agency Accounts"}]
[null,525990,"Other Financial Vehicles",{"$f":"Table1[[#This Row],[NAICS Code]]&\" - \"&Table1[[#This Row],[Description]]","v":"525990 - Other Financial Vehicles"}]
[null,531110,"Lessors of Residential Buildings and Dwellings",{"$f":"Table1[[#This Row],[NAICS Code]]&\" - \"&Table1[[#This Row],[Description]]","v":"531110 - Lessors of Residential Buildings and Dwellings"}]
[null,531120,"Lessors of Nonresidential Buildings (except Miniwarehouses)",{"$f":"Table1[[#This Row],[NAICS Code]]&\" - \"&Table1[[#This Row],[Description]]","v":"531120 - Lessors of Nonresidential Buildings (except Miniwarehouses)"}]
[null,531130,"Lessors of Miniwarehouses and Self-Storage Units",{"$f":"Table1[[#This Row],[NAICS Code]]&\" - \"&Table1[[#This Row],[Description]]","v":"531130 - Lessors of Miniwarehouses and Self-Storage Units"}]
[null,531190,"Lessors of Other Real Estate Property",{"$f":"Table1[[#This Row],[NAICS Code]]&\" - \"&Table1[[#This Row],[Description]]","v":"531190 - Lessors of Other Real Estate Property"}]
[null,531210,"Offices of Real Estate Agents and Brokers",{"$f":"Table1[[#This Row],[NAICS Code]]&\" - \"&Table1[[#This Row],[Description]]","v":"531210 - Offices of Real Estate Agents and Brokers"}]
[null,531311,"Residential Property Managers",{"$f":"Table1[[#This Row],[NAICS Code]]&\" - \"&Table1[[#This Row],[Description]]","v":"531311 - Residential Property Managers"}]
[null,531312,"Nonresidential Property Managers",{"$f":"Table1[[#This Row],[NAICS Code]]&\" - \"&Table1[[#This Row],[Description]]","v":"531312 - Nonresidential Property Managers"}]
[null,531320,"Offices of Real Estate Appraisers",{"$f":"Table1[[#This Row],[NAICS Code]]&\" - \"&Table1[[#This Row],[Description]]","v":"531320 - Offices of Real Estate Appraisers"}]
[null,531390,"Other Activities Related to Real Estate",{"$f":"Table1[[#This Row],[NAICS Code]]&\" - \"&Table1[[#This Row],[Description]]","v":"531390 - Other Activities Related to Real Estate"}]
[null,532111,"Passenger Car Rental",{"$f":"Table1[[#This Row],[NAICS Code]]&\" - \"&Table1[[#This Row],[Description]]","v":"532111 - Passenger Car Rental"}]
[null,532112,"Passenger Car Leasing",{"$f":"Table1[[#This Row],[NAICS Code]]&\" - \"&Table1[[#This Row],[Description]]","v":"532112 - Passenger Car Leasing"}]
[null,532120,"Truck, Utility Trailer, and RV (Recreational Vehicle) Rental and Leasing",{"$f":"Table1[[#This Row],[NAICS Code]]&\" - \"&Table1[[#This Row],[Description]]","v":"532120 - Truck, Utility Trailer, and RV (Recreational Vehicle) Rental and Leasing"}]
[null,532210,"Consumer Electronics and Appliances Rental",{"$f":"Table1[[#This Row],[NAICS Code]]&\" - \"&Table1[[#This Row],[Description]]","v":"532210 - Consumer Electronics and Appliances Rental"}]
[null,532281,"Formal Wear and Costume Rental",{"$f":"Table1[[#This Row],[NAICS Code]]&\" - \"&Table1[[#This Row],[Description]]","v":"532281 - Formal Wear and Costume Rental"}]
[null,532282,"Video Tape and Disc Rental",{"$f":"Table1[[#This Row],[NAICS Code]]&\" - \"&Table1[[#This Row],[Description]]","v":"532282 - Video Tape and Disc Rental"}]
[null,532283,"Home Health Equipment Rental",{"$f":"Table1[[#This Row],[NAICS Code]]&\" - \"&Table1[[#This Row],[Description]]","v":"532283 - Home Health Equipment Rental"}]
[null,532284,"Recreational Goods Rental",{"$f":"Table1[[#This Row],[NAICS Code]]&\" - \"&Table1[[#This Row],[Description]]","v":"532284 - Recreational Goods Rental"}]
[null,532289,"All Other Consumer Goods Rental",{"$f":"Table1[[#This Row],[NAICS Code]]&\" - \"&Table1[[#This Row],[Description]]","v":"532289 - All Other Consumer Goods Rental"}]
[null,532310,"General Rental Centers",{"$f":"Table1[[#This Row],[NAICS Code]]&\" - \"&Table1[[#This Row],[Description]]","v":"532310 - General Rental Centers"}]
[null,532411,"Commercial Air, Rail, and Water Transportation Equipment Rental and Leasing",{"$f":"Table1[[#This Row],[NAICS Code]]&\" - \"&Table1[[#This Row],[Description]]","v":"532411 - Commercial Air, Rail, and Water Transportation Equipment Rental and Leasing"}]
[null,532412,"Construction, Mining, and Forestry Machinery and Equipment Rental and Leasing",{"$f":"Table1[[#This Row],[NAICS Code]]&\" - \"&Table1[[#This Row],[Description]]","v":"532412 - Construction, Mining, and Forestry Machinery and Equipment Rental and Leasing"}]
[null,532420,"Office Machinery and Equipment Rental and Leasing",{"$f":"Table1[[#This Row],[NAICS Code]]&\" - \"&Table1[[#This Row],[Description]]","v":"532420 - Office Machinery and Equipment Rental and Leasing"}]
[null,532490,"Other Commercial and Industrial Machinery and Equipment Rental and Leasing",{"$f":"Table1[[#This Row],[NAICS Code]]&\" - \"&Table1[[#This Row],[Description]]","v":"532490 - Other Commercial and Industrial Machinery and Equipment Rental and Leasing"}]
[null,533110,"Lessors of Nonfinancial Intangible Assets (except Copyrighted Works)",{"$f":"Table1[[#This Row],[NAICS Code]]&\" - \"&Table1[[#This Row],[Description]]","v":"533110 - Lessors of Nonfinancial Intangible Assets (except Copyrighted Works)"}]
[null,541110,"Offices of Lawyers",{"$f":"Table1[[#This Row],[NAICS Code]]&\" - \"&Table1[[#This Row],[Description]]","v":"541110 - Offices of Lawyers"}]
[null,541120,"Offices of Notaries",{"$f":"Table1[[#This Row],[NAICS Code]]&\" - \"&Table1[[#This Row],[Description]]","v":"541120 - Offices of Notaries"}]
[null,541191,"Title Abstract and Settlement Offices",{"$f":"Table1[[#This Row],[NAICS Code]]&\" - \"&Table1[[#This Row],[Description]]","v":"541191 - Title Abstract and Settlement Offices"}]
[null,541199,"All Other Legal Services",{"$f":"Table1[[#This Row],[NAICS Code]]&\" - \"&Table1[[#This Row],[Description]]","v":"541199 - All Other Legal Services"}]
[null,541211,"Offices of Certified Public Accountants",{"$f":"Table1[[#This Row],[NAICS Code]]&\" - \"&Table1[[#This Row],[Description]]","v":"541211 - Offices of Certified Public Accountants"}]
[null,541213,"Tax Preparation Services",{"$f":"Table1[[#This Row],[NAICS Code]]&\" - \"&Table1[[#This Row],[Description]]","v":"541213 - Tax Preparation Services"}]
[null,541214,"Payroll Services",{"$f":"Table1[[#This Row],[NAICS Code]]&\" - \"&Table1[[#This Row],[Description]]","v":"541214 - Payroll Services"}]
[null,541219,"Other Accounting Services",{"$f":"Table1[[#This Row],[NAICS Code]]&\" - \"&Table1[[#This Row],[Description]]","v":"541219 - Other Accounting Services"}]
[null,541310,"Architectural Services",{"$f":"Table1[[#This Row],[NAICS Code]]&\" - \"&Table1[[#This Row],[Description]]","v":"541310 - Architectural Services"}]
[null,541320,"Landscape Architectural Services",{"$f":"Table1[[#This Row],[NAICS Code]]&\" - \"&Table1[[#This Row],[Description]]","v":"541320 - Landscape Architectural Services"}]
[null,541330,"Engineering Services",{"$f":"Table1[[#This Row],[NAICS Code]]&\" - \"&Table1[[#This Row],[Description]]","v":"541330 - Engineering Services"}]
[null,541340,"Drafting Services",{"$f":"Table1[[#This Row],[NAICS Code]]&\" - \"&Table1[[#This Row],[Description]]","v":"541340 - Drafting Services"}]
[null,541350,"Building Inspection Services",{"$f":"Table1[[#This Row],[NAICS Code]]&\" - \"&Table1[[#This Row],[Description]]","v":"541350 - Building Inspection Services"}]
[null,541360,"Geophysical Surveying and Mapping Services",{"$f":"Table1[[#This Row],[NAICS Code]]&\" - \"&Table1[[#This Row],[Description]]","v":"541360 - Geophysical Surveying and Mapping Services"}]
[null,541370,"Surveying and Mapping (except Geophysical) Services",{"$f":"Table1[[#This Row],[NAICS Code]]&\" - \"&Table1[[#This Row],[Description]]","v":"541370 - Surveying and Mapping (except Geophysical) Services"}]
[null,541380,"Testing Laboratories",{"$f":"Table1[[#This Row],[NAICS Code]]&\" - \"&Table1[[#This Row],[Description]]","v":"541380 - Testing Laboratories"}]
[null,541410,"Interior Design Services",{"$f":"Table1[[#This Row],[NAICS Code]]&\" - \"&Table1[[#This Row],[Description]]","v":"541410 - Interior Design Services"}]
[null,541420,"Industrial Design Services",{"$f":"Table1[[#This Row],[NAICS Code]]&\" - \"&Table1[[#This Row],[Description]]","v":"541420 - Industrial Design Services"}]
[null,541430,"Graphic Design Services",{"$f":"Table1[[#This Row],[NAICS Code]]&\" - \"&Table1[[#This Row],[Description]]","v":"541430 - Graphic Design Services"}]
[null,541490,"Other Specialized Design Services",{"$f":"Table1[[#This Row],[NAICS Code]]&\" - \"&Table1[[#This Row],[Description]]","v":"541490 - Other Specialized Design Services"}]
[null,541511,"Custom Computer Programming Services",{"$f":"Table1[[#This Row],[NAICS Code]]&\" - \"&Table1[[#This Row],[Description]]","v":"541511 - Custom Computer Programming Services"}]
[null,541512,"Computer Systems Design Services",{"$f":"Table1[[#This Row],[NAICS Code]]&\" - \"&Table1[[#This Row],[Description]]","v":"541512 - Computer Systems Design Services"}]
[null,541513,"Computer Facilities Management Services",{"$f":"Table1[[#This Row],[NAICS Code]]&\" - \"&Table1[[#This Row],[Description]]","v":"541513 - Computer Facilities Management Services"}]
[null,541519,"Other Computer Related Services",{"$f":"Table1[[#This Row],[NAICS Code]]&\" - \"&Table1[[#This Row],[Description]]","v":"541519 - Other Computer Related Services"}]
[null,541611,"Administrative Management and General Management Consulting Services",{"$f":"Table1[[#This Row],[NAICS Code]]&\" - \"&Table1[[#This Row],[Description]]","v":"541611 - Administrative Management and General Management Consulting Services"}]
[null,541612,"Human Resources Consulting Services",{"$f":"Table1[[#This Row],[NAICS Code]]&\" - \"&Table1[[#This Row],[Description]]","v":"541612 - Human Resources Consulting Services"}]
[null,541613,"Marketing Consulting Services",{"$f":"Table1[[#This Row],[NAICS Code]]&\" - \"&Table1[[#This Row],[Description]]","v":"541613 - Marketing Consulting Services"}]
[null,541614,"Process, Physical Distribution, and Logistics Consulting Services",{"$f":"Table1[[#This Row],[NAICS Code]]&\" - \"&Table1[[#This Row],[Description]]","v":"541614 - Process, Physical Distribution, and Logistics Consulting Services"}]
[null,541618,"Other Management Consulting Services",{"$f":"Table1[[#This Row],[NAICS Code]]&\" - \"&Table1[[#This Row],[Description]]","v":"541618 - Other Management Consulting Services"}]
[null,541620,"Environmental Consulting Services",{"$f":"Table1[[#This Row],[NAICS Code]]&\" - \"&Table1[[#This Row],[Description]]","v":"541620 - Environmental Consulting Services"}]
[null,541690,"Other Scientific and Technical Consulting Services",{"$f":"Table1[[#This Row],[NAICS Code]]&\" - \"&Table1[[#This Row],[Description]]","v":"541690 - Other Scientific and Technical Consulting Services"}]
[null,541713,"Research and Development in Nanotechnology",{"$f":"Table1[[#This Row],[NAICS Code]]&\" - \"&Table1[[#This Row],[Description]]","v":"541713 - Research and Development in Nanotechnology"}]
[null,541714,"Research and Development in Biotechnology (except Nanobiotechnology)",{"$f":"Table1[[#This Row],[NAICS Code]]&\" - \"&Table1[[#This Row],[Description]]","v":"541714 - Research and Development in Biotechnology (except Nanobiotechnology)"}]
[null,541715,"Research and Development in the Physical, Engineering, and Life Sciences (except Nanotechnology and Biotechnology)",{"$f":"Table1[[#This Row],[NAICS Code]]&\" - \"&Table1[[#This Row],[Description]]","v":"541715 - Research and Development in the Physical, Engineering, and Life Sciences (except Nanotechnology and Biotechnology)"}]
[null,541720,"Research and Development in the Social Sciences and Humanities",{"$f":"Table1[[#This Row],[NAICS Code]]&\" - \"&Table1[[#This Row],[Description]]","v":"541720 - Research and Development in the Social Sciences and Humanities"}]
[null,541810,"Advertising Agencies",{"$f":"Table1[[#This Row],[NAICS Code]]&\" - \"&Table1[[#This Row],[Description]]","v":"541810 - Advertising Agencies"}]
[null,541820,"Public Relations Agencies",{"$f":"Table1[[#This Row],[NAICS Code]]&\" - \"&Table1[[#This Row],[Description]]","v":"541820 - Public Relations Agencies"}]
[null,541830,"Media Buying Agencies",{"$f":"Table1[[#This Row],[NAICS Code]]&\" - \"&Table1[[#This Row],[Description]]","v":"541830 - Media Buying Agencies"}]
[null,541840,"Media Representatives",{"$f":"Table1[[#This Row],[NAICS Code]]&\" - \"&Table1[[#This Row],[Description]]","v":"541840 - Media Representatives"}]
[null,541850,"Display Advertising",{"$f":"Table1[[#This Row],[NAICS Code]]&\" - \"&Table1[[#This Row],[Description]]","v":"541850 - Display Advertising"}]
[null,541860,"Direct Mail Advertising",{"$f":"Table1[[#This Row],[NAICS Code]]&\" - \"&Table1[[#This Row],[Description]]","v":"541860 - Direct Mail Advertising"}]
[null,541870,"Advertising Material Distribution Services",{"$f":"Table1[[#This Row],[NAICS Code]]&\" - \"&Table1[[#This Row],[Description]]","v":"541870 - Advertising Material Distribution Services"}]
[null,541890,"Other Services Related to Advertising",{"$f":"Table1[[#This Row],[NAICS Code]]&\" - \"&Table1[[#This Row],[Description]]","v":"541890 - Other Services Related to Advertising"}]
[null,541910,"Marketing Research and Public Opinion Polling",{"$f":"Table1[[#This Row],[NAICS Code]]&\" - \"&Table1[[#This Row],[Description]]","v":"541910 - Marketing Research and Public Opinion Polling"}]
[null,541921,"Photography Studios, Portrait",{"$f":"Table1[[#This Row],[NAICS Code]]&\" - \"&Table1[[#This Row],[Description]]","v":"541921 - Photography Studios, Portrait"}]
[null,541922,"Commercial Photography",{"$f":"Table1[[#This Row],[NAICS Code]]&\" - \"&Table1[[#This Row],[Description]]","v":"541922 - Commercial Photography"}]
[null,541930,"Translation and Interpretation Services",{"$f":"Table1[[#This Row],[NAICS Code]]&\" - \"&Table1[[#This Row],[Description]]","v":"541930 - Translation and Interpretation Services"}]
[null,541940,"Veterinary Services",{"$f":"Table1[[#This Row],[NAICS Code]]&\" - \"&Table1[[#This Row],[Description]]","v":"541940 - Veterinary Services"}]
[null,541990,"All Other Professional, Scientific, and Technical Services",{"$f":"Table1[[#This Row],[NAICS Code]]&\" - \"&Table1[[#This Row],[Description]]","v":"541990 - All Other Professional, Scientific, and Technical Services"}]
[null,551111,"Offices of Bank Holding Companies",{"$f":"Table1[[#This Row],[NAICS Code]]&\" - \"&Table1[[#This Row],[Description]]","v":"551111 - Offices of Bank Holding Companies"}]
[null,551112,"Offices of Other Holding Companies",{"$f":"Table1[[#This Row],[NAICS Code]]&\" - \"&Table1[[#This Row],[Description]]","v":"551112 - Offices of Other Holding Companies"}]
[null,551114,"Corporate, Subsidiary, and Regional Managing Offices",{"$f":"Table1[[#This Row],[NAICS Code]]&\" - \"&Table1[[#This Row],[Description]]","v":"551114 - Corporate, Subsidiary, and Regional Managing Offices"}]
[null,561110,"Office Administrative Services",{"$f":"Table1[[#This Row],[NAICS Code]]&\" - \"&Table1[[#This Row],[Description]]","v":"561110 - Office Administrative Services"}]
[null,561210,"Facilities Support Services",{"$f":"Table1[[#This Row],[NAICS Code]]&\" - \"&Table1[[#This Row],[Description]]","v":"561210 - Facilities Support Services"}]
[null,561311,"Employment Placement Agencies",{"$f":"Table1[[#This Row],[NAICS Code]]&\" - \"&Table1[[#This Row],[Description]]","v":"561311 - Employment Placement Agencies"}]
[null,561312,"Executive Search Services",{"$f":"Table1[[#This Row],[NAICS Code]]&\" - \"&Table1[[#This Row],[Description]]","v":"561312 - Executive Search Services"}]
[null,561320,"Temporary Help Services",{"$f":"Table1[[#This Row],[NAICS Code]]&\" - \"&Table1[[#This Row],[Description]]","v":"561320 - Temporary Help Services"}]
[null,561330,"Professional Employer Organizations",{"$f":"Table1[[#This Row],[NAICS Code]]&\" - \"&Table1[[#This Row],[Description]]","v":"561330 - Professional Employer Organizations"}]
[null,561410,"Document Preparation Services",{"$f":"Table1[[#This Row],[NAICS Code]]&\" - \"&Table1[[#This Row],[Description]]","v":"561410 - Document Preparation Services"}]
[null,561421,"Telephone Answering Services",{"$f":"Table1[[#This Row],[NAICS Code]]&\" - \"&Table1[[#This Row],[Description]]","v":"561421 - Telephone Answering Services"}]
[null,561422,"Telemarketing Bureaus and Other Contact Centers",{"$f":"Table1[[#This Row],[NAICS Code]]&\" - \"&Table1[[#This Row],[Description]]","v":"561422 - Telemarketing Bureaus and Other Contact Centers"}]
[null,561431,"Private Mail Centers",{"$f":"Table1[[#This Row],[NAICS Code]]&\" - \"&Table1[[#This Row],[Description]]","v":"561431 - Private Mail Centers"}]
[null,561439,"Other Business Service Centers (including Copy Shops)",{"$f":"Table1[[#This Row],[NAICS Code]]&\" - \"&Table1[[#This Row],[Description]]","v":"561439 - Other Business Service Centers (including Copy Shops)"}]
[null,561440,"Collection Agencies",{"$f":"Table1[[#This Row],[NAICS Code]]&\" - \"&Table1[[#This Row],[Description]]","v":"561440 - Collection Agencies"}]
[null,561450,"Credit Bureaus",{"$f":"Table1[[#This Row],[NAICS Code]]&\" - \"&Table1[[#This Row],[Description]]","v":"561450 - Credit Bureaus"}]
[null,561491,"Repossession Services",{"$f":"Table1[[#This Row],[NAICS Code]]&\" - \"&Table1[[#This Row],[Description]]","v":"561491 - Repossession Services"}]
[null,561492,"Court Reporting and Stenotype Services",{"$f":"Table1[[#This Row],[NAICS Code]]&\" - \"&Table1[[#This Row],[Description]]","v":"561492 - Court Reporting and Stenotype Services"}]
[null,561499,"All Other Business Support Services",{"$f":"Table1[[#This Row],[NAICS Code]]&\" - \"&Table1[[#This Row],[Description]]","v":"561499 - All Other Business Support Services"}]
[null,561510,"Travel Agencies",{"$f":"Table1[[#This Row],[NAICS Code]]&\" - \"&Table1[[#This Row],[Description]]","v":"561510 - Travel Agencies"}]
[null,561520,"Tour Operators",{"$f":"Table1[[#This Row],[NAICS Code]]&\" - \"&Table1[[#This Row],[Description]]","v":"561520 - Tour Operators"}]
[null,561591,"Convention and Visitors Bureaus",{"$f":"Table1[[#This Row],[NAICS Code]]&\" - \"&Table1[[#This Row],[Description]]","v":"561591 - Convention and Visitors Bureaus"}]
[null,561599,"All Other Travel Arrangement and Reservation Services",{"$f":"Table1[[#This Row],[NAICS Code]]&\" - \"&Table1[[#This Row],[Description]]","v":"561599 - All Other Travel Arrangement and Reservation Services"}]
[null,561611,"Investigation Services",{"$f":"Table1[[#This Row],[NAICS Code]]&\" - \"&Table1[[#This Row],[Description]]","v":"561611 - Investigation Services"}]
[null,561612,"Security Guards and Patrol Services",{"$f":"Table1[[#This Row],[NAICS Code]]&\" - \"&Table1[[#This Row],[Description]]","v":"561612 - Security Guards and Patrol Services"}]
[null,561613,"Armored Car Services",{"$f":"Table1[[#This Row],[NAICS Code]]&\" - \"&Table1[[#This Row],[Description]]","v":"561613 - Armored Car Services"}]
[null,561621,"Security Systems Services (except Locksmiths)",{"$f":"Table1[[#This Row],[NAICS Code]]&\" - \"&Table1[[#This Row],[Description]]","v":"561621 - Security Systems Services (except Locksmiths)"}]
[null,561622,"Locksmiths",{"$f":"Table1[[#This Row],[NAICS Code]]&\" - \"&Table1[[#This Row],[Description]]","v":"561622 - Locksmiths"}]
[null,561710,"Exterminating and Pest Control Services",{"$f":"Table1[[#This Row],[NAICS Code]]&\" - \"&Table1[[#This Row],[Description]]","v":"561710 - Exterminating and Pest Control Services"}]
[null,561720,"Janitorial Services",{"$f":"Table1[[#This Row],[NAICS Code]]&\" - \"&Table1[[#This Row],[Description]]","v":"561720 - Janitorial Services"}]
[null,561730,"Landscaping Services",{"$f":"Table1[[#This Row],[NAICS Code]]&\" - \"&Table1[[#This Row],[Description]]","v":"561730 - Landscaping Services"}]
[null,561740,"Carpet and Upholstery Cleaning Services",{"$f":"Table1[[#This Row],[NAICS Code]]&\" - \"&Table1[[#This Row],[Description]]","v":"561740 - Carpet and Upholstery Cleaning Services"}]
[null,561790,"Other Services to Buildings and Dwellings",{"$f":"Table1[[#This Row],[NAICS Code]]&\" - \"&Table1[[#This Row],[Description]]","v":"561790 - Other Services to Buildings and Dwellings"}]
[null,561910,"Packaging and Labeling Services",{"$f":"Table1[[#This Row],[NAICS Code]]&\" - \"&Table1[[#This Row],[Description]]","v":"561910 - Packaging and Labeling Services"}]
[null,561920,"Convention and Trade Show Organizers",{"$f":"Table1[[#This Row],[NAICS Code]]&\" - \"&Table1[[#This Row],[Description]]","v":"561920 - Convention and Trade Show Organizers"}]
[null,561990,"All Other Support Services",{"$f":"Table1[[#This Row],[NAICS Code]]&\" - \"&Table1[[#This Row],[Description]]","v":"561990 - All Other Support Services"}]
[null,562111,"Solid Waste Collection",{"$f":"Table1[[#This Row],[NAICS Code]]&\" - \"&Table1[[#This Row],[Description]]","v":"562111 - Solid Waste Collection"}]
[null,562112,"Hazardous Waste Collection",{"$f":"Table1[[#This Row],[NAICS Code]]&\" - \"&Table1[[#This Row],[Description]]","v":"562112 - Hazardous Waste Collection"}]
[null,562119,"Other Waste Collection",{"$f":"Table1[[#This Row],[NAICS Code]]&\" - \"&Table1[[#This Row],[Description]]","v":"562119 - Other Waste Collection"}]
[null,562211,"Hazardous Waste Treatment and Disposal",{"$f":"Table1[[#This Row],[NAICS Code]]&\" - \"&Table1[[#This Row],[Description]]","v":"562211 - Hazardous Waste Treatment and Disposal"}]
[null,562212,"Solid Waste Landfill",{"$f":"Table1[[#This Row],[NAICS Code]]&\" - \"&Table1[[#This Row],[Description]]","v":"562212 - Solid Waste Landfill"}]
[null,562213,"Solid Waste Combustors and Incinerators",{"$f":"Table1[[#This Row],[NAICS Code]]&\" - \"&Table1[[#This Row],[Description]]","v":"562213 - Solid Waste Combustors and Incinerators"}]
[null,562219,"Other Nonhazardous Waste Treatment and Disposal",{"$f":"Table1[[#This Row],[NAICS Code]]&\" - \"&Table1[[#This Row],[Description]]","v":"562219 - Other Nonhazardous Waste Treatment and Disposal"}]
[null,562910,"Remediation Services",{"$f":"Table1[[#This Row],[NAICS Code]]&\" - \"&Table1[[#This Row],[Description]]","v":"562910 - Remediation Services"}]
[null,562920,"Materials Recovery Facilities",{"$f":"Table1[[#This Row],[NAICS Code]]&\" - \"&Table1[[#This Row],[Description]]","v":"562920 - Materials Recovery Facilities"}]
[null,562991,"Septic Tank and Related Services",{"$f":"Table1[[#This Row],[NAICS Code]]&\" - \"&Table1[[#This Row],[Description]]","v":"562991 - Septic Tank and Related Services"}]
[null,562998,"All Other Miscellaneous Waste Management Services",{"$f":"Table1[[#This Row],[NAICS Code]]&\" - \"&Table1[[#This Row],[Description]]","v":"562998 - All Other Miscellaneous Waste Management Services"}]
[null,611110,"Elementary and Secondary Schools",{"$f":"Table1[[#This Row],[NAICS Code]]&\" - \"&Table1[[#This Row],[Description]]","v":"611110 - Elementary and Secondary Schools"}]
[null,611210,"Junior Colleges",{"$f":"Table1[[#This Row],[NAICS Code]]&\" - \"&Table1[[#This Row],[Description]]","v":"611210 - Junior Colleges"}]
[null,611310,"Colleges, Universities, and Professional Schools",{"$f":"Table1[[#This Row],[NAICS Code]]&\" - \"&Table1[[#This Row],[Description]]","v":"611310 - Colleges, Universities, and Professional Schools"}]
[null,611410,"Business and Secretarial Schools",{"$f":"Table1[[#This Row],[NAICS Code]]&\" - \"&Table1[[#This Row],[Description]]","v":"611410 - Business and Secretarial Schools"}]
[null,611420,"Computer Training",{"$f":"Table1[[#This Row],[NAICS Code]]&\" - \"&Table1[[#This Row],[Description]]","v":"611420 - Computer Training"}]
[null,611430,"Professional and Management Development Training",{"$f":"Table1[[#This Row],[NAICS Code]]&\" - \"&Table1[[#This Row],[Description]]","v":"611430 - Professional and Management Development Training"}]
[null,611511,"Cosmetology and Barber Schools",{"$f":"Table1[[#This Row],[NAICS Code]]&\" - \"&Table1[[#This Row],[Description]]","v":"611511 - Cosmetology and Barber Schools"}]
[null,611512,"Flight Training",{"$f":"Table1[[#This Row],[NAICS Code]]&\" - \"&Table1[[#This Row],[Description]]","v":"611512 - Flight Training"}]
[null,611513,"Apprenticeship Training",{"$f":"Table1[[#This Row],[NAICS Code]]&\" - \"&Table1[[#This Row],[Description]]","v":"611513 - Apprenticeship Training"}]
[null,611519,"Other Technical and Trade Schools",{"$f":"Table1[[#This Row],[NAICS Code]]&\" - \"&Table1[[#This Row],[Description]]","v":"611519 - Other Technical and Trade Schools"}]
[null,611610,"Fine Arts Schools",{"$f":"Table1[[#This Row],[NAICS Code]]&\" - \"&Table1[[#This Row],[Description]]","v":"611610 - Fine Arts Schools"}]
[null,611620,"Sports and Recreation Instruction",{"$f":"Table1[[#This Row],[NAICS Code]]&\" - \"&Table1[[#This Row],[Description]]","v":"611620 - Sports and Recreation Instruction"}]
[null,611630,"Language Schools",{"$f":"Table1[[#This Row],[NAICS Code]]&\" - \"&Table1[[#This Row],[Description]]","v":"611630 - Language Schools"}]
[null,611691,"Exam Preparation and Tutoring",{"$f":"Table1[[#This Row],[NAICS Code]]&\" - \"&Table1[[#This Row],[Description]]","v":"611691 - Exam Preparation and Tutoring"}]
[null,611692,"Automobile Driving Schools",{"$f":"Table1[[#This Row],[NAICS Code]]&\" - \"&Table1[[#This Row],[Description]]","v":"611692 - Automobile Driving Schools"}]
[null,611699,"All Other Miscellaneous Schools and Instruction",{"$f":"Table1[[#This Row],[NAICS Code]]&\" - \"&Table1[[#This Row],[Description]]","v":"611699 - All Other Miscellaneous Schools and Instruction"}]
[null,611710,"Educational Support Services",{"$f":"Table1[[#This Row],[NAICS Code]]&\" - \"&Table1[[#This Row],[Description]]","v":"611710 - Educational Support Services"}]
[null,621111,"Offices of Physicians (except Mental Health Specialists)",{"$f":"Table1[[#This Row],[NAICS Code]]&\" - \"&Table1[[#This Row],[Description]]","v":"621111 - Offices of Physicians (except Mental Health Specialists)"}]
[null,621112,"Offices of Physicians, Mental Health Specialists",{"$f":"Table1[[#This Row],[NAICS Code]]&\" - \"&Table1[[#This Row],[Description]]","v":"621112 - Offices of Physicians, Mental Health Specialists"}]
[null,621210,"Offices of Dentists",{"$f":"Table1[[#This Row],[NAICS Code]]&\" - \"&Table1[[#This Row],[Description]]","v":"621210 - Offices of Dentists"}]
[null,621310,"Offices of Chiropractors",{"$f":"Table1[[#This Row],[NAICS Code]]&\" - \"&Table1[[#This Row],[Description]]","v":"621310 - Offices of Chiropractors"}]
[null,621320,"Offices of Optometrists",{"$f":"Table1[[#This Row],[NAICS Code]]&\" - \"&Table1[[#This Row],[Description]]","v":"621320 - Offices of Optometrists"}]
[null,621330,"Offices of Mental Health Practitioners (except Physicians)",{"$f":"Table1[[#This Row],[NAICS Code]]&\" - \"&Table1[[#This Row],[Description]]","v":"621330 - Offices of Mental Health Practitioners (except Physicians)"}]
[null,621340,"Offices of Physical, Occupational and Speech Therapists, and Audiologists",{"$f":"Table1[[#This Row],[NAICS Code]]&\" - \"&Table1[[#This Row],[Description]]","v":"621340 - Offices of Physical, Occupational and Speech Therapists, and Audiologists"}]
[null,621391,"Offices of Podiatrists",{"$f":"Table1[[#This Row],[NAICS Code]]&\" - \"&Table1[[#This Row],[Description]]","v":"621391 - Offices of Podiatrists"}]
[null,621399,"Offices of All Other Miscellaneous Health Practitioners",{"$f":"Table1[[#This Row],[NAICS Code]]&\" - \"&Table1[[#This Row],[Description]]","v":"621399 - Offices of All Other Miscellaneous Health Practitioners"}]
[null,621410,"Family Planning Centers",{"$f":"Table1[[#This Row],[NAICS Code]]&\" - \"&Table1[[#This Row],[Description]]","v":"621410 - Family Planning Centers"}]
[null,621420,"Outpatient Mental Health and Substance Abuse Centers",{"$f":"Table1[[#This Row],[NAICS Code]]&\" - \"&Table1[[#This Row],[Description]]","v":"621420 - Outpatient Mental Health and Substance Abuse Centers"}]
[null,621491,"HMO Medical Centers",{"$f":"Table1[[#This Row],[NAICS Code]]&\" - \"&Table1[[#This Row],[Description]]","v":"621491 - HMO Medical Centers"}]
[null,621492,"Kidney Dialysis Centers",{"$f":"Table1[[#This Row],[NAICS Code]]&\" - \"&Table1[[#This Row],[Description]]","v":"621492 - Kidney Dialysis Centers"}]
[null,621493,"Freestanding Ambulatory Surgical and Emergency Centers",{"$f":"Table1[[#This Row],[NAICS Code]]&\" - \"&Table1[[#This Row],[Description]]","v":"621493 - Freestanding Ambulatory Surgical and Emergency Centers"}]
[null,621498,"All Other Outpatient Care Centers",{"$f":"Table1[[#This Row],[NAICS Code]]&\" - \"&Table1[[#This Row],[Description]]","v":"621498 - All Other Outpatient Care Centers"}]
[null,621511,"Medical Laboratories",{"$f":"Table1[[#This Row],[NAICS Code]]&\" - \"&Table1[[#This Row],[Description]]","v":"621511 - Medical Laboratories"}]
[null,621512,"Diagnostic Imaging Centers",{"$f":"Table1[[#This Row],[NAICS Code]]&\" - \"&Table1[[#This Row],[Description]]","v":"621512 - Diagnostic Imaging Centers"}]
[null,621610,"Home Health Care Services",{"$f":"Table1[[#This Row],[NAICS Code]]&\" - \"&Table1[[#This Row],[Description]]","v":"621610 - Home Health Care Services"}]
[null,621910,"Ambulance Services",{"$f":"Table1[[#This Row],[NAICS Code]]&\" - \"&Table1[[#This Row],[Description]]","v":"621910 - Ambulance Services"}]
[null,621991,"Blood and Organ Banks",{"$f":"Table1[[#This Row],[NAICS Code]]&\" - \"&Table1[[#This Row],[Description]]","v":"621991 - Blood and Organ Banks"}]
[null,621999,"All Other Miscellaneous Ambulatory Health Care Services",{"$f":"Table1[[#This Row],[NAICS Code]]&\" - \"&Table1[[#This Row],[Description]]","v":"621999 - All Other Miscellaneous Ambulatory Health Care Services"}]
[null,622110,"General Medical and Surgical Hospitals",{"$f":"Table1[[#This Row],[NAICS Code]]&\" - \"&Table1[[#This Row],[Description]]","v":"622110 - General Medical and Surgical Hospitals"}]
[null,622210,"Psychiatric and Substance Abuse Hospitals",{"$f":"Table1[[#This Row],[NAICS Code]]&\" - \"&Table1[[#This Row],[Description]]","v":"622210 - Psychiatric and Substance Abuse Hospitals"}]
[null,622310,"Specialty (except Psychiatric and Substance Abuse) Hospitals",{"$f":"Table1[[#This Row],[NAICS Code]]&\" - \"&Table1[[#This Row],[Description]]","v":"622310 - Specialty (except Psychiatric and Substance Abuse) Hospitals"}]
[null,623110,"Nursing Care Facilities",{"$f":"Table1[[#This Row],[NAICS Code]]&\" - \"&Table1[[#This Row],[Description]]","v":"623110 - Nursing Care Facilities"}]
[null,623210,"Residential Mental Retardation Facilities",{"$f":"Table1[[#This Row],[NAICS Code]]&\" - \"&Table1[[#This Row],[Description]]","v":"623210 - Residential Mental Retardation Facilities"}]
[null,623220,"Residential Mental Health and Substance Abuse Facilities",{"$f":"Table1[[#This Row],[NAICS Code]]&\" - \"&Table1[[#This Row],[Description]]","v":"623220 - Residential Mental Health and Substance Abuse Facilities"}]
[null,623311,"Continuing Care Retirement Communities",{"$f":"Table1[[#This Row],[NAICS Code]]&\" - \"&Table1[[#This Row],[Description]]","v":"623311 - Continuing Care Retirement Communities"}]
[null,623312,"Homes for the Elderly",{"$f":"Table1[[#This Row],[NAICS Code]]&\" - \"&Table1[[#This Row],[Description]]","v":"623312 - Homes for the Elderly"}]
[null,623990,"Other Residential Care Facilities",{"$f":"Table1[[#This Row],[NAICS Code]]&\" - \"&Table1[[#This Row],[Description]]","v":"623990 - Other Residential Care Facilities"}]
[null,624110,"Child and Youth Services",{"$f":"Table1[[#This Row],[NAICS Code]]&\" - \"&Table1[[#This Row],[Description]]","v":"624110 - Child and Youth Services"}]
[null,624120,"Services for the Elderly and Persons with Disabilities",{"$f":"Table1[[#This Row],[NAICS Code]]&\" - \"&Table1[[#This Row],[Description]]","v":"624120 - Services for the Elderly and Persons with Disabilities"}]
[null,624190,"Other Individual and Family Services",{"$f":"Table1[[#This Row],[NAICS Code]]&\" - \"&Table1[[#This Row],[Description]]","v":"624190 - Other Individual and Family Services"}]
[null,624210,"Community Food Services",{"$f":"Table1[[#This Row],[NAICS Code]]&\" - \"&Table1[[#This Row],[Description]]","v":"624210 - Community Food Services"}]
[null,624221,"Temporary Shelters",{"$f":"Table1[[#This Row],[NAICS Code]]&\" - \"&Table1[[#This Row],[Description]]","v":"624221 - Temporary Shelters"}]
[null,624229,"Other Community Housing Services",{"$f":"Table1[[#This Row],[NAICS Code]]&\" - \"&Table1[[#This Row],[Description]]","v":"624229 - Other Community Housing Services"}]
[null,624230,"Emergency and Other Relief Services",{"$f":"Table1[[#This Row],[NAICS Code]]&\" - \"&Table1[[#This Row],[Description]]","v":"624230 - Emergency and Other Relief Services"}]
[null,624310,"Vocational Rehabilitation Services",{"$f":"Table1[[#This Row],[NAICS Code]]&\" - \"&Table1[[#This Row],[Description]]","v":"624310 - Vocational Rehabilitation Services"}]
[null,624410,"Child Day Care Services",{"$f":"Table1[[#This Row],[NAICS Code]]&\" - \"&Table1[[#This Row],[Description]]","v":"624410 - Child Day Care Services"}]
[null,711110,"Theater Companies and Dinner Theaters",{"$f":"Table1[[#This Row],[NAICS Code]]&\" - \"&Table1[[#This Row],[Description]]","v":"711110 - Theater Companies and Dinner Theaters"}]
[null,711120,"Dance Companies",{"$f":"Table1[[#This Row],[NAICS Code]]&\" - \"&Table1[[#This Row],[Description]]","v":"711120 - Dance Companies"}]
[null,711130,"Musical Groups and Artists",{"$f":"Table1[[#This Row],[NAICS Code]]&\" - \"&Table1[[#This Row],[Description]]","v":"711130 - Musical Groups and Artists"}]
[null,711190,"Other Performing Arts Companies",{"$f":"Table1[[#This Row],[NAICS Code]]&\" - \"&Table1[[#This Row],[Description]]","v":"711190 - Other Performing Arts Companies"}]
[null,711211,"Sports Teams and Clubs",{"$f":"Table1[[#This Row],[NAICS Code]]&\" - \"&Table1[[#This Row],[Description]]","v":"711211 - Sports Teams and Clubs"}]
[null,711212,"Racetracks",{"$f":"Table1[[#This Row],[NAICS Code]]&\" - \"&Table1[[#This Row],[Description]]","v":"711212 - Racetracks"}]
[null,711219,"Other Spectator Sports",{"$f":"Table1[[#This Row],[NAICS Code]]&\" - \"&Table1[[#This Row],[Description]]","v":"711219 - Other Spectator Sports"}]
[null,711310,"Promoters of Performing Arts, Sports, and Similar Events with Facilities",{"$f":"Table1[[#This Row],[NAICS Code]]&\" - \"&Table1[[#This Row],[Description]]","v":"711310 - Promoters of Performing Arts, Sports, and Similar Events with Facilities"}]
[null,711320,"Promoters of Performing Arts, Sports, and Similar Events without Facilities",{"$f":"Table1[[#This Row],[NAICS Code]]&\" - \"&Table1[[#This Row],[Description]]","v":"711320 - Promoters of Performing Arts, Sports, and Similar Events without Facilities"}]
[null,711410,"Agents and Managers for Artists, Athletes, Entertainers, and Other Public Figures",{"$f":"Table1[[#This Row],[NAICS Code]]&\" - \"&Table1[[#This Row],[Description]]","v":"711410 - Agents and Managers for Artists, Athletes, Entertainers, and Other Public Figures"}]
[null,711510,"Independent Artists, Writers, and Performers",{"$f":"Table1[[#This Row],[NAICS Code]]&\" - \"&Table1[[#This Row],[Description]]","v":"711510 - Independent Artists, Writers, and Performers"}]
[null,712110,"Museums",{"$f":"Table1[[#This Row],[NAICS Code]]&\" - \"&Table1[[#This Row],[Description]]","v":"712110 - Museums"}]
[null,712120,"Historical Sites",{"$f":"Table1[[#This Row],[NAICS Code]]&\" - \"&Table1[[#This Row],[Description]]","v":"712120 - Historical Sites"}]
[null,712130,"Zoos and Botanical Gardens",{"$f":"Table1[[#This Row],[NAICS Code]]&\" - \"&Table1[[#This Row],[Description]]","v":"712130 - Zoos and Botanical Gardens"}]
[null,712190,"Nature Parks and Other Similar Institutions",{"$f":"Table1[[#This Row],[NAICS Code]]&\" - \"&Table1[[#This Row],[Description]]","v":"712190 - Nature Parks and Other Similar Institutions"}]
[null,713110,"Amusement and Theme Parks",{"$f":"Table1[[#This Row],[NAICS Code]]&\" - \"&Table1[[#This Row],[Description]]","v":"713110 - Amusement and Theme Parks"}]
[null,713120,"Amusement Arcades",{"$f":"Table1[[#This Row],[NAICS Code]]&\" - \"&Table1[[#This Row],[Description]]","v":"713120 - Amusement Arcades"}]
[null,713210,"Casinos (except Casino Hotels)",{"$f":"Table1[[#This Row],[NAICS Code]]&\" - \"&Table1[[#This Row],[Description]]","v":"713210 - Casinos (except Casino Hotels)"}]
[null,713290,"Other Gambling Industries",{"$f":"Table1[[#This Row],[NAICS Code]]&\" - \"&Table1[[#This Row],[Description]]","v":"713290 - Other Gambling Industries"}]
[null,713910,"Golf Courses and Country Clubs",{"$f":"Table1[[#This Row],[NAICS Code]]&\" - \"&Table1[[#This Row],[Description]]","v":"713910 - Golf Courses and Country Clubs"}]
[null,713920,"Skiing Facilities",{"$f":"Table1[[#This Row],[NAICS Code]]&\" - \"&Table1[[#This Row],[Description]]","v":"713920 - Skiing Facilities"}]
[null,713930,"Marinas",{"$f":"Table1[[#This Row],[NAICS Code]]&\" - \"&Table1[[#This Row],[Description]]","v":"713930 - Marinas"}]
[null,713940,"Fitness and Recreational Sports Centers",{"$f":"Table1[[#This Row],[NAICS Code]]&\" - \"&Table1[[#This Row],[Description]]","v":"713940 - Fitness and Recreational Sports Centers"}]
[null,713950,"Bowling Centers",{"$f":"Table1[[#This Row],[NAICS Code]]&\" - \"&Table1[[#This Row],[Description]]","v":"713950 - Bowling Centers"}]
[null,713990,"All Other Amusement and Recreation Industries",{"$f":"Table1[[#This Row],[NAICS Code]]&\" - \"&Table1[[#This Row],[Description]]","v":"713990 - All Other Amusement and Recreation Industries"}]
[null,721110,"Hotels (except Casino Hotels) and Motels",{"$f":"Table1[[#This Row],[NAICS Code]]&\" - \"&Table1[[#This Row],[Description]]","v":"721110 - Hotels (except Casino Hotels) and Motels"}]
[null,721120,"Casino Hotels",{"$f":"Table1[[#This Row],[NAICS Code]]&\" - \"&Table1[[#This Row],[Description]]","v":"721120 - Casino Hotels"}]
[null,721191,"Bed-and-Breakfast Inns",{"$f":"Table1[[#This Row],[NAICS Code]]&\" - \"&Table1[[#This Row],[Description]]","v":"721191 - Bed-and-Breakfast Inns"}]
[null,721199,"All Other Traveler Accommodation",{"$f":"Table1[[#This Row],[NAICS Code]]&\" - \"&Table1[[#This Row],[Description]]","v":"721199 - All Other Traveler Accommodation"}]
[null,721211,"RV (Recreational Vehicle) Parks and Campgrounds",{"$f":"Table1[[#This Row],[NAICS Code]]&\" - \"&Table1[[#This Row],[Description]]","v":"721211 - RV (Recreational Vehicle) Parks and Campgrounds"}]
[null,721214,"Recreational and Vacation Camps (except Campgrounds)",{"$f":"Table1[[#This Row],[NAICS Code]]&\" - \"&Table1[[#This Row],[Description]]","v":"721214 - Recreational and Vacation Camps (except Campgrounds)"}]
[null,721310,"Rooming and Boarding Houses",{"$f":"Table1[[#This Row],[NAICS Code]]&\" - \"&Table1[[#This Row],[Description]]","v":"721310 - Rooming and Boarding Houses"}]
[null,722310,"Food Service Contractors",{"$f":"Table1[[#This Row],[NAICS Code]]&\" - \"&Table1[[#This Row],[Description]]","v":"722310 - Food Service Contractors"}]
[null,722320,"Caterers",{"$f":"Table1[[#This Row],[NAICS Code]]&\" - \"&Table1[[#This Row],[Description]]","v":"722320 - Caterers"}]
[null,722330,"Mobile Food Services",{"$f":"Table1[[#This Row],[NAICS Code]]&\" - \"&Table1[[#This Row],[Description]]","v":"722330 - Mobile Food Services"}]
[null,722410,"Drinking Places (Alcoholic Beverages)",{"$f":"Table1[[#This Row],[NAICS Code]]&\" - \"&Table1[[#This Row],[Description]]","v":"722410 - Drinking Places (Alcoholic Beverages)"}]
[null,722511,"Full-Service Restaurants",{"$f":"Table1[[#This Row],[NAICS Code]]&\" - \"&Table1[[#This Row],[Description]]","v":"722511 - Full-Service Restaurants"}]
[null,722513,"Limited-Service Restaurants",{"$f":"Table1[[#This Row],[NAICS Code]]&\" - \"&Table1[[#This Row],[Description]]","v":"722513 - Limited-Service Restaurants"}]
[null,722514,"Cafeterias, Grill Buffets, and Buffets",{"$f":"Table1[[#This Row],[NAICS Code]]&\" - \"&Table1[[#This Row],[Description]]","v":"722514 - Cafeterias, Grill Buffets, and Buffets"}]
[null,722515,"Snack and Nonalcoholic Beverage Bars",{"$f":"Table1[[#This Row],[NAICS Code]]&\" - \"&Table1[[#This Row],[Description]]","v":"722515 - Snack and Nonalcoholic Beverage Bars"}]
[null,811111,"General Automotive Repair",{"$f":"Table1[[#This Row],[NAICS Code]]&\" - \"&Table1[[#This Row],[Description]]","v":"811111 - General Automotive Repair"}]
[null,811112,"Automotive Exhaust System Repair",{"$f":"Table1[[#This Row],[NAICS Code]]&\" - \"&Table1[[#This Row],[Description]]","v":"811112 - Automotive Exhaust System Repair"}]
[null,811113,"Automotive Transmission Repair",{"$f":"Table1[[#This Row],[NAICS Code]]&\" - \"&Table1[[#This Row],[Description]]","v":"811113 - Automotive Transmission Repair"}]
[null,811118,"Other Automotive Mechanical and Electrical Repair and Maintenance",{"$f":"Table1[[#This Row],[NAICS Code]]&\" - \"&Table1[[#This Row],[Description]]","v":"811118 - Other Automotive Mechanical and Electrical Repair and Maintenance"}]
[null,811121,"Automotive Body, Paint, and Interior Repair and Maintenance",{"$f":"Table1[[#This Row],[NAICS Code]]&\" - \"&Table1[[#This Row],[Description]]","v":"811121 - Automotive Body, Paint, and Interior Repair and Maintenance"}]
[null,811122,"Automotive Glass Replacement Shops",{"$f":"Table1[[#This Row],[NAICS Code]]&\" - \"&Table1[[#This Row],[Description]]","v":"811122 - Automotive Glass Replacement Shops"}]
[null,811191,"Automotive Oil Change and Lubrication Shops",{"$f":"Table1[[#This Row],[NAICS Code]]&\" - \"&Table1[[#This Row],[Description]]","v":"811191 - Automotive Oil Change and Lubrication Shops"}]
[null,811192,"Car Washes",{"$f":"Table1[[#This Row],[NAICS Code]]&\" - \"&Table1[[#This Row],[Description]]","v":"811192 - Car Washes"}]
[null,811198,"All Other Automotive Repair and Maintenance",{"$f":"Table1[[#This Row],[NAICS Code]]&\" - \"&Table1[[#This Row],[Description]]","v":"811198 - All Other Automotive Repair and Maintenance"}]
[null,811211,"Consumer Electronics Repair and Maintenance",{"$f":"Table1[[#This Row],[NAICS Code]]&\" - \"&Table1[[#This Row],[Description]]","v":"811211 - Consumer Electronics Repair and Maintenance"}]
[null,811212,"Computer and Office Machine Repair and Maintenance",{"$f":"Table1[[#This Row],[NAICS Code]]&\" - \"&Table1[[#This Row],[Description]]","v":"811212 - Computer and Office Machine Repair and Maintenance"}]
[null,811213,"Communication Equipment Repair and Maintenance",{"$f":"Table1[[#This Row],[NAICS Code]]&\" - \"&Table1[[#This Row],[Description]]","v":"811213 - Communication Equipment Repair and Maintenance"}]
[null,811219,"Other Electronic and Precision Equipment Repair and Maintenance",{"$f":"Table1[[#This Row],[NAICS Code]]&\" - \"&Table1[[#This Row],[Description]]","v":"811219 - Other Electronic and Precision Equipment Repair and Maintenance"}]
[null,811310,"Commercial and Industrial Machinery and Equipment (except Automotive and Electronic) Repair and Maintenance",{"$f":"Table1[[#This Row],[NAICS Code]]&\" - \"&Table1[[#This Row],[Description]]","v":"811310 - Commercial and Industrial Machinery and Equipment (except Automotive and Electronic) Repair and Maintenance"}]
[null,811411,"Home and Garden Equipment Repair and Maintenance",{"$f":"Table1[[#This Row],[NAICS Code]]&\" - \"&Table1[[#This Row],[Description]]","v":"811411 - Home and Garden Equipment Repair and Maintenance"}]
[null,811412,"Appliance Repair and Maintenance",{"$f":"Table1[[#This Row],[NAICS Code]]&\" - \"&Table1[[#This Row],[Description]]","v":"811412 - Appliance Repair and Maintenance"}]
[null,811420,"Reupholstery and Furniture Repair",{"$f":"Table1[[#This Row],[NAICS Code]]&\" - \"&Table1[[#This Row],[Description]]","v":"811420 - Reupholstery and Furniture Repair"}]
[null,811430,"Footwear and Leather Goods Repair",{"$f":"Table1[[#This Row],[NAICS Code]]&\" - \"&Table1[[#This Row],[Description]]","v":"811430 - Footwear and Leather Goods Repair"}]
[null,811490,"Other Personal and Household Goods Repair and Maintenance",{"$f":"Table1[[#This Row],[NAICS Code]]&\" - \"&Table1[[#This Row],[Description]]","v":"811490 - Other Personal and Household Goods Repair and Maintenance"}]
[null,812111,"Barber Shops",{"$f":"Table1[[#This Row],[NAICS Code]]&\" - \"&Table1[[#This Row],[Description]]","v":"812111 - Barber Shops"}]
[null,812112,"Beauty Salons",{"$f":"Table1[[#This Row],[NAICS Code]]&\" - \"&Table1[[#This Row],[Description]]","v":"812112 - Beauty Salons"}]
[null,812113,"Nail Salons",{"$f":"Table1[[#This Row],[NAICS Code]]&\" - \"&Table1[[#This Row],[Description]]","v":"812113 - Nail Salons"}]
[null,812191,"Diet and Weight Reducing Centers",{"$f":"Table1[[#This Row],[NAICS Code]]&\" - \"&Table1[[#This Row],[Description]]","v":"812191 - Diet and Weight Reducing Centers"}]
[null,812199,"Other Personal Care Services",{"$f":"Table1[[#This Row],[NAICS Code]]&\" - \"&Table1[[#This Row],[Description]]","v":"812199 - Other Personal Care Services"}]
[null,812210,"Funeral Homes and Funeral Services",{"$f":"Table1[[#This Row],[NAICS Code]]&\" - \"&Table1[[#This Row],[Description]]","v":"812210 - Funeral Homes and Funeral Services"}]
[null,812220,"Cemeteries and Crematories",{"$f":"Table1[[#This Row],[NAICS Code]]&\" - \"&Table1[[#This Row],[Description]]","v":"812220 - Cemeteries and Crematories"}]
[null,812310,"Coin-Operated Laundries and Drycleaners",{"$f":"Table1[[#This Row],[NAICS Code]]&\" - \"&Table1[[#This Row],[Description]]","v":"812310 - Coin-Operated Laundries and Drycleaners"}]
[null,812320,"Drycleaning and Laundry Services (except Coin-Operated)",{"$f":"Table1[[#This Row],[NAICS Code]]&\" - \"&Table1[[#This Row],[Description]]","v":"812320 - Drycleaning and Laundry Services (except Coin-Operated)"}]
[null,812331,"Linen Supply",{"$f":"Table1[[#This Row],[NAICS Code]]&\" - \"&Table1[[#This Row],[Description]]","v":"812331 - Linen Supply"}]
[null,812332,"Industrial Launderers",{"$f":"Table1[[#This Row],[NAICS Code]]&\" - \"&Table1[[#This Row],[Description]]","v":"812332 - Industrial Launderers"}]
[null,812910,"Pet Care (except Veterinary) Services",{"$f":"Table1[[#This Row],[NAICS Code]]&\" - \"&Table1[[#This Row],[Description]]","v":"812910 - Pet Care (except Veterinary) Services"}]
[null,812921,"Photofinishing Laboratories (except One-Hour)",{"$f":"Table1[[#This Row],[NAICS Code]]&\" - \"&Table1[[#This Row],[Description]]","v":"812921 - Photofinishing Laboratories (except One-Hour)"}]
[null,812922,"One-Hour Photofinishing",{"$f":"Table1[[#This Row],[NAICS Code]]&\" - \"&Table1[[#This Row],[Description]]","v":"812922 - One-Hour Photofinishing"}]
[null,812930,"Parking Lots and Garages",{"$f":"Table1[[#This Row],[NAICS Code]]&\" - \"&Table1[[#This Row],[Description]]","v":"812930 - Parking Lots and Garages"}]
[null,812990,"All Other Personal Services",{"$f":"Table1[[#This Row],[NAICS Code]]&\" - \"&Table1[[#This Row],[Description]]","v":"812990 - All Other Personal Services"}]
[null,813110,"Religious Organizations",{"$f":"Table1[[#This Row],[NAICS Code]]&\" - \"&Table1[[#This Row],[Description]]","v":"813110 - Religious Organizations"}]
[null,813211,"Grantmaking Foundations",{"$f":"Table1[[#This Row],[NAICS Code]]&\" - \"&Table1[[#This Row],[Description]]","v":"813211 - Grantmaking Foundations"}]
[null,813212,"Voluntary Health Organizations",{"$f":"Table1[[#This Row],[NAICS Code]]&\" - \"&Table1[[#This Row],[Description]]","v":"813212 - Voluntary Health Organizations"}]
[null,813219,"Other Grantmaking and Giving Services",{"$f":"Table1[[#This Row],[NAICS Code]]&\" - \"&Table1[[#This Row],[Description]]","v":"813219 - Other Grantmaking and Giving Services"}]
[null,813311,"Human Rights Organizations",{"$f":"Table1[[#This Row],[NAICS Code]]&\" - \"&Table1[[#This Row],[Description]]","v":"813311 - Human Rights Organizations"}]
[null,813312,"Environment, Conservation and Wildlife Organizations",{"$f":"Table1[[#This Row],[NAICS Code]]&\" - \"&Table1[[#This Row],[Description]]","v":"813312 - Environment, Conservation and Wildlife Organizations"}]
[null,813319,"Other Social Advocacy Organizations",{"$f":"Table1[[#This Row],[NAICS Code]]&\" - \"&Table1[[#This Row],[Description]]","v":"813319 - Other Social Advocacy Organizations"}]
[null,813410,"Civic and Social Organizations",{"$f":"Table1[[#This Row],[NAICS Code]]&\" - \"&Table1[[#This Row],[Description]]","v":"813410 - Civic and Social Organizations"}]
[null,813910,"Business Associations",{"$f":"Table1[[#This Row],[NAICS Code]]&\" - \"&Table1[[#This Row],[Description]]","v":"813910 - Business Associations"}]
[null,813920,"Professional Organizations",{"$f":"Table1[[#This Row],[NAICS Code]]&\" - \"&Table1[[#This Row],[Description]]","v":"813920 - Professional Organizations"}]
[null,813930,"Labor Unions and Similar Labor Organizations",{"$f":"Table1[[#This Row],[NAICS Code]]&\" - \"&Table1[[#This Row],[Description]]","v":"813930 - Labor Unions and Similar Labor Organizations"}]
[null,813940,"Political Organizations",{"$f":"Table1[[#This Row],[NAICS Code]]&\" - \"&Table1[[#This Row],[Description]]","v":"813940 - Political Organizations"}]
[null,813990,"Other Similar Organizations (except Business, Professional, Labor, and Political Organizations)",{"$f":"Table1[[#This Row],[NAICS Code]]&\" - \"&Table1[[#This Row],[Description]]","v":"813990 - Other Similar Organizations (except Business, Professional, Labor, and Political Organizations)"}]
[null,814110,"Private Households",{"$f":"Table1[[#This Row],[NAICS Code]]&\" - \"&Table1[[#This Row],[Description]]","v":"814110 - Private Households"}]
[null,921110,"Executive Offices",{"$f":"Table1[[#This Row],[NAICS Code]]&\" - \"&Table1[[#This Row],[Description]]","v":"921110 - Executive Offices"}]
[null,921120,"Legislative Bodies",{"$f":"Table1[[#This Row],[NAICS Code]]&\" - \"&Table1[[#This Row],[Description]]","v":"921120 - Legislative Bodies"}]
[null,921130,"Public Finance Activities",{"$f":"Table1[[#This Row],[NAICS Code]]&\" - \"&Table1[[#This Row],[Description]]","v":"921130 - Public Finance Activities"}]
[null,921140,"Executive and Legislative Offices, Combined",{"$f":"Table1[[#This Row],[NAICS Code]]&\" - \"&Table1[[#This Row],[Description]]","v":"921140 - Executive and Legislative Offices, Combined"}]
[null,921150,"American Indian and Alaska Native Tribal Governments",{"$f":"Table1[[#This Row],[NAICS Code]]&\" - \"&Table1[[#This Row],[Description]]","v":"921150 - American Indian and Alaska Native Tribal Governments"}]
[null,921190,"Other General Government Support",{"$f":"Table1[[#This Row],[NAICS Code]]&\" - \"&Table1[[#This Row],[Description]]","v":"921190 - Other General Government Support"}]
[null,922110,"Courts",{"$f":"Table1[[#This Row],[NAICS Code]]&\" - \"&Table1[[#This Row],[Description]]","v":"922110 - Courts"}]
[null,922120,"Police Protection",{"$f":"Table1[[#This Row],[NAICS Code]]&\" - \"&Table1[[#This Row],[Description]]","v":"922120 - Police Protection"}]
[null,922130,"Legal Counsel and Prosecution",{"$f":"Table1[[#This Row],[NAICS Code]]&\" - \"&Table1[[#This Row],[Description]]","v":"922130 - Legal Counsel and Prosecution"}]
[null,922140,"Correctional Institutions",{"$f":"Table1[[#This Row],[NAICS Code]]&\" - \"&Table1[[#This Row],[Description]]","v":"922140 - Correctional Institutions"}]
[null,922150,"Parole Offices and Probation Offices",{"$f":"Table1[[#This Row],[NAICS Code]]&\" - \"&Table1[[#This Row],[Description]]","v":"922150 - Parole Offices and Probation Offices"}]
[null,922160,"Fire Protection",{"$f":"Table1[[#This Row],[NAICS Code]]&\" - \"&Table1[[#This Row],[Description]]","v":"922160 - Fire Protection"}]
[null,922190,"Other Justice, Public Order, and Safety Activities",{"$f":"Table1[[#This Row],[NAICS Code]]&\" - \"&Table1[[#This Row],[Description]]","v":"922190 - Other Justice, Public Order, and Safety Activities"}]
[null,923110,"Administration of Education Programs",{"$f":"Table1[[#This Row],[NAICS Code]]&\" - \"&Table1[[#This Row],[Description]]","v":"923110 - Administration of Education Programs"}]
[null,923120,"Administration of Public Health Programs",{"$f":"Table1[[#This Row],[NAICS Code]]&\" - \"&Table1[[#This Row],[Description]]","v":"923120 - Administration of Public Health Programs"}]
[null,923130,"Administration of Human Resource Programs (except Education, Public Health, and Veterans' Affairs Programs)",{"$f":"Table1[[#This Row],[NAICS Code]]&\" - \"&Table1[[#This Row],[Description]]","v":"923130 - Administration of Human Resource Programs (except Education, Public Health, and Veterans' Affairs Programs)"}]
[null,923140,"Administration of Veterans' Affairs",{"$f":"Table1[[#This Row],[NAICS Code]]&\" - \"&Table1[[#This Row],[Description]]","v":"923140 - Administration of Veterans' Affairs"}]
[null,924110,"Administration of Air and Water Resource and Solid Waste Management Programs",{"$f":"Table1[[#This Row],[NAICS Code]]&\" - \"&Table1[[#This Row],[Description]]","v":"924110 - Administration of Air and Water Resource and Solid Waste Management Programs"}]
[null,924120,"Administration of Conservation Programs",{"$f":"Table1[[#This Row],[NAICS Code]]&\" - \"&Table1[[#This Row],[Description]]","v":"924120 - Administration of Conservation Programs"}]
[null,925110,"Administration of Housing Programs",{"$f":"Table1[[#This Row],[NAICS Code]]&\" - \"&Table1[[#This Row],[Description]]","v":"925110 - Administration of Housing Programs"}]
[null,925120,"Administration of Urban Planning and Community and Rural Development",{"$f":"Table1[[#This Row],[NAICS Code]]&\" - \"&Table1[[#This Row],[Description]]","v":"925120 - Administration of Urban Planning and Community and Rural Development"}]
[null,926110,"Administration of General Economic Programs",{"$f":"Table1[[#This Row],[NAICS Code]]&\" - \"&Table1[[#This Row],[Description]]","v":"926110 - Administration of General Economic Programs"}]
[null,926120,"Regulation and Administration of Transportation Programs",{"$f":"Table1[[#This Row],[NAICS Code]]&\" - \"&Table1[[#This Row],[Description]]","v":"926120 - Regulation and Administration of Transportation Programs"}]
[null,926130,"Regulation and Administration of Communications, Electric, Gas, and Other Utilities",{"$f":"Table1[[#This Row],[NAICS Code]]&\" - \"&Table1[[#This Row],[Description]]","v":"926130 - Regulation and Administration of Communications, Electric, Gas, and Other Utilities"}]
[null,926140,"Regulation of Agricultural Marketing and Commodities",{"$f":"Table1[[#This Row],[NAICS Code]]&\" - \"&Table1[[#This Row],[Description]]","v":"926140 - Regulation of Agricultural Marketing and Commodities"}]
[null,926150,"Regulation, Licensing, and Inspection of Miscellaneous Commercial Sectors",{"$f":"Table1[[#This Row],[NAICS Code]]&\" - \"&Table1[[#This Row],[Description]]","v":"926150 - Regulation, Licensing, and Inspection of Miscellaneous Commercial Sectors"}]
[null,927110,"Space Research and Technology",{"$f":"Table1[[#This Row],[NAICS Code]]&\" - \"&Table1[[#This Row],[Description]]","v":"927110 - Space Research and Technology"}]
[null,928110,"National Security",{"$f":"Table1[[#This Row],[NAICS Code]]&\" - \"&Table1[[#This Row],[Description]]","v":"928110 - National Security"}]
[null,928120,"International Affairs",{"$f":"Table1[[#This Row],[NAICS Code]]&\" - \"&Table1[[#This Row],[Description]]","v":"928120 - International Affairs"}]

{"sheet":"Checklist","index":25,"n_rows":33,"n_cols":9,"rows_kept":33,"cut":false,"hidden":true,"merged":[[32,0,32,2],[31,4,31,9],[28,0,28,3],[33,4,33,9],[32,4,32,9],[28,4,28,5],[27,4,27,5],[30,0,30,9],[26,0,26,3],[27,0,27,3],[28,8,28,9],[27,8,27,9],[26,6,26,7],[27,6,27,7],[28,6,28,7],[26,4,26,5],[26,8,26,9],[25,8,25,9],[24,0,24,3],[0,0,0,10],[18,0,18,10],[2,4,2,5],[2,8,2,9],[3,0,3,3],[5,0,5,3],[5,8,5,9],[5,4,5,5],[2,6,2,7],[3,6,3,7],[3,8,3,9],[4,8,4,9],[4,6,4,7],[5,6,5,7],[3,4,3,5],[4,0,4,3],[22,0,22,3],[20,8,20,9],[11,0,12,9],[7,0,9,9],[21,8,21,9],[4,4,4,5],[22,4,22,5],[22,8,22,9],[25,6,25,7],[21,6,21,7],[21,4,21,5],[20,0,20,3],[20,4,20,5],[20,6,20,7],[21,0,21,2],[22,6,22,7],[25,0,25,3],[25,4,25,5]]}
["NEW & RENEWALS"]
["THE GROUP PLAN IS BEST DEFINED AS "]
[null,null,null,null,"Medical",null,"Pharmacy",null,"Dental"]
["ODS STANDARD PLAN - Group accepts contract comparison changes effective under plans pertaining to Medical (all 4-digit plans (2-50) and all 11- digit plans (51+)) and Dental (all plans)."]
["NON-STANDARD PLAN - Group does not accept all contract comparison changes effective under standard plans.  Intended benefits fall within the variables filed with the state and group is defined as a non-standard ODS plan.  If unknown, verify plan type with Contract Department."]
["NEGOTIATED PLAN - Group does not accept all contract comparison changes effective under standard plans.  Benefit design is unique to ODS and group plan is defined as a negotiated plan.  If unknown, verify plan type with Contract Department."]
[]
["PLEASE NOTE: Management approval is required for: 1) New groups with less than 100 employees/primary subscribers enrolled requesting a non-standard or negotiated plan, 2) Existing groups with less than 100 employees/primary subscribers enrolled switching."]
[]
[]
[]
["Management approval is not required for existing groups currently on a non-standard or negotiated plan to continue on a non-standard or negotiated plan."]
[]
[]
["Marketing Management Approval ",null,null,"Date"]
[null,null,null,null,null,null," "]
["Underwriting Management Approval ",null,null,"Date"]
[]
["RENEWALS ONLY"]
[]
["#1 Please Check One:",null,null,null,"Medical",null,"Pharmacy",null,"Dental"]
["Group is renewing with current Plan design."]
["Group is renewing with Plan design changes."]
[]
["#2 Please Check One:"]
["Group has accepted all changes indicated on plan comparison (do not include copy of contract comparison with the group app)."]
["**Group has not accepted changes on the plan comparison (include copy of contract comparison with the group app)."]
["Plan comparison is still being reviewed by the group/agent.  Upon receipt of approval, Marketing will forward a copy to the Contracts Department and the Benefits Programming Department."]
["The contract comparison is currently being drafted by the Contract Department and has NOT been sent to the group or agent.  Upon receipt of approval, Marketing will forward a copy to both the Contracts Department and the Benefits Programming Department."]
[]
["**If all benefits are not accepted, a contract comparison, whether it is signed by the group or not, must be included with all renewal group applications in order to begin programming and drafting contracts/member handbooks."]
[null,null,null,"Medical","Dental"]
["Indicate the Group Plan Changes version that was sent to the group            "]